Workbook

Sheet Example 8.1
A1: A Beginners Guide to the Steel Construction Manual, 16th Edition | H1: last modified: 30 May 2023
A2: Example 8.1 | H2: by: TBQ
B8: Section | C8: W18X35 | F8: d | G8: =VLOOKUP(C8,StlSects,6) -> 17.7 | H8: in | I8: rts | J8: =SQRT(SQRT(G16*G19)/G14) -> 1.514215993 | K8: in
B9: Steel | C9: A992 | F9: tw | G9: =VLOOKUP(C8,StlSects,12) -> 0.3 | H9: in | I9: ho | J9: =+G8-G10 -> 17.275 | K9: in
B10: Span | C10: 40 | D10: ft | F10: tf | G10: =VLOOKUP(C8,StlSects,13) -> 0.425 | H10: in | I10: Aw | J10: =+G8*G9 -> 5.31 | K10: in2
B11: Fy | C11: =VLOOKUP(C9,StlProps,2) -> 50 | D11: ksi | F11: bf/2tf | G11: =VLOOKUP(C8,StlSects,25) -> 7.06
F12: h/tw | G12: =VLOOKUP(C8,StlSects,27) -> 53.5
C13: Shear | D13: Flexure | F13: Zx | G13: =VLOOKUP(C8,StlSects,31) -> 66.5 | H13: in3
B14: f | C14: 1 | D14: 0.9 | F14: Sx | G14: =VLOOKUP(C8,StlSects,32) -> 57.6 | H14: in3
B15: W | C15: 1.5 | D15: 1.67 | F15: Ix | G15: =VLOOKUP(C8,StlSects,30) -> 510 | H15: in4
F16: Iy | G16: =VLOOKUP(C8,StlSects,34) -> 15.3 | H16: in4
F17: ry | G17: =VLOOKUP(C8,StlSects,37) -> 1.22 | H17: in
F18: J | G18: =VLOOKUP(C8,StlSects,39) -> 0.506 | H18: in4
F19: Cw | G19: =VLOOKUP(C8,StlSects,40) -> 1140
A29: Solution:
B31: Results Summary
B33: Table of Ps,eq (kips)
C34: Flexure | E34: Shear | G34: Deflection | I34: Controlling Ps,eq | K34: Controlling Limit State
B35: part | C35: LRFD | D35: ASD | E35: LRFD | F35: ASD | G35: TL | H35: LL Only | I35: LRFD | J35: ASD | K35: LRFD | L35: ASD
B36: a | C36: =D133 -> 19.6875 | D36: =I133 -> 19.91017964 | E36: =+D61 -> 251.5263158 | F36: =+I61 -> 254.88 | G36: =+C70 -> 15.40625 | H36: =+I70 -> 17.11805556 | I36: =MIN(C36,E36,G36,H36) -> 15.40625 | J36: =MIN(D36,F36,G36,H36) -> 15.40625 | K36: =IF(I36=C36,"Flexure",IF(I36=E36,"Shear",IF(I36=G36,"TL Defl","LL Defl"))) -> TL Defl | L36: =IF(J36=D36,"Flexure",IF(J36=F36,"Shear",IF(J36=G36,"TL Defl","LL Defl"))) -> TL Defl
B37: b | C37: =D160 -> 17.77831795 | D37: =I160 -> 17.97940338 | E37: =+E36 -> 251.5263158 | F37: 254.88 | G37: 15.40625 | H37: 17.11805556 | I37: =MIN(C37,E37,G37,H37) -> 15.40625 | J37: =MIN(D37,F37,G37,H37) -> 15.40625 | K37: =IF(I37=C37,"Flexure",IF(I37=E37,"Shear",IF(I37=G37,"TL Defl","LL Defl"))) -> TL Defl | L37: =IF(J37=D37,"Flexure",IF(J37=F37,"Shear",IF(J37=G37,"TL Defl","LL Defl"))) -> TL Defl
B38: c | C38: =D189 -> 1.906373661 | D38: =I189 -> 1.927936104 | E38: 251.5263158 | F38: 254.88 | G38: 15.40625 | H38: 17.11805556 | I38: =MIN(C38,E38,G38,H38) -> 1.906373661 | J38: =MIN(D38,F38,G38,H38) -> 1.927936104 | K38: =IF(I38=C38,"Flexure",IF(I38=E38,"Shear",IF(I38=G38,"TL Defl","LL Defl"))) -> Flexure | L38: =IF(J38=D38,"Flexure",IF(J38=F38,"Shear",IF(J38=G38,"TL Defl","LL Defl"))) -> Flexure
B39: d | C39: =D195 -> 0.5945977849 | D39: =I195 -> 0.6013231092 | E39: 251.5263158 | F39: 254.88 | G39: 15.40625 | H39: 17.11805556 | I39: =MIN(C39,E39,G39,H39) -> 0.5945977849 | J39: =MIN(D39,F39,G39,H39) -> 0.6013231092 | K39: =IF(I39=C39,"Flexure",IF(I39=E39,"Shear",IF(I39=G39,"TL Defl","LL Defl"))) -> Flexure | L39: =IF(J39=D39,"Flexure",IF(J39=F39,"Shear",IF(J39=G39,"TL Defl","LL Defl"))) -> Flexure
B42: Compute the Composite Load Factors:
C44: D | D44: =1/3 -> 0.3333333333 | F44: LRFD | I44: ASD
C45: L | D45: =+D44 -> 0.3333333333 | F45: LC-1 | G45: =(1.4*D44) -> 0.4666666667 | I45: LC-1 | J45: =1*D44 -> 0.3333333333
C46: S | D46: =D45 -> 0.3333333333 | F46: LC-2 | G46: =(1.2*D44+1.6*D45+0.5*D46) -> 1.1 | I46: LC-2 | J46: =1*D44+1*D45 -> 0.6666666667
F47: LC-3 | G47: =(1.2*D44+1.6*D46+D45) -> 1.266666667 | I47: LC-3 | J47: =1*D44+1*D46 -> 0.6666666667
F48: LC-4 | G48: =1.2*D44+D45+0.5*D46 -> 0.9 | I48: LC-4 | J48: =1*D44+0.75*(D45+D46) -> 0.8333333333
F49: Controlling | G49: =MAX(G45:G48) -> 1.266666667 | I49: Controlling | J49: =MAX(J45:J48) -> 0.8333333333
B51: The only limit state that varies with laterally unsupported length is LTB. This means that for all parts of the problem, shear
B52: strength, flexural plastic strength, and FLB are the same. So… compute those first.
B54: Shear Strength
C55: h/tw | D55: =+G12 -> 53.5 | F55: < 2.24*sqrt(E/Fy) | G55: =2.24*SQRT(29000/C11) -> 53.94634371
C56: Cv1 | D56: =IF(G12<=G55,1,"Use G2.19b)") -> 1
C57: Vn | D57: =0.6*C11*J10*D56 -> 159.3 | E57: kips
B59: LRFD: | C59: fVn | D59: =+D57*C14 -> 159.3 | E59: ft-k | G59: ASD: | H59: Vn / W | I59: =+D57/C15 -> 106.2 | J59: ft-k
C60: Pu,max | D60: =2*D59 -> 318.6 | E60: k | H60: Pa,max | I60: =2*I59 -> 212.4 | J60: k
C61: Ps,eq | D61: =D60/G49 -> 251.5263158 | E61: k | H61: Ps,eq | I61: =I60/J49 -> 254.88 | J61: k
C62: Note: The shear limit state does not control the problem! See the Flexural Calculations
B64: Deflection Limit States
B66: Total Load Deflection: Consider ASD LC-4 | H66: LL only Deflection: Consider ASD LC-4 w/ D=0
B67: CLF | C67: =+J48 -> 0.8333333333 | H67: CLF | I67: =0.75*(D45+D46) -> 0.5
B68: Limit: = L/ | C68: 240 | D68: = | E68: =+C10/C68*12 -> 2 | F68: in | H68: Limit: = L/ | I68: 360 | J68: = | K68: =+C10/I68*12 -> 1.333333333 | L68: in
B69: Pmax = | C69: =E68*48*29000*G15/(C10*12)^3 -> 12.83854167 | D69: kips | H69: Pmax = | I69: =K68*48*29000*G15/(C10*12)^3 -> 8.559027778 | J69: kips
B70: Ps,eq | C70: =C69/C67 -> 15.40625 | D70: k | H70: Ps,eq | I70: =I69/I67 -> 17.11805556 | J70: k
B72: Flexural Yielding Strength | F72: Flange Local Buckling
B73: Mp = FyZx = | D73: =+ $C11*$G13/12 -> 277.0833333 | E73: ft-k | F73: lp | G73: =0.38*SQRT(29000/$C11) -> 9.15161188
F74: lr | G74: =1*SQRT(29000/$C11) -> 24.08318916
F75: class | G75: =IF(G11<=G73,"Compact",IF(G11<=G74,"Non C.","Slend.")) -> Compact
F76: Mn | G76: =IF(G11<=G73,D73,"Compute") -> 277.0833333 | H76: ft-k
B78: Lateral Torsional Buckling | H78: c | I78: 1 | J78: (See SCM F2, eq. F2-8)
B80: Compute the Moment Diagram points needed to compute Cb
C82: X | D82: M
C83: (ft) | D83: (ft-k)
B84: Support | C84: 0 | D84: =(C84-C$84)*0.5 -> 0 | E84: P
C85: =C10/16 -> 2.5 | D85: 1.25 | E85: P
C86: =C85+C$85 -> 5 | D86: 2.5 | E86: P
C87: =C86+C$85 -> 7.5 | D87: 3.75 | E87: P
B88: quarter pnt | C88: 10 | D88: 5 | E88: P
C89: 12.5 | D89: 6.25 | E89: P
C90: 15 | D90: 7.5 | E90: P
C91: 17.5 | D91: 8.75 | E91: P
B92: mid pnt | C92: 20 | D92: 10 | E92: P
C93: 22.5 | D93: =(C93-C$84)*0.5-(C93-C$92)*1 -> 8.75 | E93: P
C94: 25 | D94: =(C94-C$84)*0.5-(C94-C$92)*1 -> 7.5 | E94: P
C95: 27.5 | D95: 6.25 | E95: P
B96: quarter pnt | C96: 30 | D96: 5 | E96: P
C97: 32.5 | D97: 3.75 | E97: P
C98: 35 | D98: 2.5 | E98: P
C99: 37.5 | D99: 1.25 | E99: P
B100: Support | C100: 40 | D100: 0 | E100: P
C103: Problem | D103: (a) | F103: (b) | I103: (c.) | K103: (d)
C104: Sub span | D104: (a.) | E104: (b.1) | F104: (b.2) | G104: (b.3) | H104: (b.4) | I104: (c.1) | J104: (c.2) | K104: (d.)
C105: Start | D105: 0 | E105: =D84 -> 0 | F105: =E106 -> 10 | G105: =F106 -> 20 | H105: =G106 -> 30 | I105: =C84 -> 0 | J105: =I106 -> 20 | K105: =C84 -> 0
C106: End | D106: 0 | E106: =C88 -> 10 | F106: =C92 -> 20 | G106: =C96 -> 30 | H106: =C100 -> 40 | I106: =C92 -> 20 | J106: =C100 -> 40 | K106: =C100 -> 40
C107: Laterally unsupported length: | D107: =D106-D105 -> 0 | E107: =E106-E105 -> 10 | F107: 10 | G107: 10 | H107: 10 | I107: 20 | J107: 20 | K107: 40
C109: Moment Modifier, Cb
C110: Mmax | D110: 0 | E110: =+D88 -> 5 | F110: =D92 -> 10 | G110: =F110 -> 10 | H110: =E110 -> 5 | I110: =D92 -> 10 | J110: =I110 -> 10 | K110: =D92 -> 10 | L110: ft-k
C111: MA | D111: =+D110 -> 0 | E111: =+D85 -> 1.25 | F111: =D89 -> 6.25 | G111: =F111 -> 6.25 | H111: =E111 -> 1.25 | I111: =D86 -> 2.5 | J111: =I111 -> 2.5 | K111: =D88 -> 5 | L111: ft-k
C112: MB | D112: =+D110 -> 0 | E112: =+D86 -> 2.5 | F112: =D90 -> 7.5 | G112: =F112 -> 7.5 | H112: =E112 -> 2.5 | I112: =D88 -> 5 | J112: =I112 -> 5 | K112: =D92 -> 10 | L112: ft-k
C113: MC | D113: =+D110 -> 0 | E113: =+D87 -> 3.75 | F113: =D91 -> 8.75 | G113: =F113 -> 8.75 | H113: =E113 -> 3.75 | I113: =D90 -> 7.5 | J113: =I113 -> 7.5 | K113: =D96 -> 5 | L113: ft-k
C114: Cb | D114: 1 | E114: =12.5*E110/(2.5*E110+3*E111+4*E112+3*E113) -> 1.666666667 | F114: =12.5*F110/(2.5*F110+3*F111+4*F112+3*F113) -> 1.25 | G114: 1.25 | H114: 1.666666667 | I114: 1.666666667 | J114: 1.666666667 | K114: 1.315789474
C116: Lateral Torsional Buckling
C117: Lb | D117: =+C26 -> 0 | E117: =E107 -> 10 | F117: =F107 -> 10 | G117: 10 | H117: 10 | I117: 20 | J117: 20 | K117: 40 | L117: ft
C118: Lp | D118: =1.76*G17*SQRT(29000/$C11)/12 -> 4.309285313 | E118: =1.76*$G17*SQRT(29000/$C11)/12 -> 4.309285313 | F118: 4.309285313 | G118: 4.309285313 | H118: 4.309285313 | I118: 4.309285313 | J118: 4.309285313 | K118: 4.309285313 | L118: ft
C119: Mr | D119: =0.7*C11*G14/12 -> 168 | E119: =0.7*$C11*$G14/12 -> 168 | F119: 168 | G119: 168 | H119: 168 | I119: 168 | J119: 168 | K119: 168 | L119: ft-k
C120: Lr | D120: =1.95*J8*29000/(0.7*$C11)*SQRT(G18*I78/G14/J9)*SQRT(1+SQRT(1+6.76*(0.7*$C11*G14*J9/29000/G18/I78)^2))/12 -> 12.38028779 | E120: =1.95*$J8*29000/(0.7*$C11)*SQRT($G18*$I78/$G14/$J9)*SQRT(1+SQRT(1+6.76*(0.7*$C11*$G14*$J9/29000/$G18/$I78)^2))/12 -> 12.38028779 | F120: 12.38028779 | G120: 12.38028779 | H120: 12.38028779 | I120: 12.38028779 | J120: 12.38028779 | K120: 12.38028779 | L120: ft
C121: Mn w/o Cb | D121: =IF(D117<=D118,$D$73,MIN($D$73,IF(D117<=D120,($D$73-($D$73-D119)*(D117-D118)/(D120-D118)),(PI()^2)*29000/(D117*12/$J8)^2*SQRT(1+0.078*$G18*$I78/$G14/$J9*(D117*12/$J8)^2)))) -> 277.0833333 | E121: 200.170691 | F121: 200.170691 | G121: 200.170691 | H121: 200.170691 | I121: 16.09826647 | J121: 16.09826647 | K121: 6.359994085 | L121: ft-k
C122: Mn w/ Cb | D122: =MIN($D73,D121*D114) -> 277.0833333 | E122: 277.0833333 | F122: 250.2133637 | G122: 250.2133637 | H122: 277.0833333 | I122: 26.83044412 | J122: 26.83044412 | K122: 8.368413269 | L122: ft-k
C123: Equation | D123: =IF(D117<=D118,"F2-1",IF(D117<=D120,"F2-2","F2-3")) -> F2-1 | E123: =IF(E117<=E118,"F2-1",IF(E117<=E120,"F2-2","F2-3")) -> F2-2 | F123: =IF(F117<=F118,"F2-1",IF(F117<=F120,"F2-2","F2-3")) -> F2-2 | G123: F2-2 | H123: F2-2 | I123: F2-3 | J123: F2-3 | K123: F2-3
B125: Controlling, Mn
C126: Mn | D126: =MIN($D73,D122,$G76) -> 277.0833333 | E126: 277.0833333 | F126: 250.2133637 | G126: 250.2133637 | H126: 277.0833333 | I126: 26.83044412 | J126: 26.83044412 | K126: 8.368413269 | L126: ft-k
A129: part (a) | B129: Controlling Mn | D129: =D126 -> 277.0833333 | E129: ft-k
B131: LRFD: | C131: fMn | D131: =D129*$D14 -> 249.375 | E131: ft-k | G131: ASD: | H131: Mn / W | I131: =D129/$D15 -> 165.9181637 | J131: ft-k
C132: Pu,max | D132: =4*D131/$C10 -> 24.9375 | E132: k | H132: Pa,max | I132: =4*I131/$C10 -> 16.59181637 | J132: k
C133: Ps,eq | D133: =D132/G49 -> 19.6875 | E133: k | H133: Ps,eq | I133: =I132/J49 -> 19.91017964 | J133: k
C135: Moment diagrams
C136: X | D136: Mu | E136: fMn | G136: Note that the moment capacity is constant for this problem
C137: (ft) | D137: (ft-k) | E137: (ft-k)
C138: =C84 -> 0 | D138: =D$132*D84 -> 0 | E138: =D131 -> 249.375
C139: 2.5 | D139: 31.171875 | E139: =E138 -> 249.375
C140: 5 | D140: 62.34375 | E140: =E139 -> 249.375
C141: 7.5 | D141: 93.515625 | E141: 249.375
C142: 10 | D142: 124.6875 | E142: 249.375
C143: 12.5 | D143: 155.859375 | E143: 249.375
C144: 15 | D144: 187.03125 | E144: 249.375
C145: 17.5 | D145: 218.203125 | E145: 249.375
C146: 20 | D146: 249.375 | E146: 249.375
C147: 22.5 | D147: 218.203125 | E147: 249.375
C148: 25 | D148: 187.03125 | E148: 249.375
C149: 27.5 | D149: 155.859375 | E149: 249.375
C150: 30 | D150: 124.6875 | E150: 249.375
C151: 32.5 | D151: 93.515625 | E151: 249.375
C152: 35 | D152: 62.34375 | E152: 249.375
C153: 37.5 | D153: 31.171875 | E153: 249.375
C154: 40 | D154: 0 | E154: 249.375
A156: part (b) | B156: Controlling Mn | D156: =MIN(F126:G126) -> 250.2133637 | E156: ft-k
B158: LRFD: | C158: fMn | D158: =D156*$D$14 -> 225.1920273 | E158: ft-k | G158: ASD: | H158: Mn / W | I158: =D156/$D$15 -> 149.8283615 | J158: ft-k
C159: Pu,max | D159: =4*D158/$C$10 -> 22.51920273 | E159: k | H159: Pa,max | I159: =4*I158/$C$10 -> 14.98283615 | J159: k
C160: Ps,eq | D160: =D159/G$49 -> 17.77831795 | E160: k | H160: Ps,eq | I160: =I159/J$49 -> 17.97940338 | J160: k
C162: Moment diagrams
C163: X | D163: Mu | E163: fMn | G163: Notice the variable moment capacity. Why is this?
C164: (ft) | D164: (ft-k) | E164: (ft-k)
C165: =C84 -> 0 | D165: =D$159*D84 -> 0 | E165: =E126*D$14 -> 249.375
C166: =C85 -> 2.5 | D166: =D$159*D85 -> 28.14900342 | E166: =E165 -> 249.375
C167: =C86 -> 5 | D167: =D$159*D86 -> 56.29800684 | E167: =E166 -> 249.375
C168: =C87 -> 7.5 | D168: =D$159*D87 -> 84.44701025 | E168: =E167 -> 249.375
C169: =C88 -> 10 | D169: =D$159*D88 -> 112.5960137 | E169: 249.375
C170: =C169 -> 10 | D170: =D169 -> 112.5960137 | E170: =D158 -> 225.1920273
C171: =C89 -> 12.5 | D171: =D$159*D89 -> 140.7450171 | E171: =E170 -> 225.1920273
C172: 15 | D172: 168.8940205 | E172: 225.1920273
C173: 17.5 | D173: 197.0430239 | E173: 225.1920273
C174: 20 | D174: 225.1920273 | E174: 225.1920273
C175: 22.5 | D175: 197.0430239 | E175: 225.1920273
C176: 25 | D176: 168.8940205 | E176: 225.1920273
C177: 27.5 | D177: 140.7450171 | E177: 225.1920273
C178: 30 | D178: 112.5960137 | E178: 225.1920273
C179: =C178 -> 30 | D179: =D178 -> 112.5960137 | E179: =E169 -> 249.375
C180: =C97 -> 32.5 | D180: =D$159*D97 -> 84.44701025 | E180: =E179 -> 249.375
C181: =C98 -> 35 | D181: =D$159*D98 -> 56.29800684 | E181: 249.375
C182: =C99 -> 37.5 | D182: =D$159*D99 -> 28.14900342 | E182: 249.375
C183: =C100 -> 40 | D183: =D$159*D100 -> 0 | E183: 249.375
A185: part (c) | B185: Controlling Mn | D185: =I126 -> 26.83044412 | E185: ft-k
B187: LRFD: | C187: fMn | D187: =D185*$D$14 -> 24.14739971 | E187: ft-k | G187: ASD: | H187: Mn / W | I187: =D185/D$15 -> 16.0661342 | J187: ft-k
C188: Pu,max | D188: =4*D187/$C100 -> 2.414739971 | E188: k | H188: Pa,max | I188: =4*I187/$C100 -> 1.60661342 | J188: k
C189: Ps,eq | D189: =D188/G$49 -> 1.906373661 | E189: k | H189: Ps,eq | I189: =I188/J$49 -> 1.927936104 | J189: k
A191: part (c) | B191: Controlling Mn | D191: =K126 -> 8.368413269 | E191: ft-k
B193: LRFD: | C193: fMn | D193: =D191*$D$14 -> 7.531571942 | E193: ft-k | G193: ASD: | H193: Mn / W | I193: =D191/D$15 -> 5.01102591 | J193: ft-k
C194: Pu,max | D194: =4*D193/$C$10 -> 0.7531571942 | E194: k | H194: Pa,max | I194: =4*I193/$C$10 -> 0.501102591 | J194: k
C195: Ps,eq | D195: =D194/G$49 -> 0.5945977849 | E195: k | H195: Ps,eq | I195: =I194/J$49 -> 0.6013231092 | J195: k

Sheet Example 8.2
A1: A Beginners Guide to the Steel Construction Manual, 16th Edition | H1: last modified: 30 May 2023
A2: Example 8.2 | H2: by: TBQ
B8: Section | C8: W18X35 | F8: d | G8: =VLOOKUP(C8,StlSects,6) -> 17.7 | H8: in | I8: rts | J8: =SQRT(SQRT(G16*G19)/G14) -> 1.514215993 | K8: in
B9: Steel | C9: A992 | F9: tw | G9: =VLOOKUP(C8,StlSects,12) -> 0.3 | H9: in | I9: ho | J9: =+G8-G10 -> 17.275 | K9: in
B10: Span | C10: 40 | D10: ft | F10: tf | G10: =VLOOKUP(C8,StlSects,13) -> 0.425 | H10: in | I10: Aw | J10: =+G8*G9 -> 5.31 | K10: in2
B11: Fy | C11: =VLOOKUP(C9,StlProps,2) -> 50 | D11: ksi | F11: bf/2tf | G11: =VLOOKUP(C8,StlSects,25) -> 7.06
F12: h/tw | G12: =VLOOKUP(C8,StlSects,27) -> 53.5
C13: Shear | D13: Flexure | F13: Zx | G13: =VLOOKUP(C8,StlSects,31) -> 66.5 | H13: in3
B14: f | C14: 1 | D14: 0.9 | F14: Sx | G14: =VLOOKUP(C8,StlSects,32) -> 57.6 | H14: in3
B15: W | C15: 1.5 | D15: 1.67 | F15: Ix | G15: =VLOOKUP(C8,StlSects,30) -> 510 | H15: in4
F16: Iy | G16: =VLOOKUP(C8,StlSects,34) -> 15.3 | H16: in4
F17: ry | G17: =VLOOKUP(C8,StlSects,37) -> 1.22 | H17: in
F18: J | G18: =VLOOKUP(C8,StlSects,39) -> 0.506 | H18: in4
F19: Cw | G19: =VLOOKUP(C8,StlSects,40) -> 1140
A29: Solution:
B31: Results Summary
B33: Table of ws,eq (kips/ft)
C34: Flexure | E34: Shear | G34: Deflection | I34: Controlling | K34: Controlling Limit State
B35: part | C35: LRFD | D35: ASD | E35: LRFD | F35: ASD | G35: TL | H35: LL Only | I35: LRFD | J35: ASD | K35: LRFD | L35: ASD
B36: a | C36: =+D130 -> 0.984375 | D36: =+D135 -> 0.995508982 | E36: =+D60 -> 16.36578947 | F36: =+I60 -> 16.584 | G36: =+C69 -> 0.61625 | H36: =+I69 -> 0.6847222222 | I36: =MIN(C36,E36,G36,H36) -> 0.61625 | J36: =MIN(D36,F36,G36,H36) -> 0.61625 | K36: =IF(I36=C36,"Flexure",IF(I36=E36,"Shear",IF(I36=G36,"TL Defl","LL Defl"))) -> TL Defl | L36: =IF(J36=D36,"Flexure",IF(J36=F36,"Shear",IF(J36=G36,"TL Defl","LL Defl"))) -> TL Defl
B37: b | C37: =+F130 -> 0.7545174726 | D37: =+F135 -> 0.7630516024 | E37: =+E36 -> 16.36578947 | F37: =+F36 -> 16.584 | G37: =+G36 -> 0.61625 | H37: =+H36 -> 0.6847222222 | I37: =MIN(C37,E37,G37,H37) -> 0.61625 | J37: =MIN(D37,F37,G37,H37) -> 0.61625 | K37: =IF(I37=C37,"Flexure",IF(I37=E37,"Shear",IF(I37=G37,"TL Defl","LL Defl"))) -> TL Defl | L37: =IF(J37=D37,"Flexure",IF(J37=F37,"Shear",IF(J37=G37,"TL Defl","LL Defl"))) -> TL Defl
B38: c | C38: =+I130 -> 0.07427429849 | D38: =+I135 -> 0.07511439368 | E38: =+E37 -> 16.36578947 | F38: 16.584 | G38: 0.61625 | H38: 0.6847222222 | I38: =MIN(C38,E38,G38,H38) -> 0.07427429849 | J38: =MIN(D38,F38,G38,H38) -> 0.07511439368 | K38: =IF(I38=C38,"Flexure",IF(I38=E38,"Shear",IF(I38=G38,"TL Defl","LL Defl"))) -> Flexure | L38: =IF(J38=D38,"Flexure",IF(J38=F38,"Shear",IF(J38=G38,"TL Defl","LL Defl"))) -> Flexure
B39: d | C39: =+K130 -> 0.02567581344 | D39: =+K135 -> 0.02596622517 | E39: 16.36578947 | F39: 16.584 | G39: 0.61625 | H39: 0.6847222222 | I39: =MIN(C39,E39,G39,H39) -> 0.02567581344 | J39: =MIN(D39,F39,G39,H39) -> 0.02596622517 | K39: =IF(I39=C39,"Flexure",IF(I39=E39,"Shear",IF(I39=G39,"TL Defl","LL Defl"))) -> Flexure | L39: =IF(J39=D39,"Flexure",IF(J39=F39,"Shear",IF(J39=G39,"TL Defl","LL Defl"))) -> Flexure
B41: Compute the Composite Load Factors:
C43: D | D43: =1/3 -> 0.3333333333 | F43: LRFD | I43: ASD
C44: L | D44: =+D43 -> 0.3333333333 | F44: LC-1 | G44: =(1.4*D43) -> 0.4666666667 | I44: LC-1 | J44: =1*D43 -> 0.3333333333
C45: S | D45: =D44 -> 0.3333333333 | F45: LC-2 | G45: =(1.2*D43+1.6*D44+0.5*D45) -> 1.1 | I45: LC-2 | J45: =1*D43+1*D44 -> 0.6666666667
F46: LC-3 | G46: =(1.2*D43+1.6*D45+D44) -> 1.266666667 | I46: LC-3 | J46: =1*D43+1*D45 -> 0.6666666667
F47: LC-4 | G47: =1.2*D43+D44+0.5*D45 -> 0.9 | I47: LC-4 | J47: =1*D43+0.75*(D44+D45) -> 0.8333333333
F48: Controlling | G48: =MAX(G44:G47) -> 1.266666667 | I48: Controlling | J48: =MAX(J44:J47) -> 0.8333333333
B50: The only limit state that varies with laterally unsupported length is LTB. This means that for all parts of the problem, shear
B51: strength, flexural plastic strength, and FLB are the same. So… compute those first.
B53: Shear Strength
C54: h/tw | D54: =+G12 -> 53.5 | F54: < 2.24*sqrt(E/Fy) | G54: =2.24*SQRT(29000/C11) -> 53.94634371
C55: Cv1 | D55: =IF(G11<=G54,1,"Use G2.19b)") -> 1
C56: Vn | D56: =0.6*C10*J9*D55 -> 414.6 | E56: kips
B58: LRFD: | C58: fVn | D58: =D56*C14 -> 414.6 | E58: ft-k | G58: ASD: | H58: Vn / W | I58: =D56/C15 -> 276.4 | J58: ft-k
C59: wu,max | D59: =2*D58/C10 -> 20.73 | E59: klf | H59: wu,max | I59: =2*I58/C10 -> 13.82 | J59: klf
C60: ws,eq | D60: =D59/G48 -> 16.36578947 | E60: klf | H60: ws,eq | I60: =I59/J48 -> 16.584 | J60: klf
C61: Note: The shear limit state does not control the problem! See the Flexural Calculations
B63: Deflection Limit States
B65: Total Load Deflection: Consider ASD LC-4 | H65: LL only Deflection: Consider ASD LC-4 w/ D=0
B66: CLF | C66: =+J47 -> 0.8333333333 | H66: CLF | I66: =0.75*(D44+D45) -> 0.5
B67: Limit: = L/ | C67: 240 | D67: = | E67: =+C10/C67*12 -> 2 | F67: in | H67: Limit: = L/ | I67: 360 | J67: = | K67: =+C10/I67*12 -> 1.333333333 | L67: in
B68: wmax = | C68: =E67*384*29000*G15/5/1728/(C10)^4 -> 0.5135416667 | D68: klf | H68: wmax = | I68: =K67*384*29000*G15/5/1728/(C10)^4 -> 0.3423611111 | J68: klf
B69: ws,eq | C69: =C68/C66 -> 0.61625 | D69: klf | H69: ws,eq | I69: =I68/I66 -> 0.6847222222 | J69: klf
B71: Flexural Plastic Strength | F71: Flange Local Buckling
B72: Mp = FyZx = | D72: =+ $C11*$G13/12 -> 277.0833333 | E72: ft-k | F72: lp | G72: =0.38*SQRT(29000/$C11) -> 9.15161188
F73: lr | G73: =1*SQRT(29000/$C11) -> 24.08318916
F74: class | G74: =IF(G11<=G72,"Compact",IF(G11<=G73,"Non C.","Slend.")) -> Compact
F75: Mn | G75: =IF(G11<=G72,D72,"Compute") -> 277.0833333 | H75: ft-k
B77: Lateral Torsional Buckling | H77: c | I77: 1 | J77: (See SCM F2, eq. F2-8)
B79: Compute the Moment Diagram points needed to compute Cb
C81: X | D81: M
C82: (ft) | D82: (ft-k)
B83: Support | C83: 0 | D83: =(C83-C83)*0.5 -> 0 | E83: P
C84: =C10/16 -> 2.5 | D84: =C99/2*(C84-C83)-((C84-C83)^2)/2 -> 46.875 | E84: P
C85: =C84+C$84 -> 5 | D85: =C99/2*(C85-C83)-((C85-C83)^2)/2 -> 87.5 | E85: P
C86: =C85+C$84 -> 7.5 | D86: =C99/2*(C86-C83)-((C86-C83)^2)/2 -> 121.875 | E86: P
B87: quarter pnt | C87: 10 | D87: =C99/2*(C87-C83)-((C87-C83)^2)/2 -> 150 | E87: P
C88: 12.5 | D88: =C99/2*(C88-C83)-((C88-C83)^2)/2 -> 171.875 | E88: P
C89: 15 | D89: =C99/2*(C89-C83)-((C89-C83)^2)/2 -> 187.5 | E89: P
C90: 17.5 | D90: =C99/2*(C90-C83)-((C90-C83)^2)/2 -> 196.875 | E90: P
B91: mid pnt | C91: 20 | D91: =C99/2*(C91-C83)-((C91-C83)^2)/2 -> 200 | E91: P
C92: 22.5 | D92: =C99/2*(C92-C83)-((C92-C83)^2)/2 -> 196.875 | E92: P
C93: 25 | D93: =C99/2*(C93-C83)-((C93-C83)^2)/2 -> 187.5 | E93: P
C94: 27.5 | D94: =C99/2*(C94-C83)-((C94-C83)^2)/2 -> 171.875 | E94: P
B95: quarter pnt | C95: 30 | D95: =C99/2*(C95-C83)-((C95-C83)^2)/2 -> 150 | E95: P
C96: 32.5 | D96: =C99/2*(C96-C83)-((C96-C83)^2)/2 -> 121.875 | E96: P
C97: 35 | D97: =C99/2*(C97-C83)-((C97-C83)^2)/2 -> 87.5 | E97: P
C98: 37.5 | D98: =C99/2*(C98-C83)-((C98-C83)^2)/2 -> 46.875 | E98: P
B99: Support | C99: 40 | D99: =C99/2*(C99-C83)-((C99-C83)^2)/2 -> 0 | E99: P
C102: Problem | D102: (a) | F102: (b) | I102: (c.) | K102: (d)
C103: Sub span | D103: (a.) | E103: (b.1) | F103: (b.2) | G103: (b.3) | H103: (b.4) | I103: (c.1) | J103: (c.2) | K103: (d.)
C104: Start | D104: 0 | E104: =D83 -> 0 | F104: =E105 -> 10 | G104: =F105 -> 20 | H104: =G105 -> 30 | I104: =C83 -> 0 | J104: =I105 -> 20 | K104: =C83 -> 0
C105: End | D105: 0 | E105: =C87 -> 10 | F105: =C91 -> 20 | G105: =C95 -> 30 | H105: =C99 -> 40 | I105: =C91 -> 20 | J105: =C99 -> 40 | K105: =C99 -> 40
C106: Laterally unsupported length: | D106: =D105-D104 -> 0 | E106: =E105-E104 -> 10 | F106: 10 | G106: 10 | H106: 10 | I106: 20 | J106: 20 | K106: 40
C108: Moment Modifier, Cb
C109: Mmax | D109: 0 | E109: =+D87 -> 150 | F109: =D91 -> 200 | G109: =F109 -> 200 | H109: =E109 -> 150 | I109: =D91 -> 200 | J109: =I109 -> 200 | K109: =D91 -> 200 | L109: ft-k
C110: MA | D110: =+D109 -> 0 | E110: =+D84 -> 46.875 | F110: =D88 -> 171.875 | G110: =F110 -> 171.875 | H110: =E110 -> 46.875 | I110: =D85 -> 87.5 | J110: =I110 -> 87.5 | K110: =D87 -> 150 | L110: ft-k
C111: MB | D111: =+D109 -> 0 | E111: =+D85 -> 87.5 | F111: =D89 -> 187.5 | G111: =F111 -> 187.5 | H111: =E111 -> 87.5 | I111: =D87 -> 150 | J111: =I111 -> 150 | K111: =D91 -> 200 | L111: ft-k
C112: MC | D112: =+D109 -> 0 | E112: =+D86 -> 121.875 | F112: =D90 -> 196.875 | G112: =F112 -> 196.875 | H112: =E112 -> 121.875 | I112: =D89 -> 187.5 | J112: =I112 -> 187.5 | K112: =D95 -> 150 | L112: ft-k
C113: Cb | D113: 1 | E113: =12.5*E109/(2.5*E109+3*E110+4*E111+3*E112) -> 1.52284264 | F113: =12.5*F109/(2.5*F109+3*F110+4*F111+3*F112) -> 1.061007958 | G113: 1.061007958 | H113: 1.52284264 | I113: 1.298701299 | J113: 1.298701299 | K113: 1.136363636
C115: Lateral Torsional Buckling
C116: Lb | D116: =+C26 -> 0 | E116: =E106 -> 10 | F116: =F106 -> 10 | G116: 10 | H116: 10 | I116: 20 | J116: 20 | K116: 40 | L116: ft
C117: Lp | D117: =1.76*G17*SQRT(29000/$C11)/12 -> 4.309285313 | E117: =1.76*$G17*SQRT(29000/$C11)/12 -> 4.309285313 | F117: 4.309285313 | G117: 4.309285313 | H117: 4.309285313 | I117: 4.309285313 | J117: 4.309285313 | K117: 4.309285313 | L117: ft
C118: Mr | D118: =0.7*C11*G14/12 -> 168 | E118: =0.7*$C11*$G14/12 -> 168 | F118: 168 | G118: 168 | H118: 168 | I118: 168 | J118: 168 | K118: 168 | L118: ft-k
C119: Lr | D119: =1.95*J8*29000/(0.7*$C11)*SQRT(G18*I77/G14/J9)*SQRT(1+SQRT(1+6.76*(0.7*$C11*G14*J9/29000/G18/I77)^2))/12 -> 12.38028779 | E119: =1.95*$J8*29000/(0.7*$C11)*SQRT($G18*$I77/$G14/$J9)*SQRT(1+SQRT(1+6.76*(0.7*$C11*$G14*$J9/29000/$G18/$I77)^2))/12 -> 12.38028779 | F119: 12.38028779 | G119: 12.38028779 | H119: 12.38028779 | I119: 12.38028779 | J119: 12.38028779 | K119: 12.38028779 | L119: ft
C120: Mn w/o Cb | D120: =IF(D116<=D117,$D$72,MIN($D$72,IF(D116<=D119,($D$72-($D$72-D118)*(D116-D117)/(D119-D117)),(PI()^2)*29000/(D116*12/$J8)^2*SQRT(1+0.078*$G18*$I77/$G14/$J9*(D116*12/$J8)^2)))) -> 277.0833333 | E120: 200.170691 | F120: 200.170691 | G120: 200.170691 | H120: 200.170691 | I120: 16.09826647 | J120: 16.09826647 | K120: 6.359994085 | L120: ft-k
C121: Mn w/ Cb | D121: =MIN($D72,D120*D113) -> 277.0833333 | E121: 277.0833333 | F121: 212.382696 | G121: 212.382696 | H121: 277.0833333 | I121: 20.90683957 | J121: 20.90683957 | K121: 7.227266005 | L121: ft-k
C122: Equation | D122: =IF(D116<=D117,"F2-1",IF(D116<=D119,"F2-2","F2-3")) -> F2-1 | E122: =IF(E116<=E117,"F2-1",IF(E116<=E119,"F2-2","F2-3")) -> F2-2 | F122: =IF(F116<=F117,"F2-1",IF(F116<=F119,"F2-2","F2-3")) -> F2-2 | G122: F2-2 | H122: F2-2 | I122: F2-3 | J122: F2-3 | K122: F2-3
B124: Controlling, Mn
C125: Mn | D125: =MIN($D72,D121,$G75) -> 277.0833333 | E125: 277.0833333 | F125: 212.382696 | G125: 212.382696 | H125: 277.0833333 | I125: 20.90683957 | J125: 20.90683957 | K125: 7.227266005 | L125: ft-k
B127: Compute Load:
B128: LRFD: | C128: fMn | D128: =D125*$D14 -> 249.375 | F128: =F125*$D14 -> 191.1444264 | I128: =I125*$D14 -> 18.81615562 | K128: =K125*$D14 -> 6.504539405 | L128: ft-k
C129: wu,max | D129: =8*D128/$C$10^2 -> 1.246875 | F129: =8*F128/$C$10^2 -> 0.955722132 | I129: =8*I128/$C$10^2 -> 0.09408077808 | K129: =8*K128/$C$10^2 -> 0.03252269702 | L129: k/ft
C130: ws,eq | D130: =D129/$G48 -> 0.984375 | F130: =F129/$G48 -> 0.7545174726 | I130: =I129/$G48 -> 0.07427429849 | K130: =K129/$G48 -> 0.02567581344 | L130: k/ft
B133: ASD: | C133: Mn / W | D133: =D125/$D15 -> 165.9181637 | F133: =F125/$D15 -> 127.1752671 | I133: =I125/$D15 -> 12.51906561 | K133: =K125/$D15 -> 4.327704195 | L133: ft-k
C134: Pa,max | D134: =8*D133/$C$10^2 -> 0.8295908184 | F134: =8*F133/$C$10^2 -> 0.6358763353 | I134: =8*I133/$C$10^2 -> 0.06259532807 | K134: =8*K133/$C$10^2 -> 0.02163852097 | L134: k/ft
C135: ws,eq | D135: =D134/$J48 -> 0.995508982 | F135: =F134/$J48 -> 0.7630516024 | I135: =I134/$J48 -> 0.07511439368 | K135: =K134/$J48 -> 0.02596622517 | L135: k/ft

Sheet Example 8.3
A1: A Beginners Guide to the Steel Construction Manual, 16th Edition | H1: last modified: 30 May 2023
A2: Example 8.3 | H2: by: TBQ
C8: Steel | D8: A992 | F8: D | G8: 75 | H8: psf
C9: Span | D9: 20 | E9: ft | F9: L | G9: 50 | H9: psf
C10: Fy | D10: =VLOOKUP(D8,StlProps,2) -> 50 | E10: ksi
A17: Solution:
B19: Solution Summary | F19: % Capacity Used
D20: Size | E20: Spacing | F20: Shear | G20: Flexure | H20: TL D | I20: LL D | J20: Controlling Limit State
E21: (ft)
C22: LRFD | D22: =+D58 -> M12.5X12.4 | E22: =+D94 -> 5.75 | F22: =+E22/D73 -> 0.2148731006 | G22: =+E22/D85 -> 0.7898989899 | H22: =+E22/D89 -> 0.9991504808 | I22: =+E22/D90 -> 0.5994902885 | J22: =IF(F22=MAX(F22:I22),"Shear",IF(G22=MAX(F22:I22),"Flexure",IF(H22=MAX(F22:I22),"TL Defl","LL Only Defl"))) -> TL Defl
C23: ASD | D23: =+E58 -> M12.5X12.4 | E23: =+E99 -> 5.75 | F23: =+E23/E74 -> 0.2369923904 | G23: =+E23/E86 -> 0.8729545455 | H23: =+E23/E89 -> 0.9991504808 | I23: =+E23/E90 -> 0.5994902885 | J23: =IF(F23=MAX(F23:I23),"Shear",IF(G23=MAX(F23:I23),"Flexure",IF(H23=MAX(F23:I23),"TL Defl","LL Only Defl"))) -> TL Defl
B25: Compute the loads in terms of plf/(ft width of floor system)
B27: D | C27: =G8 -> 75 | D27: plf/ftw | F27: LRFD | I27: ASD
B28: L | C28: =G9 -> 50 | D28: plf/ftw | F28: LC-1 | G28: =(1.4*C27) -> 105 | H28: plf/ftw | I28: LC-1 | J28: =1*C27 -> 75 | K28: plf/ftw
B29: S | C29: 0 | D29: plf/ftw | F29: LC-2 | G29: =(1.2*C27+1.6*C28+0.5*C29) -> 170 | H29: plf/ftw | I29: LC-2 | J29: =1*C27+1*C28 -> 125 | K29: plf/ftw
F30: LC-3 | G30: =(1.2*C27+1.6*C29+C28) -> 140 | H30: plf/ftw | I30: LC-3 | J30: =1*C27+1*C29 -> 75 | K30: plf/ftw
F31: LC-4 | G31: =1.2*C27+C28+0.5*C29 -> 140 | H31: plf/ftw | I31: LC-4 | J31: =1*C27+0.75*(C28+C29) -> 112.5 | K31: plf/ftw
F32: Controlling | G32: =MAX(G28:G31) -> 170 | H32: plf/ftw | I32: Controlling | J32: =MAX(J28:J31) -> 125 | K32: plf/ftw
B34: Compute the Shear & Moment in terms of ft-lb/(ft width of floor system)
D36: LRFD | G36: ASD
C37: Vu | D37: =+G32*D9/2 -> 1700 | E37: lb/ftw | F37: Vu | G37: =+J32*D9/2 -> 1250 | H37: lb/ftw
C38: f | D38: 1 | F38: W | G38: 1.5
C39: req'd Vn | D39: =D37/D38/1000 -> 1.7 | E39: ft-k/ftw | F39: req'd Vn | G39: =G37*G38/1000 -> 1.875 | H39: ft-k/ftw
C41: Mu | D41: =G32*(D9^2)/8 -> 8500 | E41: ft-lb/ftw | F41: Ma | G41: =J32*(D9^2)/8 -> 6250 | H41: ft-lb/ftw
C42: f | D42: 0.9 | F42: W | G42: 1.67
C43: req'd Mn | D43: =D41/D42/1000 -> 9.444444444 | E43: ft-k/ftw | F43: req'd Mn | G43: =G41*G42/1000 -> 10.4375 | H43: ft-k/ftw
B45: Deflection Limits
C46: TL defl <= L / | D46: 240 | E46: = | F46: =+D9*12/D46 -> 1 | G46: in
C47: spacing/Ix <= | E47: =384*29000000*F46/5/(C27+C28)/1728/(D9^4) -> 0.06444444444 | F47: (ft/in4) <- solved Act D < Allow D for spacing/Ix, the two unknowns at this point)
C48: LL defl <= L / | D48: 360 | E48: = | F48: =+D9*12/D48 -> 0.6666666667 | G48: in
C49: spacing/Ix <= | E49: =384*29000000*F48/5/(C28)/1728/(D9^4) -> 0.1074074074 | F49: (ft/in4) <- solved Act D < Allow D for spacing/Ix, the two unknowns at this point)
B51: The beam will have full lateral support of the compression flange from the floor system
B52: so don't worry about LTB.
A54: Method 1: The hunt & peck method… manually insert section sizes until you think that you have
B55: found the best option.
B57: Selection | D57: LRFD | E57: ASD
B58: Section | D58: M12.5X12.4 | E58: M12.5X12.4
B59: wt/ft | D59: =VLOOKUP(D58,StlSects,4) -> 12.4 | E59: =VLOOKUP(E58,StlSects,4) -> 12.4 | F59: plf
B60: d | D60: =VLOOKUP(D58,StlSects,6) -> 12.5 | E60: =VLOOKUP(E58,StlSects,6) -> 12.5 | F60: in
B61: tw | D61: =VLOOKUP(D58,StlSects,12) -> 0.155 | E61: =VLOOKUP(E58,StlSects,12) -> 0.155 | F61: in
B62: h/tw | D62: =VLOOKUP(D58,StlSects,27) -> 74.8 | E62: =VLOOKUP(E58,StlSects,27) -> 74.8
B63: Ix | D63: =VLOOKUP(D58,StlSects,30) -> 89.3 | E63: =VLOOKUP(E58,StlSects,30) -> 89.3 | F63: in4
B64: Sx | D64: =VLOOKUP(D58,StlSects,32) -> 14.2 | E64: =VLOOKUP(E58,StlSects,32) -> 14.2 | F64: in3
B65: Zx | D65: =VLOOKUP(D58,StlSects,31) -> 16.5 | E65: =VLOOKUP(E58,StlSects,31) -> 16.5 | F65: in3
B66: bf/2tf | D66: =VLOOKUP(D58,StlSects,25) -> 8.22 | E66: =VLOOKUP(E58,StlSects,25) -> 8.22
B67: Shear Strength
B68: kv | D68: =IF(D62<260,5,"Need Stiffeners") -> 5 | E68: =IF(E62<260,5,"Need Stiffeners") -> 5
B69: sqrt(kvE/Fy) | D69: =+SQRT(D68*29000/$D10) -> 53.85164807 | E69: =+SQRT(E68*29000/$D10) -> 53.85164807
B70: Cv1 | D70: =IF(D62<=1.1*D69,1,IF(D62<=1.37*D69,1.1*D69/D62,1.51*29000*D68/$D10/(D62^2))) -> 0.7826574966 | E70: =IF(E62<=1.1*E69,1,IF(E62<=1.37*E69,1.1*E69/E62,1.51*29000*E68/$D10/(E62^2))) -> 0.7826574966
B71: Vn | D71: =0.6*D10*D60*D70*D61 -> 45.49196699 | E71: =0.6*$D10*E60*E70*E61 -> 45.49196699 | F71: kips
B72: Max Spacing
C73: LRFD | D73: =D71/$D39 -> 26.75998058 | E73: =E71/$D39 -> 26.75998058 | F73: ft
C74: ASD | D74: =D71/$G39 -> 24.2623824 | E74: =E71/$G39 -> 24.2623824 | F74: ft
B75: Flexural Strength
B76: Flexural Plastic Strength
B77: Mp = FyZx = | D77: =+ $D10*$D65/12 -> 68.75 | E77: =+ $D10*$D65/12 -> 68.75 | F77: ft-k
B78: Flange Local Buckling
B79: lp | D79: =0.38*SQRT(29000/$D10) -> 9.15161188 | E79: =0.38*SQRT(29000/$D10) -> 9.15161188
B80: lr | D80: =1*SQRT(29000/$D10) -> 24.08318916 | E80: =1*SQRT(29000/$D10) -> 24.08318916
B81: Mr = .7FySx = | D81: =0.7*D64*$D10/12 -> 41.41666667 | E81: =0.7*E64*$D10/12 -> 41.41666667 | F81: ft-k
B82: class | D82: =IF(D66<=D79,"Compact",IF(D66<=D80,"Non C.","Slend.")) -> Compact | E82: =IF(E66<=E79,"Compact",IF(E66<=E80,"Non C.","Slend.")) -> Compact
B83: Mn | D83: =MIN(D77-(D77-D81)*(D66-D79)/(D80-D79),D77) -> 68.75 | E83: =MIN(E77-(E77-E81)*(E66-E79)/(E80-E79),E77) -> 68.75 | F83: ft-k
B84: Max Spacing
C85: LRFD | D85: =D83/$D43 -> 7.279411765 | E85: =E83/$D43 -> 7.279411765 | F85: ft
C86: ASD | D86: =D83/$G43 -> 6.586826347 | E86: =E83/$G43 -> 6.586826347 | F86: ft
B87: Deflection Limits
B88: Max Spacing
C89: TL | D89: =+$E47*D63 -> 5.754888889 | E89: =+$E47*E63 -> 5.754888889 | F89: ft
C90: LL Only | D90: =+$E49*D63 -> 9.591481481 | E90: =+$E49*E63 -> 9.591481481 | F90: ft
B91: Controlling Spacings
B92: LRFD
C93: Spacing | D93: =MIN(D73,D85,D89,D90) -> 5.754888889 | E93: =MIN(E73,E85,E89,E90) -> 5.754888889 | F93: ft
C94: Use: | D94: =INT(D93*4)/4 -> 5.75 | E94: =INT(E93*4)/4 -> 5.75 | F94: ft
C95: wt/sqft | D95: =D59/D94 -> 2.156521739 | E95: =E59/E94 -> 2.156521739 | F95: psf
B97: ASD
C98: Spacing | D98: =MIN(D74,D86,D89,D90) -> 5.754888889 | E98: =MIN(E74,E86,E89,E90) -> 5.754888889 | F98: ft
C99: Use: | D99: =INT(D98*4)/4 -> 5.75 | E99: =INT(E98*4)/4 -> 5.75 | F99: ft
C100: wt/sqft | D100: =D59/D99 -> 2.156521739 | E100: =E59/E99 -> 2.156521739 | F100: psf
A102: Method 2: The brute force approach. From the AISC Shapes database, select ALL I shapes and their properties needed to compute Mn.
B103: On one line, compute Mn, FLB criteria, spacing, and wt/ft2. Copy the formula down so that you do it for all sections. Then sort the table
B104: on the spacing column. Delete all spacings less than 2 ft and more than 6 ft. Resort the remaining table on wt/ft, then choose
B105: your favorite section.
B107: All sections that meet the criteria: | K107: Flexure | O107: LRFD | P107: ASD
B108: Size | C108: wt | D108: d | E108: tw | F108: bf/2tf | G108: h/tw | H108: Ix | I108: Zx | J108: Sx | K108: Mp | L108: FLB | M108: Mr | N108: Mn | O108: Spacing | P108: Spacing
B109: M12.5X12.4 | C109: =VLOOKUP(B109,StlSects,4) -> 12.4 | D109: =VLOOKUP(B109,StlSects,6) -> 12.5 | E109: =VLOOKUP(B109,StlSects,12) -> 0.155 | F109: =VLOOKUP(B109,StlSects,25) -> 8.22 | G109: =VLOOKUP(B109,StlSects,27) -> 74.8 | H109: =VLOOKUP(B109,StlSects,30) -> 89.3 | I109: =VLOOKUP(B109,StlSects,31) -> 16.5 | J109: =VLOOKUP(B109,StlSects,32) -> 14.2 | K109: =I109*D$10/12 -> 68.75 | L109: =IF(F109<=D$79,"Compact",IF(F109<=D$80,"Non C.","Slend.")) -> Compact | M109: =0.7*J109*D$10/12 -> 41.41666667 | N109: =MIN(K109-(K109-M109)*(F109-D$79)/(D$80-D$79),K109) -> 68.75 | O109: =N109/D$43 -> 7.279411765 | P109: =N109/G$43 -> 6.586826347
B110: M12.5X11.6 | C110: 11.6 | D110: 12.5 | E110: 0.155 | F110: 8.29 | G110: 74.8 | H110: 80.3 | I110: 15 | J110: 12.8 | K110: 62.5 | L110: Compact | M110: 37.33333333 | N110: 62.5 | O110: 6.617647059 | P110: 5.988023952
B111: M12X10.8 | C111: 10.8 | D111: 12 | E111: 0.16 | F111: 7.3 | G111: 69.2 | H111: 66.7 | I111: 13.2 | J111: 11.1 | K111: 55 | L111: Compact | M111: 32.375 | N111: 55 | O111: 5.823529412 | P111: 5.269461078
B112: W12X14 | C112: 14 | D112: 11.9 | E112: 0.2 | F112: 8.82 | G112: 54.3 | H112: 88.6 | I112: 17.4 | J112: 14.9 | K112: 72.5 | L112: Compact | M112: 43.45833333 | N112: 72.5 | O112: 7.676470588 | P112: 6.946107784
B113: M12X11.8 | C113: 11.8 | D113: 12 | E113: 0.177 | F113: 6.81 | G113: 62.5 | H113: 72.2 | I113: 14.3 | J113: 12 | K113: 59.58333333 | L113: Compact | M113: 35 | N113: 59.58333333 | O113: 6.308823529 | P113: 5.708582834
B114: M12X10 | C114: 10 | D114: 12 | E114: 0.149 | F114: 9.03 | G114: 74.7 | H114: 61.7 | I114: 12.2 | J114: 10.3 | K114: 50.83333333 | L114: Compact | M114: 30.04166667 | N114: 50.83333333 | O114: 5.382352941 | P114: 4.870259481
B115: W10X19 | C115: 19 | D115: 10.2 | E115: 0.25 | F115: 5.09 | G115: 35.4 | H115: 96.3 | I115: 21.6 | J115: 18.8 | K115: 90 | L115: Compact | M115: 54.83333333 | N115: 90 | O115: 9.529411765 | P115: 8.622754491
B116: W10X17 | C116: 17 | D116: 10.1 | E116: 0.24 | F116: 6.08 | G116: 36.9 | H116: 81.9 | I116: 18.7 | J116: 16.2 | K116: 77.91666667 | L116: Compact | M116: 47.25 | N116: 77.91666667 | O116: 8.25 | P116: 7.46506986
B117: W10X15 | C117: 15 | D117: 10 | E117: 0.23 | F117: 7.41 | G117: 38.5 | H117: 68.9 | I117: 16 | J117: 13.8 | K117: 66.66666667 | L117: Compact | M117: 40.25 | N117: 66.66666667 | O117: 7.058823529 | P117: 6.387225549
B118: M10X9 | C118: 9 | D118: 10 | E118: 0.157 | F118: 6.53 | G118: 58.4 | H118: 39 | I118: 9.22 | J118: 7.79 | K118: 38.41666667 | L118: Compact | M118: 22.72083333 | N118: 38.41666667 | O118: 4.067647059 | P118: 3.680638723
B119: W10X12 | C119: 12 | D119: 9.87 | E119: 0.19 | F119: 9.43 | G119: 46.6 | H119: 53.8 | I119: 12.6 | J119: 10.9 | K119: 52.5 | L119: Non C. | M119: 31.79166667 | N119: 52.11390857 | O119: 5.517943261 | P119: 4.992949324
B120: M10X7.5 | C120: 7.5 | D120: 10 | E120: 0.13 | F120: 7.77 | G120: 71 | H120: 33 | I120: 7.77 | J120: 6.6 | K120: 32.375 | L120: Compact | M120: 19.25 | N120: 32.375 | O120: 3.427941176 | P120: 3.101796407
B121: M10X8 | C121: 8 | D121: 10 | E121: 0.141 | F121: 7.39 | G121: 65 | H121: 34.6 | I121: 8.2 | J121: 6.95 | K121: 34.16666667 | L121: Compact | M121: 20.27083333 | N121: 34.16666667 | O121: 3.617647059 | P121: 3.273453094
B122: W8X21 | C122: 21 | D122: 8.28 | E122: 0.25 | F122: 6.59 | G122: 27.5 | H122: 75.3 | I122: 20.4 | J122: 18.2 | K122: 85 | L122: Compact | M122: 53.08333333 | N122: 85 | O122: 9 | P122: 8.143712575
B123: W8X24 | C123: 24 | D123: 7.93 | E123: 0.245 | F123: 8.12 | G123: 25.9 | H123: 82.7 | I123: 23.1 | J123: 20.9 | K123: 96.25 | L123: Compact | M123: 60.95833333 | N123: 96.25 | O123: 10.19117647 | P123: 9.221556886
B124: W8X18 | C124: 18 | D124: 8.14 | E124: 0.23 | F124: 7.95 | G124: 29.9 | H124: 61.9 | I124: 17 | J124: 15.2 | K124: 70.83333333 | L124: Compact | M124: 44.33333333 | N124: 70.83333333 | O124: 7.5 | P124: 6.786427146
B125: W8X15 | C125: 15 | D125: 8.11 | E125: 0.245 | F125: 6.37 | G125: 28.1 | H125: 48 | I125: 13.6 | J125: 11.8 | K125: 56.66666667 | L125: Compact | M125: 34.41666667 | N125: 56.66666667 | O125: 6 | P125: 5.429141717
B126: W8X13 | C126: 13 | D126: 7.99 | E126: 0.23 | F126: 7.84 | G126: 29.9 | H126: 39.6 | I126: 11.4 | J126: 9.91 | K126: 47.5 | L126: Compact | M126: 28.90416667 | N126: 47.5 | O126: 5.029411765 | P126: 4.550898204
B127: S8X18.4 | C127: 18.4 | D127: 8 | E127: 0.271 | F127: 4.71 | G127: 22.9 | H127: 57.5 | I127: 16.5 | J127: 14.4 | K127: 68.75 | L127: Compact | M127: 42 | N127: 68.75 | O127: 7.279411765 | P127: 6.586826347
B128: S8X23 | C128: 23 | D128: 8 | E128: 0.441 | F128: 4.91 | G128: 14.1 | H128: 64.7 | I128: 19.2 | J128: 16.2 | K128: 80 | L128: Compact | M128: 47.25 | N128: 80 | O128: 8.470588235 | P128: 7.664670659
B129: W6X25 | C129: 25 | D129: 6.38 | E129: 0.32 | F129: 6.68 | G129: 15.5 | H129: 53.4 | I129: 18.9 | J129: 16.7 | K129: 78.75 | L129: Compact | M129: 48.70833333 | N129: 78.75 | O129: 8.338235294 | P129: 7.54491018
B130: W6X16 | C130: 16 | D130: 6.28 | E130: 0.26 | F130: 4.98 | G130: 19.1 | H130: 32.1 | I130: 11.7 | J130: 10.2 | K130: 48.75 | L130: Compact | M130: 29.75 | N130: 48.75 | O130: 5.161764706 | P130: 4.670658683
B131: W6X20 | C131: 20 | D131: 6.2 | E131: 0.26 | F131: 8.25 | G131: 18.7 | H131: 41.4 | I131: 15 | J131: 13.4 | K131: 62.5 | L131: Compact | M131: 39.08333333 | N131: 62.5 | O131: 6.617647059 | P131: 5.988023952
B134: Table Continued
C135: Shear | G135: LRFD | H135: ASD | I135: Deflection | K135: LRFD | N135: ASD
B136: Size | C136: kv | D136: sqrt(kvE/Fy) | E136: Cv1 | F136: Vn | G136: Spacing | H136: Spacing | I136: TL Space | J136: LL Space | K136: Spacing | L136: use | M136: wt/ft2 | O136: use | P136: wt/ft2
B137: =+B109 -> M12.5X12.4 | C137: =IF(G109<260,5,"Need Stiffeners") -> 5 | D137: =+SQRT(C137*29000/$D$10) -> 53.85164807 | E137: =IF(G109<=1.1*D137,1,IF(G109<=1.37*D137,1.1*D137/G109,1.51*29000*C137/$D$10/(G109^2))) -> 0.7826574966 | F137: =0.6*D$10*D109*E137*E109 -> 45.49196699 | G137: =+F137/D$39 -> 26.75998058 | H137: =+F137/G$39 -> 24.2623824 | I137: =+H109*E$47 -> 5.754888889 | J137: =+H109*E$49 -> 9.591481481 | K137: =MIN(O109,G137,I137,J137) -> 5.754888889 | L137: =INT(K137*4)/4 -> 5.75 | M137: =C109/L137 -> 2.156521739 | N137: =MIN(P109,H137,I137,J137) -> 5.754888889 | O137: =INT(N137*4)/4 -> 5.75 | P137: =C109/O137 -> 2.156521739
B138: =+B110 -> M12.5X11.6 | C138: 5 | D138: 53.85164807 | E138: 0.7826574966 | F138: 45.49196699 | G138: 26.75998058 | H138: 24.2623824 | I138: 5.174888889 | J138: 8.624814815 | K138: 5.174888889 | L138: 5 | M138: 2.32 | N138: 5.174888889 | O138: 5 | P138: 2.32
B139: M12X10.8 | C139: 5 | D139: 53.85164807 | E139: 0.8560233075 | F139: 49.30694251 | G139: 29.00408383 | H139: 26.29703601 | I139: 4.298444444 | J139: 7.164074074 | K139: 4.298444444 | L139: 4.25 | M139: 2.541176471 | N139: 4.298444444 | O139: 4.25 | P139: 2.541176471
B140: W12X14 | C140: 5 | D140: 53.85164807 | E140: 1 | F140: 71.4 | G140: 42 | H140: 38.08 | I140: 5.709777778 | J140: 9.516296296 | K140: 5.709777778 | L140: 5.5 | M140: 2.545454545 | N140: 5.709777778 | O140: 5.5 | P140: 2.545454545
B141: M12X11.8 | C141: 5 | D141: 53.85164807 | E141: 0.9477890061 | F141: 60.39311547 | G141: 35.52536204 | H141: 32.20966158 | I141: 4.652888889 | J141: 7.754814815 | K141: 4.652888889 | L141: 4.5 | M141: 2.622222222 | N141: 4.652888889 | O141: 4.5 | P141: 2.622222222
B142: M12X10 | C142: 5 | D142: 53.85164807 | E142: 0.7847543678 | F142: 42.09422429 | G142: 24.7613084 | H142: 22.45025295 | I142: 3.976222222 | J142: 6.627037037 | K142: 3.976222222 | L142: 3.75 | M142: 2.666666667 | N142: 3.976222222 | O142: 3.75 | P142: 2.666666667
B143: W10X19 | C143: 5 | D143: 53.85164807 | E143: 1 | F143: 76.5 | G143: 45 | H143: 40.8 | I143: 6.206 | J143: 10.34333333 | K143: 6.206 | L143: 6 | M143: 3.166666667 | N143: 6.206 | O143: 6 | P143: 3.166666667
B144: W10X17 | C144: 5 | D144: 53.85164807 | E144: 1 | F144: 72.72 | G144: 42.77647059 | H144: 38.784 | I144: 5.278 | J144: 8.796666667 | K144: 5.278 | L144: 5.25 | M144: 3.238095238 | N144: 5.278 | O144: 5.25 | P144: 3.238095238
B145: W10X15 | C145: 5 | D145: 53.85164807 | E145: 1 | F145: 69 | G145: 40.58823529 | H145: 36.8 | I145: 4.440222222 | J145: 7.40037037 | K145: 4.440222222 | L145: 4.25 | M145: 3.529411765 | N145: 4.440222222 | O145: 4.25 | P145: 3.529411765
B146: M10X9 | C146: 5 | D146: 53.85164807 | E146: 1 | F146: 47.1 | G146: 27.70588235 | H146: 25.12 | I146: 2.513333333 | J146: 4.188888889 | K146: 2.513333333 | L146: 2.5 | M146: 3.6 | N146: 2.513333333 | O146: 2.5 | P146: 3.6
B147: W10X12 | C147: 5 | D147: 53.85164807 | E147: 1 | F147: 56.259 | G147: 33.09352941 | H147: 30.0048 | I147: 3.467111111 | J147: 5.778518519 | K147: 3.467111111 | L147: 3.25 | M147: 3.692307692 | N147: 3.467111111 | O147: 3.25 | P147: 3.692307692
B148: M10X7.5 | C148: 5 | D148: 53.85164807 | E148: 0.8343213081 | F148: 32.53853102 | G148: 19.14031236 | H148: 17.35388321 | I148: 2.126666667 | J148: 3.544444444 | K148: 2.126666667 | L148: 2 | M148: 3.75 | N148: 2.126666667 | O148: 2 | P148: 3.75
B149: M10X8 | C149: 5 | D149: 53.85164807 | E149: 0.9113355827 | F149: 38.54949515 | G149: 22.67617362 | H149: 20.55973075 | I149: 2.229777778 | J149: 3.716296296 | K149: 2.229777778 | L149: 2 | M149: 4 | N149: 2.229777778 | O149: 2 | P149: 4
B150: W8X21 | C150: 5 | D150: 53.85164807 | E150: 1 | F150: 62.1 | G150: 36.52941176 | H150: 33.12 | I150: 4.852666667 | J150: 8.087777778 | K150: 4.852666667 | L150: 4.75 | M150: 4.421052632 | N150: 4.852666667 | O150: 4.75 | P150: 4.421052632
B151: W8X24 | C151: 5 | D151: 53.85164807 | E151: 1 | F151: 58.2855 | G151: 34.28558824 | H151: 31.0856 | I151: 5.329555556 | J151: 8.882592593 | K151: 5.329555556 | L151: 5.25 | M151: 4.571428571 | N151: 5.329555556 | O151: 5.25 | P151: 4.571428571
B152: W8X18 | C152: 5 | D152: 53.85164807 | E152: 1 | F152: 56.166 | G152: 33.03882353 | H152: 29.9552 | I152: 3.989111111 | J152: 6.648518519 | K152: 3.989111111 | L152: 3.75 | M152: 4.8 | N152: 3.989111111 | O152: 3.75 | P152: 4.8
B153: W8X15 | C153: 5 | D153: 53.85164807 | E153: 1 | F153: 59.6085 | G153: 35.06382353 | H153: 31.7912 | I153: 3.093333333 | J153: 5.155555556 | K153: 3.093333333 | L153: 3 | M153: 5 | N153: 3.093333333 | O153: 3 | P153: 5
B154: W8X13 | C154: 5 | D154: 53.85164807 | E154: 1 | F154: 55.131 | G154: 32.43 | H154: 29.4032 | I154: 2.552 | J154: 4.253333333 | K154: 2.552 | L154: 2.5 | M154: 5.2 | N154: 2.552 | O154: 2.5 | P154: 5.2
B155: S8X18.4 | C155: 5 | D155: 53.85164807 | E155: 1 | F155: 65.04 | G155: 38.25882353 | H155: 34.688 | I155: 3.705555556 | J155: 6.175925926 | K155: 3.705555556 | L155: 3.5 | M155: 5.257142857 | N155: 3.705555556 | O155: 3.5 | P155: 5.257142857
B156: S8X23 | C156: 5 | D156: 53.85164807 | E156: 1 | F156: 105.84 | G156: 62.25882353 | H156: 56.448 | I156: 4.169555556 | J156: 6.949259259 | K156: 4.169555556 | L156: 4 | M156: 5.75 | N156: 4.169555556 | O156: 4 | P156: 5.75
B157: W6X25 | C157: 5 | D157: 53.85164807 | E157: 1 | F157: 61.248 | G157: 36.02823529 | H157: 32.6656 | I157: 3.441333333 | J157: 5.735555556 | K157: 3.441333333 | L157: 3.25 | M157: 7.692307692 | N157: 3.441333333 | O157: 3.25 | P157: 7.692307692
B158: W6X16 | C158: 5 | D158: 53.85164807 | E158: 1 | F158: 48.984 | G158: 28.81411765 | H158: 26.1248 | I158: 2.068666667 | J158: 3.447777778 | K158: 2.068666667 | L158: 2 | M158: 8 | N158: 2.068666667 | O158: 2 | P158: 8
B159: W6X20 | C159: 5 | D159: 53.85164807 | E159: 1 | F159: 48.36 | G159: 28.44705882 | H159: 25.792 | I159: 2.668 | J159: 4.446666667 | K159: 2.668 | L159: 2.5 | M159: 8 | N159: 2.668 | O159: 2.5 | P159: 8

Sheet Example 8.4
A1: A Beginners Guide to the Steel Construction Manual, 16th Edition | H1: last modified: 30 May 2023
A2: Example 8.4 | H2: by: TBQ
B7: Span | C7: 13.5 | D7: ft
B11: D, floor | C11: 60 | D11: psf
B12: D, Int. wall | C12: 15 | D12: psf
B14: L, room | C14: 50 | D14: psf
B15: L, corr | C15: 100 | D15: psf
A17: Interior wall height | C17: =10+8/12 -> 10.66666667 | D17: ft
C19: Flexure | D19: Shear
B20: f | C20: 0.9 | D20: 1
B21: W | C21: 1.67 | D21: 1.5
A35: Solution:
B37: Solution Summary | F37: % Capacity Used
D38: Section | E38: wt/ft | F38: Shear | G38: Flexure | H38: TL D | I38: LL D | J38: Controlling Limit State
B39: Part(A.) | C39: LRFD | D39: =+C142 -> W12X16 | E39: =+D142 -> 16 | F39: =+H158 -> 0.3006308368 | G39: =+J150 -> 0.9276257527 | H39: =+D164 -> 0.7846350378 | I39: =+H164 -> 0.6051812795 | J39: =IF(F39=MAX(F39:I39),"Shear",IF(G39=MAX(F39:I39),"Flexure",IF(H39=MAX(F39:I39),"TL Defl","LL Only Defl"))) -> Flexure
C40: ASD | D40: =+C143 -> W12X16 | E40: =+D143 -> 16 | F40: =+H159 -> 0.3185782075 | G40: =+J151 -> 0.9898171038 | H40: =+D165 -> 0.7846350378 | I40: =+H165 -> 0.6051812795 | J40: Flexure
B41: Part(B.) | C41: LRFD | D41: =+C185 -> HSS14X4X3/16 | E41: =+D185 -> 22.11825352 | F41: =+H200 -> 0.1711984705 | G41: =+L191 -> 0.8010516253 | H41: =+D206 -> 0.5899080941 | I41: =+H206 -> 0.454990305 | J41: Flexure
C42: ASD | D42: =+C186 -> HSS14X4X3/16 | E42: =+D186 -> 22.11825352 | F42: =+H201 -> 0.1814188538 | G42: =+L192 -> 0.8547569937 | H42: =+D207 -> 0.5899080941 | I42: =+H207 -> 0.454990305 | J42: Flexure
B43: Part(C.) | C43: LRFD | D43: =+C224 -> C12X20.7 | E43: =+D224 -> 20.7 | F43: =+H200 -> 0.1711984705 | G43: =+I232 -> 0.7283311574 | H43: =+D247 -> 0.6264915418 | I43: =+H247 -> 0.4832067581 | J43: Flexure
C44: ASD | D44: =+C225 -> C12X20.7 | E44: =+D225 -> 20.7 | F44: =+H201 -> 0.1814188538 | G44: =+I233 -> 0.7771610854 | H44: =+D248 -> 0.6264915418 | I44: =+H248 -> 0.4832067581 | J44: Flexure
B46: The W section is the best choice in this case.
B48: Given the conservative approximation of load calcs, use the member if within 3% of requirements.
B50: The objective is to find the maximum moment on simple span with two different magnitudes of uniform load.
B51: You can use whatever means that you want to, but I devised my own system that uses superposition. It takes up
B52: a lot of space in the spreadsheet but seems to work.
B54: Note that the tributary area calcs are approximate and a bit conservative around grid F (some of the Corr. LL goes to
B55: the beam on grid F). Depending on the spacing of the supported joists, you may want to analysis the beam as
B56: supporting a series of point loads, however, since we don't know the precise layout of the joists, the uniform load
B57: approximation will be close enough.
B59: Do the structural analysis:
G60: Dead Loads | I60: Live Loads | K60: Uniform Loads
D61: Trib width | E61: Start | F61: Finish | G61: Floor | H61: Int wall | I61: Floor | J61: Corr. | K61: wD | L61: wL
D62: (ft) | E62: (ft) | F62: (ft) | G62: (plf) | H62: (plf) | I62: (plf) | J62: (plf) | K62: (plf) | L62: (plf)
C63: W1 | D63: =9+8/12 -> 9.666666667 | E63: 0 | F63: =6+4/12 -> 6.333333333 | G63: =+D63*C11 -> 580 | H63: =+C17*C12 -> 160 | I63: =+D63*C14 -> 483.3333333 | K63: =G63+H63 -> 740 | L63: =+I63+J63 -> 483.3333333
C64: W2 | D64: 12 | E64: =+F63 -> 6.333333333 | F64: =+C7 -> 13.5 | G64: =+D64*C11 -> 720 | H64: =+C17*C12 -> 160 | J64: =+D64*C15 -> 1200 | K64: =G64+H64 -> 880 | L64: =+I64+J64 -> 1200
C65: W3 | D65: =6+5/12 -> 6.416666667 | E65: =+E64 -> 6.333333333 | F65: =+F64 -> 13.5 | G65: =+D65*C11 -> 385 | I65: =+D65*C11 -> 385 | K65: =G65+H65 -> 385 | L65: =+I65+J65 -> 385
C68: Between | D68: wD | E68: wL | G68: The controlling load cases will be LC-2 for both LRFD and ASD
D69: (plf) | E69: (plf) | G69: since all we have is dead and live load.
C70: Grid E&F | D70: =+K63 -> 740 | E70: =+L63 -> 483.3333333
C71: Grid F&G | D71: =+K64+K65 -> 1265 | E71: =+L64+L65 -> 1585
C73: General Case of uniform partially distributed load
C75: L | D75: =+C7 -> 13.5 | E75: ft
C76: A | D76: =+E63 -> 0 | E76: ft
C77: B | D77: =+F63 -> 6.333333333 | E77: ft
K78: Midspan
D79: Dead | E79: Live | F79: Snow | G79: W | H79: Total | I79: R1 | J79: R2 | K79: Moment
D80: =+D70 -> 740 | E80: =+E70 -> 483.3333333 | F80: 0 | G80: (plf) | H80: (k) | I80: (k) | J80: (k) | K80: (ft-k)
C81: LRFD LC-2 | D81: 1.2 | E81: 1.6 | F81: 0.5 | G81: =+D81*D80+E81*E80+F81*F80 -> 1661.333333 | H81: =G81*D77/1000 -> 10.52177778 | I81: =+G81*D77/D75*(D75-D76-D77/2)/1000 -> 8.053706447 | J81: =+H81-I81 -> 2.468071331 | K81: =I81*(D75/2)-G81/2000*MAX(0,D75/2-D76)^2+G81/2000*MAX(0,D75/2-D76-D77)^2 -> 16.65948148
C82: ASD LC-2 | D82: 1 | E82: 1 | F82: 0 | G82: =+D82*D80+E82*E80+F82*F80 -> 1223.333333 | H82: =G82*D77/1000 -> 7.747777778 | I82: =+G82*D77/D75*(D75-D76-D77/2)/1000 -> 5.930397805 | J82: =+H82-I82 -> 1.817379973 | K82: =I82*(D75/2)-G82/2000*MAX(0,D75/2-D76)^2+G82/2000*MAX(0,D75/2-D76-D77)^2 -> 12.26731481
D83: 0 | E83: 0 | F83: 0 | G83: =+D83*D80+E83*E80+F83*F80 -> 0 | H83: =G83*D77/1000 -> 0 | I83: =+G83*D77/D75*(D75-D76-D77/2)/1000 -> 0 | J83: =+H83-I83 -> 0 | K83: =I83*(D75/2)-G83/2000*MAX(0,D75/2-D76)^2+G83/2000*MAX(0,D75/2-D76-D77)^2 -> 0
C84: R1 | D84: =+D80*D77/D75*(D75-D76-D77/2)/1000 -> 3.587325103 | E84: =+E80*D77/D75*(D75-D76-D77/2)/1000 -> 2.343072702 | F84: =+F80*D77/D75*(D75-D76-D77/2)/1000 -> 0
C85: R2 | D85: =+D80*D77/1000-D84 -> 1.099341564 | E85: =+E80*D77/1000-E84 -> 0.7180384088 | F85: =+F80*D77/1000-F84 -> 0
C86: EI*Theta1 | D86: =-D84/6*D75^2+D80/24000/D75*((D75-D76)^4-(D75-D76-D77)^4) -> -39.1284164 | E86: =-E84/6*D75^2+E80/24000/D75*((D75-D76)^4-(D75-D76-D77)^4) -> -25.55684855 | F86: =-F84/6*D75^2+F80/24000/D75*((D75-D76)^4-(D75-D76-D77)^4) -> 0 | G86: k-in^2
C87: EI*defl(ms) | D87: =(+D86*(D75/2)+D84/6*(D75/2)^3-D80/24000*(MAX(0,D75/2-D76)^4-MAX(0,D75/2-D76-D77)^4))*1728 -> -249256.4611 | E87: =(+E86*(D75/2)+E84/6*(D75/2)^3-E80/24000*(MAX(0,D75/2-D76)^4-MAX(0,D75/2-D76-D77)^4))*1728 -> -162802.6435 | F87: =(+F86*(D75/2)+F84/6*(D75/2)^3-F80/24000*(MAX(0,D75/2-D76)^4-MAX(0,D75/2-D76-D77)^4))*1728 -> 0 | G87: k-in^3
C89: =+C81 -> LRFD LC-2 | D89: at x = | E89: 7.61 | F89: ft, V = | G89: =+I81-G81/1000*MAX(0,E89-D76)+G81/1000*MAX(0,E89-D76-D77) -> -2.468071331 | H89: k, M = | I89: =+I81*E89-G81/2000*(MAX(E89-D76,0)^2-MAX(0,E89-D76-D77)^2) -> 14.53694014 | J89: ft-k
C90: =+C82 -> ASD LC-2 | D90: at x = | E90: 7.61 | F90: ft, V = | G90: =+I82-G82/1000*MAX(0,E90-D76)+G82/1000*MAX(0,E90-D76-D77) -> -1.817379973 | H90: k, M = | I90: =+I82*E90-G82/2000*(MAX(E90-D76,0)^2-MAX(0,E90-D76-D77)^2) -> 10.70436804 | J90: ft-k
C91: =+C83 -> 0 | D91: at x = | E91: 0 | F91: ft, V = | G91: =+I83-G83/1000*MAX(0,E91-D76)+G83/1000*MAX(0,E91-D76-D77) -> 0 | H91: k, M = | I91: =+I83*E91-G83/2000*(MAX(E91-D76,0)^2-MAX(0,E91-D76-D77)^2) -> 0 | J91: ft-k
C93: General Case of uniform partially distributed load
C95: L | D95: =+D75 -> 13.5 | E95: ft
C96: A | D96: =+D77 -> 6.333333333 | E96: ft
C97: B | D97: =+D95-D96 -> 7.166666667 | E97: ft
K98: Midspan
D99: Dead | E99: Live | F99: Snow | G99: W | H99: Total | I99: R1 | J99: R2 | K99: Moment
D100: =+D71 -> 1265 | E100: =+E71 -> 1585 | F100: 0 | G100: (plf) | H100: (k) | I100: (k) | J100: (k) | K100: (ft-k)
C101: LRFD LC-2 | D101: 1.2 | E101: 1.6 | F101: 0.5 | G101: =+D101*D100+E101*E100+F101*F100 -> 4054 | H101: =G101*D97/1000 -> 29.05366667 | I101: =+G101*D97/D95*(D95-D96-D97/2)/1000 -> 7.71177572 | J101: =+H101-I101 -> 21.34189095 | K101: =I101*(D95/2)-G101/2000*MAX(0,D95/2-D96)^2+G101/2000*MAX(0,D95/2-D96-D97)^2 -> 51.70257639
C102: ASD LC-2 | D102: 1 | E102: 1 | F102: 0 | G102: =+D102*D100+E102*E100+F102*F100 -> 2850 | H102: =G102*D97/1000 -> 20.425 | I102: =+G102*D97/D95*(D95-D96-D97/2)/1000 -> 5.421450617 | J102: =+H102-I102 -> 15.00354938 | K102: =I102*(D95/2)-G102/2000*MAX(0,D95/2-D96)^2+G102/2000*MAX(0,D95/2-D96-D97)^2 -> 36.34739583
D103: 0 | E103: 0 | F103: 0 | G103: =+D103*D100+E103*E100+F103*F100 -> 0 | H103: =G103*D97/1000 -> 0 | I103: =+G103*D97/D95*(D95-D96-D97/2)/1000 -> 0 | J103: =+H103-I103 -> 0 | K103: =I103*(D95/2)-G103/2000*MAX(0,D95/2-D96)^2+G103/2000*MAX(0,D95/2-D96-D97)^2 -> 0
C104: R1 | D104: =+D100*D97/D95*(D95-D96-D97/2)/1000 -> 2.406363169 | E104: =+E100*D97/D95*(D95-D96-D97/2)/1000 -> 3.015087449 | F104: =+F100*D97/D95*(D95-D96-D97/2)/1000 -> 0
C105: R2 | D105: =+D100*D97/1000-D104 -> 6.659470165 | E105: =+E100*D97/1000-E104 -> 8.344079218 | F105: =+F100*D97/1000-F104 -> 0
C106: EI*Theta1 | D106: =-D104/6*D95^2+D100/24000/D95*((D95-D96)^4-(D95-D96-D97)^4) -> -62.79382408 | E106: =-E104/6*D95^2+E100/24000/D95*((D95-D96)^4-(D95-D96-D97)^4) -> -78.6784278 | F106: =-F104/6*D95^2+F100/24000/D95*((D95-D96)^4-(D95-D96-D97)^4) -> 0 | G106: k-in^2
C107: EI*defl(ms) | D107: =(+D106*(D95/2)+D104/6*(D95/2)^3-D100/24000*(MAX(0,D95/2-D96)^4-MAX(0,D95/2-D96-D97)^4))*1728 -> -519289.9011 | E107: =(+E106*(D95/2)+E104/6*(D95/2)^3-E100/24000*(MAX(0,D95/2-D96)^4-MAX(0,D95/2-D96-D97)^4))*1728 -> -650651.7734 | F107: =(+F106*(D95/2)+F104/6*(D95/2)^3-F100/24000*(MAX(0,D95/2-D96)^4-MAX(0,D95/2-D96-D97)^4))*1728 -> 0 | G107: k-in^3
C109: =+C101 -> LRFD LC-2 | D109: at x = | E109: =+E89 -> 7.61 | F109: ft, V = | G109: =+I101-G101/1000*MAX(0,E109-D96)+G101/1000*MAX(0,E109-D96-D97) -> 2.536169053 | H109: k, M = | I109: =+I101*E109-G101/2000*(MAX(E109-D96,0)^2-MAX(0,E109-D96-D97)^2) -> 55.38285097 | J109: ft-k
C110: =+C102 -> ASD LC-2 | D110: at x = | E110: =+E90 -> 7.61 | F110: ft, V = | G110: =+I102-G102/1000*MAX(0,E110-D96)+G102/1000*MAX(0,E110-D96-D97) -> 1.782950617 | H110: k, M = | I110: =+I102*E110-G102/2000*(MAX(E110-D96,0)^2-MAX(0,E110-D96-D97)^2) -> 38.93466336 | J110: ft-k
C111: =+C103 -> 0 | D111: at x = | E111: =+E109 -> 7.61 | F111: ft, V = | G111: =+I103-G103/1000*MAX(0,E111-D96)+G103/1000*MAX(0,E111-D96-D97) -> 0 | H111: k, M = | I111: =+I103*E111-G103/2000*(MAX(E111-D96,0)^2-MAX(0,E111-D96-D97)^2) -> 0 | J111: ft-k
C113: Analysis Summary: Superimpose results from the two partially distributed load analysis
E115: Shear | G115: Midspan | I115: Moment
D116: Total | E116: R1 | F116: R2 | G116: Moment | H116: x | I116: at x
D117: (k) | E117: (k) | F117: (k) | G117: (ft-k) | H117: (ft) | I117: (ft-k)
C118: =+C109 -> LRFD LC-2 | D118: =+H81+H101 -> 39.57544444 | E118: 15.76548217 | F118: 23.80996228 | G118: 68.36205787 | H118: =+E109 -> 7.61 | I118: =+I89+I109 -> 69.91979111 | J118: <--- change "x" until this is at max. value
C119: =+C110 -> ASD LC-2 | D119: 28.17277778 | E119: 11.35184842 | F119: 16.82092936 | G119: 48.61471065 | H119: =+E110 -> 7.61 | I119: =+I90+I110 -> 49.6390314 | J119: <--- change "x" until this is at max. value
C121: Midspan Deflection: | F121: Deflection Limits
C123: TL : EI*defl(ms) | D123: =+D87+E87+D107+E107 -> -1582000.779 | F123: TL defl <= L / | G123: 240 | H123: = | I123: =+C7*12/G123 -> 0.675 | J123: in
C124: LL Only : EI*defl(ms) | D124: =+E87+E107 -> -813454.4169 | F124: LL Only defl <= L / | G124: 360 | H124: = | I124: =+C7*12/G124 -> 0.45 | J124: in
A127: part (A): | B127: Doubly Symmetric I shaped section
B129: Steel | C129: A992
B130: Fy | C130: =VLOOKUP(C129,StlProps,2) -> 50 | D130: ksi
B132: Select a Section:
C134: Assume that Plastic Strength will control, select a section, then check FLB.
C135: LTB is not an issue since the section has full lateral support of the compression flange from the floor.
C137: FLB limits: | E137: lp | F137: =0.38*SQRT(29000/$C130) -> 9.15161188 | H137: lr | I137: =1*SQRT(29000/$C130) -> 24.08318916 | J137: SCM B4.1 Case 1
C139: From SCM | D139: Section Properties
C140: Zx Tables | D140: wt | E140: Actual Zx | F140: bf/2tf | G140: Sx | H140: d | I140: tw | J140: h/tw | K140: Ix
D141: (plf) | E141: (in3) | G141: (in3) | H141: (in) | I141: (in) | K141: (in4)
B142: LRFD | C142: W12X16 | D142: =VLOOKUP($C142,StlSects,4) -> 16 | E142: =VLOOKUP($C142,StlSects,31) -> 20.1 | F142: =VLOOKUP($C142,StlSects,25) -> 7.53 | G142: =VLOOKUP($C142,StlSects,32) -> 17.1 | H142: =VLOOKUP(C142,StlSects,6) -> 12 | I142: =VLOOKUP(C142,StlSects,12) -> 0.22 | J142: =VLOOKUP(C142,StlSects,27) -> 49.4 | K142: =VLOOKUP(C142,StlSects,30) -> 103
B143: ASD | C143: W12X16 | D143: =VLOOKUP($C143,StlSects,4) -> 16 | E143: =VLOOKUP($C143,StlSects,31) -> 20.1 | F143: =VLOOKUP($C143,StlSects,25) -> 7.53 | G143: =VLOOKUP($C143,StlSects,32) -> 17.1 | H143: =VLOOKUP(C143,StlSects,6) -> 12 | I143: =VLOOKUP(C143,StlSects,12) -> 0.22 | J143: =VLOOKUP(C143,StlSects,27) -> 49.4 | K143: =VLOOKUP(C143,StlSects,30) -> 103
C147: Design | E147: Min | F147: Mn calculations (P & FLB) | J147: Req'd/Act
C148: Moment | D148: Req'd Mn | E148: Req'd Zx | F148: Mp | G148: Mr | H148: Mn | J148: Moments
C149: (ft-k) | D149: (ft-k) | E149: (in3) | F149: (ft-k) | G149: (ft-k) | H149: (ft-k)
B150: LRFD | C150: =+I118 -> 69.91979111 | D150: =+C150/C$20 -> 77.68865679 | E150: =+D150*12/C130 -> 18.64527763 | F150: =+E142*C$130/12 -> 83.75 | G150: =0.7*G142*C$130/12 -> 49.875 | H150: =MIN(F150-(F150-G150)*(F142-F$137)/(I$137-F$137),F150) -> 83.75 | I150: =IF(F142<=F$137,"Compact",IF(F142<=I$137,"Non C.","Slend.")) -> Compact | J150: =+D150/H150 -> 0.9276257527 | K150: =IF(J150<=1,"Good",IF(J150<=1.03,"Close","No Good")) -> Good
B151: ASD | C151: =+I119 -> 49.6390314 | D151: =+C151*C$21 -> 82.89718244 | E151: =+D151*12/C130 -> 19.89532379 | F151: =+E143*C$130/12 -> 83.75 | G151: =0.7*G143*C$130/12 -> 49.875 | H151: =MIN(F151-(F151-G151)*(F143-F$137)/(I$137-F$137),F151) -> 83.75 | I151: =IF(F143<=F$137,"Compact",IF(F143<=I$137,"Non C.","Slend.")) -> Compact | J151: =+D151/H151 -> 0.9898171038 | K151: =IF(J151<=1,"Good",IF(J151<=1.03,"Close","No Good")) -> Good
C153: Given the conservative approximation of load calcs, use the member if within 3% of requirements.
C155: Design | H155: Req'd/Act
C156: Shear | D156: Req'd Vn | E156: k | F156: sqrt(kvE/Fy) | G156: Vn | H156: Shear
C157: (k) | D157: (k) | G157: (k) | H157: (in3)
B158: LRFD | C158: =+MAX(E118:F118) -> 23.80996228 | D158: =+C158/D20 -> 23.80996228 | E158: =IF(J142<260,5,"Need Stiffeners") -> 5 | F158: =+SQRT(E158*29000/$C$130) -> 53.85164807 | G158: =0.6*C130*H142*I142 -> 79.2 | H158: =+D158/G158 -> 0.3006308368 | I158: =IF(H158<=1,"Good",IF(H158<=1.03,"Close","No Good")) -> Good
B159: ASD | C159: =+MAX(E119:F119) -> 16.82092936 | D159: =+C159*D21 -> 25.23139403 | E159: =IF(J143<260,5,"Need Stiffeners") -> 5 | F159: =+SQRT(E159*29000/$C$130) -> 53.85164807 | G159: =0.6*C130*H143*I143 -> 79.2 | H159: =+D159/G159 -> 0.3185782075 | I159: =IF(H159<=1,"Good",IF(H159<=1.03,"Close","No Good")) -> Good
C162: TL Defl | D162: Act/Allow | G162: LL Only Defl | H162: Act/Allow
C163: (in) | G163: (in)
B164: LRFD | C164: =ABS(D123/29000/K142) -> 0.5296286505 | D164: =+C164/I123 -> 0.7846350378 | E164: =IF(D164<=1,"Good",IF(D164<=1.03,"Close","No Good")) -> Good | G164: =ABS(D124/29000/K142) -> 0.2723315758 | H164: =+G164/I$124 -> 0.6051812795 | I164: =IF(H164<=1,"Good",IF(H164<=1.03,"Close","No Good")) -> Good
B165: ASD | C165: =+C164 -> 0.5296286505 | D165: =+C165/I123 -> 0.7846350378 | E165: =IF(D165<=1,"Good",IF(D165<=1.03,"Close","No Good")) -> Good | G165: =+G164 -> 0.2723315758 | H165: =+G165/I$124 -> 0.6051812795 | I165: =IF(H165<=1,"Good",IF(H165<=1.03,"Close","No Good")) -> Good
C167: You can also use the brute force (exhaustive search method), however, since plastic strength controls, the Zx table is very
C168: handy for homing in on the best section quickly.
A170: part (B): | B170: Rectangular HSS
F171: Note that it is a fairly simple spreadsheet exercise to extract all the HSS sections
B172: Steel | C172: A500 Gr B, Rect HSS | F172: from the AISC shapes database and reorder them by Zx. This has been done
B173: Fy | C173: =VLOOKUP(C172,StlProps,2) -> 46 | D173: ksi | F173: to facilitate the quick selection of the best member in this case
B175: Select a Section:
C177: Assume that Plastic Strength will control, select a section, then check FLB.
C178: LTB is not an issue since the section has full lateral support of the compression flange from the floor.
C180: FLB limits: | E180: lp | F180: =1.12*SQRT(29000/$C173) -> 28.12147562 | H180: lr | I180: =1.4*SQRT(29000/$C173) -> 35.15184453 | J180: SCM B4.1 Case 12
C182: From SCM | D182: Section Properties
C183: Area Tables | D183: wt | E183: h | F183: b | G183: t | H183: Actual Zx | I183: b/t | J183: Sx | K183: Aw | L183: Ix
D184: (plf) | E184: (in) | F184: (in) | G184: (in) | H184: (in3) | J184: (in3) | K184: (in2) | L184: (in4)
B185: LRFD | C185: HSS14X4X3/16 | D185: =VLOOKUP($C185,StlSects,4) -> 22.11825352 | E185: =VLOOKUP($C185,StlSects,7) -> 14 | F185: =VLOOKUP($C185,StlSects,10) -> 4 | G185: =VLOOKUP($C185,StlSects,15) -> 0.1875 | H185: =VLOOKUP($C185,StlSects,31) -> 25.3 | I185: =VLOOKUP($C185,StlSects,26) -> 20 | J185: =VLOOKUP($C185,StlSects,32) -> 19.5 | K185: =2*(E185-3*G185)*(G185) -> 5.0390625 | L185: =VLOOKUP(C185,StlSects,30) -> 137
B186: ASD | C186: HSS14X4X3/16 | D186: =VLOOKUP($C186,StlSects,4) -> 22.11825352 | E186: =VLOOKUP($C186,StlSects,7) -> 14 | F186: =VLOOKUP($C186,StlSects,10) -> 4 | G186: =VLOOKUP($C186,StlSects,15) -> 0.1875 | H186: =VLOOKUP($C186,StlSects,31) -> 25.3 | I186: =VLOOKUP($C186,StlSects,26) -> 20 | J186: =VLOOKUP($C186,StlSects,32) -> 19.5 | K186: =2*(E186-3*G186)*(G186) -> 5.0390625 | L186: =VLOOKUP(C186,StlSects,30) -> 137
C188: Design | E188: Min | F188: Mn calculations (P & FLB), SCM F7 | L188: Req'd/Act
C189: Moment | D189: Req'd Mn | E189: Req'd Zx | F189: Mp | G189: Mr | H189: be | I189: Seff | K189: Mn | L189: Moments
C190: (ft-k) | D190: (ft-k) | E190: (in3) | F190: (ft-k) | G190: (ft-k) | K190: (ft-k)
B191: LRFD | C191: =+C150 -> 69.91979111 | D191: =+C191/C$20 -> 77.68865679 | E191: =+D191*12/C173 -> 20.26660612 | F191: =+H185*C$173/12 -> 96.98333333 | G191: =J185*C$173/12 -> 74.75 | H191: =MIN(1.92*G185*SQRT(29000/C$173)*(1-0.38*SQRT(29000/C$173)/I185),F185) -> 4 | I191: =+H191*(E185^2)/6-(H191-2*G185)*((E185-2*G185)^2)/6 -> 18.50878906 | J191: =IF(I185<=F$180,"Compact",IF(I185<=I$180,"Non C.","Slend.")) -> Compact | K191: =IF(I185<=F$180,F191,IF(I185<=I$180,MIN(F191-(F191-G191)*(3.57*I185*SQRT(C$173/29000)-4),F191),I191*C$173/12)) -> 96.98333333 | L191: =+D191/K191 -> 0.8010516253 | M191: =IF(L191<=1,"Good",IF(L191<=1.03,"Close","No Good")) -> Good
B192: ASD | C192: =+C151 -> 49.6390314 | D192: =+C192*C$21 -> 82.89718244 | E192: =+D192*12/C173 -> 21.62535194 | F192: =+H186*C$173/12 -> 96.98333333 | G192: =J186*C$173/12 -> 74.75 | H192: =MIN(1.92*G186*SQRT(29000/C$173)*(1-0.38*SQRT(29000/C$173)/I186),F186) -> 4 | I192: =+H192*(E186^2)/6-(H192-2*G186)*((E186-2*G186)^2)/6 -> 18.50878906 | J192: =IF(I186<=F$180,"Compact",IF(I186<=I$180,"Non C.","Slend.")) -> Compact | K192: =IF(I186<=F$180,F192,IF(I186<=I$180,MIN(F192-(F192-G192)*(3.57*I186*SQRT(C$173/29000)-4),F192),I192*C$173/12)) -> 96.98333333 | L192: =+D192/K192 -> 0.8547569937 | M192: =IF(L192<=1,"Good",IF(L192<=1.03,"Close","No Good")) -> Good
C194: The Rect. HSS sections are very sensitive to FLB! You will need to be able to compute Mn for compact, non-compact and slender flanges.
C195: I used a brute force method to find the lightest section (computed req'dMn/Actual Mn for each, deleted those that don't work, then sorted by weight)
C197: Design | H197: Req'd/Act
C198: Shear | D198: Req'd Vn | E198: k | F198: sqrt(kvE/Fy) | G198: Vn | H198: Shear
C199: (k) | D199: (k) | G199: (k) | H199: (in3)
B200: LRFD | C200: =+MAX(E$118:F$118) -> 23.80996228 | D200: =+C200/D$20 -> 23.80996228 | E200: 5 | F200: =+SQRT(E200*29000/$C$130) -> 53.85164807 | G200: =0.6*C173*K185 -> 139.078125 | H200: =+D200/G200 -> 0.1711984705 | I200: =IF(H200<=1,"Good",IF(H200<=1.03,"Close","No Good")) -> Good
B201: ASD | C201: =+MAX(E$119:F$119) -> 16.82092936 | D201: =+C201*D$21 -> 25.23139403 | E201: 5 | F201: =+SQRT(E201*29000/$C$130) -> 53.85164807 | G201: =0.6*C173*K186 -> 139.078125 | H201: =+D201/G201 -> 0.1814188538 | I201: =IF(H201<=1,"Good",IF(H201<=1.03,"Close","No Good")) -> Good
C204: TL Defl | D204: Act/Allow | G204: LL Only Defl | H204: Act/Allow
C205: (in) | G205: (in)
B206: LRFD | C206: =ABS(D$123/29000/L185) -> 0.3981879635 | D206: =+C206/I$123 -> 0.5899080941 | E206: =IF(D206<=1,"Good",IF(D206<=1.03,"Close","No Good")) -> Good | G206: =ABS(D$124/29000/L185) -> 0.2047456373 | H206: =+G206/I$124 -> 0.454990305 | I206: =IF(H206<=1,"Good",IF(H206<=1.03,"Close","No Good")) -> Good
B207: ASD | C207: =ABS(D$123/29000/L186) -> 0.3981879635 | D207: =+C207/I$123 -> 0.5899080941 | E207: =IF(D207<=1,"Good",IF(D207<=1.03,"Close","No Good")) -> Good | G207: =ABS(D$124/29000/L186) -> 0.2047456373 | H207: =+G207/I$124 -> 0.454990305 | I207: =IF(H207<=1,"Good",IF(H207<=1.03,"Close","No Good")) -> Good
A209: part (C.): | B209: Channel
B211: Steel | C211: A992
B212: Fy | C212: =VLOOKUP(C211,StlProps,2) -> 50 | D212: ksi
B214: Select a Section:
C216: Assume that Plastic Strength will control, select a section, then check FLB.
C217: LTB is not an issue since the section has full lateral support of the compression flange from the floor.
C219: FLB limits: | E219: lp | F219: =0.38*SQRT(29000/$C212) -> 9.15161188 | H219: lr | I219: =1*SQRT(29000/$C212) -> 24.08318916 | J219: SCM B4.1 Case 1
C221: From SCM | D221: Section Properties
C222: Area Tables | D222: wt | E222: Actual Zx | F222: bf/tf | G222: Sx | H222: d | I222: tw | J222: h/tw | K222: Ix
D223: (plf) | E223: (in3) | G223: (in3) | H223: (in) | I223: (in) | K223: (in4)
B224: LRFD | C224: C12X20.7 | D224: =VLOOKUP($C224,StlSects,4) -> 20.7 | E224: =VLOOKUP($C224,StlSects,31) -> 25.6 | F224: =VLOOKUP($C224,StlSects,9)/VLOOKUP($C224,StlSects,13) -> 5.868263473 | G224: =VLOOKUP($C224,StlSects,32) -> 21.5 | H224: =VLOOKUP(C224,StlSects,6) -> 12 | I224: =VLOOKUP(C224,StlSects,12) -> 0.282 | J224: =(VLOOKUP(C224,StlSects,6)-VLOOKUP(C224,StlSects,13)*2)/VLOOKUP(C224,StlSects,12) -> 39 | K224: =VLOOKUP(C224,StlSects,30) -> 129
B225: ASD | C225: C12X20.7 | D225: =VLOOKUP($C225,StlSects,4) -> 20.7 | E225: =VLOOKUP($C225,StlSects,31) -> 25.6 | F225: =VLOOKUP($C225,StlSects,9)/VLOOKUP($C225,StlSects,13) -> 5.868263473 | G225: =VLOOKUP($C225,StlSects,32) -> 21.5 | H225: =VLOOKUP(C225,StlSects,6) -> 12 | I225: =VLOOKUP(C225,StlSects,12) -> 0.282 | J225: =(VLOOKUP(C225,StlSects,6)-VLOOKUP(C225,StlSects,13)*2)/VLOOKUP(C225,StlSects,12) -> 39 | K225: =VLOOKUP(C225,StlSects,30) -> 129
C227: Note… a C10x20 worked for flexure for LRFD, but failed in deflection…
C229: Design | E229: Min | F229: Mn calculations (P) | I229: Req'd/Act
C230: Moment | D230: Req'd Mn | E230: Req'd Zx | F230: Mp | G230: Mn | I230: Moments
C231: (ft-k) | D231: (ft-k) | E231: (in3) | F231: (ft-k) | G231: (ft-k)
B232: LRFD | C232: =+C150 -> 69.91979111 | D232: =+C232/C$20 -> 77.68865679 | E232: =+D232*12/C212 -> 18.64527763 | F232: =+E224*C$212/12 -> 106.6666667 | G232: =+F232 -> 106.6666667 | H232: =IF(F224<=F$137,"Compact",IF(F224<=I$137,"Non C.","Slend.")) -> Compact | I232: =+D232/G232 -> 0.7283311574 | J232: =IF(I232<=1,"Good",IF(I232<=1.03,"Close","No Good")) -> Good
B233: ASD | C233: =+C151 -> 49.6390314 | D233: =+C233*C$21 -> 82.89718244 | E233: =+D233*12/C212 -> 19.89532379 | F233: =+E225*C$212/12 -> 106.6666667 | G233: =+F233 -> 106.6666667 | H233: =IF(F225<=F$137,"Compact",IF(F225<=I$137,"Non C.","Slend.")) -> Compact | I233: =+D233/G233 -> 0.7771610854 | J233: =IF(I233<=1,"Good",IF(I233<=1.03,"Close","No Good")) -> Good
C235: You can also use the brute force (exhaustive search method), however, since plastic strength controls, the Zx table is very
C236: handy for homing in on the best section quickly.
C238: Design | H238: Req'd/Act
C239: Shear | D239: Req'd Vn | E239: k | F239: sqrt(kvE/Fy) | G239: Vn | H239: Shear
C240: (k) | D240: (k) | G240: (k) | H240: (in3)
B241: LRFD | C241: =+MAX(E$118:F$118) -> 23.80996228 | D241: =+C241/D$20 -> 23.80996228 | E241: =IF(I219<260,5,"Need Stiffeners") -> 5 | F241: =+SQRT(E241*29000/$C$212) -> 53.85164807 | G241: =0.6*C212*H224*I224 -> 101.52 | H241: =+D241/G241 -> 0.2345346954 | I241: =IF(H241<=1,"Good",IF(H241<=1.03,"Close","No Good")) -> Good
B242: ASD | C242: =+MAX(E$119:F$119) -> 16.82092936 | D242: =+C242*D$21 -> 25.23139403 | E242: =IF(I219<260,5,"Need Stiffeners") -> 5 | F242: =+SQRT(E242*29000/$C$212) -> 53.85164807 | G242: =0.6*C212*H225*I225 -> 101.52 | H242: =+D242/G242 -> 0.2485361902 | I242: =IF(H242<=1,"Good",IF(H242<=1.03,"Close","No Good")) -> Good
C245: TL Defl | D245: Act/Allow | G245: LL Only Defl | H245: Act/Allow
C246: (in) | G246: (in)
B247: LRFD | C247: =ABS(D123/29000/K224) -> 0.4228817907 | D247: =+C247/I123 -> 0.6264915418 | E247: =IF(D247<=1,"Good",IF(D247<=1.03,"Close","No Good")) -> Good | G247: =ABS(D124/29000/K224) -> 0.2174430411 | H247: =+G247/I124 -> 0.4832067581 | I247: =IF(H247<=1,"Good",IF(H247<=1.03,"Close","No Good")) -> Good
B248: ASD | C248: =ABS(D123/29000/K225) -> 0.4228817907 | D248: =+C248/I123 -> 0.6264915418 | E248: =IF(D248<=1,"Good",IF(D248<=1.03,"Close","No Good")) -> Good | G248: =ABS(D124/29000/K225) -> 0.2174430411 | H248: =+G248/I124 -> 0.4832067581 | I248: =IF(H248<=1,"Good",IF(H248<=1.03,"Close","No Good")) -> Good

Sheet Example 8.4b
A1: A Beginners Guide to the Steel Construction Manual, 16th Edition | H1: last modified: 30 May 2023
A2: Example 8.4(b) | H2: by: TBQ
B4: Problem 8.4, part (b), LRFD, Brute force method!
A6: Steel | B6: A500 Gr B, Rect HSS | E6: from the AISC shapes database reordered by Area. This has been done
A7: Fy | B7: =VLOOKUP(B6,StlProps,2) -> 46 | C7: ksi | E7: to facilitate the quick selection of the best member in this case
A9: Select a Section:
B11: LTB is not an issue since the section has full lateral support of the compression flange from the floor.
B13: FLB limits: | D13: lp | E13: =1.12*SQRT(29000/$B7) -> 28.12147562 | G13: lr | H13: =1.4*SQRT(29000/$B7) -> 35.15184453 | I13: SCM B4.1b Case 17
B15: Design | D15: Min | E15: From SCM | F15: Section Properties | M15: Mn calculations (P & FLB), SCM F7 | S15: Req'd/Act
B16: Moment | C16: Req'd Mn | D16: Req'd Zx | E16: Area Tables | F16: wt | G16: h | H16: b | I16: t | J16: Actual Zx | K16: b/t | L16: Sx | M16: Mp | N16: Mr | O16: be | P16: Seff | R16: Mn | S16: Moments
B17: (ft-k) | C17: (ft-k) | D17: (in3) | F17: (plf) | G17: (in) | H17: (in) | I17: (in) | J17: (in3) | L17: (in3) | M17: (ft-k) | N17: (ft-k) | R17: (ft-k)
A18: LRFD | B18: =+'Example 8.4'!C191 -> 69.91979111 | C18: =+'Example 8.4'!D191 -> 77.68865679 | D18: =+'Example 8.4'!E191 -> 20.26660612 | E18: HSS14X4X3/16 | F18: =VLOOKUP($E18,StlSects,4) -> 22.11825352 | G18: =VLOOKUP($E18,StlSects,7) -> 14 | H18: =VLOOKUP($E18,StlSects,10) -> 4 | I18: =VLOOKUP($E18,StlSects,15) -> 0.1875 | J18: =VLOOKUP($E18,StlSects,31) -> 25.3 | K18: =VLOOKUP($E18,StlSects,26) -> 20 | L18: =VLOOKUP($E18,StlSects,32) -> 19.5 | M18: =+J18*B$7/12 -> 96.98333333 | N18: =L18*B$7/12 -> 74.75 | O18: =MIN(1.92*I18*SQRT(29000/B$7)*(1-0.38*SQRT(29000/B$7)/K18),H18) -> 4 | P18: =+O18*(G18^2)/6-(O18-2*I18)*((G18-2*I18)^2)/6 -> 18.50878906 | Q18: =IF(K18<=E$13,"Compact",IF(K18<=H$13,"Non C.","Slend.")) -> Compact | R18: =IF(K18<=E$13,M18,IF(K18<=H$13,MIN(M18-(M18-N18)*(3.57*K18*SQRT(B$7/29000)-4),M18),P18*B$7/12)) -> 96.98333333 | S18: =+C18/R18 -> 0.8010516253
B19: =+B18 -> 69.91979111 | C19: =+C18 -> 77.68865679 | D19: =+D18 -> 20.26660612 | E19: HSS2X1X1/8 | F19: 2.194178528 | G19: 2 | H19: 1 | I19: 0.125 | J19: 0.366 | K19: 5.62 | L19: 0.28 | M19: 1.403 | N19: 1.073333333 | O19: -4.2045126 | P19: -0.5293509272 | Q19: Compact | R19: 1.403 | S19: 55.37324076
B20: 69.91979111 | C20: 77.68865679 | D20: 20.26660612 | E20: HSS2-1/2X1X1/8 | F20: 2.61952575 | G20: 2.5 | H20: 1 | I20: 0.125 | J20: 0.532 | K20: 5.62 | L20: 0.403 | M20: 2.039333333 | N20: 1.544833333 | O20: -4.2045126 | P20: -0.6212056188 | Q20: Compact | R20: 2.039333333 | S20: 38.09512428
B21: 69.91979111 | C21: 77.68865679 | D21: 20.26660612 | E21: HSS2X2X1/8 | F21: 2.61952575 | G21: 2 | H21: 2 | I21: 0.125 | J21: 0.475 | K21: 9.93 | L21: 0.383 | M21: 1.820833333 | N21: 1.468166667 | O21: 0.2359346024 | P21: 0.1644689483 | Q21: Compact | R21: 1.820833333 | S21: 42.6665392
B22: 69.91979111 | C22: 77.68865679 | D22: 20.26660612 | E22: HSS2X2X1/8 | F22: 2.61952575 | G22: 2 | H22: 2 | I22: 0.125 | J22: 0.475 | K22: 9.93 | L22: 0.383 | M22: 1.820833333 | N22: 1.468166667 | O22: 0.2359346024 | P22: 0.1644689483 | Q22: Compact | R22: 1.820833333 | S22: 42.6665392
B23: 69.91979111 | C23: 77.68865679 | D23: 20.26660612 | E23: HSS2X1X3/16 | F23: 3.028310854 | G23: 2 | H23: 1 | I23: 0.1875 | J23: 0.48 | K23: 2.75 | L23: 0.35 | M23: 1.84 | N23: 1.341666667 | O23: -22.32221909 | P23: -4.892338699 | Q23: Compact | R23: 1.84 | S23: 42.22209608
B24: 69.91979111 | C24: 77.68865679 | D24: 20.26660612 | E24: HSS2-1/2X1-1/2X1/8 | F24: 3.044872972 | G24: 2.5 | H24: 1.5 | I24: 0.125 | J24: 0.671 | K24: 9.93 | L24: 0.535 | M24: 2.572166667 | N24: 2.050833333 | O24: 0.2359346024 | P24: 0.2576328901 | Q24: Compact | R24: 2.572166667 | S24: 30.20358587
B25: 69.91979111 | C25: 77.68865679 | D25: 20.26660612 | E25: HSS3X1X1/8 | F25: 3.044872972 | G25: 3 | H25: 1 | I25: 0.125 | J25: 0.728 | K25: 5.62 | L25: 0.545 | M25: 2.790666667 | N25: 2.089166667 | O25: -4.2045126 | P25: -0.6922269772 | Q25: Compact | R25: 2.790666667 | S25: 27.83874467
B26: 69.91979111 | C26: 77.68865679 | D26: 20.26660612 | E26: HSS2-1/4X2X1/8 | F26: 3.257546583 | G26: 2.25 | H26: 2.25 | I26: 0.125 | J26: 0.693 | K26: 14.2 | L26: 0.574 | M26: 2.6565 | N26: 2.200333333 | O26: 1.977040901 | P26: 0.5167676596 | Q26: Compact | R26: 2.6565 | S26: 29.24474188
B27: 69.91979111 | C27: 77.68865679 | D27: 20.26660612 | E27: HSS2-1/2X2X1/8 | F27: 3.470220194 | G27: 2.5 | H27: 2 | I27: 0.125 | J27: 0.809 | K27: 14.2 | L27: 0.667 | M27: 3.101166667 | N27: 2.556833333 | O27: 1.977040901 | P27: 0.602226845 | Q27: Compact | R27: 3.101166667 | S27: 25.05142907
B28: 69.91979111 | C28: 77.68865679 | D28: 20.26660612 | E28: HSS2-1/4X2-1/4X1/8 | F28: 3.470220194 | G28: 2.25 | H28: 2.25 | I28: 0.125 | J28: 0.755 | K28: 16.4 | L28: 0.633 | M28: 2.894166667 | N28: 2.4265 | O28: 2.25 | P28: 0.5651041667 | Q28: Compact | R28: 2.894166667 | S28: 26.84318691
B29: 69.91979111 | C29: 77.68865679 | D29: 20.26660612 | E29: HSS3X1-1/2X1/8 | F29: 3.470220194 | G29: 3 | H29: 1.5 | I29: 125 | J29: 0.895 | K29: 9.93 | L29: 0.706 | M29: 3.430833333 | N29: 2.706333333 | O29: 1.5 | P29: 2526791.667 | Q29: Compact | R29: 3.430833333 | S29: 22.64425265
B30: 69.91979111 | C30: 77.68865679 | D30: 20.26660612 | E30: HSS2-1/2X1X3/16 | F30: 3.668033076 | G30: 2.5 | H30: 1 | I30: 0.1875 | J30: 0.713 | K30: 2.75 | L30: 0.517 | M30: 2.733166667 | N30: 1.981833333 | O30: -22.32221909 | P30: -6.170289892 | Q30: Compact | R30: 2.733166667 | S30: 28.42441251
B31: 69.91979111 | C31: 77.68865679 | D31: 20.26660612 | E31: HSS2X1-1/2X3/16 | F31: 3.668033076 | G31: 2 | H31: 1.5 | I31: 0.1875 | J31: 0.639 | K31: 5.62 | L31: 0.495 | M31: 2.4495 | N31: 1.8975 | O31: -6.306768901 | P31: -1.263838267 | Q31: Compact | R31: 2.4495 | S31: 31.71612851
B32: 69.91979111 | C32: 77.68865679 | D32: 20.26660612 | E32: HSS2-1/2X2-1/2X1/8 | F32: 3.895567417 | G32: 2.5 | H32: 2.5 | I32: 0.125 | J32: 0.947 | K32: 18.6 | L32: 0.799 | M32: 3.630166667 | N32: 3.062833333 | O32: 2.5 | P32: 0.7057291667 | Q32: Compact | R32: 3.630166667 | S32: 21.40085123
B33: 69.91979111 | C33: 77.68865679 | D33: 20.26660612 | E33: HSS3-1/2X1-1/2X1/8 | F33: =VLOOKUP($E33,StlSects,4) -> 3.895567417 | G33: 3.5 | H33: 1.5 | I33: 0.125 | J33: 1.15 | K33: 9.93 | L33: 0.896 | M33: 4.408333333 | N33: 3.434666667 | O33: 0.2359346024 | P33: 0.5064607736 | Q33: Compact | R33: 4.408333333 | S33: 17.62313576
B34: 69.91979111 | C34: 77.68865679 | D34: 20.26660612 | E34: HSS3X2X1/8 | F34: 3.895567417 | G34: 3 | H34: 2 | I34: 0.125 | J34: 1.06 | K34: 14.2 | L34: 0.867 | M34: 4.063333333 | N34: 3.3235 | O34: 1.977040901 | P34: 0.7887702159 | Q34: Compact | R34: 4.063333333 | S34: 19.11943974
B35: 69.91979111 | C35: 77.68865679 | D35: 20.26660612 | E35: HSS2X2X3/16 | F35: 4.298880854 | G35: 2 | H35: 2 | I35: 0.1875 | J35: 0.797 | K35: 8.49 | L35: 0.641 | M35: 3.055166667 | N35: 2.457166667 | O35: -1.119196697 | P35: -0.08852893918 | Q35: Compact | R35: 3.055166667 | S35: 25.42861496
B36: 69.91979111 | C36: 77.68865679 | D36: 20.26660612 | E36: HSS2-1/2X1-1/2X3/16 | F36: 4.307755299 | G36: 2.5 | H36: 1.5 | I36: 0.1875 | J36: 0.915 | K36: 5.62 | L36: 0.705 | M36: 3.5075 | N36: 2.7025 | O36: -6.306768901 | P36: -1.540823823 | Q36: Compact | R36: 3.5075 | S36: 22.14929631
B37: 69.91979111 | C37: 77.68865679 | D37: 20.26660612 | E37: HSS3X1X3/16 | F37: 4.307755299 | G37: 3 | H37: 1 | I37: 0.1875 | J37: 0.989 | K37: 2.75 | L37: 0.713 | M37: 3.791166667 | N37: 2.733166667 | O37: -22.32221909 | P37: -7.416991085 | Q37: Compact | R37: 3.791166667 | S37: 20.49201832
B38: 69.91979111 | C38: 77.68865679 | D38: 20.26660612 | E38: HSS3-1/2X2X1/8 | F38: 4.320914639 | G38: 3.5 | H38: 2 | I38: 0.125 | J38: 1.34 | K38: 14.2 | L38: 1.09 | M38: 5.136666667 | N38: 4.178333333 | O38: 1.977040901 | P38: 0.9961469201 | Q38: Compact | R38: 5.136666667 | S38: 15.12433292
B39: 69.91979111 | C39: 77.68865679 | D39: 20.26660612 | E39: HSS3X2-1/2X1/8 | F39: 4.320914639 | G39: 3 | H39: 2.5 | I39: 0.125 | J39: 1.23 | K39: 18.6 | L39: 1.03 | M39: 4.715 | N39: 3.948333333 | O39: 2.5 | P39: 0.9140625 | Q39: Compact | R39: 4.715 | S39: 16.47691554
B40: 69.91979111 | C40: 77.68865679 | D40: 20.26660612 | E40: HSS2-1/4X2X3/16 | F40: 4.62761641 | G40: 2.25 | H40: 2.25 | I40: 0.1875 | J40: 0.952 | K40: 8.49 | L40: 0.764 | M40: 3.649333333 | N40: 2.928666667 | O40: -1.119196697 | P40: -0.06881633597 | Q40: Compact | R40: 3.649333333 | S40: 21.28845181
B41: 69.91979111 | C41: 77.68865679 | D41: 20.26660612 | E41: HSS3X3X1/8 | F41: 4.746261861 | G41: 3 | H41: 3 | I41: 0.125 | J41: 1.4 | K41: 22.9 | L41: 1.19 | M41: 5.366666667 | N41: 4.561666667 | O41: 3 | P41: 1.033854167 | Q41: Compact | R41: 5.366666667 | S41: 14.47614723
B42: 69.91979111 | C42: 77.68865679 | D42: 20.26660612 | E42: HSS4X2X1/8 | F42: 4.746261861 | G42: 4 | H42: 2 | I42: 0.125 | J42: 1.66 | K42: 14.2 | L42: 1.32 | M42: 6.363333333 | N42: 5.06 | O42: 1.977040901 | P42: 1.224356958 | Q42: Compact | R42: 6.363333333 | S42: 12.20879887
B43: 69.91979111 | C43: 77.68865679 | D43: 20.26660612 | E43: HSS2-1/4X2-1/4X3/16 | F43: 4.936901687 | G43: 2.25 | H43: 2.25 | I43: 0.1875 | J43: 1.04 | K43: 9.93 | L43: 0.847 | M43: 3.986666667 | N43: 3.246833333 | O43: 0.3539019036 | P43: 0.310966897 | Q43: Compact | R43: 3.986666667 | S43: 19.48712127
B44: 69.91979111 | C44: 77.68865679 | D44: 20.26660612 | E44: HSS2-1/2X2X3/16 | F44: 4.947477521 | G44: 2.5 | H44: 2 | I44: 0.1875 | J44: 1.12 | K44: 8.49 | L44: 0.894 | M44: 4.293333333 | N44: 3.427 | O44: -1.119196697 | P44: -0.04129123275 | Q44: Compact | R44: 4.293333333 | S44: 18.09518404
B45: =+B44 -> 69.91979111 | C45: =+C44 -> 77.68865679 | D45: =+D44 -> 20.26660612 | E45: HSS3X1-1/2X3/16 | F45: 4.947477521 | G45: 3 | H45: 1.5 | I45: 0.1875 | J45: 1.24 | K45: 5.62 | L45: 0.945 | M45: 4.753333333 | N45: 3.6225 | O45: -6.306768901 | P45: -1.786559379 | Q45: Compact | R45: 4.753333333 | S45: 16.34403719
B46: 69.91979111 | C46: 77.68865679 | D46: 20.26660612 | E46: HSS4X2-1/2X1/8 | F46: 5.171609083 | G46: 4 | H46: 2.5 | I46: 0.125 | J46: 1.88 | K46: 18.6 | L46: 1.54 | M46: 7.206666667 | N46: 5.903333333 | O46: 2.5 | P46: 1.393229167 | Q46: Compact | R46: 7.206666667 | S46: 10.78010964
B47: 69.91979111 | C47: 77.68865679 | D47: 20.26660612 | E47: HSS2-1/2X1-1/2X1/4 | F47: 5.37523797 | G47: 2.5 | H47: 1.5 | I47: 0.25 | J47: 1.11 | K47: 3.44 | L47: 0.822 | M47: 4.255 | N47: 3.151 | O47: -21.37564377 | P47: -7.682533081 | Q47: Compact | R47: 4.255 | S47: 18.25820371
B48: 69.91979111 | C48: 77.68865679 | D48: 20.26660612 | E48: HSS2X2X1/4 | F48: 5.37523797 | G48: 2 | H48: 2 | I48: 0.25 | J48: 0.964 | K48: 5.58 | L48: 0.747 | M48: 3.695333333 | N48: 2.8635 | O48: -8.555699654 | P48: -2.307912399 | Q48: Compact | R48: 3.695333333 | S48: 21.02345033
B49: 69.91979111 | C49: 77.68865679 | D49: 20.26660612 | E49: HSS2-1/2X2-1/2X3/16 | F49: 5.574922521 | G49: 2.5 | H49: 2.5 | I49: 0.1875 | J49: 1.32 | K49: 11.4 | L49: 1.08 | M49: 5.06 | N49: 4.14 | O49: 1.473828345 | P49: 0.7082550685 | Q49: Compact | R49: 5.06 | S49: 15.35348948
B50: 69.91979111 | C50: 77.68865679 | D50: 20.26660612 | E50: HSS3-1/2X1-1/2X3/16 | F50: =VLOOKUP($E50,StlSects,4) -> 5.587199743 | G50: =VLOOKUP($E50,StlSects,7) -> 3.5 | H50: =VLOOKUP($E50,StlSects,10) -> 1.5 | I50: =VLOOKUP($E50,StlSects,15) -> 0.1875 | J50: =VLOOKUP($E50,StlSects,31) -> 1.6 | K50: =VLOOKUP($E50,StlSects,26) -> 5.62 | L50: =VLOOKUP($E50,StlSects,32) -> 1.21 | M50: =+J50*B$7/12 -> 6.133333333 | N50: =L50*B$7/12 -> 4.638333333 | O50: =MIN(1.92*I50*SQRT(29000/B$7)*(1-0.38*SQRT(29000/B$7)/K50),H50) -> -6.306768901 | P50: =+O50*(G50^2)/6-(O50-2*I50)*((G50-2*I50)^2)/6 -> -2.001044935 | Q50: =IF(K50<=E$13,"Compact",IF(K50<=H$13,"Non C.","Slend.")) -> Compact | R50: 6.133333333 | S50: =+C50/R50 -> 12.66662882
B51: =+B50 -> 69.91979111 | C51: =+C50 -> 77.68865679 | D51: =+D50 -> 20.26660612 | E51: HSS3X2X3/16 | F51: 5.587199743 | G51: 3 | H51: 2 | I51: 0.1875 | J51: 1.48 | K51: 8.49 | L51: 1.18 | M51: 5.673333333 | N51: 4.523333333 | O51: -1.119196697 | P51: 0.03719647368 | Q51: Compact | R51: 5.673333333 | S51: 13.69365278
B52: 69.91979111 | C52: 77.68865679 | D52: 20.26660612 | E52: HSS3-1/2X3-1/2X1/8 | F52: 5.596956306 | G52: 3.5 | H52: 3.5 | I52: 0.125 | J52: 1.93 | K52: 27.2 | L52: 1.66 | M52: 7.398333333 | N52: 6.363333333 | O52: 3.5 | P52: 1.424479167 | Q52: Compact | R52: 7.398333333 | S52: 10.50083219
B53: 69.91979111 | C53: 77.68865679 | D53: 20.26660612 | E53: HSS4X3X1/8 | F53: 5.596956306 | G53: 4 | H53: 3 | I53: 0.125 | J53: 2.11 | K53: 22.9 | L53: 1.76 | M53: 8.088333333 | N53: 6.746666667 | O53: 3 | P53: 1.5546875 | Q53: Compact | R53: 8.088333333 | S53: 9.605026597
B54: 69.91979111 | C54: 77.68865679 | D54: 20.26660612 | E54: HSS5X2X1/8 | F54: 5.596956306 | G54: 5 | H54: 2 | I54: 0.125 | J54: 2.37 | K54: 14.2 | L54: 1.86 | M54: 9.085 | N54: 7.13 | O54: 1.977040901 | P54: 1.743277033 | Q54: Compact | R54: 9.085 | S54: 8.551310599
B55: 69.91979111 | C55: 77.68865679 | D55: 20.26660612 | E55: HSS5X2-1/2X1/8 | F55: 6.022303528 | G55: 5 | H55: 2.5 | I55: 0.125 | J55: 2.65 | K55: 18.6 | L55: 2.14 | M55: 10.15833333 | N55: 8.203333333 | O55: 2.5 | P55: 1.955729167 | Q55: Compact | R55: 10.15833333 | S55: 7.647775894
B56: 69.91979111 | C56: 77.68865679 | D56: 20.26660612 | E56: HSS2-1/2X2X1/4 | F56: 6.225932414 | G56: 2.5 | H56: 2 | I56: 0.25 | J56: 1.37 | K56: 5.58 | L56: 1.06 | M56: 5.251666667 | N56: 4.063333333 | O56: -8.555699654 | P56: -2.875054037 | Q56: Compact | R56: 5.251666667 | S56: 14.79314315
B57: 69.91979111 | C57: 77.68865679 | D57: 20.26660612 | E57: HSS2-1/4X2-1/4X1/4 | F57: 6.225932414 | G57: 2.25 | H57: 2.25 | I57: 0.25 | J57: 1.28 | K57: 6.66 | L57: 1.01 | M57: 4.906666667 | N57: 3.871666667 | O57: -5.213900632 | P57: -1.482758544 | Q57: Compact | R57: 4.906666667 | S57: 15.83328603
B58: 69.91979111 | C58: 77.68865679 | D58: 20.26660612 | E58: HSS3X1-1/2X1/4 | F58: 6.225932414 | G58: 3 | H58: 1.5 | I58: 0.25 | J58: 1.51 | K58: 3.44 | L58: 1.12 | M58: 5.788333333 | N58: 4.293333333 | O58: -21.37564377 | P58: -9.276336728 | Q58: Compact | R58: 5.788333333 | S58: 13.42159346
B59: 69.91979111 | C59: 77.68865679 | D59: 20.26660612 | E59: HSS3-1/2X2X3/16 | F59: 6.226921965 | G59: 3.5 | H59: 2 | I59: 0.1875 | J59: 1.89 | K59: 8.49 | L59: 1.49 | M59: 7.245 | N59: 5.711666667 | O59: -1.119196697 | P59: 0.1469341801 | Q59: Compact | R59: 7.245 | S59: 10.72307202
B60: 69.91979111 | C60: 77.68865679 | D60: 20.26660612 | E60: HSS3X2-1/2X3/16 | F60: 6.226921965 | G60: 3 | H60: 2.5 | I60: 0.1875 | J60: 1.73 | K60: 11.4 | L60: 1.41 | M60: 6.631666667 | N60: 5.405 | O60: 1.473828345 | P60: 0.9488068401 | Q60: Compact | R60: 6.631666667 | S60: 11.71480123
B61: 69.91979111 | C61: 77.68865679 | D61: 20.26660612 | E61: HSS4X4X1/8 | F61: 6.44765075 | G61: 4 | H61: 4 | I61: 0.125 | J61: 2.56 | K61: 31.5 | L61: 2.2 | M61: 9.813333333 | N61: 8.433333333 | O61: 4 | P61: 1.877604167 | Q61: Non C. | R61: 9.152631783 | S61: 8.488122175
B62: 69.91979111 | C62: 77.68865679 | D62: 20.26660612 | E62: HSS5X3X1/8 | F62: 6.44765075 | G62: 5 | H62: 3 | I62: 0.125 | J62: 2.93 | K62: 22.9 | L62: 2.41 | M62: 11.23166667 | N62: 9.238333333 | O62: 3 | P62: 2.158854167 | Q62: Compact | R62: 11.23166667 | S62: 6.916930416
B63: 69.91979111 | C63: 77.68865679 | D63: 20.26660612 | E63: HSS6X2X1/8 | F63: 6.44765075 | G63: 6 | H63: 2 | I63: 0.125 | J63: 3.19 | K63: 14.2 | L63: 2.47 | M63: 12.22833333 | N63: 9.468333333 | O63: 1.977040901 | P63: 2.345530441 | Q63: Compact | R63: 12.22833333 | S63: 6.353168063
B64: 69.91979111 | C64: 77.68865679 | D64: 20.26660612 | E64: HSS3X3X3/16 | F64: 6.850964187 | G64: 3 | H64: 3 | I64: 0.1875 | J64: 1.97 | K64: 14.2 | L64: 1.64 | M64: 7.551666667 | N64: 6.286666667 | O64: 2.965561352 | P64: 1.473244225 | Q64: Compact | R64: 7.551666667 | S64: 10.28761732
B65: 69.91979111 | C65: 77.68865679 | D65: 20.26660612 | E65: HSS4X2X3/16 | F65: 6.866644187 | G65: 4 | H65: 2 | I65: 0.1875 | J65: 2.34 | K65: 8.49 | L65: 1.83 | M65: 8.97 | N65: 7.015 | O65: -1.119196697 | P65: 0.2879218865 | Q65: Compact | R65: 8.97 | S65: 8.660942786
B66: 69.91979111 | C66: 77.68865679 | D66: 20.26660612 | E66: HSS2-1/2X2-1/2X1/4 | F66: 7.076626859 | G66: 2.5 | H66: 2.5 | I66: 0.25 | J66: 1.63 | K66: 7.73 | L66: 1.3 | M66: 6.248333333 | N66: 4.983333333 | O66: -2.823916295 | P66: -0.7256352771 | Q66: Compact | R66: 6.248333333 | S66: 12.43350069
B67: 69.91979111 | C67: 77.68865679 | D67: 20.26660612 | E67: HSS3-1/2X1-1/2X1/4 | F67: 7.076626859 | G67: 3.5 | H67: 1.5 | I67: 0.25 | J67: 1.98 | K67: 3.44 | L67: 1.46 | M67: 7.59 | N67: 5.596666667 | O67: -21.37564377 | P67: -10.82847371 | Q67: Compact | R67: 7.59 | S67: 10.23565966
B68: 69.91979111 | C68: 77.68865679 | D68: 20.26660612 | E68: HSS3X2X1/4 | F68: 7.076626859 | G68: 3 | H68: 2 | I68: 0.25 | J68: 1.83 | K68: 5.58 | L68: 1.42 | M68: 7.015 | N68: 5.443333333 | O68: -8.555699654 | P68: -3.400529008 | Q68: Compact | R68: 7.015 | S68: 11.07464815
B69: 69.91979111 | C69: 77.68865679 | D69: 20.26660612 | E69: HSS4-1/2X4-1/2X1/8 | F69: 7.298345194 | G69: 4.5 | H69: 4.5 | I69: 0.125 | J69: 3.27 | K69: 35.8 | L69: 2.82 | M69: 12.535 | N69: 10.81 | O69: 4.420006687 | P69: 2.364064938 | Q69: Slend. | R69: 9.062248929 | S69: 8.572778942
B70: 69.91979111 | C70: 77.68865679 | D70: 20.26660612 | E70: HSS5X4X1/8 | F70: 7.298345194 | G70: 5 | H70: 4 | I70: 0.125 | J70: 3.5 | K70: 31.5 | L70: 2.97 | M70: 13.41666667 | N70: 11.385 | O70: 4 | P70: 2.565104167 | Q70: Non C. | R70: 12.44396716 | S70: 6.243077933
B71: 69.91979111 | C71: 77.68865679 | D71: 20.26660612 | E71: HSS6X3X1/8 | F71: 7.298345194 | G71: 6 | H71: 3 | I71: 0.125 | J71: 3.87 | K71: 22.9 | L71: 3.14 | M71: 14.835 | N71: 12.03666667 | O71: 3 | P71: 2.846354167 | Q71: Compact | R71: 14.835 | S71: 5.236849126
B72: 69.91979111 | C72: 77.68865679 | D72: 20.26660612 | E72: HSS7X2X1/4 | F72: 7.298345194 | G72: 7 | H72: 2 | I72: 0.125 | J72: 4.13 | K72: 14.2 | L72: 3.16 | M72: 15.83166667 | N72: 12.11333333 | O72: 1.977040901 | P72: 3.031117183 | Q72: Compact | R72: 15.83166667 | S72: 4.907168552
B73: 69.91979111 | C73: 77.68865679 | D73: 20.26660612 | E73: HSS4X2-1/2X3/16 | F73: 7.50636641 | G73: 4 | H73: 2.5 | I73: 0.1875 | J73: 2.67 | K73: 11.4 | L73: 2.15 | M73: 10.235 | N73: 8.241666667 | O73: 1.473828345 | P73: 1.523660383 | Q73: Compact | R73: 10.235 | S73: 7.590489183
B74: 69.91979111 | C74: 77.68865679 | D74: 20.26660612 | E74: HSS3-1/2X2X1/4 | F74: 7.927321303 | G74: 3.5 | H74: 2 | I74: 0.25 | J74: 2.36 | K74: 5.58 | L74: 1.81 | M74: 9.046666667 | N74: 6.938333333 | O74: -8.555699654 | P74: -3.884337312 | Q74: Compact | R74: 9.046666667 | S74: 8.587544966
B75: 69.91979111 | C75: 77.68865679 | D75: 20.26660612 | E75: HSS3X2-1/2X1/4 | F75: 7.927321303 | G75: 3 | H75: 2.5 | I75: 0.25 | J75: 2.16 | K75: 7.73 | L75: 1.72 | M75: 8.28 | N75: 6.593333333 | O75: -2.823916295 | P75: -0.773461635 | Q75: Compact | R75: 8.28 | S75: 9.382688018
B76: 69.91979111 | C76: 77.68865679 | D76: 20.26660612 | E76: HSS3-1/2X3-1/2X3/16 | F76: 8.127005854 | G76: 3.5 | H76: 3.5 | I76: 0.1875 | J76: 2.76 | K76: 17.1 | L76: 2.31 | M76: 10.58 | N76: 8.855 | O76: 3.5 | P76: 2.059570312 | Q76: Compact | R76: 10.58 | S76: 7.342973232
B77: 69.91979111 | C77: 77.68865679 | D77: 20.26660612 | E77: HSS4X3X3/16 | F77: 8.146088632 | G77: 4 | H77: 3 | I77: 0.1875 | J77: 3 | K77: 14.2 | L77: 2.47 | M77: 11.5 | N77: 9.468333333 | O77: 2.965561352 | P77: 2.234564394 | Q77: Compact | R77: 11.5 | S77: 6.755535373
B78: 69.91979111 | C78: 77.68865679 | D78: 20.26660612 | E78: HSS5X2X3/16 | F78: 8.146088632 | G78: 5 | H78: 2 | I78: 0.1875 | J78: 3.37 | K78: 8.49 | L78: 2.6 | M78: 12.91833333 | N78: 9.966666667 | O78: -1.119196697 | P78: 0.6636472994 | Q78: Compact | R78: 12.91833333 | S78: 6.013829709
B79: 69.91979111 | C79: 77.68865679 | D79: 20.26660612 | E79: HSS5X5X1/8 | F79: 8.149039639 | G79: 5 | H79: 5 | I79: 0.125 | J79: 4.07 | K79: 40.1 | L79: 3.52 | M79: 15.60166667 | N79: 13.49333333 | O79: 4.592223704 | P79: 2.805695046 | Q79: Slend. | R79: 10.75516434 | S79: 7.223381652
B80: 69.91979111 | C80: 77.68865679 | D80: 20.26660612 | E80: HSS6X4X1/8 | F80: 8.149039639 | G80: 6 | H80: 4 | I80: 0.125 | J80: 4.56 | K80: 31.5 | L80: 3.81 | M80: 17.48 | N80: 14.605 | O80: 4 | P80: 3.3359375 | Q80: Non C. | R80: 16.10353844 | S80: 4.824322126
B81: 69.91979111 | C81: 77.68865679 | D81: 20.26660612 | E81: HSS7X3X1/8 | F81: 8.149039639 | G81: 7 | H81: 3 | I81: 0.125 | J81: 4.93 | K81: 22.9 | L81: 3.95 | M81: 18.89833333 | N81: 15.14166667 | O81: 3 | P81: 3.6171875 | Q81: Compact | R81: 18.89833333 | S81: 4.110873452
B82: 69.91979111 | C82: 77.68865679 | D82: 20.26660612 | E82: HSS8X2X1/8 | F82: =VLOOKUP($E82,StlSects,4) -> 8.149039639 | G82: =VLOOKUP($E82,StlSects,7) -> 8 | H82: =VLOOKUP($E82,StlSects,10) -> 2 | I82: =VLOOKUP($E82,StlSects,15) -> 0.125 | J82: =VLOOKUP($E82,StlSects,31) -> 5.19 | K82: =VLOOKUP($E82,StlSects,26) -> 14.2 | L82: =VLOOKUP($E82,StlSects,32) -> 3.93 | M82: =+J82*B$7/12 -> 19.895 | N82: =L82*B$7/12 -> 15.065 | O82: =MIN(1.92*I82*SQRT(29000/B$7)*(1-0.38*SQRT(29000/B$7)/K82),H82) -> 1.977040901 | P82: =+O82*(G82^2)/6-(O82-2*I82)*((G82-2*I82)^2)/6 -> 3.800037258 | Q82: =IF(K82<=E$13,"Compact",IF(K82<=H$13,"Non C.","Slend.")) -> Compact | R82: =IF(K82<=E$13,M82,IF(K82<=H$13,MIN(M82-(M82-N82)*(3.57*K82*SQRT(B$7/29000)-4),M82),P82*B$7/12)) -> 19.895 | S82: =+C82/R82 -> 3.904933742
B83: =+B82 -> 69.91979111 | C83: =+C82 -> 77.68865679 | D83: =+D82 -> 20.26660612 | E83: HSS2-1/2X2-1/2X5/16 | F83: 8.398394549 | G83: 2.5 | H83: 2.5 | I83: 0.3125 | J83: 1.88 | K83: 5.59 | L83: 1.46 | M83: 7.206666667 | N83: 5.596666667 | O83: -10.64854281 | P83: -4.486640605 | Q83: Compact | R83: 7.206666667 | S83: 10.78010964
B84: 69.91979111 | C84: 77.68865679 | D84: 20.26660612 | E84: HSS3X2X5/16 | F84: 8.407486771 | G84: 3 | H84: 2 | I84: 0.3125 | J84: 2.11 | K84: 3.87 | L84: 1.59 | M84: 8.088333333 | N84: 6.095 | O84: -22.07681794 | P84: -11.77315327 | Q84: Compact | R84: 8.088333333 | S84: 9.605026597
B85: 69.91979111 | C85: 77.68865679 | D85: 20.26660612 | E85: HSS3X3X1/4 | F85: 8.778015748 | G85: 3 | H85: 3 | I85: 0.25 | J85: 2.48 | K85: 9.88 | L85: 2.01 | M85: 9.506666667 | N85: 7.705 | O85: 0.4132649953 | P85: 0.7102464562 | Q85: Compact | R85: 9.506666667 | S85: 8.172018597
B86: 69.91979111 | C86: 77.68865679 | D86: 20.26660612 | E86: HSS4X2X1/4 | F86: 8.778015748 | G86: 4 | H86: 2 | I86: 0.25 | J86: 2.94 | K86: 5.58 | L86: 2.25 | M86: 11.27 | N86: 8.625 | O86: -8.555699654 | P86: -4.32647895 | Q86: Compact | R86: 11.27 | S86: 6.893403442
B87: 69.91979111 | C87: 77.68865679 | D87: 20.26660612 | E87: HSS5X2-1/2X3/16 | F87: 8.785810854 | G87: 5 | H87: 2.5 | I87: 0.1875 | J87: 3.79 | K87: 11.4 | L87: 3.01 | M87: 14.52833333 | N87: 11.53833333 | O87: 1.473828345 | P87: 2.223513926 | Q87: Compact | R87: 14.52833333 | S87: 5.347389477
B88: 69.91979111 | C88: 77.68865679 | D88: 20.26660612 | E88: HSS5-1/2X5-1/2X1/8 | F88: 8.999734083 | G88: 5.5 | H88: 5.5 | I88: 0.125 | J88: 4.95 | K88: 44.4 | L88: 4.3 | M88: 18.975 | N88: 16.48333333 | O88: 4.73108337 | P88: 3.267568593 | Q88: Slend. | R88: 12.52567961 | S88: 6.20235063
B89: 69.91979111 | C89: 77.68865679 | D89: 20.26660612 | E89: HSS6X5X1/8 | F89: 8.999734083 | G89: 6 | H89: 5 | I89: 0.125 | J89: 5.24 | K89: 40.1 | L89: 4.48 | M89: 20.08666667 | N89: 17.17333333 | O89: 4.592223704 | P89: 3.625880355 | Q89: Slend. | R89: 13.89920803 | S89: 5.589430465
B90: 69.91979111 | C90: 77.68865679 | D90: 20.26660612 | E90: HSS7X4X1/8 | F90: 8.999734083 | G90: 7 | H90: 4 | I90: 0.125 | J90: 5.73 | K90: 31.5 | L90: 4.73 | M90: 21.965 | N90: 18.13166667 | O90: 4 | P90: 4.190104167 | Q90: Non C. | R90: 20.12971791 | S90: 3.859401166
B91: 69.91979111 | C91: 77.68865679 | D91: 20.26660612 | E91: HSS8X3X1/8 | F91: 8.999734083 | G91: 8 | H91: 3 | I91: 0.125 | J91: 6.11 | K91: 22.9 | L91: 4.83 | M91: 23.42166667 | N91: 18.515 | O91: 3 | P91: 4.471354167 | Q91: Compact | R91: 23.42166667 | S91: 3.316956812
B92: 69.91979111 | C92: 77.68865679 | D92: 20.26660612 | E92: HSS4X4X3/16 | F92: 9.403047521 | G92: 4 | H92: 4 | I92: 0.1875 | J92: 3.67 | K92: 20 | L92: 3.1 | M92: 14.06833333 | N92: 11.88333333 | O92: 4 | P92: 2.727539062 | Q92: Compact | R92: 14.06833333 | S92: 5.522236
B93: 69.91979111 | C93: 77.68865679 | D93: 20.26660612 | E93: HSS5X3X3/16 | F93: 9.425533076 | G93: 5 | H93: 3 | I93: 0.1875 | J93: 4.21 | K93: 14.2 | L93: 3.41 | M93: 16.13833333 | N93: 13.07166667 | O93: 2.965561352 | P93: 3.120884563 | Q93: Compact | R93: 16.13833333 | S93: 4.813920693
B94: 69.91979111 | C94: 77.68865679 | D94: 20.26660612 | E94: HSS6X2X3/16 | F94: 9.425533076 | G94: 6 | H94: 2 | I94: 0.1875 | J94: 4.58 | K94: 8.49 | L94: 3.49 | M94: 17.55666667 | N94: 13.37833333 | O94: -1.119196697 | P94: 1.164372712 | Q94: Compact | R94: 17.55666667 | S94: 4.42502317
B95: 69.91979111 | C95: 77.68865679 | D95: 20.26660612 | E95: HSS3X2-1/2X5/16 | F95: 9.472556215 | G95: 3 | H95: 2.5 | I95: 0.3125 | J95: 2.51 | K95: 5.59 | L95: 1.94 | M95: 9.621666667 | N95: 7.436666667 | O95: -10.64854281 | P95: -5.374509648 | Q95: Compact | R95: 9.621666667 | S95: 8.074345068
B96: 69.91979111 | C96: 77.68865679 | D96: 20.26660612 | E96: HSS4X2-1/2X1/4 | F96: 9.628710192 | G96: 4 | H96: 2.5 | I96: 0.25 | J96: 3.38 | K96: 7.73 | L96: 2.66 | M96: 12.95666667 | N96: 10.19666667 | O96: -2.823916295 | P96: -0.7441143508 | Q96: Compact | R96: 12.95666667 | S96: 5.996037313
B97: 69.91979111 | C97: 77.68865679 | D97: 20.26660612 | E97: HSS10X2X1/8 | F97: 9.850428528 | G97: 10 | H97: 2 | I97: 0.125 | J97: 7.65 | K97: 14.2 | L97: 5.7 | M97: 29.325 | N97: 21.85 | O97: 1.977040901 | P97: 5.587877408 | Q97: Compact | R97: 29.325 | S97: 2.649229558
B98: 69.91979111 | C98: 77.68865679 | D98: 20.26660612 | E98: HSS6X6X1/8 | F98: 9.850428528 | G98: 6 | H98: 6 | I98: 0.125 | J98: 5.92 | K98: 48.7 | L98: 5.15 | M98: 22.69333333 | N98: 19.74166667 | O98: 4.845421617 | P98: 3.749841833 | Q98: Slend. | R98: 14.37439369 | S98: 5.404656255
B99: 69.91979111 | C99: 77.68865679 | D99: 20.26660612 | E99: HSS7X5X1/8 | F99: 9.850428528 | G99: 7 | H99: 5 | I99: 0.125 | J99: 6.53 | K99: 40.1 | L99: 5.52 | M99: 25.03166667 | N99: 21.16 | O99: 4.592223704 | P99: 4.529398997 | Q99: Slend. | R99: 17.36269615 | S99: 4.47445812
B100: 69.91979111 | C100: 77.68865679 | D100: 20.26660612 | E100: HSS8X4X1/8 | F100: 9.850428528 | G100: 8 | H100: 4 | I100: 0.125 | J100: 7.02 | K100: 31.5 | L100: 5.73 | M100: 26.91 | N100: 21.965 | O100: 4 | P100: 5.127604167 | Q100: Non C. | R100: 24.54248611 | S100: 3.165476246
B101: 69.91979111 | C101: 77.68865679 | D101: 20.26660612 | E101: HSS3-1/2X3-1/2X1/4 | F101: 10.47940464 | G101: 3.5 | H101: 3.5 | I101: 0.25 | J101: 3.5 | K101: 12 | L101: 2.88 | M101: 13.41666667 | N101: 11.04 | O101: 2.469452286 | P101: 2.087619988 | Q101: Compact | R101: 13.41666667 | S101: 5.790458891
B102: 69.91979111 | C102: 77.68865679 | D102: 20.26660612 | E102: HSS4X3X1/4 | F102: 10.47940464 | G102: 4 | H102: 3 | I102: 0.25 | J102: 3.81 | K102: 9.88 | L102: 3.07 | M102: 14.605 | N102: 11.76833333 | O102: 0.4132649953 | P102: 1.279123955 | Q102: Compact | R102: 14.605 | S102: 5.319319191
B103: 69.91979111 | C103: 77.68865679 | D103: 20.26660612 | E103: HSS5X2X1/4 | F103: 10.47940464 | G103: 5 | H103: 2 | I103: 0.25 | J103: 4.27 | K103: 5.58 | L103: 3.23 | M103: 16.36833333 | N103: 12.38166667 | O103: -8.555699654 | P103: -5.085762226 | Q103: Compact | R103: 16.36833333 | S103: 4.74627778
B104: 69.91979111 | C104: 77.68865679 | D104: 20.26660612 | E104: HSS3X3X5/16 | F104: 10.52513066 | G104: 3 | H104: 3 | I104: 0.3125 | J104: 2.9 | K104: 7.31 | L104: 2.3 | M104: 11.11666667 | N104: 8.816666667 | O104: -4.598279509 | P104: -1.986992434 | Q104: Compact | R104: 11.11666667 | S104: 6.988484869
B105: 69.91979111 | C105: 77.68865679 | D105: 20.26660612 | E105: HSS4X2X5/16 | F105: 10.53762566 | G105: 4 | H105: 2 | I105: 0.3125 | J105: 3.43 | K105: 3.87 | L105: 2.56 | M105: 13.14833333 | N105: 9.813333333 | O105: -22.07681794 | P105: -15.77353201 | Q105: Compact | R105: 13.14833333 | S105: 5.908631522
B106: 69.91979111 | C106: 77.68865679 | D106: 20.26660612 | E106: HSS4-1/2X4-1/2X3/16 | F106: 10.67908919 | G106: 4.5 | H106: 4.5 | I106: 0.1875 | J106: 4.71 | K106: 22.9 | L106: 4.01 | M106: 18.055 | N106: 15.37166667 | O106: 4.5 | P106: 3.489257812 | Q106: Compact | R106: 18.055 | S106: 4.302888773
B107: 69.91979111 | C107: 77.68865679 | D107: 20.26660612 | E107: HSS10X3X1/8 | F107: 10.70112297 | G107: 10 | H107: 3 | I107: 0.125 | J107: 8.8 | K107: 22.9 | L107: 6.83 | M107: 33.73333333 | N107: 26.18166667 | O107: 3 | P107: 6.4296875 | Q107: Compact | R107: 33.73333333 | S107: 2.303023423
B108: 69.91979111 | C108: 77.68865679 | D108: 20.26660612 | E108: HSS5X4X3/16 | F108: 10.70497752 | G108: 5 | H108: 4 | I108: 0.1875 | J108: 5.05 | K108: 20 | L108: 4.22 | M108: 19.35833333 | N108: 16.17666667 | O108: 4 | P108: 3.743164063 | Q108: Compact | R108: 19.35833333 | S108: 4.013189331
B109: 69.91979111 | C109: 77.68865679 | D109: 20.26660612 | E109: HSS6X3X3/16 | F109: 10.70497752 | G109: 6 | H109: 3 | I109: 0.1875 | J109: 5.59 | K109: 14.2 | L109: 4.47 | M109: 21.42833333 | N109: 17.135 | O109: 2.965561352 | P109: 4.132204732 | Q109: Compact | R109: 21.42833333 | S109: 3.625510934
B110: 69.91979111 | C110: 77.68865679 | D110: 20.26660612 | E110: HSS7X2X3/16 | F110: 10.70497752 | G110: 7 | H110: 2 | I110: 0.1875 | J110: 5.95 | K110: 8.49 | L110: 4.49 | M110: 22.80833333 | N110: 17.21166667 | O110: -1.119196697 | P110: 1.790098125 | Q110: Compact | R110: 22.80833333 | S110: 3.406152289
B111: 69.91979111 | C111: 77.68865679 | D111: 20.26660612 | E111: HSS10X3-1/2X1/8 | F111: 11.12647019 | G111: 10 | H111: 3.5 | I111: 0.125 | J111: 9.37 | K111: 27.2 | L111: 7.4 | M111: 35.91833333 | N111: 28.36666667 | O111: 3.5 | P111: 6.841145833 | Q111: Compact | R111: 35.91833333 | S111: 2.162924879
B112: 69.91979111 | C112: 77.68865679 | D112: 20.26660612 | E112: HSS5X2-1/2X1/4 | F112: 11.33009908 | G112: 5 | H112: 2.5 | I112: 0.25 | J112: 4.83 | K112: 7.73 | L112: 3.76 | M112: 18.515 | N112: 14.41333333 | O112: -2.823916295 | P112: -0.5481003999 | Q112: Compact | R112: 18.515 | S112: 4.195984704
B113: 69.91979111 | C113: 77.68865679 | D113: 20.26660612 | E113: HSS10X4X1/8 | F113: 11.55181742 | G113: 10 | H113: 4 | I113: 0.125 | J113: 10 | K113: 31.5 | L113: 7.97 | M113: 38.33333333 | N113: 30.55166667 | O113: 4 | P113: 7.252604167 | Q113: Non C. | R113: 34.6077107 | S113: 2.244836634
B114: 69.91979111 | C114: 77.68865679 | D114: 20.26660612 | E114: HSS7X7X1/8 | F114: =VLOOKUP($E114,StlSects,4) -> 11.55181742 | G114: =VLOOKUP($E114,StlSects,7) -> 7 | H114: =VLOOKUP($E114,StlSects,10) -> 7 | I114: =VLOOKUP($E114,StlSects,15) -> 0.125 | J114: =VLOOKUP($E114,StlSects,31) -> 8.13 | K114: =VLOOKUP($E114,StlSects,26) -> 57.3 | L114: =VLOOKUP($E114,StlSects,32) -> 7.09 | M114: =+J114*B$7/12 -> 31.165 | N114: =L114*B$7/12 -> 27.17833333 | O114: =MIN(1.92*I114*SQRT(29000/B$7)*(1-0.38*SQRT(29000/B$7)/K114),H114) -> 5.022615968 | P114: =+O114*(G114^2)/6-(O114-2*I114)*((G114-2*I114)^2)/6 -> 4.775977898 | Q114: =IF(K114<=E$13,"Compact",IF(K114<=H$13,"Non C.","Slend.")) -> Slend. | R114: 18.30791528 | S114: =+C114/R114 -> 4.243446379
B115: =+B114 -> 69.91979111 | C115: =+C114 -> 77.68865679 | D115: =+D114 -> 20.26660612 | E115: HSS4X2-1/2X5/16 | F115: 11.6026951 | G115: 4 | H115: 2.5 | I115: 0.3125 | J115: 3.97 | K115: 5.59 | L115: 3.07 | M115: 15.21833333 | N115: 11.76833333 | O115: -10.64854281 | P115: -6.993997734 | Q115: Compact | R115: 15.21833333 | S115: 5.104938569
B116: 69.91979111 | C116: 77.68865679 | D116: 20.26660612 | E116: HSS5X5X3/16 | F116: 11.95513085 | G116: 5 | H116: 5 | I116: 0.1875 | J116: 5.89 | K116: 25.7 | L116: 5.03 | M116: 22.57833333 | N116: 19.28166667 | O116: 5 | P116: 4.344726562 | Q116: Compact | R116: 22.57833333 | S116: 3.440849935
B117: 69.91979111 | C117: 77.68865679 | D117: 20.26660612 | E117: HSS6X4X3/16 | F117: 11.98442197 | G117: 6 | H117: 4 | I117: 0.1875 | J117: 6.6 | K117: 20 | L117: 5.46 | M117: 25.3 | N117: 20.93 | O117: 4 | P117: 4.883789062 | Q117: Compact | R117: 25.3 | S117: 3.070697897
B118: 69.91979111 | C118: 77.68865679 | D118: 20.26660612 | E118: HSS7X3X3/16 | F118: 11.98442197 | G118: 7 | H118: 3 | I118: 0.1875 | J118: 7.14 | K118: 14.2 | L118: 5.65 | M118: 27.37 | N118: 21.65833333 | O118: 2.965561352 | P118: 5.268524901 | Q118: Compact | R118: 27.37 | S118: 2.838460241
B119: 69.91979111 | C119: 77.68865679 | D119: 20.26660612 | E119: HSS8X2X3/16 | F119: 11.98442197 | G119: 8 | H119: 2 | I119: 0.1875 | J119: 7.51 | K119: 8.49 | L119: 5.61 | M119: 28.78833333 | N119: 21.505 | O119: -1.119196697 | P119: 2.540823538 | Q119: Compact | R119: 28.78833333 | S119: 2.698615995
B120: 69.91979111 | C120: 77.68865679 | D120: 20.26660612 | E120: HSS3X3X3/8 | F120: 12.09329317 | G120: 3 | H120: 3 | I120: 0.375 | J120: 3.25 | K120: 5.6 | L120: 2.52 | M120: 12.45833333 | N120: 9.66 | O120: -12.72315076 | P120: -7.716755188 | Q120: Compact | R120: 12.45833333 | S120: 6.235878806
B121: 69.91979111 | C121: 77.68865679 | D121: 20.26660612 | E121: HSS4X2X3/8 | F121: 12.09329317 | G121: 4 | H121: 2 | I121: 0.375 | J121: 3.84 | K121: 2.73 | L121: 2.8 | M121: 14.72 | N121: 10.73333333 | O121: -45.10394388 | P121: -39.55513664 | Q121: Compact | R121: 14.72 | S121: 5.27776201
B122: 69.91979111 | C122: 77.68865679 | D122: 20.26660612 | E122: HSS4X4X1/4 | F122: 12.18079353 | G122: 4 | H122: 4 | I122: 0.25 | J122: 4.69 | K122: 14.2 | L122: 3.9 | M122: 17.97833333 | N122: 14.95 | O122: 3.954081803 | P122: 3.49213446 | Q122: Compact | R122: 17.97833333 | S122: 4.321237979
B123: 69.91979111 | C123: 77.68865679 | D123: 20.26660612 | E123: HSS5X3X1/4 | F123: 12.18079353 | G123: 5 | H123: 3 | I123: 0.25 | J123: 5.38 | K123: 9.88 | L123: 4.29 | M123: 20.62333333 | N123: 16.445 | O123: 0.4132649953 | P123: 2.014668121 | Q123: Compact | R123: 20.62333333 | S123: 3.76702716
B124: 69.91979111 | C124: 77.68865679 | D124: 20.26660612 | E124: HSS6X2X1/4 | F124: 12.18079353 | G124: 6 | H124: 2 | I124: 0.25 | J124: 5.84 | K124: 5.58 | L124: 4.37 | M124: 22.38666667 | N124: 16.75166667 | O124: -8.555699654 | P124: -5.678378835 | Q124: Compact | R124: 22.38666667 | S124: 3.470309267
B125: 69.91979111 | C125: 77.68865679 | D125: 20.26660612 | E125: HSS3-1/2X3-1/2X5/16 | F125: 12.65186677 | G125: 3.5 | H125: 3.5 | I125: 0.3125 | J125: 4.14 | K125: 9.03 | L125: 3.34 | M125: 15.87 | N125: 12.80333333 | O125: -0.8528784165 | P125: 0.2946380307 | Q125: Compact | R125: 15.87 | S125: 4.895315488
B126: 69.91979111 | C126: 77.68865679 | D126: 20.26660612 | E126: HSS4X3X5/16 | F126: 12.66776455 | G126: 4 | H126: 3 | I126: 0.3125 | J126: 4.51 | K126: 7.31 | L126: 3.57 | M126: 17.28833333 | N126: 13.685 | O126: -4.598279509 | P126: -2.346008998 | Q126: Compact | R126: 17.28833333 | S126: 4.493704239
B127: 69.91979111 | C127: 77.68865679 | D127: 20.26660612 | E127: HSS5X2X5/16 | F127: 12.66776455 | G127: 5 | H127: 2 | I127: 0.3125 | J127: 5.05 | K127: 3.87 | L127: 3.74 | M127: 19.35833333 | N127: 14.33666667 | O127: -22.07681794 | P127: -19.56557742 | Q127: Compact | R127: 19.35833333 | S127: 4.013189331
B128: 69.91979111 | C128: 77.68865679 | D128: 20.26660612 | E128: HSS5-1/2X5-1/2X3/16 | F128: 13.23117252 | G128: 5.5 | H128: 5.5 | I128: 0.1875 | J128: 7.19 | K128: 28.6 | L128: 6.17 | M128: 27.56166667 | N128: 23.65166667 | O128: 5.5 | P128: 5.293945312 | Q128: Non C. | R128: 27.30189368 | S128: 2.845540961
B129: 69.91979111 | C129: 77.68865679 | D129: 20.26660612 | E129: HSS8X8X1/8 | F129: 13.25320631 | G129: 8 | H129: 8 | I129: 0.125 | J129: 10.7 | K129: 66 | L129: 9.34 | M129: 41.01666667 | N129: 35.80333333 | O129: 5.154884246 | P129: 5.885496953 | Q129: Slend. | R129: 22.56107165 | S129: 3.443482561
B130: 69.91979111 | C130: 77.68865679 | D130: 20.26660612 | E130: HSS6X5X3/16 | F130: 13.26386641 | G130: 6 | H130: 5 | I130: 0.1875 | J130: 7.62 | K130: 25.7 | L130: 6.44 | M130: 29.21 | N130: 24.68666667 | O130: 5 | P130: 5.610351562 | Q130: Compact | R130: 29.21 | S130: 2.659659596
B131: 69.91979111 | C131: 77.68865679 | D131: 20.26660612 | E131: HSS7X4X3/16 | F131: 13.26386641 | G131: 7 | H131: 4 | I131: 0.1875 | J131: 8.33 | K131: 20 | L131: 6.81 | M131: 31.93166667 | N131: 26.105 | O131: 4 | P131: 6.149414062 | Q131: Compact | R131: 31.93166667 | S131: 2.432965921
B132: 69.91979111 | C132: 77.68865679 | D132: 20.26660612 | E132: HSS8X3X3/16 | F132: 13.26386641 | G132: 8 | H132: 3 | I132: 0.1875 | J132: 8.87 | K132: 14.2 | L132: 6.94 | M132: 34.00166667 | N132: 26.60333333 | O132: 2.965561352 | P132: 6.52984507 | Q132: Compact | R132: 34.00166667 | S132: 2.284848491
B133: 69.91979111 | C133: 77.68865679 | D133: 20.26660612 | E133: HSS4X2-1/2X3/8 | F133: 13.36933484 | G133: 4 | H133: 2.5 | I133: 0.375 | J133: 4.48 | K133: 4.16 | L133: 3.38 | M133: 17.17333333 | N133: 12.95666667 | O133: -23.38511923 | P133: -19.8724518 | Q133: Compact | R133: 17.17333333 | S133: 4.523796009
B134: 69.91979111 | C134: 77.68865679 | D134: 20.26660612 | E134: HSS4-1/2X4-1/2X1/4 | F134: 13.88218241 | G134: 4.5 | H134: 4.5 | I134: 0.25 | J134: 6.06 | K134: 16.3 | L134: 5.08 | M134: 23.23 | N134: 19.47333333 | O134: 4.5 | P134: 4.520833333 | Q134: Compact | R134: 23.23 | S134: 3.344324442
B135: 69.91979111 | C135: 77.68865679 | D135: 20.26660612 | E135: HSS5X4X1/4 | F135: 13.88218241 | G135: 5 | H135: 4 | I135: 0.25 | J135: 6.49 | K135: 14.2 | L135: 5.35 | M135: 24.87833333 | N135: 20.50833333 | O135: 3.954081803 | P135: 4.81781476 | Q135: Compact | R135: 24.87833333 | S135: 3.122743624
B136: 69.91979111 | C136: 77.68865679 | D136: 20.26660612 | E136: HSS6X3X1/4 | F136: 13.88218241 | G136: 6 | H136: 3 | I136: 0.25 | J136: 7.19 | K136: 9.88 | L136: 5.66 | M136: 27.56166667 | N136: 21.69666667 | O136: 0.4132649953 | P136: 2.916878954 | Q136: Compact | R136: 27.56166667 | S136: 2.818721296
B137: 69.91979111 | C137: 77.68865679 | D137: 20.26660612 | E137: HSS7X2X1/2 | F137: 13.88218241 | G137: 7 | H137: 2 | I137: 0.5 | J137: 7.64 | K137: 5.58 | L137: 5.67 | M137: 29.28666667 | N137: 21.735 | O137: -17.11139931 | P137: -31.0746985 | Q137: Compact | R137: 29.28666667 | S137: 2.652697136
B138: 69.91979111 | C138: 77.68865679 | D138: 20.26660612 | E138: HSS6X6X3/16 | F138: 14.50721419 | G138: 6 | H138: 6 | I138: 0.1875 | J138: 8.63 | K138: 31.5 | L138: 7.42 | M138: 33.08166667 | N138: 28.44333333 | O138: 6 | P138: 6.336914062 | Q138: Non C. | R138: 30.86097534 | S138: 2.517375291
B139: 69.91979111 | C139: 77.68865679 | D139: 20.26660612 | E139: HSS10X2X3/16 | F139: 14.54331085 | G139: 10 | H139: 2 | I139: 0.1875 | J139: 11.1 | K139: 8.49 | L139: 8.19 | M139: 42.55 | N139: 31.395 | O139: -1.119196697 | P139: 4.417274364 | Q139: Compact | R139: 42.55 | S139: 1.825820371
B140: 69.91979111 | C140: 77.68865679 | D140: 20.26660612 | E140: HSS7X5X3/16 | F140: 14.54331085 | G140: 7 | H140: 5 | I140: 0.1875 | J140: 9.52 | K140: 25.7 | L140: 7.96 | M140: 36.49333333 | N140: 30.51333333 | O140: 5 | P140: 7.000976562 | Q140: Compact | R140: 36.49333333 | S140: 2.128845181
B141: 69.91979111 | C141: 77.68865679 | D141: 20.26660612 | E141: HSS8X4X3/16 | F141: 14.54331085 | G141: 8 | H141: 4 | I141: 0.1875 | J141: 10.2 | K141: 20 | L141: 8.27 | M141: 39.1 | N141: 31.70166667 | O141: 4 | P141: 7.540039062 | Q141: Compact | R141: 39.1 | S141: 1.986922169
B142: 69.91979111 | C142: 77.68865679 | D142: 20.26660612 | E142: HSS9X3X3/16 | F142: 14.54331085 | G142: 9 | H142: 3 | I142: 0.1875 | J142: 10.8 | K142: 14.2 | L142: 8.35 | M142: 41.4 | N142: 32.00833333 | O142: 2.965561352 | P142: 7.916165239 | Q142: Compact | R142: 41.4 | S142: 1.876537604
B143: 69.91979111 | C143: 77.68865679 | D143: 20.26660612 | E143: HSS3-1/2X3-1/2X3/8 | F143: 14.6453765 | G143: 3.5 | H143: 3.5 | I143: 0.375 | J143: 4.69 | K143: 7.03 | L143: 3.71 | M143: 17.97833333 | N143: 14.22166667 | O143: -6.457748715 | P143: -4.099803684 | Q143: Compact | R143: 17.97833333 | S143: 4.321237979
B144: 69.91979111 | C144: 77.68865679 | D144: 20.26660612 | E144: HSS4X3X3/8 | F144: 14.6453765 | G144: 4 | H144: 3 | I144: 0.375 | J144: 5.12 | K144: 5.6 | L144: 3.97 | M144: 19.62666667 | N144: 15.21833333 | O144: -12.72315076 | P144: -10.21004288 | Q144: Compact | R144: 19.62666667 | S144: 3.958321508
B145: 69.91979111 | C145: 77.68865679 | D145: 20.26660612 | E145: HSS5X2X3/8 | F145: 14.6453765 | G145: 5 | H145: 2 | I145: 0.375 | J145: 5.71 | K145: 2.73 | L145: 4.14 | M145: 21.88833333 | N145: 15.87 | O145: -45.10394388 | P145: -49.89362261 | Q145: Compact | R145: 21.88833333 | S145: 3.549318059
B146: 69.91979111 | C146: 77.68865679 | D146: 20.26660612 | E146: HSS4X4X5/16 | F146: =VLOOKUP($E146,StlSects,4) -> 14.77860288 | G146: =VLOOKUP($E146,StlSects,7) -> 4 | H146: =VLOOKUP($E146,StlSects,10) -> 4 | I146: =VLOOKUP($E146,StlSects,15) -> 0.3125 | J146: =VLOOKUP($E146,StlSects,31) -> 5.59 | K146: =VLOOKUP($E146,StlSects,26) -> 10.7 | L146: =VLOOKUP($E146,StlSects,32) -> 4.57 | M146: =+J146*B$7/12 -> 21.42833333 | N146: =L146*B$7/12 -> 17.51833333 | O146: =MIN(1.92*I146*SQRT(29000/B$7)*(1-0.38*SQRT(29000/B$7)/K146),H146) -> 1.631512635 | P146: =+O146*(G146^2)/6-(O146-2*I146)*((G146-2*I146)^2)/6 -> 2.43989903 | Q146: =IF(K146<=E$13,"Compact",IF(K146<=H$13,"Non C.","Slend.")) -> Compact | R146: =IF(K146<=E$13,M146,IF(K146<=H$13,MIN(M146-(M146-N146)*(3.57*K146*SQRT(B$7/29000)-4),M146),P146*B$7/12)) -> 21.42833333 | S146: =+C146/R146 -> 3.625510934
B147: =+B146 -> 69.91979111 | C147: =+C146 -> 77.68865679 | D147: =+D146 -> 20.26660612 | E147: HSS5X3X5/16 | F147: 14.79790344 | G147: 5 | H147: 3 | I147: 0.3125 | J147: 6.42 | K147: 7.31 | L147: 5.03 | M147: 24.61 | N147: 19.28166667 | O147: -4.598279509 | P147: -2.496692229 | Q147: Compact | R147: 24.61 | S147: 3.15679223
B148: 69.91979111 | C148: 77.68865679 | D148: 20.26660612 | E148: HSS6X2X5/16 | F148: 14.79790344 | G148: 6 | H148: 2 | I148: 0.3125 | J148: 6.95 | K148: 3.87 | L148: 5.11 | M148: 26.64166667 | N148: 19.58833333 | O148: -22.07681794 | P148: -23.14928949 | Q148: Compact | R148: 26.64166667 | S148: 2.916058434
B149: 69.91979111 | C149: 77.68865679 | D149: 20.26660612 | E149: HSS9X9X1/8 | F149: 14.95459519 | G149: 9 | H149: 9 | I149: 0.125 | J149: 13.6 | K149: 74.6 | L149: 11.9 | M149: 52.13333333 | N149: 45.61666667 | O149: 5.255311293 | P149: 7.07684481 | Q149: Slend. | R149: 27.12790511 | S149: 2.863791232
B150: 69.91979111 | C150: 77.68865679 | D150: 20.26660612 | E150: HSS5X5X1/4 | F150: 15.5835713 | G150: 5 | H150: 5 | I150: 0.25 | J150: 7.61 | K150: 18.5 | L150: 6.41 | M150: 29.17166667 | N150: 24.57166667 | O150: 5 | P150: 5.645833333 | Q150: Compact | R150: 29.17166667 | S150: 2.663154549
B151: 69.91979111 | C151: 77.68865679 | D151: 20.26660612 | E151: HSS6X4X1/4 | F151: 15.5835713 | G151: 6 | H151: 4 | I151: 0.25 | J151: 8.53 | K151: 14.2 | L151: 6.96 | M151: 32.69833333 | N151: 26.68 | O151: 3.954081803 | P151: 6.310161727 | Q151: Compact | R151: 32.69833333 | S151: 2.375920999
B152: 69.91979111 | C152: 77.68865679 | D152: 20.26660612 | E152: HSS7X3X1/4 | F152: 15.5835713 | G152: 7 | H152: 3 | I152: 0.25 | J152: 9.22 | K152: 9.88 | L152: 7.19 | M152: 35.34333333 | N152: 27.56166667 | O152: 0.4132649953 | P152: 3.985756453 | Q152: Compact | R152: 35.34333333 | S152: 2.198113462
B153: 69.91979111 | C153: 77.68865679 | D153: 20.26660612 | E153: HSS8X2X1/4 | F153: 15.5835713 | G153: 8 | H153: 2 | I153: 0.25 | J153: 9.68 | K153: 5.58 | L153: 7.12 | M153: 37.10666667 | N153: 27.29333333 | O153: -8.555699654 | P153: -6.363612053 | Q153: Compact | R153: 37.10666667 | S153: 2.093657657
B154: 69.91979111 | C154: 77.68865679 | D154: 20.26660612 | E154: HSS10X3X3/16 | F154: 15.8227553 | G154: 10 | H154: 3 | I154: 0.1875 | J154: 12.8 | K154: 14.2 | L154: 9.87 | M154: 49.06666667 | N154: 37.835 | O154: 2.965561352 | P154: 9.427485408 | Q154: Compact | R154: 49.06666667 | S154: 1.583328603
B155: 69.91979111 | C155: 77.68865679 | D155: 20.26660612 | E155: HSS10X3-1/2X3/16 | F155: 16.46247752 | G155: 10 | H155: 3.5 | I155: 0.1875 | J155: 13.7 | K155: 17.1 | L155: 10.7 | M155: 52.51666667 | N155: 41.01666667 | O155: 3.5 | P155: 10.08300781 | Q155: Compact | R155: 52.51666667 | S155: 1.479314315
B156: 69.91979111 | C156: 77.68865679 | D156: 20.26660612 | E156: HSS4-1/2X4-1/2X5/16 | F156: 16.90533899 | G156: 4.5 | H156: 4.5 | I156: 0.3125 | J156: 7.27 | K156: 12.5 | L156: 6 | M156: 27.86833333 | N156: 23 | O156: 3.565945793 | P156: 4.675043856 | Q156: Compact | R156: 27.86833333 | S156: 2.78770373
B157: 69.91979111 | C157: 77.68865679 | D157: 20.26660612 | E157: HSS5X4X5/16 | F157: 16.92804233 | G157: 5 | H157: 4 | I157: 0.3125 | J157: 7.79 | K157: 10.7 | L157: 6.32 | M157: 29.86166667 | N157: 24.22666667 | O157: 1.631512635 | P157: 3.587089162 | Q157: Compact | R157: 29.86166667 | S157: 2.601618244
B158: 69.91979111 | C158: 77.68865679 | D158: 20.26660612 | E158: HSS6X3X5/16 | F158: 16.92804233 | G158: 6 | H158: 3 | I158: 0.3125 | J158: 8.61 | K158: 7.31 | L158: 6.69 | M158: 33.005 | N158: 25.645 | O158: -4.598279509 | P158: -2.439042127 | Q158: Compact | R158: 33.005 | S158: 2.353845078
B159: 69.91979111 | C159: 77.68865679 | D159: 20.26660612 | E159: HSS7X7X3/16 | F159: 17.05929752 | G159: 7 | H159: 7 | I159: 0.1875 | J159: 11.9 | K159: 37.2 | L159: 10.3 | M159: =+J159*B$7/12 -> 45.61666667 | N159: =L159*B$7/12 -> 39.48333333 | O159: =MIN(1.92*I159*SQRT(29000/B$7)*(1-0.38*SQRT(29000/B$7)/K159),H159) -> 6.720672665 | P159: =+O159*(G159^2)/6-(O159-2*I159)*((G159-2*I159)^2)/6 -> 8.466236879 | Q159: =IF(K159<=E$13,"Compact",IF(K159<=H$13,"Non C.","Slend.")) -> Slend. | R159: 32.45390804 | S159: =+C159/R159 -> 2.393815152
B160: 69.91979111 | C160: 77.68865679 | D160: 20.26660612 | E160: HSS10X4X3/16 | F160: 17.10219974 | G160: 10 | H160: 4 | I160: 0.1875 | J160: 14.6 | K160: 20 | L160: 11.6 | M160: 55.96666667 | N160: 44.46666667 | O160: 4 | P160: 10.69628906 | Q160: Compact | R160: 55.96666667 | S160: 1.388123707
B161: 69.91979111 | C161: 77.68865679 | D161: 20.26660612 | E161: HSS12X2X3/16 | F161: 17.10219974 | G161: 12 | H161: 2 | I161: 0.1875 | J161: 15.5 | K161: 8.49 | L161: 11.2 | M161: 59.41666667 | N161: 42.93333333 | O161: -1.119196697 | P161: 6.793725189 | Q161: Compact | R161: 59.41666667 | S161: 1.307522975
B162: 69.91979111 | C162: 77.68865679 | D162: 20.26660612 | E162: HSS8X6X3/16 | F162: 17.10219974 | G162: 8 | H162: 6 | I162: 0.1875 | J162: 13 | K162: 31.5 | L162: 10.9 | M162: 49.83333333 | N162: 41.78333333 | O162: 6 | P162: 9.493164062 | Q162: Non C. | R162: 45.97924095 | S162: 1.689646353
B163: 69.91979111 | C163: 77.68865679 | D163: 20.26660612 | E163: HSS9X5X3/16 | F163: 17.10219974 | G163: 9 | H163: 5 | I163: 0.1875 | J163: 13.8 | K163: 25.7 | L163: 11.4 | M163: 52.9 | N163: 43.7 | O163: 5 | P163: 10.15722656 | Q163: Compact | R163: 52.9 | S163: 1.468594646
B164: 69.91979111 | C164: 77.68865679 | D164: 20.26660612 | E164: HSS4X4X3/8 | F164: 17.19745984 | G164: 4 | H164: 4 | I164: 0.375 | J164: 6.39 | K164: 8.46 | L164: 5.13 | M164: 24.495 | N164: 19.665 | O164: -2.310437667 | P164: -0.7735216355 | Q164: Compact | R164: 24.495 | S164: 3.171612851
B165: 69.91979111 | C165: 77.68865679 | D165: 20.26660612 | E165: HSS5X3X3/8 | F165: 17.19745984 | G165: 5 | H165: 3 | I165: 0.375 | J165: 7.34 | K165: 5.6 | L165: 5.65 | M165: 28.13666667 | N165: 21.65833333 | O165: -12.72315076 | P165: -12.45333057 | Q165: Compact | R165: 28.13666667 | S165: 2.761118
B166: 69.91979111 | C166: 77.68865679 | D166: 20.26660612 | E166: HSS6X2X3/8 | F166: 17.19745984 | G166: 6 | H166: 2 | I166: 0.375 | J166: 7.93 | K166: 2.73 | L166: 5.71 | M166: 30.39833333 | N166: 21.88833333 | O166: -45.10394388 | P166: -59.98210859 | Q166: Compact | R166: 30.39833333 | S166: 2.555688035
B167: 69.91979111 | C167: 77.68865679 | D167: 20.26660612 | E167: HSS5-1/2X5-1/2X1/4 | F167: 17.28496019 | G167: 5.5 | H167: 5.5 | I167: 0.25 | J167: 9.32 | K167: 20.6 | L167: 7.9 | M167: 35.72666667 | N167: 30.28333333 | O167: 5.5 | P167: 6.895833333 | Q167: Compact | R167: 35.72666667 | S167: 2.174528554
B168: 69.91979111 | C168: 77.68865679 | D168: 20.26660612 | E168: HSS6X5X1/4 | F168: 17.28496019 | G168: 6 | H168: 5 | I168: 0.25 | J168: 9.87 | K168: 18.5 | L168: 8.25 | M168: 37.835 | N168: 31.625 | O168: 5 | P168: 7.3125 | Q168: Compact | R168: 37.835 | S168: 2.053354217
B169: 69.91979111 | C169: 77.68865679 | D169: 20.26660612 | E169: HSS7X4X1/4 | F169: 17.28496019 | G169: 7 | H169: 4 | I169: 0.25 | J169: 10.8 | K169: 14.2 | L169: 8.72 | M169: 41.4 | N169: 33.42666667 | O169: 3.954081803 | P169: 7.969175361 | Q169: Compact | R169: 41.4 | S169: 1.876537604
B170: 69.91979111 | C170: 77.68865679 | D170: 20.26660612 | E170: HSS8X3X1/4 | F170: 17.28496019 | G170: 8 | H170: 3 | I170: 0.25 | J170: 11.5 | K170: 9.88 | L170: 8.88 | M170: 44.08333333 | N170: 34.04 | O170: 0.4132649953 | P170: 5.221300619 | Q170: Compact | R170: 44.08333333 | S170: 1.762313576
B171: 69.91979111 | C171: 77.68865679 | D171: 20.26660612 | E171: HSS10X5X3/16 | F171: 18.38164419 | G171: 10 | H171: 5 | I171: 0.1875 | J171: 16.3 | K171: 25.7 | L171: 13.2 | M171: 62.48333333 | N171: 50.6 | O171: 5 | P171: 11.92285156 | Q171: Compact | R171: 62.48333333 | S171: 1.243350069
B172: 69.91979111 | C172: 77.68865679 | D172: 20.26660612 | E172: HSS12X3X3/16 | F172: 18.38164419 | G172: 12 | H172: 3 | I172: 0.1875 | J172: 17.5 | K172: 14.2 | L172: 13.3 | M172: 67.08333333 | N172: 50.98333333 | O172: 2.965561352 | P172: 12.82512575 | Q172: Compact | R172: 67.08333333 | S172: 1.158091778
B173: 69.91979111 | C173: 77.68865679 | D173: 20.26660612 | E173: HSS10X2X1/4 | F173: 18.98634908 | G173: 10 | H173: 2 | I173: 0.25 | J173: 14.4 | K173: 5.58 | L173: 10.5 | M173: 55.2 | N173: 40.25 | O173: -8.555699654 | P173: -6.382178604 | Q173: Compact | R173: 55.2 | S173: 1.407403203
B174: 69.91979111 | C174: 77.68865679 | D174: 20.26660612 | E174: HSS6X6X1/4 | F174: 18.98634908 | G174: 6 | H174: 6 | I174: 0.25 | J174: 11.2 | K174: 22.8 | L174: 9.54 | M174: 42.93333333 | N174: 36.57 | O174: 6 | P174: 8.270833333 | Q174: Compact | R174: 42.93333333 | S174: 1.809518404
B175: 69.91979111 | C175: 77.68865679 | D175: 20.26660612 | E175: HSS7X5X1/4 | F175: 18.98634908 | G175: 7 | H175: 5 | I175: 0.25 | J175: 12.4 | K175: 18.5 | L175: 10.2 | M175: 47.53333333 | N175: 39.1 | O175: 5 | P175: 9.145833333 | Q175: Compact | R175: 47.53333333 | S175: 1.634403719
B176: 69.91979111 | C176: 77.68865679 | D176: 20.26660612 | E176: HSS8X4X1/4 | F176: 18.98634908 | G176: 8 | H176: 4 | I176: 0.25 | J176: 13.3 | K176: 14.2 | L176: 10.6 | M176: 50.98333333 | N176: 40.63333333 | O176: 3.954081803 | P176: 9.794855662 | Q176: Compact | R176: 50.98333333 | S176: 1.523804971
B177: 69.91979111 | C177: 77.68865679 | D177: 20.26660612 | E177: HSS9X3X1/4 | F177: 18.98634908 | G177: 9 | H177: 3 | I177: 0.25 | J177: 14 | K177: 9.88 | L177: 10.7 | M177: 53.66666667 | N177: 41.01666667 | O177: 0.4132649953 | P177: 6.623511452 | Q177: Compact | R177: 53.66666667 | S177: 1.447614723
B178: 69.91979111 | C178: 77.68865679 | D178: 20.26660612 | E178: HSS5X5X5/16 | F178: 19.0320751 | G178: 5 | H178: 5 | I178: 0.3125 | J178: 9.16 | K178: 14.2 | L178: 7.62 | M178: 35.11333333 | N178: 29.21 | O178: 4.942602253 | P178: 6.820575117 | Q178: Compact | R178: 35.11333333 | S178: 2.212511585
B179: 69.91979111 | C179: 77.68865679 | D179: 20.26660612 | E179: HSS6X4X5/16 | F179: 19.05818122 | G179: 6 | H179: 4 | I179: 0.3125 | J179: 10.3 | K179: 10.7 | L179: 8.27 | M179: 39.48333333 | N179: 31.70166667 | O179: 1.631512635 | P179: 4.942612628 | Q179: Compact | R179: 39.48333333 | S179: 1.967631662
B180: 69.91979111 | C180: 77.68865679 | D180: 20.26660612 | E180: HSS7X3X5/16 | F180: 19.05818122 | G180: 7 | H180: 3 | I180: 0.3125 | J180: 11.1 | K180: 7.31 | L180: 8.54 | M180: 42.55 | N180: 32.73666667 | O180: -4.598279509 | P180: -2.173058691 | Q180: Compact | R180: 42.55 | S180: 1.825820371
B181: 69.91979111 | C181: 77.68865679 | D181: 20.26660612 | E181: HSS8X2X5/16 | F181: 19.05818122 | G181: 8 | H181: 2 | I181: 0.3125 | J181: 11.6 | K181: 3.87 | L181: 8.43 | M181: 44.46666667 | N181: 32.315 | O181: -22.07681794 | P181: -29.69171363 | Q181: Compact | R181: 44.46666667 | S181: 1.747121217
B182: 69.91979111 | C182: 77.68865679 | D182: 20.26660612 | E182: HSS8X8X3/16 | F182: 19.61138085 | G182: 8 | H182: 8 | I182: 0.1875 | J182: 15.7 | K182: 43 | L182: 13.6 | M182: 60.18333333 | N182: 52.13333333 | O182: 7.033383451 | P182: 10.50232759 | Q182: Slend. | R182: 40.25892243 | S182: 1.929725192
B183: 69.91979111 | C183: 77.68865679 | D183: 20.26660612 | E183: HSS10X6X3/16 | F183: 19.66108863 | G183: 10 | H183: 6 | I183: 0.1875 | J183: 18 | K183: 31.5 | L183: 14.9 | M183: 69 | N183: 57.11666667 | O183: 6 | P183: 13.14941406 | Q183: Non C. | R183: 63.31062554 | S183: 1.227102973
B184: 69.91979111 | C184: 77.68865679 | D184: 20.26660612 | E184: HSS12X4X3/16 | F184: 19.66108863 | G184: 12 | H184: 4 | I184: 0.1875 | J184: 19.6 | K184: 20 | L184: 15.3 | M184: 75.13333333 | N184: 58.65 | O184: 4 | P184: 14.35253906 | Q184: Compact | R184: 75.13333333 | S184: 1.034010516
B185: 69.91979111 | C185: 77.68865679 | D185: 20.26660612 | E185: HSS9X7X3/16 | F185: 19.66108863 | G185: 9 | H185: 7 | I185: 0.1875 | J185: 16.9 | K185: 37.2 | L185: 14.4 | M185: 64.78333333 | N185: 55.2 | O185: 6.720672665 | P185: 12.05265504 | Q185: Slend. | R185: 46.20184434 | S185: 1.681505531
B186: 69.91979111 | C186: 77.68865679 | D186: 20.26660612 | E186: HSS4-1/2X4-1/2X3/8 | F186: 19.74954317 | G186: 4.5 | H186: 4.5 | I186: 0.375 | J186: 8.36 | K186: 9.89 | L186: 6.79 | M186: 32.04666667 | N186: 26.02833333 | O186: 0.6375498631 | P186: 2.415285796 | Q186: Compact | R186: 32.04666667 | S186: 2.424235182
B187: 69.91979111 | C187: 77.68865679 | D187: 20.26660612 | E187: HSS5X4X3/8 | F187: 19.74954317 | G187: 5 | H187: 4 | I187: 0.375 | J187: 8.96 | K187: 8.46 | L187: 7.17 | M187: 34.34666667 | N187: 27.485 | O187: -2.310437667 | P187: -0.4136310522 | Q187: Compact | R187: 34.34666667 | S187: 2.261898004
B188: 69.91979111 | C188: 77.68865679 | D188: 20.26660612 | E188: HSS6X3X3/8 | F188: 19.74954317 | G188: 6 | H188: 3 | I188: 0.375 | J188: 9.9 | K188: 5.6 | L188: 7.57 | M188: 37.95 | N188: 29.01833333 | O188: -12.72315076 | P188: -14.44661826 | Q188: Compact | R188: 37.95 | S188: 2.047131931
B189: 69.91979111 | C189: 77.68865679 | D189: 20.26660612 | E189: HSS10X3X1/4 | F189: 20.68773797 | G189: 10 | H189: 3 | I189: 0.25 | J189: 16.7 | K189: 9.88 | L189: 12.7 | M189: 64.01666667 | N189: 48.68333333 | O189: 0.4132649953 | P189: 8.192388951 | Q189: Compact | R189: 64.01666667 | S189: 1.213569229
B190: 69.91979111 | C190: 77.68865679 | D190: 20.26660612 | E190: HSS5-1/2X5-1/2X5/16 | F190: 21.15881122 | G190: 5.5 | H190: 5.5 | I190: 0.3125 | J190: 11.3 | K190: 15.9 | L190: 9.43 | M190: 43.31666667 | N190: 36.14833333 | O190: 5.5 | P190: 8.419596354 | Q190: Compact | R190: 43.31666667 | S190: 1.793504966
B191: 69.91979111 | C191: 77.68865679 | D191: 20.26660612 | E191: HSS6X5X5/16 | F191: 21.1883201 | G191: 6 | H191: 5 | I191: 0.3125 | J191: 11.9 | K191: 14.2 | L191: 9.85 | M191: 45.61666667 | N191: 37.75833333 | O191: 4.942602253 | P191: 8.86590892 | Q191: Compact | R191: 45.61666667 | S191: 1.703076144
B192: 69.91979111 | C192: 77.68865679 | D192: 20.26660612 | E192: HSS7X4X5/16 | F192: 21.1883201 | G192: 7 | H192: 4 | I192: 0.3125 | J192: 13.1 | K192: 10.7 | L192: 10.4 | M192: 50.21666667 | N192: 39.86666667 | O192: 1.631512635 | P192: 6.506469427 | Q192: Compact | R192: 50.21666667 | S192: 1.547069169
B193: 69.91979111 | C193: 77.68865679 | D193: 20.26660612 | E193: HSS8X3X5/16 | F193: 21.1883201 | G193: 8 | H193: 3 | I193: 0.3125 | J193: 13.9 | K193: 7.31 | L193: 10.6 | M193: 53.28333333 | N193: 40.63333333 | O193: -4.598279509 | P193: -1.698741922 | Q193: Compact | R193: 53.28333333 | S193: 1.458029217
B194: 69.91979111 | C194: 77.68865679 | D194: 20.26660612 | E194: HSS4X4X1/2 | F194: 21.49831654 | G194: 4 | H194: 4 | I194: 0.5 | J194: 7.7 | K194: 5.6 | L194: 5.97 | M194: 29.51666667 | N194: 22.885 | O194: -16.96420102 | P194: -18.29156785 | Q194: Compact | R194: 29.51666667 | S194: 2.632026769
B195: 69.91979111 | C195: 77.68865679 | D195: 20.26660612 | E195: HSS5X3X1/2 | F195: 21.49831654 | G195: 5 | H195: 3 | I195: 0.5 | J195: 8.83 | K195: 3.45 | L195: 6.57 | M195: 33.84833333 | N195: 25.185 | O195: -42.55750374 | P195: -61.16958895 | Q195: Compact | R195: 33.84833333 | S195: 2.295198881
B196: 69.91979111 | C196: 77.68865679 | D196: 20.26660612 | E196: HSS10X3-1/2X1/4 | F196: 21.53843241 | G196: 10 | H196: 3.5 | I196: 0.25 | J196: 17.9 | K196: 12 | L196: 13.8 | M196: 68.61666667 | N196: 52.9 | O196: 2.469452286 | P196: 11.5336933 | Q196: Compact | R196: 68.61666667 | S196: 1.132212632
B197: 69.91979111 | C197: 77.68865679 | D197: 20.26660612 | E197: HSS14X4X3/16 | F197: 22.11825352 | G197: 14 | H197: 4 | I197: 0.1875 | J197: 25.3 | K197: 20 | L197: 19.5 | M197: 96.98333333 | N197: 74.75 | O197: 4 | P197: 18.50878906 | Q197: Compact | R197: 96.98333333 | S197: 0.8010516253
B198: 69.91979111 | C198: 77.68865679 | D198: 20.26660612 | E198: HSS9X9X3/16 | F198: 22.16346419 | G198: 9 | H198: 9 | I198: 0.1875 | J198: 20 | K198: 48.7 | L198: 17.4 | M198: 76.66666667 | N198: 66.7 | O198: 7.268132425 | P198: 12.65571619 | Q198: Slend. | R198: 48.51357872 | S198: 1.601379631
B199: 69.91979111 | C199: 77.68865679 | D199: 20.26660612 | E199: HSS10X8X3/16 | F199: 22.21997752 | G199: 10 | H199: 8 | I199: 0.1875 | J199: 21.4 | K199: 43 | L199: 18.3 | M199: 82.03333333 | N199: 70.15 | O199: 7.033383451 | P199: 14.41692345 | Q199: Slend. | R199: 55.26487323 | S199: 1.405751108
B200: 69.91979111 | C200: 77.68865679 | D200: 20.26660612 | E200: HSS12X6X3/16 | F200: 22.21997752 | G200: 12 | H200: 6 | I200: 0.1875 | J200: 23.7 | K200: 31.5 | L200: 19.4 | M200: 90.85 | N200: 74.36666667 | O200: 6 | P200: 17.30566406 | Q200: Non C. | R200: 82.95828703 | S200: 0.9364785553
B201: 69.91979111 | C201: 77.68865679 | D201: 20.26660612 | E201: HSS5X5X3/8 | F201: 22.3016265 | G201: 5 | H201: 5 | I201: 0.375 | J201: 10.6 | K201: 11.3 | L201: 8.68 | M201: 40.63333333 | N201: 33.27333333 | O201: 2.813759037 | P201: 5.511221387 | Q201: Compact | R201: 40.63333333 | S201: 1.911943974
B202: 69.91979111 | C202: 77.68865679 | D202: 20.26660612 | E202: HSS6X4X3/8 | F202: 22.3016265 | G202: 6 | H202: 4 | I202: 0.375 | J202: 11.9 | K202: 8.46 | L202: 9.43 | M202: 45.61666667 | N202: 36.14833333 | O202: -2.310437667 | P202: 0.1962595312 | Q202: Compact | R202: 45.61666667 | S202: 1.703076144
B203: 69.91979111 | C203: 77.68865679 | D203: 20.26660612 | E203: HSS7X3X3/8 | F203: 22.3016265 | G203: 7 | H203: 3 | I203: 0.375 | J203: 12.8 | K203: 5.6 | L203: 9.73 | M203: 49.06666667 | N203: 37.29833333 | O203: -12.72315076 | P203: -16.18990595 | Q203: Compact | R203: 49.06666667 | S203: 1.583328603
B204: 69.91979111 | C204: 77.68865679 | D204: 20.26660612 | E204: HSS8X2X3/8 | F204: 22.3016265 | G204: 8 | H204: 2 | I204: 0.375 | J204: 13.4 | K204: 2.73 | L204: 9.56 | M204: 51.36666667 | N204: 36.64666667 | O204: -45.10394388 | P204: -79.40908053 | Q204: Compact | R204: 51.36666667 | S204: 1.512433292
B205: 69.91979111 | C205: 77.68865679 | D205: 20.26660612 | E205: HSS10X4X1/4 | F205: 22.38912686 | G205: 10 | H205: 4 | I205: 0.25 | J205: 19 | K205: 14.2 | L205: 14.9 | M205: 72.83333333 | N205: 57.11666667 | O205: 3.954081803 | P205: 13.94621626 | Q205: Compact | R205: 72.83333333 | S205: 1.06666348
B206: 69.91979111 | C206: 77.68865679 | D206: 20.26660612 | E206: HSS12X2X1/4 | F206: 22.38912686 | G206: 12 | H206: 2 | I206: 0.25 | J206: 20.1 | K206: 5.58 | L206: 14.5 | M206: 77.05 | N206: 55.58333333 | O206: -8.555699654 | P206: -5.734078489 | Q206: Compact | R206: 77.05 | S206: 1.008288862
... 174 more rows

Sheet Example 8.5
A1: A Beginners Guide to the Steel Construction Manual, 16th Edition | H1: last modified: 30 May 2023
A2: Example 8.5 | H2: by: TBQ
B9: Span1 | C9: 13.5 | D9: ft | F9: Shear | G9: Flexure
B10: Span2 | C10: 15 | D10: ft | E10: W | F10: 1.5 | G10: 1.67
B13: D | C13: 2.4 | D13: klf
B14: L | C14: 1.8 | D14: klf
B16: Steel | C16: A992
B17: Fy | C17: =VLOOKUP(C16,StlProps,2) -> 50 | D17: ksi
A25: Solution: | B25: Note: This solution uses ASD
A27: Compute the moment envelope using moment distribution and influential superposition.
A28: Other methods can be used, if you are more comfortable with them.
A30: Apply unit load to each span and find the corresponding moment information.
C33: Span AB | E33: Span BC | G33: Units | J33: Span AB | L33: Span BC | N33: Units
B34: Span | C34: =+C9 -> 13.5 | E34: =+C10 -> 15 | G34: ft | I34: Span | J34: =+C34 -> 13.5 | L34: =+E34 -> 15 | N34: ft
B35: 1/L | C35: =1/C34 -> 0.07407407407 | E35: =1/E34 -> 0.06666666667 | I35: 1/L | J35: =1/J34 -> 0.07407407407 | L35: =1/L34 -> 0.06666666667
B36: Load | C36: 1 | E36: 0 | G36: k/ft | I36: Load | J36: 0 | L36: 1 | N36: k/ft
B37: Joint | C37: A | D37: B | E37: B | F37: C | I37: Joint | J37: A | K37: B | L37: B | M37: C
B38: DF | C38: 1 | D38: =+C35/(C35+E35) -> 0.5263157895 | E38: =E35/(C35+E35) -> 0.4736842105 | F38: 1 | I38: DF | J38: 1 | K38: =+J35/(J35+L35) -> 0.5263157895 | L38: =L35/(J35+L35) -> 0.4736842105 | M38: 1
B39: FEM | C39: =+C36*C34^2/12 -> 15.1875 | D39: =-C39 -> -15.1875 | E39: =+E36*E34^2/12 -> 0 | F39: =-E39 -> 0 | G39: ft-k | I39: FEM | J39: =+J36*J34^2/12 -> 0 | K39: =-J39 -> 0 | L39: =+L36*L34^2/12 -> 18.75 | M39: =-L39 -> -18.75 | N39: ft-k
B40: Balance | C40: =-C$38*C39 -> -15.1875 | D40: =-(+D39+E39)*D$38 -> 7.993421053 | E40: =-E$38*(D39+E39) -> 7.194078947 | F40: =-F$38*F39 -> 0 | G40: ft-k | I40: Balance | J40: =-J$38*J39 -> 0 | K40: =-(+K39+L39)*K$38 -> -9.868421053 | L40: =-L$38*(K39+L39) -> -8.881578947 | M40: =-M$38*M39 -> 18.75 | N40: ft-k
B41: CO | C41: =+D40/2 -> 3.996710526 | D41: =+C40/2 -> -7.59375 | E41: =+F40/2 -> 0 | F41: =+E40/2 -> 3.597039474 | G41: ft-k | I41: CO | J41: =+K40/2 -> -4.934210526 | K41: =+J40/2 -> 0 | L41: =+M40/2 -> 9.375 | M41: =+L40/2 -> -4.440789474 | N41: ft-k
B42: Sum | C42: =+C39+C40+C41 -> 3.996710526 | D42: =+D39+D40+D41 -> -14.78782895 | E42: =+E39+E40+E41 -> 7.194078947 | F42: =+F39+F40+F41 -> 3.597039474 | G42: ft-k | I42: Sum | J42: =+J39+J40+J41 -> -4.934210526 | K42: =+K39+K40+K41 -> -9.868421053 | L42: =+L39+L40+L41 -> 19.24342105 | M42: =+M39+M40+M41 -> -4.440789474 | N42: ft-k
B43: Balance | C43: =-C$38*C42 -> -3.996710526 | D43: =-(+D42+E42)*D$38 -> 3.996710526 | E43: =-E$38*(D42+E42) -> 3.597039474 | F43: =-F$38*F42 -> -3.597039474 | G43: ft-k | I43: Balance | J43: =-J$38*J42 -> 4.934210526 | K43: =-(+K42+L42)*K$38 -> -4.934210526 | L43: =-L$38*(K42+L42) -> -4.440789474 | M43: =-M$38*M42 -> 4.440789474 | N43: ft-k
B44: CO | C44: =+D43/2 -> 1.998355263 | D44: =+C43/2 -> -1.998355263 | E44: =+F43/2 -> -1.798519737 | F44: =+E43/2 -> 1.798519737 | G44: ft-k | I44: CO | J44: =+K43/2 -> -2.467105263 | K44: =+J43/2 -> 2.467105263 | L44: =+M43/2 -> 2.220394737 | M44: =+L43/2 -> -2.220394737 | N44: ft-k
B45: Sum | C45: =+C42+C43+C44 -> 1.998355263 | D45: =+D42+D43+D44 -> -12.78947368 | E45: =+E42+E43+E44 -> 8.992598684 | F45: =+F42+F43+F44 -> 1.798519737 | G45: ft-k | I45: Sum | J45: =+J42+J43+J44 -> -2.467105263 | K45: =+K42+K43+K44 -> -12.33552632 | L45: =+L42+L43+L44 -> 17.02302632 | M45: =+M42+M43+M44 -> -2.220394737 | N45: ft-k
B46: Balance | C46: =-C$38*C45 -> -1.998355263 | D46: =-(+D45+E45)*D$38 -> 1.998355263 | E46: =-E$38*(D45+E45) -> 1.798519737 | F46: =-F$38*F45 -> -1.798519737 | G46: ft-k | I46: Balance | J46: =-J$38*J45 -> 2.467105263 | K46: =-(+K45+L45)*K$38 -> -2.467105263 | L46: =-L$38*(K45+L45) -> -2.220394737 | M46: =-M$38*M45 -> 2.220394737 | N46: ft-k
B47: CO | C47: =+D46/2 -> 0.9991776316 | D47: =+C46/2 -> -0.9991776316 | E47: =+F46/2 -> -0.8992598684 | F47: =+E46/2 -> 0.8992598684 | G47: ft-k | I47: CO | J47: =+K46/2 -> -1.233552632 | K47: =+J46/2 -> 1.233552632 | L47: =+M46/2 -> 1.110197368 | M47: =+L46/2 -> -1.110197368 | N47: ft-k
B48: Sum | C48: =+C45+C46+C47 -> 0.9991776316 | D48: =+D45+D46+D47 -> -11.79029605 | E48: =+E45+E46+E47 -> 9.891858553 | F48: =+F45+F46+F47 -> 0.8992598684 | G48: ft-k | I48: Sum | J48: =+J45+J46+J47 -> -1.233552632 | K48: =+K45+K46+K47 -> -13.56907895 | L48: =+L45+L46+L47 -> 15.91282895 | M48: =+M45+M46+M47 -> -1.110197368 | N48: ft-k
B49: Balance | C49: =-C$38*C48 -> -0.9991776316 | D49: =-(+D48+E48)*D$38 -> 0.9991776316 | E49: =-E$38*(D48+E48) -> 0.8992598684 | F49: =-F$38*F48 -> -0.8992598684 | G49: ft-k | I49: Balance | J49: =-J$38*J48 -> 1.233552632 | K49: =-(+K48+L48)*K$38 -> -1.233552632 | L49: =-L$38*(K48+L48) -> -1.110197368 | M49: =-M$38*M48 -> 1.110197368 | N49: ft-k
B50: CO | C50: =+D49/2 -> 0.4995888158 | D50: =+C49/2 -> -0.4995888158 | E50: =+F49/2 -> -0.4496299342 | F50: =+E49/2 -> 0.4496299342 | G50: ft-k | I50: CO | J50: =+K49/2 -> -0.6167763158 | K50: =+J49/2 -> 0.6167763158 | L50: =+M49/2 -> 0.5550986842 | M50: =+L49/2 -> -0.5550986842 | N50: ft-k
B51: Sum | C51: =+C48+C49+C50 -> 0.4995888158 | D51: =+D48+D49+D50 -> -11.29070724 | E51: =+E48+E49+E50 -> 10.34148849 | F51: =+F48+F49+F50 -> 0.4496299342 | G51: ft-k | I51: Sum | J51: =+J48+J49+J50 -> -0.6167763158 | K51: =+K48+K49+K50 -> -14.18585526 | L51: =+L48+L49+L50 -> 15.35773026 | M51: =+M48+M49+M50 -> -0.5550986842 | N51: ft-k
B52: Balance | C52: =-C$38*C51 -> -0.4995888158 | D52: =-(+D51+E51)*D$38 -> 0.4995888158 | E52: =-E$38*(D51+E51) -> 0.4496299342 | F52: =-F$38*F51 -> -0.4496299342 | G52: ft-k | I52: Balance | J52: =-J$38*J51 -> 0.6167763158 | K52: =-(+K51+L51)*K$38 -> -0.6167763158 | L52: =-L$38*(K51+L51) -> -0.5550986842 | M52: =-M$38*M51 -> 0.5550986842 | N52: ft-k
B53: CO | C53: =+D52/2 -> 0.2497944079 | D53: =+C52/2 -> -0.2497944079 | E53: =+F52/2 -> -0.2248149671 | F53: =+E52/2 -> 0.2248149671 | G53: ft-k | I53: CO | J53: =+K52/2 -> -0.3083881579 | K53: =+J52/2 -> 0.3083881579 | L53: =+M52/2 -> 0.2775493421 | M53: =+L52/2 -> -0.2775493421 | N53: ft-k
B54: Sum | C54: =+C51+C52+C53 -> 0.2497944079 | D54: =+D51+D52+D53 -> -11.04091283 | E54: =+E51+E52+E53 -> 10.56630345 | F54: =+F51+F52+F53 -> 0.2248149671 | G54: ft-k | I54: Sum | J54: =+J51+J52+J53 -> -0.3083881579 | K54: =+K51+K52+K53 -> -14.49424342 | L54: =+L51+L52+L53 -> 15.08018092 | M54: =+M51+M52+M53 -> -0.2775493421 | N54: ft-k
B55: Balance | C55: =-C$38*C54 -> -0.2497944079 | D55: =-(+D54+E54)*D$38 -> 0.2497944079 | E55: =-E$38*(D54+E54) -> 0.2248149671 | F55: =-F$38*F54 -> -0.2248149671 | G55: ft-k | I55: Balance | J55: =-J$38*J54 -> 0.3083881579 | K55: =-(+K54+L54)*K$38 -> -0.3083881579 | L55: =-L$38*(K54+L54) -> -0.2775493421 | M55: =-M$38*M54 -> 0.2775493421 | N55: ft-k
B56: CO | C56: =+D55/2 -> 0.1248972039 | D56: =+C55/2 -> -0.1248972039 | E56: =+F55/2 -> -0.1124074836 | F56: =+E55/2 -> 0.1124074836 | G56: ft-k | I56: CO | J56: =+K55/2 -> -0.1541940789 | K56: =+J55/2 -> 0.1541940789 | L56: =+M55/2 -> 0.1387746711 | M56: =+L55/2 -> -0.1387746711 | N56: ft-k
B57: Sum | C57: =+C54+C55+C56 -> 0.1248972039 | D57: =+D54+D55+D56 -> -10.91601562 | E57: =+E54+E55+E56 -> 10.67871094 | F57: =+F54+F55+F56 -> 0.1124074836 | G57: ft-k | I57: Sum | J57: =+J54+J55+J56 -> -0.1541940789 | K57: =+K54+K55+K56 -> -14.6484375 | L57: =+L54+L55+L56 -> 14.94140625 | M57: =+M54+M55+M56 -> -0.1387746711 | N57: ft-k
B58: Balance | C58: =-C$38*C57 -> -0.1248972039 | D58: =-(+D57+E57)*D$38 -> 0.1248972039 | E58: =-E$38*(D57+E57) -> 0.1124074836 | F58: =-F$38*F57 -> -0.1124074836 | G58: ft-k | I58: Balance | J58: =-J$38*J57 -> 0.1541940789 | K58: =-(+K57+L57)*K$38 -> -0.1541940789 | L58: =-L$38*(K57+L57) -> -0.1387746711 | M58: =-M$38*M57 -> 0.1387746711 | N58: ft-k
B59: CO | C59: =+D58/2 -> 0.06244860197 | D59: =+C58/2 -> -0.06244860197 | E59: =+F58/2 -> -0.05620374178 | F59: =+E58/2 -> 0.05620374178 | G59: ft-k | I59: CO | J59: =+K58/2 -> -0.07709703947 | K59: =+J58/2 -> 0.07709703947 | L59: =+M58/2 -> 0.06938733553 | M59: =+L58/2 -> -0.06938733553 | N59: ft-k
B60: Sum | C60: =+C57+C58+C59 -> 0.06244860197 | D60: =+D57+D58+D59 -> -10.85356702 | E60: =+E57+E58+E59 -> 10.73491468 | F60: =+F57+F58+F59 -> 0.05620374178 | G60: ft-k | I60: Sum | J60: =+J57+J58+J59 -> -0.07709703947 | K60: =+K57+K58+K59 -> -14.72553454 | L60: =+L57+L58+L59 -> 14.87201891 | M60: =+M57+M58+M59 -> -0.06938733553 | N60: ft-k
B61: Balance | C61: =-C$38*C60 -> -0.06244860197 | D61: =-(+D60+E60)*D$38 -> 0.06244860197 | E61: =-E$38*(D60+E60) -> 0.05620374178 | F61: =-F$38*F60 -> -0.05620374178 | G61: ft-k | I61: Balance | J61: =-J$38*J60 -> 0.07709703947 | K61: =-(+K60+L60)*K$38 -> -0.07709703947 | L61: =-L$38*(K60+L60) -> -0.06938733553 | M61: =-M$38*M60 -> 0.06938733553 | N61: ft-k
B62: CO | C62: =+D61/2 -> 0.03122430099 | D62: =+C61/2 -> -0.03122430099 | E62: =+F61/2 -> -0.02810187089 | F62: =+E61/2 -> 0.02810187089 | G62: ft-k | I62: CO | J62: =+K61/2 -> -0.03854851974 | K62: =+J61/2 -> 0.03854851974 | L62: =+M61/2 -> 0.03469366776 | M62: =+L61/2 -> -0.03469366776 | N62: ft-k
B63: Sum | C63: =+C60+C61+C62 -> 0.03122430099 | D63: =+D60+D61+D62 -> -10.82234272 | E63: =+E60+E61+E62 -> 10.76301655 | F63: =+F60+F61+F62 -> 0.02810187089 | G63: ft-k | I63: Sum | J63: =+J60+J61+J62 -> -0.03854851974 | K63: =+K60+K61+K62 -> -14.76408306 | L63: =+L60+L61+L62 -> 14.83732525 | M63: =+M60+M61+M62 -> -0.03469366776 | N63: ft-k
B64: Balance | C64: =-C$38*C63 -> -0.03122430099 | D64: =-(+D63+E63)*D$38 -> 0.03122430099 | E64: =-E$38*(D63+E63) -> 0.02810187089 | F64: =-F$38*F63 -> -0.02810187089 | G64: ft-k | I64: Balance | J64: =-J$38*J63 -> 0.03854851974 | K64: =-(+K63+L63)*K$38 -> -0.03854851974 | L64: =-L$38*(K63+L63) -> -0.03469366776 | M64: =-M$38*M63 -> 0.03469366776 | N64: ft-k
B65: CO | C65: =+D64/2 -> 0.01561215049 | D65: =+C64/2 -> -0.01561215049 | E65: =+F64/2 -> -0.01405093544 | F65: =+E64/2 -> 0.01405093544 | G65: ft-k | I65: CO | J65: =+K64/2 -> -0.01927425987 | K65: =+J64/2 -> 0.01927425987 | L65: =+M64/2 -> 0.01734683388 | M65: =+L64/2 -> -0.01734683388 | N65: ft-k
B66: Sum | C66: =+C63+C64+C65 -> 0.01561215049 | D66: =+D63+D64+D65 -> -10.80673057 | E66: =+E63+E64+E65 -> 10.77706749 | F66: =+F63+F64+F65 -> 0.01405093544 | G66: ft-k | I66: Sum | J66: =+J63+J64+J65 -> -0.01927425987 | K66: =+K63+K64+K65 -> -14.78335732 | L66: =+L63+L64+L65 -> 14.81997841 | M66: =+M63+M64+M65 -> -0.01734683388 | N66: ft-k
B67: Reactions | C67: =+C36*C34/2+(C66+D66)/C34 -> 5.950657895 | D67: =+C36*C34/2-(C66+D66)/C34 -> 7.549342105 | E67: =+E36*E34/2+(E66+F66)/E34 -> 0.7194078947 | F67: =+E36*E34/2-(E66+F66)/E34 -> -0.7194078947 | I67: Reactions | J67: =+J36*J34/2+(J66+K66)/J34 -> -1.096491228 | K67: =+J36*J34/2-(J66+K66)/J34 -> 1.096491228 | L67: =+L36*L34/2+(L66+M66)/L34 -> 8.486842105 | M67: =+L36*L34/2-(L66+M66)/L34 -> 6.513157895
B69: Moment Envelope Calculation & Capacity Data
I70: w/o Plates | L70: w/Plates
B71: x | C71: x | D71: LC 1 | E71: LC 2 | F71: D | G71: Lower | H71: Upper | I71: +Mn / W | J71: -Mn / W | K71: Req'd/Act | L71: +Mn / W | M71: -Mn / W
B72: (ft) | C72: (ft) | D72: (ft-k) | E72: (ft-k) | F72: (ft-k) | G72: (ft-k) | H72: (ft-k) | I72: (ft-k) | J72: (ft-k) | L72: (ft-k) | M72: (ft-k)
B73: 0 | C73: =+B73 -> 0 | D73: =+C$67*B73-C$66-C$36*B73^2/2 -> -0.01561215049 | E73: =+J$67*B73-J$66-J$36*B73^2/2 -> 0.01927425987 | F73: =+(D73+E73)*C$13 -> 0.0087890625 | G73: =+F73+MIN(0,D73)*C$14+MIN(0,E73)*C$14 -> -0.01931280839 | H73: =+F73+MAX(0,D73)*C$14+MAX(0,E73)*C$14 -> 0.04348273026 | I73: =+M126/G10 -> 82.83433134 | J73: =-I73 -> -82.83433134 | K73: =ABS(G73)/ABS(J73) -> 0.0002331498073 | L73: =+I73 -> 82.83433134 | M73: =+J73 -> -82.83433134
B74: =+C34/10 -> 1.35 | C74: =+B74 -> 1.35 | D74: 7.106526007 | E74: =+J$67*B74-J$66-J$36*B74^2/2 -> -1.460988898 | F74: =+(D74+E74)*C$13 -> 13.54928906 | G74: =+F74+MIN(0,D74)*C$14+MIN(0,E74)*C$14 -> 10.91950905 | H74: =+F74+MAX(0,D74)*C$14+MAX(0,E74)*C$14 -> 26.34103588 | I74: =+I73 -> 82.83433134 | J74: =-I74 -> -82.83433134 | K74: =ABS(G74)/ABS(J74) -> 0.1318234707 | L74: 82.83433134 | M74: -82.83433134
B75: =+B74+B$74 -> 2.7 | C75: 2.7 | D75: 12.40616417 | E75: -2.941252056 | F75: 22.71578906 | G75: 17.42153536 | H75: 45.04688456 | I75: =+I74 -> 82.83433134 | J75: -82.83433134 | K75: 0.2103178124 | L75: 82.83433134 | M75: -82.83433134
B76: =+B75+B$74 -> 4.05 | C76: 4.05 | D76: 15.88330232 | E76: -4.421515214 | F76: 27.50828906 | G76: 19.54956168 | H76: 56.09823324 | I76: 82.83433134 | J76: -82.83433134 | K76: 0.2360079615 | L76: 82.83433134 | M76: -82.83433134
B77: 5.4 | C77: 5.4 | D77: 17.53794048 | E77: -5.901778372 | F77: 27.92678906 | G77: 17.30358799 | H77: 59.49508193 | I77: 82.83433134 | J77: -82.83433134 | K77: 0.2088939177 | L77: 82.83433134 | M77: -82.83433134
B78: 6.75 | C78: 6.75 | D78: 17.37007864 | E78: -7.38204153 | F78: 23.97128906 | G78: 10.68361431 | H78: 55.23743061 | I78: 82.83433134 | J78: -82.83433134 | K78: 0.1289756812 | L78: 82.83433134 | M78: -82.83433134
B79: 8.1 | C79: 8.1 | D79: 15.3797168 | E79: -8.862304687 | F79: 15.64178906 | G79: -0.310359375 | H79: 43.3252793 | I79: 82.83433134 | J79: -82.83433134 | K79: 0.003746748117 | L79: 82.83433134 | M79: -82.83433134
B80: 9.45 | C80: 9.45 | D80: 11.56685495 | E80: -10.34256785 | F80: 2.938289063 | G80: -15.67833306 | H80: 23.75862798 | I80: 82.83433134 | J80: -82.83433134 | K80: 0.1892733702 | L80: 82.83433134 | M80: -82.83433134
B81: 10.8 | C81: 10.8 | D81: 5.931493113 | E81: -11.822831 | F81: -14.13921094 | G81: -35.42030674 | H81: -3.462523335 | I81: 82.83433134 | J81: -82.83433134 | K81: 0.427604185 | L81: 82.83433134 | M81: -82.83433134
A82: Start | B82: 12 | C82: =+B82 -> 12 | D82: =+C$67*B82-C$66-C$36*B82^2/2 -> -0.6077174137 | E82: =+J$67*B82-J$66-J$36*B82^2/2 -> -13.13862048 | F82: =+(D82+E82)*C$13 -> -32.99121094 | G82: =+F82+MIN(0,D82)*C$14+MIN(0,E82)*C$14 -> -57.73461914 | H82: =+F82+MAX(0,D82)*C$14+MAX(0,E82)*C$14 -> -32.99121094 | I82: =+I81 -> 82.83433134 | J82: -82.83433134 | K82: =ABS(G82)/ABS(J82) -> 0.6969890166 | L82: 82.83433134 | M82: -82.83433134
B83: =+B82 -> 12 | C83: =+B83 -> 12 | D83: =+C$67*B83-C$66-C$36*B83^2/2 -> -0.6077174137 | E83: =+J$67*B83-J$66-J$36*B83^2/2 -> -13.13862048 | F83: =+(D83+E83)*C$13 -> -32.99121094 | G83: =+F83+MIN(0,D83)*C$14+MIN(0,E83)*C$14 -> -57.73461914 | H83: =+F83+MAX(0,D83)*C$14+MAX(0,E83)*C$14 -> -32.99121094 | I83: =+I82 -> 82.83433134 | J83: -82.83433134 | K83: =ABS(G83)/ABS(J83) -> 0.6969890166 | L83: =-M83 -> 108.9383733 | M83: =+M84 -> -108.9383733
B84: =+B81+B$74 -> 12.15 | C84: 12.15 | D84: -1.526368729 | E84: -13.30309416 | F84: -35.59071094 | G84: -62.28374414 | H84: -35.59071094 | I84: =+I81 -> 82.83433134 | J84: -82.83433134 | K84: 0.751907369 | L84: =-M84 -> 108.9383733 | M84: =+M85 -> -108.9383733
B85: 12.79180307 | C85: 12.79180307 | D85: -5.71108109 | E85: -14.00682559 | F85: -47.32297604 | G85: -82.81520807 | H85: -47.32297604 | I85: =+I84 -> 82.83433134 | J85: -82.83433134 | K85: =ABS(G85)/ABS(J85) -> 0.9997691384 | L85: 108.9383733 | M85: =+J85-(C146/G10) -> -108.9383733
B86: =+B84+B$74 -> 13.5 | C86: 13.5 | D86: -10.80673057 | E86: -14.78335732 | F86: -61.41621094 | G86: -107.4783691 | H86: -61.41621094 | I86: =+I84 -> 82.83433134 | J86: -82.83433134 | K86: 1.29750995 | L86: 108.9383733 | M86: =+M85 -> -108.9383733
B87: 0 | C87: =+C$86+B87 -> 13.5 | D87: =+E$67*B87-E$66-E$36*B87^2/2 -> -10.77706749 | E87: =+L$67*B87-L$66-L$36*B87^2/2 -> -14.81997841 | F87: -61.43291016 | G87: -107.5075928 | H87: -61.43291016 | I87: 82.83433134 | J87: -82.83433134 | K87: 1.297862746 | L87: 108.9383733 | M87: =+M86 -> -108.9383733
B88: 0.6618333155 | C88: =+C$86+B88 -> 14.16183332 | D88: =+E$67*B88-E$66-E$36*B88^2/2 -> -10.30093937 | E88: =+L$67*B88-L$66-L$36*B88^2/2 -> -9.422115233 | F88: =+(D88+E88)*C$13 -> -47.33533106 | G88: =+F88+MIN(0,D88)*C$14+MIN(0,E88)*C$14 -> -82.83682935 | H88: =+F88+MAX(0,D88)*C$14+MAX(0,E88)*C$14 -> -47.33533106 | I88: =+I87 -> 82.83433134 | J88: -82.83433134 | K88: =ABS(G88)/ABS(J88) -> 1.000030157 | L88: 108.9383733 | M88: =+M87 -> -108.9383733
B89: =+E34/10 -> 1.5 | C89: =+C$86+B89 -> 15 | D89: =+E$67*B89-E$66-E$36*B89^2/2 -> -9.697955644 | E89: =+L$67*B89-L$66-L$36*B89^2/2 -> -3.214715255 | F89: -30.99041016 | G89: -54.23321777 | H89: -30.99041016 | I89: =+I87 -> 82.83433134 | J89: -82.83433134 | K89: 0.6547190869 | L89: 108.9383733 | M89: =+M88 -> -108.9383733
A90: End | B90: 1.5 | C90: =+C$86+B90 -> 15 | D90: =+E$67*B90-E$66-E$36*B90^2/2 -> -9.697955644 | E90: =+L$67*B90-L$66-L$36*B90^2/2 -> -3.214715255 | F90: =+(D90+E90)*C$13 -> -30.99041016 | G90: =+F90+MIN(0,D90)*C$14+MIN(0,E90)*C$14 -> -54.23321777 | H90: =+F90+MAX(0,D90)*C$14+MAX(0,E90)*C$14 -> -30.99041016 | I90: =+I88 -> 82.83433134 | J90: -82.83433134 | K90: =ABS(G90)/ABS(J90) -> 0.6547190869 | L90: =+L89 -> 108.9383733 | M90: =+M89 -> -108.9383733
B91: =+B90 -> 1.5 | C91: =+C$86+B91 -> 15 | D91: =+E$67*B91-E$66-E$36*B91^2/2 -> -9.697955644 | E91: =+L$67*B91-L$66-L$36*B91^2/2 -> -3.214715255 | F91: =+(D91+E91)*C$13 -> -30.99041016 | G91: =+F91+MIN(0,D91)*C$14+MIN(0,E91)*C$14 -> -54.23321777 | H91: =+F91+MAX(0,D91)*C$14+MAX(0,E91)*C$14 -> -30.99041016 | I91: =+I89 -> 82.83433134 | J91: -82.83433134 | K91: =ABS(G91)/ABS(J91) -> 0.6547190869 | L91: =+I91 -> 82.83433134 | M91: =+J91 -> -82.83433134
B92: =+B89+B$89 -> 3 | C92: 16.5 | D92: -8.618843801 | E92: 6.140547903 | F92: -5.947910156 | G92: -21.461829 | H92: 5.105076069 | I92: =+I89 -> 82.83433134 | J92: -82.83433134 | K92: 0.2590934055 | L92: 82.83433134 | M92: -82.83433134
B93: =+B92+B$89 -> 4.5 | C93: 18 | D93: -7.539731959 | E93: 13.24581106 | F93: 13.69458984 | G93: 0.123072317 | H93: 37.53704975 | I93: 82.83433134 | J93: -82.83433134 | K93: 0.001485764598 | L93: 82.83433134 | M93: -82.83433134
B94: 6 | C94: 19.5 | D94: -6.460620117 | E94: 18.10107422 | F94: 27.93708984 | G94: 16.30797363 | H94: 60.51902344 | I94: 82.83433134 | J94: -82.83433134 | K94: 0.1968745733 | L94: 82.83433134 | M94: -82.83433134
B95: 7.5 | C95: 21 | D95: -5.381508275 | E95: 20.70633738 | F95: 36.77958984 | G95: 27.09287495 | H95: 74.05099712 | I95: 82.83433134 | J95: -82.83433134 | K95: 0.3270730205 | L95: 82.83433134 | M95: -82.83433134
B96: 9 | C96: 22.5 | D96: -4.302396433 | E96: 21.06160053 | F96: 40.22208984 | G96: 32.47777626 | H96: 78.13297081 | I96: 82.83433134 | J96: -82.83433134 | K96: 0.3920811062 | L96: 82.83433134 | M96: -82.83433134
B97: 10.5 | C97: 24 | D97: -3.223284591 | E97: 19.16686369 | F97: 38.26458984 | G97: 32.46267758 | H97: 72.76494449 | I97: 82.83433134 | J97: -82.83433134 | K97: 0.3918988305 | L97: 82.83433134 | M97: -82.83433134
B98: 12 | C98: 25.5 | D98: -2.144172749 | E98: 15.02212685 | F98: 30.90708984 | G98: 27.0475789 | H98: 57.94691817 | I98: 82.83433134 | J98: -82.83433134 | K98: 0.3265261934 | L98: 82.83433134 | M98: -82.83433134
B99: 13.5 | C99: 27 | D99: -1.065060907 | E99: 8.627390008 | F99: 18.14958984 | G99: 16.23248021 | H99: 33.67889186 | I99: 82.83433134 | J99: -82.83433134 | K99: 0.1959631948 | L99: 82.83433134 | M99: -82.83433134
B100: 15 | C100: 28.5 | D100: 0.01405093544 | E100: -0.01734683388 | F100: -0.00791015625 | G100: -0.03913445724 | H100: 0.01738152755 | I100: 82.83433134 | J100: -82.83433134 | K100: 0.0004724424838 | L100: 82.83433134 | M100: -82.83433134
F101: Peak: | G101: =MIN(G73:G100) -> -107.5075928 | H101: =MAX(H73:H100) -> 78.13297081
B104: End Reaction Envelope Values
C105: AB | D105: BA | E105: BC | F105: CB
B106: D | C106: =(J67+C67)*$C13 -> 11.65 | D106: =(K67+D67)*$C13 -> 20.75 | E106: =(L67+E67)*$C13 -> 22.095 | F106: =(M67+F67)*$C13 -> 13.905 | G106: k
B107: Upper | C107: =+C106+(MAX(0,C67)+MAX(0,J67))*$C14 -> 22.36118421 | D107: =+D106+(MAX(0,D67)+MAX(0,K67))*$C14 -> 36.3125 | E107: =+E106+(MAX(0,E67)+MAX(0,L67))*$C14 -> 38.66625 | F107: =+F106+(MAX(0,F67)+MAX(0,M67))*$C14 -> 25.62868421 | G107: k
B108: Lower | C108: =+C106+(MIN(0,C67)+MIN(0,J67))*$C14 -> 9.676315789 | D108: =+D106+(MIN(0,D67)+MIN(0,K67))*$C14 -> 20.75 | E108: =+E106+(MIN(0,E67)+MIN(0,L67))*$C14 -> 22.095 | F108: =+F106+(MIN(0,F67)+MIN(0,M67))*$C14 -> 12.61006579 | G108: k
B110: Design Shear, Va | D110: =MAX(C107:F108) -> 38.66625 | E110: k
B111: Req'd Vn = Va W | D111: =+D110*F10 -> 57.999375 | E111: k
A113: Select the base section for peak positive moment
B114: Select the section for Ma | E114: =+H101 -> 78.13297081 | F114: ft-k
B115: Req'd Mn = Ma W | E115: =+E114*G10 -> 130.4820612 | F115: ft-k
B116: Req'd Zx | E116: =12*E115/C17 -> 31.3156947 | F116: in3
B118: From SCM pg 3-18, use | E118: W14x22 | G118: Shear Strength | K118: Flexural Strength
C119: wt/ft | E119: =VLOOKUP(E118,StlSects,4) -> 22 | F119: lb/ft | G119: kv | I119: =IF(E122<260,5,"Need Stiffeners") -> 5 | K119: Flexural Plastic Strength
C120: d | E120: =VLOOKUP(E118,StlSects,6) -> 13.7 | F120: in | G120: sqrt(kvE/Fy) | I120: =+SQRT(I119*29000/$C17) -> 53.85164807 | K120: Mp = FyZx = | M120: =+ $C17*$E125/12 -> 138.3333333 | N120: ft-k
C121: tw | E121: =VLOOKUP(E118,StlSects,12) -> 0.23 | F121: in | G121: Cv1 | I121: =IF(E122<=1.1*I120,1,IF(E122<=1.37*I120,1.1*I120/E122,1.51*29000*I119/$C17/(E122^2))) -> 1 | K121: Flange Local Buckling
C122: h/tw | E122: =VLOOKUP(E118,StlSects,27) -> 53.3 | G122: Vn | I122: =0.6*C17*E120*I121*E121 -> 94.53 | J122: k | K122: lp | M122: =0.38*SQRT(29000/$C17) -> 9.15161188
C123: Ix | E123: =VLOOKUP(E118,StlSects,30) -> 199 | F123: in4 | G123: Req'd Vn / Vn | I123: =+D111/I122 -> 0.6135552206 | J123: =IF(I123<=1,"Good","No Good") -> Good | K123: lr | M123: =1*SQRT(29000/$C17) -> 24.08318916
C124: Sx | E124: =VLOOKUP(E118,StlSects,32) -> 29 | F124: in3 | K124: Mr = .7FySx = | M124: =0.7*E124*$C17/12 -> 84.58333333 | N124: ft-k
C125: Zx | E125: =VLOOKUP(E118,StlSects,31) -> 33.2 | F125: in3 | K125: class | M125: =IF(E128<=M122,"Compact",IF(E128<=M123,"Non C.","Slend.")) -> Compact
C126: bf | E126: =VLOOKUP(E118,StlSects,9) -> 5 | F126: in | K126: Mn | M126: =MIN(M120-(M120-M124)*(E128-M122)/(M123-M122),M120) -> 138.3333333 | N126: ft-k
C127: tf | E127: =VLOOKUP(E118,StlSects,13) -> 0.335 | F127: in | K127: Req'd Mn / Mn | M127: =+E115/M126 -> 0.9432438162 | N127: =IF(M127<=1,"Good","No Good") -> Good
C128: bf/2tf | E128: =VLOOKUP(E118,StlSects,25) -> 7.46
A130: Design the cover plates
B132: Design Moment, Ma | E132: =-G101 -> 107.5075928 | F132: ft-k | H132: Compact Criteria
B133: Req'd Mn | E133: =+E132*G10 -> 179.5376799 | F133: ft-k | H133: (SCM Table B4.1b, Case 18)
B134: Req'd Mn for cover plates | E134: =+E133-M126 -> 41.2043466 | F134: ft-k
B135: Req'd Z | E135: =12*E134/C17 -> 9.889043184 | F135: in3 | H135: lp | I135: =1.12*SQRT(29000/C17) -> 26.97317186
B137: t | C137: b.compute | D137: b.use | E137: b/t | F137: (b/t)/ lp
B138: (in) | C138: (in) | D138: (in)
B139: 0.125 | C139: =+E$135/(B139*(E$120+B139)) -> 5.722411969 | D139: 5.75 | E139: =+D139/B139 -> 46 | F139: =+E139/I$135 -> 1.705398247 | G139: =IF(F139<=1,"Good","No Good") -> No Good
B140: =0.125+B139 -> 0.25 | C140: =+E$135/(B140*(E$120+B140)) -> 2.835567938 | D140: 3 | E140: =+D140/B140 -> 12 | F140: =+E140/I$135 -> 0.4448864992 | G140: =IF(F140<=1,"Good","No Good") -> Good | H140: <--- use (2) 1/4" x 3" plates
B141: =0.125+B140 -> 0.375 | C141: =+E$135/(B141*(E$120+B141)) -> 1.873590183 | D141: 1.875 | E141: =+D141/B141 -> 5 | F141: =+E141/I$135 -> 0.1853693747 | G141: =IF(F141<=1,"Good","No Good") -> Good
B142: =0.125+B141 -> 0.5 | C142: =+E$135/(B142*(E$120+B142)) -> 1.392822984 | D142: 1.5 | E142: =+D142/B142 -> 3 | F142: =+E142/I$135 -> 0.1112216248 | G142: =IF(F142<=1,"Good","No Good") -> Good
B143: =0.125+B142 -> 0.625 | C143: =+E$135/(B143*(E$120+B143)) -> 1.104535364 | D143: 1.125 | E143: =+D143/B143 -> 1.8 | F143: =+E143/I$135 -> 0.06673297488 | G143: =IF(F143<=1,"Good","No Good") -> Good
B145: Zx,PL | C145: =+D140*B140*(E120+B140) -> 10.4625 | D145: in3
B146: Mn,PL | C146: =+C145*C17/12 -> 43.59375 | D146: ft-k
B147: Req'd/Allow | C147: =+E134/C146 -> 0.9451893126 | D147: =IF(C147<=1,"Good","No Good") -> Good
A149: Design weld of cover plates to beam
B151: max size fillet weld, amax | E151: =+B140-1/16 -> 0.1875 | F151: in
B152: min allowed size, amin | E152: =3/16 -> 0.1875 | F152: in
B153: Use, a | E153: =+E151 -> 0.1875 | F153: in
B154: FEXX | E154: 70 | F154: ksi
B155: rn | E155: =0.6*E154*0.7071*E153 -> 5.5684125 | F155: k/in of weld
B157: Compute Shear flow
C158: Q | D158: =+B140*D140*(B140+E120)/2 -> 5.23125 | E158: in3
C159: V | D159: =+D111 -> 57.999375 | E159: k
C160: I | D160: =+E123+D140*((E120+2*B140)^3-E120^3)/12 -> 271.98375 | E160: in4
C161: q | D161: =+D159*D158/D160 -> 1.115541757 | E161: k/in of cover plate
B163: Weld capacity | D163: =+E155*2 -> 11.136825 | E163: k/in per pair of welds
B164: spacing of 1" welds
C165: strength | D165: =+D163/D161 -> 9.983333144 | E165: in O.C.
C166: buckling | D166: =+PI()*B140*SQRT(29000/3/C17) -> 10.9205183 | E166: in O.C.
B168: Use 1" long, 3/16" fillet welds spaced 9" in O.C. along both sides of ea. cover plate.
A170: Determine the length of the plates
B172: Added basic W section capacity to table and graph above then solved for locations of intersection using goal seek.
C174: Req'd | D174: Use
C175: (ft) | D175: (ft)
B176: Start | C176: =+C85 -> 12.79180307 | D176: 12
B177: End | C177: =+C88 -> 14.16183332 | D177: 15
C179: Dist btwn inflection pnts | D179: =+C177-C176 -> 1.370030249 | E179: (ft)
B180: Plate strength, FyApl = | D180: =+C17*D140*B140 -> 37.5 | E180: kips | G180: Use 4" of 3/16" on ea. Side of each
C181: req'd dbl weld length = | D181: =+D180/E155/2 -> 3.36720744 | E181: in | G181: end of the cover plate.
B182: min requ'd length | D182: =+D179+2*D181/12 -> 1.931231489 | E182: ft
B184: Use Length | D184: =+D177-D176 -> 3 | E184: ft centered on the support
A187: Final Design:
B189: See section drawing.
B190: Plate to be centered on middle support.

Sheet Example 8.6
A1: A Beginners Guide to the Steel Construction Manual, 16th Edition | H1: last modified: 30 May 2023
A2: Example 8.6 | H2: by: TBQ
B9: Beam Size | C9: W18x35
B11: Steel Types
B12: Item | D12: Fy
D13: (ksi)
B14: W section | C14: A992 | D14: =VLOOKUP(C14,StlProps,2) -> 50
B15: Plate | C15: A36 | D15: =VLOOKUP(C15,StlProps,2) -> 36
B17: f'c | C17: 3000 | D17: psi
C19: Shear
B20: f | E20: Wall t | F20: 10 | G20: in
B21: W | C21: 1.5 | E21: Column d | F21: 8 | G21: in
A29: Solution:
B31: Solution Summary: Calculations follow
B33: Part | C33: N | D33: B | E33: t
C34: (in) | D34: (in) | E34: (in)
B35: a | C35: =+C64 -> 10 | D35: =+C75 -> 4.75 | E35: =+C83 -> 0.625
B36: b | C36: =+C100 -> 22.5 | D36: =+C109 -> 6 | E36: =+C117 -> 2
B37: c | C37: =+C136 -> 5 | D37: =+C147 -> 4 | E37: =+C155 -> 0.625
B40: Beam Section Properties | F40: Shear Strength
B41: d | D41: =VLOOKUP(C9,StlSects,6) -> 17.7 | E41: in | F41: kv | H41: =IF(D43<260,5,"Need Stiffeners") -> 5
B42: tw | D42: =VLOOKUP(C9,StlSects,12) -> 0.3 | E42: in | F42: sqrt(kvE/Fy) | H42: =+SQRT(H41*29000/D14) -> 53.85164807
B43: h/tw | D43: =VLOOKUP(C9,StlSects,27) -> 53.5 | F43: Cv1 | H43: =IF(D43<=1.1*H42,1,IF(D43<=1.37*H42,1.1*H42/D43,1.51*29000*H41/#REF!/(D43^2))) -> 1
B44: k | D44: =VLOOKUP(C9,StlSects,17) -> 0.827 | E44: in | F44: Vn | H44: =0.6*D14*D41*H43*D42 -> 159.3 | J44: k
B45: bf | D45: =VLOOKUP(C9,StlSects,9) -> 6 | E45: in
B46: tf | D46: =VLOOKUP(C9,StlSects,13) -> 0.425 | E46: in
A48: Part (a) | B48: Req'd Rn | C48: =0.75*H44 -> 119.475 | D48: k = 75% Vn
B50: Compute req'd N
B51: Web Local Yielding | E51: Web Crippling
B52: Solve SCM Eq J10-3 for lb | E52: Solve SCM Eq J10-5 for lb
B53: lb >= | C53: =+C48/D$14/D$42-2.5*D$44 -> 5.8975 | D53: in | E53: temp. # | F53: =0.4*(D$42^2)*SQRT(29000*D$14*D$46/D$42) -> 51.59651151
E55: Equation | F55: N | G55: N/d
F56: (in)
E57: J10-5a | F57: =(C48/F53-1)/3/((D$42/D$46)^1.5)*D$41 -> 13.08776077 | G57: =+F57/D$41 -> 0.7394215125 | H57: =IF(G57<=0.2,"Use this one","DON'T USE THIS ONE!!!") -> DON'T USE THIS ONE!!!
E58: J10-5b | F58: =((+C48/F53-1)/((D$42/D$46)^1.5)+0.2)*D$41/4 -> 10.70082058 | G58: =+F58/D$41 -> 0.6045661344 | H58: =IF(G58<=0.2,"J10-5a","J10-5b") -> J10-5b
E60: lb > = | F60: =IF(G57<=0.2,F57,F58) -> 10.70082058 | G60: in
B62: The available wall width is 10" so bearing stiffeners are required, but not part of this problem.
B64: Use N: | C64: 10 | D64: in
B65: Req'd / Act | C65: =MAX(C53,F60)/C64 -> 1.070082058 | D65: =IF(C65<=1,"Good",IF(C65<=1.03,"Close","No Good, Use bearing stiffeners")) -> No Good, Use bearing stiffeners
B67: Compute req'd plate width, B
B68: Since the bearing plate is the full width of the wall, A1 = A2 in SCM Eq J8-2,
B69: Equation J8-2 becomes equation J8-1 when A1 = A2.
B71: N1 = | C71: =+C64 -> 10 | D71: in
B72: N2 = | C72: =+F20 -> 10 | D72: in
B73: Req'd B >= | C73: =+C48/(C$17/1000*MIN(0.85*C72,1.7*C71)) -> 4.685294118 | D73: in
B75: Use B: | C75: 4.75 | D75: in
B76: Req'd / Act | C76: =+C73/C75 -> 0.986377709 | D76: =IF(C76<=1,"Good",IF(C76<=1.03,"Close","No Good")) -> Good
B78: Compute req'd plate thickness, t
B79: (B-C)/2 = | C79: =+(C75/2-D$44) -> 1.548 | D79: in
B80: t >= | C80: =+C79*SQRT(2*C48/D$15/C64/C75) -> 0.5786639385 | D80: in
C81: =+C80*16 -> 9.258623016 | D81: / 16 inch
B83: Use t: | C83: =10/16 -> 0.625 | D83: in
B84: Req'd / Act | C84: =+C80/C83 -> 0.9258623016 | D84: =IF(C84<=1,"Good",IF(C84<=1.03,"Close","No Good")) -> Good
A86: Part (b) | B86: Req'd Rn | C86: =1.25*H44 -> 199.125 | D86: k = 125% Vn
B88: Compute req'd N
B89: Web Local Yielding | E89: Web Crippling
B90: Solve SCM Eq J10-2 for lb | E90: Solve SCM Eq J10-5 for lb
B91: lb >= | C91: =+C86/D$14/D$42-5*D$44 -> 9.14 | D91: in | E91: temp. # | F91: =0.4*(D$42^2)*SQRT(29000*D$14*D$46/D$42) -> 51.59651151
E93: Equation | F93: N | G93: N/d
F94: (in)
E95: J10-5a | F95: =(C86/F91-1)/3/((D$42/D$46)^1.5)*D$41 -> 28.44520565 | G95: =+F95/D$41 -> 1.607073766 | H95: =IF(G95<=0.2,"Use this one","DON'T USE THIS ONE!!!") -> DON'T USE THIS ONE!!!
E96: J10-5b | F96: =((+C86/F91-1)/((D$42/D$46)^1.5)+0.2)*D$41/4 -> 22.21890424 | G96: =+F96/D$41 -> 1.255305324 | H96: =IF(G96<=0.2,"J10-5a","J10-5b") -> J10-5b
E98: lb > = | F98: =IF(G95<=0.2,F95,F96) -> 22.21890424 | G98: in
B100: Use N: | C100: 22.5 | D100: in
B101: Req'd / Act | C101: =MAX(C91,F98)/C100 -> 0.987506855 | D101: =IF(C101<=1,"Good",IF(C101<=1.03,"Close","No Good, Use bearing stiffeners")) -> Good
B103: Determine plate width, B
B104: This plate is not bearing on concrete.
B105: Selection of the plate width will depend more on matching sizes being joined.
B106: In this case we know the dimension of the column relative to beam span but not across the section.
B107: It is unlikely that the width will be more than the beam flange.
B109: Use B: | C109: 6 | D109: in
B111: Compute req'd plate thickness, t
B112: (N-C)/2 = | C112: =+((C100-0.95*F21)/2) -> 7.45 | D112: in
B113: t >= | C113: =+C112*SQRT(2*C86/D14/C100/C109) -> 1.809598712 | D113: in
C114: =+C113*16 -> 28.9535794 | D114: / 16 inch
C115: =+C114/2 -> 14.4767897 | D115: / 8 inch
C116: =+C115/2 -> 7.23839485 | D116: / 4 inch
B117: Use t: | C117: 2 | D117: in
B118: Req'd / Act | C118: =+C113/C117 -> 0.9047993562 | D118: =IF(C118<=1,"Good",IF(C118<=1.03,"Close","No Good")) -> Good
A120: Part (c) | B120: Req'd Rn | C120: =0.5*H44 -> 79.65 | D120: k = 50% Vn
B122: Compute req'd N
B123: Web Local Yielding | E123: Web Crippling
B124: Solve SCM Eq J10-3 for lb | E124: Solve SCM Eq J10-5 for lb
B125: lb >= | C125: =+C120/D$14/D$42-2.5*D$44 -> 3.2425 | D125: in | E125: temp. # | F125: =0.4*(D$42^2)*SQRT(29000*D$14*D$46/D$42) -> 51.59651151
E127: Equation | F127: N | G127: N/d
F128: (in)
E129: J10-5a | F129: =(C120/F125-1)/3/((D$42/D$46)^1.5)*D$41 -> 5.409038332 | G129: =+F129/D$41 -> 0.305595386 | H129: =IF(G129<=0.2,"Use this one","DON'T USE THIS ONE!!!") -> DON'T USE THIS ONE!!!
E130: J10-5b | F130: =((+C120/F125-1)/((D$42/D$46)^1.5)+0.2)*D$41/4 -> 4.941778749 | G130: =+F130/D$41 -> 0.2791965395 | H130: =IF(G130<=0.2,"J10-5a","J10-5b") -> J10-5b
E132: lb > = | F132: =IF(G129<=0.2,F129,F130) -> 4.941778749 | G132: in
B134: The available wall width is 10" so bearing stiffeners are required, but not part of this problem.
B136: Use N: | C136: 5 | D136: in
B137: Req'd / Act | C137: =MAX(C125,F132)/C136 -> 0.9883557498 | D137: =IF(C137<=1,"Good",IF(C137<=1.03,"Close","No Good, Use bearing stiffeners")) -> Good
B139: Compute req'd plate width, B
B140: Place the plate in the center of the wall
B141: Since the bearing plate is not the full width of the wall, A1 < A2 in SCM Eq J8-2,
B143: N1 = | C143: =+C136 -> 5 | D143: in
B144: N2 = | C144: =+F20 -> 10 | D144: in
B145: Req'd B >= | C145: =+C120/(C$17/1000*MIN(0.85*C144,1.7*C143)) -> 3.123529412 | D145: in
B147: Use B: | C147: 4 | D147: in
B148: Req'd / Act | C148: =+C145/C147 -> 0.7808823529 | D148: =IF(C148<=1,"Good",IF(C148<=1.03,"Close","No Good")) -> Good
B150: Compute req'd plate thickness, t
B151: (B-C)/2 = | C151: =+(C147/2-D$44) -> 1.173 | D151: in
B152: t >= | C152: =+C151*SQRT(2*C120/D$15/C136/C147) -> 0.5517465825 | D152: in
C153: =+C152*16 -> 8.827945319 | D153: / 16 inch
B155: Use t: | C155: 0.625 | D155: in <--- B chosen so that t comes out same thickness as for part (a)
B156: Req'd / Act | C156: =+C152/C155 -> 0.8827945319 | D156: =IF(C156<=1,"Good",IF(C156<=1.03,"Close","No Good")) -> Good

Sheet StlProps (hidden)
B2: Fy | C2: Fu
A3: A36 | B3: 36 | C3: 58
A4: A36, PL of 8" thick | B4: 32 | C4: 58
A5: A500 Gr B, Rect HSS | B5: 46 | C5: 58
A6: A500 Gr B, Rnd HSS | B6: 42 | C6: 58
A7: A53 Gr. B, Pipe | B7: 35 | C7: 60
A8: A572 Gr 50 | B8: 50 | C8: 65
A9: A588 | B9: 50 | C9: 70
A10: A992 | B10: 50 | C10: 65

Sheet ZxTables (hidden)
G1: Tables Sorted by Zx
A3: RndHSS | F3: RectHSS | K3: Channels | L3: W | M3: ZX | P3: Ishapes | Q3: W | R3: ZX
A4: ---- | F4: ---- | K4: ---- | P4: ----
A5: HSS20X0.500 | B5: 104 | C5: 177 | D5: =IF(AND(B5<B6,B5<B4),"A Best Choice"," ") ->  | F5: HSS20X12X5/8 | G5: 127 | H5: 230 | I5: =IF(AND(G5<G6,G5<G4),"A Best Choice"," ") ->  | K5: MC18X58 | L5: 58 | M5: 95.4 | P5: W36X800 | Q5: 800 | R5: 3650 | S5: =IF(AND(Q5<Q6,Q5<Q3),"A Best Choice"," ") -> 
A6: HSS18X0.500 | B6: 93.5387396 | C6: 143 | D6: A Best Choice | F6: HSS16X16X5/8 | G6: 127 | H6: 200 | K6: MC18X51.9 | L6: 51.9 | M6: 87.3 | N6: =IF(AND(L6<L7,L6<L5),"A Best Choice"," ") ->  | P6: W36X652 | Q6: 652 | R6: 2910 | S6: =IF(AND(Q6<Q7,Q6<Q5),"A Best Choice"," ") -> 
A7: HSS16X0.625 | B7: 103 | C7: 138 | F7: HSS20X12X1/2 | G7: 103 | H7: 188 | I7: A Best Choice | K7: MC18X45.8 | L7: 45.8 | M7: 79.2 | P7: W40X593 | Q7: 593 | R7: 2760
A8: HSS20X0.375 | B8: 78.67276134 | C8: 135 | D8: A Best Choice | F8: HSS20X8X5/8 | G8: 110 | H8: 185 | K8: MC18X42.7 | L8: 42.7 | M8: 75.1 | N8: A Best Choice | P8: W36X529 | Q8: 529 | R8: 2330
A9: HSS16X0.500 | B9: 82.84859793 | C9: 112 | F9: HSS16X12X5/8 | G9: 110 | H9: 165 | K9: C15X50 | L9: 50 | M9: 68.5 | P9: W40X503 | Q9: 503 | R9: 2320
A10: HSS18X0.375 | B10: 70.65515509 | C10: 109 | D10: A Best Choice | F10: HSS16X16X1/2 | G10: 103 | H10: 164 | K10: MC13X50 | L10: 50 | M10: 60.8 | P10: W36X487 | Q10: 487 | R10: 2130
A11: HSS14X0.625 | B11: 89.36290301 | C11: 105 | F11: HSS20X8X1/2 | G11: 89.55387209 | H11: 152 | I11: A Best Choice | K11: C15X40 | L11: 40 | M11: 57.5 | N11: A Best Choice | P11: W40X431 | Q11: 431 | R11: 1960 | S11: A Best Choice
A12: HSS16X0.438 | B12: 72.86567327 | C12: 99 | F12: HSS14X14X5/8 | G12: 110 | H12: 151 | K12: MC12X50 | L12: 50 | M12: 56.5 | P12: W36X441 | Q12: 442 | R12: 1910
A13: HSS16X0.375 | B13: 62.63754884 | C13: 85.5 | D13: A Best Choice | F13: HSS20X12X3/8 | G13: 78.44745984 | H13: 144 | I13: A Best Choice | K13: MC12X45 | L13: 45 | M13: 52 | P13: W27X539 | Q13: 539 | R13: 1890
A14: HSS14X0.500 | B14: 72.15845626 | C14: 85.2 | F14: HSS16X12X1/2 | G14: 89.55387209 | H14: 135 | K14: MC13X40 | L14: 40 | M14: 51.2 | P14: W40X397 | Q14: 397 | R14: 1800
A15: HSS16X0.312 | B15: 52.32456606 | C15: 71.8 | D15: A Best Choice | F15: HSS18X6X5/8 | G15: 93.09940885 | H15: 135 | K15: C15X33.9 | L15: 33.9 | M15: 50.8 | N15: A Best Choice | P15: W36X395 | Q15: 395 | R15: 1710
A16: HSS12.750X0.500 | B16: 65.47711772 | C16: 70.2 | F16: HSS16X8X5/8 | G16: 93.09940885 | H16: 129 | K16: MC12X40 | L16: 40 | M16: 47.7 | P16: W40X392 | Q16: 392 | R16: 1710
A17: HSS14X0.375 | B17: 54.61994259 | C17: 65.1 | F17: HSS16X16X3/8 | G17: 78.44745984 | H17: 126 | I17: A Best Choice | K17: MC13X35 | L17: 35 | M17: 46.5 | P17: W40X372 | Q17: 372 | R17: 1680 | S17: A Best Choice
A18: HSS16X0.250 | B18: 42.09243282 | C18: 57.9 | D18: A Best Choice | F18: HSS14X14X1/2 | G18: 89.55387209 | H18: 124 | K18: MC13X31.8 | L18: 31.8 | M18: 43.4 | N18: A Best Choice | P18: W14X730 | Q18: 730 | R18: 1660
A19: HSS14X0.312 | B19: 45.65391766 | C19: 54.7 | F19: HSS20X12X5/16 | G19: 65.82026955 | H19: 122 | I19: A Best Choice | K19: MC12X35 | L19: 35 | M19: 43.2 | P19: W40X362 | Q19: 362 | R19: 1640
A20: HSS12.750X0.375 | B20: 49.60893868 | C20: 53.7 | F20: HSS14X10X5/8 | G20: 93.09940885 | H20: 120 | K20: MC12X31 | L20: 31 | M20: 39.7 | N20: A Best Choice | P20: W44X335 | Q20: 335 | R20: 1620 | S20: A Best Choice
A21: HSS10X0.625 | B21: 62.63754884 | C21: 51.6 | F21: HSS20X8X3/8 | G21: 68.29059284 | H21: 117 | I21: A Best Choice | K21: MC10X41.1 | L21: 41.1 | M21: 39.3 | P21: W33X387 | Q21: 387 | R21: 1560
A22: HSS10.750X0.500 | B22: 54.78697605 | C22: 49.2 | F22: HSS20X4X1/2 | G22: 75.94276098 | H22: 115 | K22: C12X30 | L22: 30 | M22: 33.8 | N22: A Best Choice | P22: W36X361 | Q22: 361 | R22: 1550 | S22: A Best Choice
A23: HSS14X0.250 | B23: 36.74736199 | C23: 44.2 | D23: A Best Choice | F23: HSS18X6X1/2 | G23: 75.94276098 | H23: 112 | K23: MC10X33.6 | L23: 33.6 | M23: 33.7 | P23: W14X665 | Q23: 665 | R23: 1480
A24: HSS10X0.500 | B24: 50.77817293 | C24: 42.3 | F24: HSS12X12X5/8 | G24: 93.13891918 | H24: 109 | K24: MC10X28.5 | L24: 28.5 | M24: 30 | P24: W40X324 | Q24: 324 | R24: 1460 | S24: A Best Choice
A25: HSS9.625X0.500 | B25: 48.77377136 | C25: 39 | F25: HSS16X16X5/16 | G25: 65.82026955 | H25: 106 | I25: A Best Choice | K25: C12X25 | L25: 25 | M25: 29.4 | N25: A Best Choice | P25: W30X391 | Q25: 391 | R25: 1450
A26: HSS10.750X0.375 | B26: 41.59133243 | C26: 37.8 | D26: A Best Choice | F26: HSS16X8X1/2 | G26: 75.94276098 | H26: 106 | K26: C10X30 | L26: 30 | M26: 26.7 | P26: W40X331 | Q26: 331 | R26: 1430 | S26: A Best Choice
A27: HSS8.625X0.625 | B27: 53.45070834 | C27: 37.7 | F27: HSS16X12X3/8 | G27: 68.29059284 | H27: 104 | I27: A Best Choice | K27: MC10X25 | L27: 25 | M27: 26.2 | P27: W33X354 | Q27: 354 | R27: 1420
A28: HSS12.750X0.250 | B28: 33.40669271 | C28: 36.5 | D28: A Best Choice | F28: HSS14X10X1/2 | G28: 75.94276098 | H28: 98.8 | K28: C12X20.7 | L28: 20.7 | M28: 25.6 | N28: A Best Choice | P28: W36X330 | Q28: 330 | R28: 1410
A29: HSS10X0.375 | B29: 38.58473008 | C29: 32.5 | F29: HSS20X8X5/16 | G29: 57.3133251 | H29: 98.6 | I29: A Best Choice | K29: MC10X22 | L29: 22 | M29: 23.9 | P29: W40X327 | Q29: 327 | R29: 1410
A30: HSS8.625X0.500 | B30: 43.42870053 | C30: 31 | F30: HSS14X14X3/8 | G30: 68.2391265 | H30: 95.4 | K30: MC9X25.4 | L30: 25.4 | M30: 23.5 | P30: W44X290 | Q30: 290 | R30: 1410 | S30: A Best Choice
A31: HSS9.625X0.375 | B31: 37.08142891 | C31: 30 | F31: HSS16X4X5/8 | G31: 76.09368662 | H31: 92.9 | K31: C10X25 | L31: 25 | M31: 23.1 | P31: W40X297 | Q31: 297 | R31: 1330
A32: HSS10X0.312 | B32: 32.31262086 | C32: 27.4 | F32: HSS12X12X1/2 | G32: 75.94276098 | H32: 89.6 | K32: MC9X23.9 | L32: 23.9 | M32: 22.5 | P32: W14X605 | Q32: 605 | R32: 1320
A33: HSS10.750X0.250 | B33: 28.06162188 | C33: 25.8 | D33: A Best Choice | F33: HSS20X4X3/8 | G33: 58.07409284 | H33: 89.3 | I33: A Best Choice | K33: C10X20 | L33: 20 | M33: 19.4 | N33: A Best Choice | P33: W30X357 | Q33: 357 | R33: 1320
A34: HSS9.625X0.312 | B34: 31.06187428 | C34: 25.4 | F34: HSS14X6X5/8 | G34: 76.09368662 | H34: 88.7 | K34: MC8X22.8 | L34: 22.8 | M34: 19.1 | P34: W36X302 | Q34: 302 | R34: 1280 | S34: A Best Choice
A35: HSS8.625X0.375 | B35: 33.07262579 | C35: 23.9 | F35: HSS16X12X5/16 | G35: 57.38320999 | H35: 87.7 | I35: A Best Choice | K35: MC8X21.4 | L35: 21.4 | M35: 18.2 | P35: W33X318 | Q35: 318 | R35: 1270
A36: HSS7.500X0.500 | B36: 37.41549584 | C36: 23 | F36: HSS18X6X3/8 | G36: 58.07409284 | H36: 86.4 | K36: C9X20 | L36: 20 | M36: 16.9 | N36: A Best Choice | P36: W40X294 | Q36: 294 | R36: 1270
A37: HSS10X0.250 | B37: 26.05722032 | C37: 22.2 | D37: =IF(AND(B37<B38,B37<B36),"A Best Choice"," ") -> A Best Choice | F37: HSS16X8X3/8 | G37: 58.07409284 | H37: 82.1 | K37: MC7X22.7 | L37: 22.7 | M37: 16.4 | P37: W44X262 | Q37: 262 | R37: 1270 | S37: A Best Choice
A38: HSS8.625X0.322 | B38: 28.5807993 | C38: 20.8 | F38: HSS12X8X5/8 | G38: 76.12503029 | H38: 82.1 | K38: MC8X20 | L38: 20 | M38: 16.4 | N38: =IF(AND(L38<L39,L38<L37),"A Best Choice"," ") ->  | P38: W40X277 | Q38: 277 | R38: 1250
A39: HSS9.625X0.250 | B39: 25.05501954 | C39: 20.6 | D39: A Best Choice | F39: HSS14X14X5/16 | G39: 57.3133251 | H39: 80.5 | I39: A Best Choice | K39: C10X15.3 | L39: 15.3 | M39: 15.9 | N39: A Best Choice | P39: W27X368 | Q39: 368 | R39: 1240
A40: HSS7X0.500 | B40: 34.74296042 | C40: 19.9 | F40: HSS12X10X1/2 | G40: 69.13720542 | H40: 78.8 | K40: MC8X18.7 | L40: 18.7 | M40: 15.6 | P40: W30X326 | Q40: 326 | R40: 1190
A41: HSS6.875X0.500 | B41: 34.07482657 | C41: 19.1 | F41: HSS16X4X1/2 | G41: 62.33164987 | H41: 77.3 | K41: MC7X19.1 | L41: 19.1 | M41: 14.5 | P41: W36X282 | Q41: 282 | R41: 1190
A42: HSS7.625X0.375 | B42: 29.06382266 | C42: 18.5 | F42: HSS14X10X3/8 | G42: 58.07409284 | H42: 76.3 | K42: C8X18.7 | L42: 18.7 | M42: 13.9 | P42: W40X278 | Q42: 278 | R42: 1190 | S42: A Best Choice
A43: HSS7.500X0.375 | B43: 28.56272227 | C43: 17.9 | D43: A Best Choice | F43: HSS20X4X5/16 | G43: 48.86537666 | H43: 75.6 | I43: A Best Choice | K43: C9X15 | L43: 15 | M43: 13.6 | P43: W14X550 | Q43: 550 | R43: 1180
A44: HSS6.625X0.500 | B44: 32.73855886 | C44: 17.7 | F44: HSS14X6X1/2 | G44: 62.33164987 | H44: 73.6 | K44: C9X13.4 | L44: 13.4 | M44: 12.6 | N44: A Best Choice | P44: W33X291 | Q44: 291 | R44: 1160 | S44: A Best Choice
A45: HSS10X0.188 | B45: 19.71963397 | C45: 16.8 | D45: A Best Choice | F45: HSS10X10X5/8 | G45: 76.12503029 | H45: 73.2 | K45: MC6X18 | L45: 18 | M45: 11.7 | P45: W24X370 | Q45: 370 | R45: 1130
A46: HSS8.625X0.250 | B46: 22.38248412 | C46: 16.4 | F46: HSS18X6X5/16 | G46: 48.86537666 | H46: 73.1 | I46: A Best Choice | K46: MC12X10.6 | L46: 10.6 | M46: 11.6 | N46: A Best Choice | P46: W27X336 | Q46: 336 | R46: 1130
A47: HSS7.625X0.328 | B47: 25.58595611 | C47: 16.4 | F47: HSS14X4X5/8 | G47: 67.59082551 | H47: 73.1 | K47: C8X13.7 | L47: 13.7 | M47: 11 | P47: W40X264 | Q47: 264 | R47: 1130
A48: HSS6.625X0.432 | B48: 28.60014846 | C48: 15.6 | F48: HSS16X8X5/16 | G48: 48.86537666 | H48: 69.4 | I48: A Best Choice | K48: MC6X16.3 | L48: 16.3 | M48: 10.4 | P48: W40X249 | Q48: 249 | R48: 1120 | S48: A Best Choice
A49: HSS9.625X0.188 | B49: 18.96597898 | C49: 15.5 | D49: A Best Choice | F49: HSS12X12X3/8 | G49: 58.03079317 | H49: 69.2 | K49: MC6X15.3 | L49: 15.3 | M49: 9.91 | P49: W36X262 | Q49: 262 | R49: 1100
A50: HSS7X0.375 | B50: 26.55832071 | C50: 15.5 | F50: HSS12X6X5/8 | G50: 67.61808585 | H50: 68.8 | K50: MC6X15.1 | L50: 15.1 | M50: 9.83 | P50: W44X230 | Q50: 230 | R50: 1100 | S50: A Best Choice
A51: HSS7.500X0.312 | B51: 23.97431035 | C51: 15.1 | D51: A Best Choice | F51: HSS12X8X1/2 | G51: 62.33164987 | H51: 68.1 | K51: C7X14.7 | L51: 14.7 | M51: 9.75 | P51: W30X292 | Q51: 292 | R51: 1060
A52: HSS6.875X0.375 | B52: 26.05722032 | C52: 14.9 | F52: HSS14X10X5/16 | G52: 48.86537666 | H52: 64.6 | I52: A Best Choice | K52: C8X11.5 | L52: 11.5 | M52: 9.63 | N52: A Best Choice | P52: W14X500 | Q52: 500 | R52: 1050
A53: HSS6X0.500 | B53: 29.39788959 | C53: 14.3 | F53: HSS10X8X5/8 | G53: 67.61808585 | H53: 62.2 | K53: C7X12.2 | L53: 12.2 | M53: 8.46 | P53: W33X263 | Q53: 263 | R53: 1040
A54: HSS6.625X0.375 | B54: 25.05501954 | C54: 13.8 | F54: HSS20X4X1/4 | G54: 39.47833964 | H54: 61.5 | I54: A Best Choice | K54: MC10X8.4 | L54: 8.4 | M54: 7.92 | N54: A Best Choice | P54: W36X256 | Q54: 256 | R54: 1040 | S54: A Best Choice
A55: HSS7X0.312 | B55: 22.30664825 | C55: 13.1 | F55: HSS12X10X3/8 | G55: 52.9266265 | H55: 61.1 | K55: MC6X12 | L55: 12 | M55: 7.47 | P55: W27X307 | Q55: 307 | R55: 1030
A56: HSS6.875X0.312 | B56: 21.88973273 | C56: 12.6 | F56: HSS14X4X1/2 | G56: 55.52609431 | H56: 61 | K56: C6X13 | L56: 13 | M56: 7.29 | P56: W36X247 | Q56: 247 | R56: 1030 | S56: A Best Choice
A57: HSS8.625X0.188 | B57: 16.95623235 | C57: 12.4 | D57: A Best Choice | F57: HSS10X10X1/2 | G57: 62.33164987 | H57: 60.7 | K57: C7X9.8 | L57: 9.8 | M57: 7.19 | P57: W24X335 | Q57: 335 | R57: 1020
A58: HSS7.500X0.250 | B58: 19.37588177 | C58: 12.3 | F58: HSS16X4X3/8 | G58: 47.85759284 | H58: 60.2 | K58: MC8X8.5 | L58: 8.5 | M58: 6.95 | N58: A Best Choice | P58: W40X235 | Q58: 235 | R58: 1010
A59: HSS5.563X0.500 | B59: 27.06209363 | C59: 12.1 | F59: HSS18X6X1/4 | G59: 39.47833964 | H59: 59.4 | I59: A Best Choice | K59: C6X10.5 | L59: 10.5 | M59: 6.18 | P59: W40X215 | Q59: 215 | R59: 964 | S59: A Best Choice
A60: HSS5.500X0.500 | B60: 26.72535417 | C60: 11.8 | F60: HSS12X12X5/16 | G60: 48.80638066 | H60: 58.6 | K60: MC10X6.5 | L60: 6.5 | M60: 5.9 | N60: A Best Choice | P60: W36X231 | Q60: 230 | R60: 963
A61: HSS6.625X0.312 | B61: 21.05590168 | C61: 11.7 | D61: A Best Choice | F61: HSS9X9X5/8 | G61: 67.61808585 | H61: 58.1 | K61: MC4x13.8 | L61: 13.8 | M61: 5.53 | P61: W30X261 | Q61: 261 | R61: 943
A62: HSS6X0.375 | B62: 22.54951758 | C62: 11.2 | F62: HSS12X6X1/2 | G62: 55.52609431 | H62: 57.4 | K62: C6X8.2 | L62: 8.2 | M62: 5.16 | P62: W33X241 | Q62: 241 | R62: 940 | S62: A Best Choice
A63: HSS7X0.250 | B63: 18.03961407 | C63: 10.7 | D63: A Best Choice | F63: HSS14X6X3/8 | G63: 47.85759284 | H63: 57.3 | K63: MC6x7 | L63: 7 | M63: 4.5 | N63: A Best Choice | P63: W14X455 | Q63: 455 | R63: 936
A64: HSS6.625X0.280 | B64: 18.99210569 | C64: 10.5 | F64: HSS16X8X1/4 | G64: 39.47833964 | H64: 56.4 | I64: A Best Choice | K64: C5X9 | L64: 9 | M64: 4.39 | P64: W27X281 | Q64: 281 | R64: 936
A65: HSS6.875X0.250 | B65: 17.70554714 | C65: 10.3 | D65: A Best Choice | F65: HSS12X4X5/8 | G65: 59.1111414 | H65: 55.5 | K65: MC6x6.5 | L65: 6.5 | M65: 4.28 | N65: A Best Choice | P65: W36X232 | Q65: 232 | R65: 936 | S65: A Best Choice
A66: HSS5X0.500 | B66: 24.05281875 | C66: 9.6 | F66: HSS12X8X3/8 | G66: 47.82245984 | H66: 53 | K66: C5X6.7 | L66: 6.7 | M66: 3.55 | P66: W24X306 | Q66: 306 | R66: 922
A67: HSS6.625X0.250 | B67: 17.03741328 | C67: 9.52 | D67: A Best Choice | F67: HSS14X10X1/4 | G67: 39.47833964 | H67: 52.4 | I67: A Best Choice | K67: C4X7.2 | L67: 7.2 | M67: 2.84 | P67: W40X211 | Q67: 211 | R67: 906 | S67: A Best Choice
A68: HSS5.563X0.375 | B68: 20.79767062 | C68: 9.5 | F68: HSS10X8X1/2 | G68: 55.52609431 | H68: 51.9 | K68: C4X5.4 | L68: 5.4 | M68: 2.29 | N68: A Best Choice | P68: W14X426 | Q68: 426 | R68: 869
A69: HSS6X0.312 | B69: 18.97132405 | C69: 9.49 | D69: =IF(AND(B69<B70,B69<B68),"A Best Choice"," ") ->  | F69: HSS12X10X5/16 | G69: 44.61984788 | H69: 51.7 | I69: =IF(AND(G69<G70,G69<G68),"A Best Choice"," ") -> A Best Choice | K69: MC3x7.1 | L69: 7.1 | M69: 2.24 | P69: W40X199 | Q69: 199 | R69: 869 | S69: A Best Choice
A70: HSS7.500X0.188 | B70: 14.69526739 | C70: 9.34 | D70: A Best Choice | F70: HSS10X6X5/8 | G70: 59.1111414 | H70: 51.3 | K70: C4X4.5 | L70: 4.5 | M70: 2.12 | N70: A Best Choice | P70: W33X221 | Q70: 221 | R70: 857 | S70: =IF(AND(Q70<Q71,Q70<Q69),"A Best Choice"," ") -> 
A71: HSS5.500X0.375 | B71: 20.54511602 | C71: 9.27 | F71: HSS16X4X5/16 | G71: 40.34754333 | H71: 51.1 | K71: C3X6 | L71: 6 | M71: 1.74 | P71: W27X258 | Q71: 258 | R71: 852
A72: HSS6X0.280 | B72: 17.1213309 | C72: 8.57 | F72: HSS14X6X5/16 | G72: 40.34754333 | H72: 48.6 | K72: C3X5 | L72: 5 | M72: 1.52 | P72: W30X235 | Q72: 235 | R72: 847 | S72: A Best Choice
A73: HSS7X0.188 | B73: 13.69039407 | C73: 8.11 | F73: HSS9X9X1/2 | G73: 55.52609431 | H73: 48.4 | K73: C3X4.1 | L73: 4.1 | M73: 1.32 | P73: W24X279 | Q73: 279 | R73: 835
A74: HSS6.875X0.188 | B74: 13.43917574 | C74: 7.81 | D74: A Best Choice | F74: HSS9X7X5/8 | G74: 59.1111414 | H74: 48.3 | K74: C3X3.5 | L74: 3.5 | M74: 1.24 | N74: =IF(AND(L74<IxTables!#REF!,L74<L73),"A Best Choice"," ") ->  | P74: W36X210 | Q74: 210 | R74: 833 | S74: A Best Choice
A75: HSS6X0.250 | B75: 15.36707865 | C75: 7.75 | F75: HSS14X4X3/8 | G75: 42.74934284 | H75: 47.8 | P75: W14X398 | Q75: 398 | R75: 801
A76: HSS5X0.375 | B76: 18.54071446 | C76: 7.56 | F76: HSS12X12X1/4 | G76: 39.40301575 | H76: 47.6 | I76: A Best Choice | P76: W40X183 | Q76: 183 | R76: 774 | S76: A Best Choice
A77: HSS6.625X0.188 | B77: 12.93673908 | C77: 7.24 | D77: A Best Choice | F77: HSS10X10X3/8 | G77: 47.82245984 | H77: 47.2 | P77: W33X201 | Q77: 201 | R77: 773
A78: HSS5.563X0.258 | B78: 14.63149 | C78: 6.8 | F78: HSS12X4X1/2 | G78: 48.72053876 | H78: 46.7 | P78: W27X235 | Q78: 235 | R78: 772
A79: HSS5.500X0.258 | B79: 14.45773244 | C79: 6.64 | D79: A Best Choice | F79: HSS12X8X5/16 | G79: 40.3595701 | H79: 44.9 | I79: A Best Choice | P79: W36X194 | Q79: 194 | R79: 767 | S79: A Best Choice
A80: HSS5X0.312 | B80: 15.63599985 | C80: 6.46 | F80: HSS12X6X3/8 | G80: 42.71829317 | H80: 44.8 | P80: W18x311 | Q80: 311 | R80: 754
A81: HSS4.500X0.375 | B81: 16.53631289 | C81: 6.03 | F81: HSS8X8X5/8 | G81: 59.1111414 | H81: 44.7 | P81: W30X211 | Q81: 211 | R81: 751 | S81: A Best Choice
A82: HSS6X0.188 | B82: 11.68064743 | C82: 5.91 | F82: HSS10X6X1/2 | G82: 48.72053876 | H82: 43 | P82: W24X250 | Q82: 250 | R82: 744
A83: HSS7X0.125 | B83: 9.186840496 | C83: 5.5 | D83: A Best Choice | F83: HSS12X10X1/4 | G83: 36.00023797 | H83: 42.1 | P83: W14X370 | Q83: 370 | R83: 736
A84: HSS4.500X0.337 | B84: 14.99753114 | C84: 5.5 | F84: HSS16X4X1/4 | G84: 32.65917297 | H84: 41.7 | I84: A Best Choice | P84: W36X182 | Q84: 182 | R84: 718 | S84: A Best Choice
A85: HSS5X0.258 | B85: 13.07870416 | C85: 5.44 | F85: HSS14X4X5/16 | G85: 36.08862666 | H85: 40.6 | P85: W27X217 | Q85: 217 | R85: 711
A86: HSS5X0.250 | B86: 12.69454323 | C86: 5.3 | F86: HSS10X8X3/8 | G86: 42.71829317 | H86: 40.5 | P86: W40X167 | Q86: 167 | R86: 693 | S86: A Best Choice
A87: HSS5.563X0.188 | B87: 10.80238816 | C87: 5.05 | F87: HSS9X7X1/2 | G87: 48.72053876 | H87: 40.5 | P87: W18x283 | Q87: 283 | R87: 676
A88: HSS6.625X0.125 | B88: 8.685740106 | C88: 4.92 | D88: A Best Choice | F88: HSS10X4X5/8 | G88: 50.60419696 | H88: 40.3 | P88: W24X229 | Q88: 229 | R88: 675
A89: HSS5X0.188 | B89: 9.670900801 | C89: 4.05 | F89: HSS10X10X5/16 | G89: 40.29943622 | H89: 40.1 | P89: W30X191 | Q89: 191 | R89: 675 | S89: A Best Choice
A90: HSS4.500X0.237 | B90: 10.80058152 | C90: 4.03 | F90: HSS14X6X1/4 | G90: 32.65917297 | H90: 39.6 | I90: A Best Choice | P90: W14X342 | Q90: 342 | R90: 672
A91: HSS6X0.125 | B91: 7.850572788 | C91: 4.02 | D91: A Best Choice | F91: HSS9X5X5/8 | G91: 50.60419696 | H91: 38.5 | P91: W36X170 | Q91: 170 | R91: 668 | S91: A Best Choice
A92: HSS4X0.313 | B92: 12.33675488 | C92: 4.01 | F92: HSS12X6X5/16 | G92: 36.09929233 | H92: 38.1 | I92: A Best Choice | P92: W27X194 | Q92: 194 | R92: 631
A93: HSS5.563X0.134 | B93: 7.776928402 | C93: 3.67 | D93: A Best Choice | F93: HSS9X9X3/8 | G93: 42.71829317 | H93: 37.8 | P93: W33X169 | Q93: 169 | R93: 629
A94: HSS4X0.250 | B94: 10 | C94: 3.31 | F94: HSS8X8X1/2 | G94: 48.72053876 | H94: 37.5 | P94: W36X160 | Q94: 160 | R94: 624 | S94: A Best Choice
A95: HSS4.500X0.188 | B95: 8.666027484 | C95: 3.26 | D95: A Best Choice | F95: HSS12X4X3/8 | G95: 37.6141265 | H95: 36.7 | P95: W18x258 | Q95: 258 | R95: 611
A96: HSS4X0.237 | B96: 9.533799734 | C96: 3.15 | F96: HSS12X8X1/4 | G96: 32.59746019 | H96: 36.6 | I96: A Best Choice | P96: W30X173 | Q96: 173 | R96: 607 | S96: A Best Choice
A97: HSS4X0.226 | B97: 9.117878392 | C97: 3.02 | D97: A Best Choice | F97: HSS8X6X5/8 | G97: 50.60419696 | H97: 36.1 | P97: W24X207 | Q97: 207 | R97: 606
A98: HSS3.500X0.313 | B98: 10.66374771 | C98: 3 | F98: HSS12X12X3/16 | G98: 29.81971419 | H98: 36 | I98: A Best Choice | P98: W12X336 | Q98: 336 | R98: 603
A99: HSS4X0.220 | B99: 8.889921811 | C99: 2.96 | D99: A Best Choice | F99: HSS12X3-1/2X3/8 | G99: 36.33808484 | H99: 34.7 | P99: W14X311 | Q99: 311 | R99: 603
A100: HSS3.500X0.300 | B100: 10.262536 | C100: 2.9 | F100: HSS10X8X5/16 | G100: 36.09929233 | H100: 34.4 | I100: A Best Choice | P100: W40X149 | Q100: 149 | R100: 598 | S100: A Best Choice
A101: HSS5X0.125 | B101: 6.514305079 | C101: 2.77 | D101: =IF(AND(B101<B102,B101<B100),"A Best Choice"," ") -> A Best Choice | F101: HSS10X4X1/2 | G101: 41.9149832 | H101: 34.1 | P101: W36X150 | Q101: 150 | R101: 581
A102: HSS4X0.188 | B102: 7.661154168 | C102: 2.55 | F102: HSS10X6X3/8 | G102: 37.6141265 | H102: 33.8 | P102: W27X178 | Q102: 178 | R102: 570
A103: HSS3.500X0.250 | B103: 8.685740106 | C103: 2.49 | F103: HSS14X4X1/4 | G103: 29.24958964 | H103: 33.2 | I103: A Best Choice | P103: W24X192 | Q103: 192 | R103: 559
A104: HSS4.500X0.125 | B104: 5.846171225 | C104: 2.23 | D104: A Best Choice | F104: HSS7X7X5/8 | G104: 50.60419696 | H104: 33.1 | P104: W33X152 | Q104: 152 | R104: 559 | S104: A Best Choice
A105: HSS3.500X0.216 | B105: 7.582987852 | C105: 2.19 | F105: HSS10X10X1/4 | G105: 32.59746019 | H105: 32.7 | I105: A Best Choice | P105: W18x234 | Q105: 234 | R105: 549
A106: HSS3.500X0.203 | B106: 7.154815607 | C106: 2.07 | F106: HSS9X5X1/2 | G106: 41.9149832 | H106: 32.5 | P106: W14X283 | Q106: 283 | R106: 542
A107: HSS3.500X0.188 | B107: 6.656280851 | C107: 1.93 | D107: A Best Choice | F107: HSS9X9X5/16 | G107: 36.04596399 | H107: 32.1 | I107: A Best Choice | P107: W12X305 | Q107: 305 | R107: 537
A108: HSS3X0.250 | B108: 7.349472397 | C108: 1.79 | F108: HSS10X3-1/2X1/2 | G108: 40.21359431 | H108: 31.9 | P108: W21X201 | Q108: 201 | R108: 530
A109: HSS4X0.125 | B109: 5.178037371 | C109: 1.75 | D109: A Best Choice | F109: HSS9X7X3/8 | G109: 37.6141265 | H109: 31.8 | P109: W27X161 | Q109: 161 | R109: 515
A110: HSS2.875X0.250 | B110: 7.01540547 | C110: 1.63 | F110: HSS16X4X3/16 | G110: 24.66489241 | H110: 31.7 | I110: A Best Choice | P110: W33X141 | Q110: 141 | R110: 514 | S110: A Best Choice
A111: HSS3X0.216 | B111: 6.428452551 | C111: 1.58 | F111: HSS12X4X5/16 | G111: 31.83901455 | H111: 31.3 | P111: W24X176 | Q111: 176 | R111: 511
A112: HSS3X0.203 | B112: 6.069766228 | C112: 1.5 | F112: HSS12X6X1/4 | G112: 29.19468241 | H112: 31.1 | I112: A Best Choice | P112: W36X135 | Q112: 135 | R112: 509 | S112: A Best Choice
A113: HSS3X0.188 | B113: 5.651407534 | C113: 1.39 | D113: A Best Choice | F113: HSS8X6X1/2 | G113: 41.9149832 | H113: 30.5 | P113: W30X148 | Q113: 148 | R113: 500
A114: HSS2.875X0.203 | B114: 5.798503883 | C114: 1.37 | F114: HSS10X5X3/8 | G114: 35.06204317 | H114: 30.4 | P114: W18x211 | Q114: 211 | R114: 490
A115: HSS3.500X0.125 | B115: 4.509903516 | C115: 1.33 | D115: A Best Choice | F115: HSS14X6X3/16 | G115: 24.66489241 | H115: 30.1 | I115: A Best Choice | P115: W14X257 | Q115: 257 | R115: 487
A116: HSS2.875X0.188 | B116: 5.400189205 | C116: 1.27 | F116: HSS12X3-1/2X5/16 | G116: 30.7739451 | H116: 29.6 | P116: W12X279 | Q116: 279 | R116: 481
A117: HSS2.500X0.250 | B117: 6.013204689 | C117: 1.2 | F117: HSS8X8X3/8 | G117: 37.6141265 | H117: 29.4 | P117: W21X182 | Q117: 182 | R117: 476
A118: HSS3X0.152 | B118: 4.627719568 | C118: 1.15 | D118: A Best Choice | F118: HSS10X6X5/16 | G118: 31.83901455 | H118: 28.8 | P118: W24X162 | Q118: 162 | R118: 468
A119: HSS2.375X0.250 | B119: 5.679137761 | C119: 1.07 | F119: HSS10X8X1/4 | G119: 29.19468241 | H119: 28.1 | I119: A Best Choice | P119: W33X130 | Q119: 130 | R119: 467 | S119: A Best Choice
A120: HSS3X0.134 | B120: 4.105484767 | C120: 1.03 | F120: HSS12X3X5/16 | G120: 29.70887566 | H120: 27.9 | P120: W27X146 | Q120: 146 | R120: 464
A121: HSS3X0.125 | B121: 3.841769662 | C121: 0.965 | D121: A Best Choice | F121: HSS7X7X1/2 | G121: 41.9149832 | H121: 27.9 | P121: W18x192 | Q121: 192 | R121: 442
A122: HSS2.375X0.218 | B122: 5.026782556 | C122: 0.96 | F122: HSS12X8X3/16 | G122: 24.77886641 | H122: 27.8 | I122: A Best Choice | P122: W30X132 | Q122: 132 | R122: 437 | S122: A Best Choice
A123: HSS2.500X0.188 | B123: 4.646534217 | C123: 0.943 | F123: HSS8X4X5/8 | G123: 42.09725251 | H123: 27.4 | P123: W14X233 | Q123: 233 | R123: 436
A124: HSS2.875X0.125 | B124: 3.674736199 | C124: 0.884 | D124: A Best Choice | F124: HSS9X7X5/16 | G124: 31.83901455 | H124: 27.1 | I124: A Best Choice | P124: W21X166 | Q124: 166 | R124: 432 | S124: A Best Choice
A125: HSS2.375X0.188 | B125: 4.395315888 | C125: 0.845 | F125: HSS10X4X3/8 | G125: 32.50995984 | H125: 27 | P125: W12X252 | Q125: 252 | R125: 428
A126: HSS2.375X0.154 | B126: 3.656391915 | C126: 0.713 | F126: HSS9X9X1/4 | G126: 29.19468241 | H126: 26.2 | I126: A Best Choice | P126: W24X146 | Q126: 146 | R126: 418
A127: HSS2.500X0.125 | B127: 3.173635808 | C127: 0.66 | F127: HSS10X5X5/16 | G127: 29.70887566 | H127: 26 | P127: W33X118 | Q127: 118 | R127: 415 | S127: A Best Choice
A128: HSS2.375X0.125 | B128: 3.006602344 | C128: 0.592 | D128: A Best Choice | F128: HSS9X5X3/8 | G128: 32.50995984 | H128: 25.7 | P128: W30X124 | Q128: 124 | R128: 408
A129: HSS1.900X0.188 | B129: 3.440686237 | C129: 0.52 | F129: HSS12X4X1/4 | G129: 25.79190464 | H129: 25.6 | P129: W18X175 | Q129: 175 | R129: 398
A130: HSS1.900X0.145 | B130: 2.720373801 | C130: 0.421 | F130: HSS14X4X3/16 | G130: 22.11825352 | H130: 25.3 | I130: A Best Choice | P130: W27X129 | Q130: 129 | R130: 395 | S130: A Best Choice
A131: HSS1.900X0.120 | B131: 2.28341426 | C131: 0.356 | F131: HSS10X3-1/2X3/8 | G131: 31.23391817 | H131: 25.3 | P131: W14X211 | Q131: 211 | R131: 390
A132: HSS1.660X0.140 | B132: 2.274862147 | C132: 0.305 | F132: HSS8X8X5/16 | G132: 31.79249177 | H132: 25.1 | P132: W12X230 | Q132: 230 | R132: 386
F133: HSS10X10X3/16 | G133: 24.71554752 | H133: 24.8 | I133: =IF(AND(G133<G134,G133<G132),"A Best Choice"," ") -> A Best Choice | P133: W30X116 | Q133: 116 | R133: 378 | S133: A Best Choice
F134: HSS9X3X1/2 | G134: 35.10942765 | H134: 24.6 | P134: W21X147 | Q134: 147 | R134: 373 | S134: =IF(AND(Q134<Q135,Q134<Q133),"A Best Choice"," ") -> 
F135: HSS12X2X5/16 | G135: 27.57873677 | H135: 24.5 | I135: A Best Choice | P135: W24X131 | Q135: 131 | R135: 370 | S135: A Best Choice
F136: HSS8X6X3/8 | G136: 32.50995984 | H136: 24.1 | P136: W18X158 | Q136: 158 | R136: 356
F137: HSS12X6X3/16 | G137: 22.21997752 | H137: 23.7 | I137: A Best Choice | P137: W14X193 | Q137: 193 | R137: 355
F138: HSS10X3X3/8 | G138: 29.9578765 | H138: 23.7 | P138: W12X210 | Q138: 210 | R138: 348
F139: HSS10X6X1/4 | G139: 25.79190464 | H139: 23.6 | I139: A Best Choice | P139: W30X108 | Q139: 108 | R139: 346 | S139: A Best Choice
F140: HSS8X4X1/2 | G140: 35.10942765 | H140: 23.5 | P140: W27X114 | Q140: 114 | R140: 343
F141: HSS6X6X5/8 | G141: 42.09725251 | H141: 23.2 | P141: W21X132 | Q141: 132 | R141: 333
F142: HSS10X4X5/16 | G142: 27.57873677 | H142: 23.1 | P142: W24X117 | Q142: 117 | R142: 327 | S142: A Best Choice
F143: HSS12X3X1/4 | G143: 24.09051575 | H143: 22.9 | I143: A Best Choice | P143: W18X143 | Q143: 143 | R143: 322
F144: HSS9X7X1/4 | G144: 25.79190464 | H144: 22.2 | P144: W14X176 | Q144: 176 | R144: 320
F145: HSS7X7X3/8 | G145: 32.50995984 | H145: 22.1 | P145: W30X99 | Q145: 99 | R145: 312 | S145: A Best Choice
F146: HSS9X5X5/16 | G146: 27.57873677 | H146: 22 | I146: A Best Choice | P146: W12X190 | Q146: 190 | R146: 311
F147: HSS7X5X1/2 | G147: 35.10942765 | H147: 21.9 | P147: W21X122 | Q147: 122 | R147: 307
F148: HSS10X3-1/2X5/16 | G148: 26.51366733 | H148: 21.7 | P148: S24X121 | Q148: 121 | R148: 306
F149: HSS10X8X3/16 | G149: 22.21997752 | H149: 21.4 | I149: A Best Choice | P149: W27X102 | Q149: 102 | R149: 305 | S149: A Best Choice
F150: HSS10X5X1/4 | G150: 24.09051575 | H150: 21.3 | P150: W18X130 | Q150: 130 | R150: 290
F151: HSS8X6X5/16 | G151: 27.57873677 | H151: 20.6 | P151: W24X104 | Q151: 104 | R151: 289 | S151: A Best Choice
F152: HSS8X8X1/4 | G152: 25.79190464 | H152: 20.5 | P152: W14X159 | Q152: 159 | R152: 287
F153: HSS10X3X5/16 | G153: 25.44859788 | H153: 20.3 | I153: A Best Choice | P153: W30X90 | Q153: 90 | R153: 283 | S153: A Best Choice
F154: HSS10X2X3/8 | G154: 27.40579317 | H154: 20.3 | P154: W24X103 | Q154: 103 | R154: 280
F155: HSS12X2X1/4 | G155: 22.38912686 | H155: 20.1 | P155: S24X106 | Q155: 106 | R155: 279
F156: HSS9X9X3/16 | G156: 22.16346419 | H156: 20 | I156: A Best Choice | P156: W21X111 | Q156: 111 | R156: 279
F157: HSS8X3X1/2 | G157: 31.70664987 | H157: 20 | P157: W27X94 | Q157: 94 | R157: 278 | S157: A Best Choice
F158: HSS6X6X1/2 | G158: 35.10942765 | H158: 19.8 | P158: W12X170 | Q158: 170 | R158: 275
F159: HSS9X3X3/8 | G159: 27.40579317 | H159: 19.7 | P159: W18X119 | Q159: 119 | R159: 262 | S159: A Best Choice
F160: HSS12X4X3/16 | G160: 19.66108863 | H160: 19.6 | I160: A Best Choice | P160: W14X145 | Q160: 145 | R160: 260
F161: HSS10X4X1/4 | G161: 22.38912686 | H161: 19 | P161: W24X94 | Q161: 94 | R161: 254 | S161: A Best Choice
F162: HSS7X7X5/16 | G162: 27.53901955 | H162: 18.9 | P162: W21X101 | Q162: 101 | R162: 253
F163: HSS8X4X3/8 | G163: 27.40579317 | H163: 18.8 | I163: A Best Choice | P163: W27X84 | Q163: 84 | R163: 244 | S163: A Best Choice
F164: HSS7X4X1/2 | G164: 31.70664987 | H164: 18.8 | P164: W12X152 | Q164: 152 | R164: 243
F165: HSS9X5X1/4 | G165: 22.38912686 | H165: 18.1 | P165: S24X100 | Q165: 100 | R165: 239 | S165: A Best Choice
F166: HSS10X6X3/16 | G166: 19.66108863 | H166: 18 | I166: A Best Choice | P166: W14X132 | Q166: 132 | R166: 234
F167: HSS10X3-1/2X1/4 | G167: 21.53843241 | H167: 17.9 | P167: W18X106 | Q167: 106 | R167: 230
F168: HSS12X3X3/16 | G168: 18.38164419 | H168: 17.5 | I168: A Best Choice | P168: W24X84 | Q168: 84 | R168: 224 | S168: A Best Choice
F169: HSS10X2X5/16 | G169: 23.31845899 | H169: 17.5 | P169: S24X90 | Q169: 90 | R169: 222
F170: HSS7X5X3/8 | G170: 27.40579317 | H170: 17.5 | P170: W21X93 | Q170: 93 | R170: 221
F171: HSS6X5X1/2 | G171: 31.70664987 | H171: 17.2 | P171: W12X136 | Q171: 136 | R171: 214
F172: HSS9X7X3/16 | G172: 19.66108863 | H172: 16.9 | I172: A Best Choice | P172: W14X120 | Q172: 120 | R172: 212
F173: HSS8X6X1/4 | G173: 22.38912686 | H173: 16.9 | P173: W18X97 | Q173: 97 | R173: 211
F174: HSS9X3X5/16 | G174: 23.31845899 | H174: 16.9 | P174: S24X80 | Q174: 80 | R174: 204
F175: HSS10X3X1/4 | G175: 20.68773797 | H175: 16.7 | P175: W24X76 | Q175: 76 | R175: 200 | S175: A Best Choice
F176: HSS10X5X3/16 | G176: 18.38164419 | H176: 16.3 | I176: A Best Choice | P176: S20X96 | Q176: 96 | R176: 198
F177: HSS8X4X5/16 | G177: 23.31845899 | H177: 16.1 | P177: W16X100 | Q177: 100 | R177: 198
F178: HSS8X3X3/8 | G178: 24.85370984 | H178: 16.1 | P178: W21X83 | Q178: 83 | R178: 196 | S178: A Best Choice
F179: HSS6X6X3/8 | G179: 27.40579317 | H179: 15.8 | P179: HP14X117 | Q179: 117 | R179: 194
F180: HSS7X3X1/2 | G180: 28.30387209 | H180: 15.8 | P180: W14X109 | Q180: 109 | R180: 192 | S180: A Best Choice
F181: HSS8X8X3/16 | G181: 19.61138085 | H181: 15.7 | P181: W12X120 | Q181: 120 | R181: 186
F182: HSS12X2X3/16 | G182: 17.10219974 | H182: 15.5 | I182: A Best Choice | P182: W18X86 | Q182: 86 | R182: 186
F183: HSS7X7X1/4 | G183: 22.38912686 | H183: 15.5 | P183: S20X86 | Q183: 86 | R183: 183
F184: HSS7X4X3/8 | G184: 24.85370984 | H184: 15.1 | P184: W24X68 | Q184: 68 | R184: 177 | S184: A Best Choice
F185: HSS7X5X5/16 | G185: 23.31845899 | H185: 15 | P185: W16X89 | Q185: 89 | R185: 175
F186: HSS10X4X3/16 | G186: 17.10219974 | H186: 14.6 | I186: A Best Choice | P186: W14X99 | Q186: 99 | R186: 173
F187: HSS6X4X1/2 | G187: 28.30387209 | H187: 14.6 | P187: W21X73 | Q187: 73 | R187: 172 | S187: A Best Choice
F188: HSS10X2X1/4 | G188: 18.98634908 | H188: 14.4 | P188: HP14X102 | Q188: 102 | R188: 169
F189: HSS9X3X1/4 | G189: 18.98634908 | H189: 14 | P189: W12X106 | Q189: 106 | R189: 164
F190: HSS8X3X5/16 | G190: 21.1883201 | H190: 13.9 | P190: W18X76 | Q190: 76 | R190: 163
F191: HSS9X5X3/16 | G191: 17.10219974 | H191: 13.8 | I191: A Best Choice | P191: W21X68 | Q191: 68 | R191: 160 | S191: A Best Choice
F192: HSS6X5X3/8 | G192: 24.85370984 | H192: 13.8 | P192: W14X90 | Q192: 90 | R192: 157
F193: HSS10X3-1/2X3/16 | G193: 16.46247752 | H193: 13.7 | P193: W24X62 | Q193: 62 | R193: 153 | S193: A Best Choice
F194: HSS9X9X1/8 | G194: 14.95459519 | H194: 13.6 | I194: A Best Choice | P194: S20X75 | Q194: 75 | R194: 152
F195: HSS6X6X5/16 | G195: 23.28554733 | H195: 13.6 | P195: W16X77 | Q195: 77 | R195: 150
F196: HSS8X2X3/8 | G196: 22.3016265 | H196: 13.4 | P196: W10X112 | Q196: 112 | R196: 147
F197: HSS8X4X1/4 | G197: 18.98634908 | H197: 13.3 | I197: =IF(AND(G197<G198,G197<G196),"A Best Choice"," ") -> A Best Choice | P197: W12X96 | Q197: 96 | R197: 147
F198: HSS7X4X5/16 | G198: 21.1883201 | H198: 13.1 | P198: HP14X89 | Q198: 89 | R198: 146 | S198: =IF(AND(Q198<Q199,Q198<Q197),"A Best Choice"," ") -> 
F199: HSS5-1/2X5-1/2X3/8 | G199: 24.85370984 | H199: 13.1 | P199: W18X71 | Q199: 71 | R199: 146
F200: HSS5X5X1/2 | G200: 28.30387209 | H200: 13.1 | P200: W21X62 | Q200: 62 | R200: 144 | S200: A Best Choice
F201: HSS8X6X3/16 | G201: 17.10219974 | H201: 13 | P201: S20X66 | Q201: 66 | R201: 139
... 165 more rows

Sheet IxTables (hidden)
A1: Tables Sorted by Ix
A5: RndHSS | B5: W | C5: IX | F5: RectHSS | G5: W | H5: IX | K5: Channels | L5: W | M5: IX | P5: Ishapes | Q5: W | R5: IX
A6: ---- | F6: ---- | K6: ---- | P6: ----
A7: HSS20X0.500 | B7: 104 | C7: 1360 | D7: =IF(AND(B7<B8,B7<B6),"A Best Choice"," ") ->  | F7: HSS20X12X5/8 | G7: 127 | H7: 1880 | I7: =IF(AND(G7<G8,G7<G6),"A Best Choice"," ") ->  | K7: MC18X58 | L7: 58 | M7: 675 | P7: W36X800 | Q7: 800 | R7: 64700 | S7: =IF(AND(Q7<Q8,Q7<Q5),"A Best Choice"," ") -> 
A8: HSS20X0.375 | B8: 78.67276134 | C8: 1040 | D8: A Best Choice | F8: HSS20X12X1/2 | G8: 103 | H8: 1550 | I8: A Best Choice | K8: MC18X51.9 | L8: 51.9 | M8: 627 | N8: =IF(AND(L8<L9,L8<L7),"A Best Choice"," ") ->  | P8: W36X652 | Q8: 652 | R8: 50600 | S8: =IF(AND(Q8<Q9,Q8<Q7),"A Best Choice"," ") -> 
A9: HSS18X0.500 | B9: 93.5387396 | C9: 985 | F9: HSS20X8X5/8 | G9: 110 | H9: 1440 | K9: MC18X45.8 | L9: 45.8 | M9: 578 | P9: W40X593 | Q9: 593 | R9: 50400
A10: HSS16X0.625 | B10: 103 | C10: 838 | F10: HSS16X16X5/8 | G10: 127 | H10: 1370 | K10: MC18X42.7 | L10: 42.7 | M10: 554 | N10: A Best Choice | P10: W40X503 | Q10: 503 | R10: 41600 | S10: A Best Choice
A11: HSS18X0.375 | B11: 70.65515509 | C11: 754 | D11: A Best Choice | F11: HSS20X12X3/8 | G11: 78.44745984 | H11: 1200 | I11: A Best Choice | K11: C15X50 | L11: 50 | M11: 404 | P11: W36X529 | Q11: 529 | R11: 39600
A12: HSS16X0.500 | B12: 82.84859793 | C12: 685 | F12: HSS20X8X1/2 | G12: 89.55387209 | H12: 1190 | K12: C15X40 | L12: 40 | M12: 348 | P12: W36X487 | Q12: 487 | R12: 36000
A13: HSS16X0.438 | B13: 72.86567327 | C13: 606 | D13: A Best Choice | F13: HSS16X16X1/2 | G13: 103 | H13: 1130 | K13: C15X33.9 | L13: 33.9 | M13: 315 | N13: A Best Choice | P13: W40X431 | Q13: 431 | R13: 34800 | S13: A Best Choice
A14: HSS14X0.625 | B14: 89.36290301 | C14: 552 | F14: HSS16X12X5/8 | G14: 110 | H14: 1090 | K14: MC13X50 | L14: 50 | M14: 314 | P14: W36X441 | Q14: 442 | R14: 32100
A15: HSS16X0.375 | B15: 62.63754884 | C15: 526 | D15: A Best Choice | F15: HSS20X12X5/16 | G15: 65.82026955 | H15: 1010 | I15: A Best Choice | K15: MC13X40 | L15: 40 | M15: 273 | N15: A Best Choice | P15: W40X397 | Q15: 397 | R15: 32000
A16: HSS14X0.500 | B16: 72.15845626 | C16: 453 | F16: HSS20X8X3/8 | G16: 68.29059284 | H16: 926 | K16: MC12X50 | L16: 50 | M16: 269 | P16: W44X335 | Q16: 335 | R16: 31100 | S16: A Best Choice
A17: HSS16X0.312 | B17: 52.32456606 | C17: 443 | F17: HSS18X6X5/8 | G17: 93.09940885 | H17: 923 | K17: MC13X35 | L17: 35 | M17: 252 | N17: A Best Choice | P17: W40X392 | Q17: 392 | R17: 29900
A18: HSS16X0.250 | B18: 42.09243282 | C18: 359 | D18: A Best Choice | F18: HSS16X12X1/2 | G18: 89.55387209 | H18: 904 | I18: A Best Choice | K18: MC12X45 | L18: 45 | M18: 251 | P18: W40X372 | Q18: 372 | R18: 29600
A19: HSS14X0.375 | B19: 54.61994259 | C19: 349 | F19: HSS14X14X5/8 | G19: 110 | H19: 897 | K19: MC13X31.8 | L19: 31.8 | M19: 239 | N19: A Best Choice | P19: W40X362 | Q19: 362 | R19: 28900 | S19: A Best Choice
A20: HSS12.750X0.500 | B20: 65.47711772 | C20: 339 | F20: HSS16X16X3/8 | G20: 78.44745984 | H20: 873 | K20: MC12X40 | L20: 40 | M20: 234 | P20: W36X395 | Q20: 395 | R20: 28500
A21: HSS14X0.312 | B21: 45.65391766 | C21: 295 | D21: A Best Choice | F21: HSS20X4X1/2 | G21: 75.94276098 | H21: 838 | I21: A Best Choice | K21: MC12X35 | L21: 35 | M21: 216 | P21: W44X290 | Q21: 290 | R21: 27000 | S21: A Best Choice
A22: HSS12.750X0.375 | B22: 49.60893868 | C22: 262 | F22: HSS16X8X5/8 | G22: 93.09940885 | H22: 815 | K22: MC12X31 | L22: 31 | M22: 202 | P22: W36X361 | Q22: 361 | R22: 25700
A23: HSS14X0.250 | B23: 36.74736199 | C23: 239 | D23: A Best Choice | F23: HSS20X8X5/16 | G23: 57.3133251 | H23: 786 | I23: A Best Choice | K23: C12X30 | L23: 30 | M23: 162 | N23: A Best Choice | P23: W27X539 | Q23: 539 | R23: 25600
A24: HSS10.750X0.500 | B24: 54.78697605 | C24: 199 | F24: HSS18X6X1/2 | G24: 75.94276098 | H24: 770 | K24: MC10X41.1 | L24: 41.1 | M24: 157 | P24: W40X324 | Q24: 324 | R24: 25600 | S24: A Best Choice
A25: HSS10X0.625 | B25: 62.63754884 | C25: 191 | F25: HSS14X14X1/2 | G25: 89.55387209 | H25: 743 | K25: C12X25 | L25: 25 | M25: 144 | N25: A Best Choice | P25: W40X331 | Q25: 331 | R25: 24700
A26: HSS12.750X0.250 | B26: 33.40669271 | C26: 180 | D26: A Best Choice | F26: HSS16X16X5/16 | G26: 65.82026955 | H26: 739 | I26: A Best Choice | K26: MC10X33.6 | L26: 33.6 | M26: 139 | P26: W40X327 | Q26: 327 | R26: 24500 | S26: A Best Choice
A27: HSS10X0.500 | B27: 50.77817293 | C27: 159 | F27: HSS16X12X3/8 | G27: 68.29059284 | H27: 702 | K27: C12X20.7 | L27: 20.7 | M27: 129 | N27: A Best Choice | P27: W33X387 | Q27: 387 | R27: 24300
A28: HSS10.750X0.375 | B28: 41.59133243 | C28: 154 | D28: A Best Choice | F28: HSS14X10X5/8 | G28: 93.09940885 | H28: 687 | K28: MC10X28.5 | L28: 28.5 | M28: 126 | P28: W44X262 | Q28: 262 | R28: 24100 | S28: A Best Choice
A29: HSS9.625X0.500 | B29: 48.77377136 | C29: 141 | F29: HSS16X8X1/2 | G29: 75.94276098 | H29: 679 | K29: MC10X25 | L29: 25 | M29: 110 | N29: A Best Choice | P29: W36X330 | Q29: 330 | R29: 23300
A30: HSS10X0.375 | B30: 38.58473008 | C30: 123 | D30: A Best Choice | F30: HSS20X4X3/8 | G30: 58.07409284 | H30: 657 | K30: C10X30 | L30: 30 | M30: 103 | P30: W40X297 | Q30: 297 | R30: 23200 | S30: A Best Choice
A31: HSS8.625X0.625 | B31: 53.45070834 | C31: 119 | F31: HSS18X6X3/8 | G31: 58.07409284 | H31: 602 | K31: MC10X22 | L31: 22 | M31: 102 | N31: A Best Choice | P31: W33X354 | Q31: 354 | R31: 22000
A32: HSS9.625X0.375 | B32: 37.08142891 | C32: 110 | F32: HSS16X12X5/16 | G32: 57.38320999 | H32: 595 | I32: A Best Choice | K32: C10X25 | L32: 25 | M32: 91.1 | P32: W40X294 | Q32: 294 | R32: 21900
A33: HSS10.750X0.250 | B33: 28.06162188 | C33: 106 | D33: A Best Choice | F33: HSS14X14X3/8 | G33: 68.2391265 | H33: 577 | K33: MC9X25.4 | L33: 25.4 | M33: 87.9 | P33: W40X277 | Q33: 277 | R33: 21900 | S33: A Best Choice
A34: HSS10X0.312 | B34: 32.31262086 | C34: 105 | F34: HSS14X10X1/2 | G34: 75.94276098 | H34: 573 | K34: MC9X23.9 | L34: 23.9 | M34: 84.9 | P34: W36X302 | Q34: 302 | R34: 21100
A35: HSS8.625X0.500 | B35: 43.42870053 | C35: 100 | F35: HSS20X4X5/16 | G35: 48.86537666 | H35: 560 | I35: A Best Choice | K35: C10X20 | L35: 20 | M35: 78.9 | P35: W44X230 | Q35: 230 | R35: 20800 | S35: A Best Choice
A36: HSS9.625X0.312 | B36: 31.06187428 | C36: 93 | F36: HSS12X12X5/8 | G36: 93.13891918 | H36: 548 | K36: C10X15.3 | L36: 15.3 | M36: 67.3 | N36: A Best Choice | P36: W30X391 | Q36: 391 | R36: 20700
A37: HSS10X0.250 | B37: 26.05722032 | C37: 85.3 | D37: A Best Choice | F37: HSS16X4X5/8 | G37: 76.09368662 | H37: 539 | K37: MC8X22.8 | L37: 22.8 | M37: 63.8 | P37: W40X278 | Q37: 278 | R37: 20500 | S37: A Best Choice
A38: HSS8.625X0.375 | B38: 33.07262579 | C38: 77.8 | F38: HSS16X8X3/8 | G38: 58.07409284 | H38: 531 | K38: MC8X21.4 | L38: 21.4 | M38: 61.5 | P38: W36X282 | Q38: 282 | R38: 19600
A39: HSS9.625X0.250 | B39: 25.05501954 | C39: 75.9 | D39: =IF(AND(B39<B40,B39<B38),"A Best Choice"," ") -> A Best Choice | F39: HSS18X6X5/16 | G39: 48.86537666 | H39: 513 | I39: A Best Choice | K39: C9X20 | L39: 20 | M39: 60.9 | P39: W40X249 | Q39: 249 | R39: 19600 | S39: A Best Choice
A40: HSS8.625X0.322 | B40: 28.5807993 | C40: 68.1 | F40: HSS14X14X5/16 | G40: 57.3133251 | H40: 490 | K40: MC12X10.6 | L40: 10.6 | M40: 55.3 | N40: =IF(AND(L40<L41,L40<L39),"A Best Choice"," ") -> A Best Choice | P40: W33X318 | Q40: 318 | R40: 19500
A41: HSS10X0.188 | B41: 19.71963397 | C41: 64.8 | D41: A Best Choice | F41: HSS14X6X5/8 | G41: 76.09368662 | H41: 478 | K41: MC8X20 | L41: 20 | M41: 54.4 | P41: W40X264 | Q41: 264 | R41: 19400 | S41: A Best Choice
A42: HSS7.500X0.500 | B42: 37.41549584 | C42: 63.9 | F42: HSS20X4X1/4 | G42: 39.47833964 | H42: 458 | I42: A Best Choice | K42: MC8X18.7 | L42: 18.7 | M42: 52.4 | P42: W30X357 | Q42: 357 | R42: 18700
A43: HSS9.625X0.188 | B43: 18.96597898 | C43: 57.7 | D43: A Best Choice | F43: HSS12X12X1/2 | G43: 75.94276098 | H43: 457 | K43: C9X15 | L43: 15 | M43: 51 | P43: W36X262 | Q43: 262 | R43: 17900 | S43: A Best Choice
A44: HSS8.625X0.250 | B44: 22.38248412 | C44: 54.1 | F44: HSS16X4X1/2 | G44: 62.33164987 | H44: 455 | K44: C9X13.4 | L44: 13.4 | M44: 47.8 | N44: A Best Choice | P44: W33X291 | Q44: 291 | R44: 17700
A45: HSS7.625X0.375 | B45: 29.06382266 | C45: 52.9 | F45: HSS16X8X5/16 | G45: 48.86537666 | H45: 451 | I45: A Best Choice | K45: MC7X22.7 | L45: 22.7 | M45: 47.4 | P45: W40X235 | Q45: 235 | R45: 17400 | S45: A Best Choice
A46: HSS7X0.500 | B46: 34.74296042 | C46: 51.2 | F46: HSS14X10X3/8 | G46: 58.07409284 | H46: 447 | K46: C8X18.7 | L46: 18.7 | M46: 43.9 | N46: A Best Choice | P46: W30X326 | Q46: 326 | R46: 16800
A47: HSS7.500X0.375 | B47: 28.56272227 | C47: 50.2 | D47: A Best Choice | F47: HSS18X6X1/4 | G47: 39.47833964 | H47: 419 | I47: A Best Choice | K47: MC7X19.1 | L47: 19.1 | M47: 43.1 | P47: W36X256 | Q47: 256 | R47: 16800
A48: HSS6.875X0.500 | B48: 34.07482657 | C48: 48.3 | F48: HSS14X6X1/2 | G48: 62.33164987 | H48: 402 | K48: C8X13.7 | L48: 13.7 | M48: 36.1 | P48: W36X247 | Q48: 247 | R48: 16700
A49: HSS7.625X0.328 | B49: 25.58595611 | C49: 47.1 | D49: A Best Choice | F49: HSS12X8X5/8 | G49: 76.12503029 | H49: 397 | K49: C8X11.5 | L49: 11.5 | M49: 32.5 | P49: W40X215 | Q49: 215 | R49: 16700 | S49: A Best Choice
A50: HSS6.625X0.500 | B50: 32.73855886 | C50: 42.9 | F50: HSS12X10X1/2 | G50: 69.13720542 | H50: 395 | K50: MC10X8.4 | L50: 8.4 | M50: 31.9 | N50: A Best Choice | P50: W27X368 | Q50: 368 | R50: 16200
A51: HSS7.500X0.312 | B51: 23.97431035 | C51: 42.9 | F51: HSS14X10X5/16 | G51: 48.86537666 | H51: 380 | I51: A Best Choice | K51: MC6X18 | L51: 18 | M51: 29.7 | P51: W33X263 | Q51: 263 | R51: 15900
A52: HSS8.625X0.188 | B52: 16.95623235 | C52: 41.3 | D52: A Best Choice | F52: HSS14X4X5/8 | G52: 67.59082551 | H52: 373 | K52: C7X14.7 | L52: 14.7 | M52: 27.2 | N52: A Best Choice | P52: W36X231 | Q52: 230 | R52: 15600
A53: HSS7X0.375 | B53: 26.55832071 | C53: 40.4 | F53: HSS16X8X1/4 | G53: 39.47833964 | H53: 368 | I53: A Best Choice | K53: MC6X16.3 | L53: 16.3 | M53: 26 | P53: W40X211 | Q53: 211 | R53: 15500 | S53: A Best Choice
A54: HSS6.625X0.432 | B54: 28.60014846 | C54: 38.2 | F54: HSS16X4X3/8 | G54: 47.85759284 | H54: 360 | K54: MC6X15.3 | L54: 15.3 | M54: 25.3 | P54: W36X232 | Q54: 232 | R54: 15000
A55: HSS6.875X0.375 | B55: 26.05722032 | C55: 38.2 | F55: HSS12X12X3/8 | G55: 58.03079317 | H55: 357 | K55: MC6X15.1 | L55: 15.1 | M55: 24.9 | P55: W30X292 | Q55: 292 | R55: 14900
A56: HSS7.500X0.250 | B56: 19.37588177 | C56: 35.2 | D56: A Best Choice | F56: HSS12X8X1/2 | G56: 62.33164987 | H56: 333 | K56: C7X12.2 | L56: 12.2 | M56: 24.2 | P56: W40X199 | Q56: 199 | R56: 14900 | S56: A Best Choice
A57: HSS7X0.312 | B57: 22.30664825 | C57: 34.6 | F57: HSS12X6X5/8 | G57: 67.61808585 | H57: 321 | K57: MC8X8.5 | L57: 8.5 | M57: 23.3 | P57: W27X336 | Q57: 336 | R57: 14600
A58: HSS6.625X0.375 | B58: 25.05501954 | C58: 34 | F58: HSS14X4X1/2 | G58: 55.52609431 | H58: 317 | K58: MC10X6.5 | L58: 6.5 | M58: 22.9 | N58: A Best Choice | P58: W14X730 | Q58: 730 | R58: 14300
A59: HSS6.875X0.312 | B59: 21.88973273 | C59: 32.7 | D59: A Best Choice | F59: HSS14X6X3/8 | G59: 47.85759284 | H59: 317 | I59: A Best Choice | K59: C7X9.8 | L59: 9.8 | M59: 21.2 | P59: W33X241 | Q59: 241 | R59: 14200 | S59: A Best Choice
A60: HSS6X0.500 | B60: 29.39788959 | C60: 31.2 | F60: HSS12X10X3/8 | G60: 52.9266265 | H60: 310 | K60: MC6X12 | L60: 12 | M60: 18.7 | P60: W24X370 | Q60: 370 | R60: 13400
A61: HSS6.625X0.312 | B61: 21.05590168 | C61: 29.1 | F61: HSS14X10X1/4 | G61: 39.47833964 | H61: 310 | I61: A Best Choice | K61: C6X13 | L61: 13 | M61: 17.3 | P61: W36X210 | Q61: 210 | R61: 13200
A62: HSS7X0.250 | B62: 18.03961407 | C62: 28.4 | F62: HSS16X4X5/16 | G62: 40.34754333 | H62: 308 | K62: C6X10.5 | L62: 10.5 | M62: 15.1 | P62: W40X183 | Q62: 183 | R62: 13200 | S62: A Best Choice
A63: HSS7.500X0.188 | B63: 14.69526739 | C63: 26.9 | D63: A Best Choice | F63: HSS10X10X5/8 | G63: 76.12503029 | H63: 304 | K63: C6X8.2 | L63: 8.2 | M63: 13.1 | P63: W27X307 | Q63: 307 | R63: 13100
A64: HSS6.875X0.250 | B64: 17.70554714 | C64: 26.8 | F64: HSS12X12X5/16 | G64: 48.80638066 | H64: 304 | I64: A Best Choice | K64: MC6x7 | L64: 7 | M64: 11.4 | P64: W30X261 | Q64: 261 | R64: 13100
A65: HSS6.625X0.280 | B65: 18.99210569 | C65: 26.4 | F65: HSS12X6X1/2 | G65: 55.52609431 | H65: 271 | K65: MC6x6.5 | L65: 6.5 | M65: 11 | N65: A Best Choice | P65: W33X221 | Q65: 221 | R65: 12900 | S65: A Best Choice
A66: HSS6X0.375 | B66: 22.54951758 | C66: 24.8 | F66: HSS14X6X5/16 | G66: 40.34754333 | H66: 271 | I66: A Best Choice | K66: C5X9 | L66: 9 | M66: 8.89 | P66: W14X665 | Q66: 665 | R66: 12400
A67: HSS5.563X0.500 | B67: 27.06209363 | C67: 24.4 | F67: HSS12X10X5/16 | G67: 44.61984788 | H67: 264 | K67: MC4x13.8 | L67: 13.8 | M67: 8.85 | P67: W36X194 | Q67: 194 | R67: 12100 | S67: A Best Choice
A68: HSS6.625X0.250 | B68: 17.03741328 | C68: 23.9 | D68: A Best Choice | F68: HSS12X8X3/8 | G68: 47.82245984 | H68: 262 | K68: C5X6.7 | L68: 6.7 | M68: 7.48 | N68: A Best Choice | P68: W24X335 | Q68: 335 | R68: 11900
A69: HSS5.500X0.500 | B69: 26.72535417 | C69: 23.5 | F69: HSS10X10X1/2 | G69: 62.33164987 | H69: 256 | K69: C4X7.2 | L69: 7.2 | M69: 4.58 | P69: W27X281 | Q69: 281 | R69: 11900
A70: HSS7X0.188 | B70: 13.69039407 | C70: 21.7 | D70: A Best Choice | F70: HSS10X8X5/8 | G70: 67.61808585 | H70: 253 | K70: C4X5.4 | L70: 5.4 | M70: 3.85 | P70: W30X235 | Q70: 235 | R70: 11700
A71: HSS6X0.312 | B71: 18.97132405 | C71: 21.3 | D71: =IF(AND(B71<B72,B71<B70),"A Best Choice"," ") ->  | F71: HSS16X4X1/4 | G71: 32.65917297 | H71: 253 | I71: =IF(AND(G71<G72,G71<G70),"A Best Choice"," ") -> A Best Choice | K71: C4X4.5 | L71: 4.5 | M71: 3.65 | N71: A Best Choice | P71: W33X201 | Q71: 201 | R71: 11600
A72: HSS6.875X0.188 | B72: 13.43917574 | C72: 20.6 | D72: A Best Choice | F72: HSS14X4X3/8 | G72: 42.74934284 | H72: 252 | K72: MC3x7.1 | L72: 7.1 | M72: 2.72 | P72: W40X167 | Q72: 167 | R72: 11600 | S72: =IF(AND(Q72<Q73,Q72<Q71),"A Best Choice"," ") -> A Best Choice
A73: HSS5.563X0.375 | B73: 20.79767062 | C73: 19.5 | F73: HSS12X12X1/4 | G73: 39.40301575 | H73: 248 | I73: A Best Choice | K73: C3X6 | L73: 6 | M73: 2.07 | P73: W36X182 | Q73: 182 | R73: 11300
A74: HSS6X0.280 | B74: 17.1213309 | C74: 19.3 | D74: A Best Choice | F74: HSS12X4X5/8 | G74: 59.1111414 | H74: 245 | K74: C3X5 | L74: 5 | M74: 1.85 | P74: W14X605 | Q74: 605 | R74: 10800
A75: HSS5.500X0.375 | B75: 20.54511602 | C75: 18.8 | F75: HSS12X8X5/16 | G75: 40.3595701 | H75: 224 | K75: C3X4.1 | L75: 4.1 | M75: 1.65 | P75: W27X258 | Q75: 258 | R75: 10800 | S75: A Best Choice
A76: HSS6.625X0.188 | B76: 12.93673908 | C76: 18.4 | D76: A Best Choice | F76: HSS14X6X1/4 | G76: 32.65917297 | H76: 222 | I76: A Best Choice | K76: C3X3.5 | L76: 3.5 | M76: 1.57 | P76: W24X306 | Q76: 306 | R76: 10700
A77: HSS6X0.250 | B77: 15.36707865 | C77: 17.6 | F77: HSS9X9X5/8 | G77: 67.61808585 | H77: 216 | P77: W36X170 | Q77: 170 | R77: 10500 | S77: A Best Choice
A78: HSS5X0.500 | B78: 24.05281875 | C78: 17.2 | F78: HSS12X10X1/4 | G78: 36.00023797 | H78: 216 | I78: A Best Choice | P78: W30X211 | Q78: 211 | R78: 10300
A79: HSS7X0.125 | B79: 9.186840496 | C79: 14.9 | D79: A Best Choice | F79: HSS14X4X5/16 | G79: 36.08862666 | H79: 216 | P79: W40X149 | Q79: 149 | R79: 9800 | S79: A Best Choice
A80: HSS5.563X0.258 | B80: 14.63149 | C80: 14.2 | F80: HSS12X6X3/8 | G80: 42.71829317 | H80: 215 | P80: W36X160 | Q80: 160 | R80: 9760
A81: HSS5X0.375 | B81: 18.54071446 | C81: 13.9 | F81: HSS10X8X1/2 | G81: 55.52609431 | H81: 214 | P81: W27X235 | Q81: 235 | R81: 9700
A82: HSS5.500X0.258 | B82: 14.45773244 | C82: 13.7 | F82: HSS12X4X1/2 | G82: 48.72053876 | H82: 210 | P82: W24X279 | Q82: 279 | R82: 9600
A83: HSS6X0.188 | B83: 11.68064743 | C83: 13.5 | F83: HSS10X10X3/8 | G83: 47.82245984 | H83: 202 | I83: A Best Choice | P83: W14X550 | Q83: 550 | R83: 9430
A84: HSS6.625X0.125 | B84: 8.685740106 | C84: 12.6 | D84: A Best Choice | F84: HSS10X6X5/8 | G84: 59.1111414 | H84: 201 | P84: W33X169 | Q84: 169 | R84: 9290 | S84: A Best Choice
A85: HSS5X0.312 | B85: 15.63599985 | C85: 12 | F85: HSS16X4X3/16 | G85: 24.66489241 | H85: 193 | I85: A Best Choice | P85: W30X191 | Q85: 191 | R85: 9200
A86: HSS5.563X0.188 | B86: 10.80238816 | C86: 10.7 | D86: A Best Choice | F86: HSS12X12X3/16 | G86: 29.81971419 | H86: 189 | P86: W36X150 | Q86: 150 | R86: 9040 | S86: A Best Choice
A87: HSS5X0.258 | B87: 13.07870416 | C87: 10.2 | F87: HSS12X6X5/16 | G87: 36.09929233 | H87: 184 | P87: W27X217 | Q87: 217 | R87: 8910
A88: HSS5X0.250 | B88: 12.69454323 | C88: 9.94 | D88: A Best Choice | F88: HSS12X8X1/4 | G88: 32.59746019 | H88: 184 | I88: A Best Choice | P88: W24X250 | Q88: 250 | R88: 8490
A89: HSS4.500X0.375 | B89: 16.53631289 | C89: 9.87 | F89: HSS9X9X1/2 | G89: 55.52609431 | H89: 183 | P89: W30X173 | Q89: 173 | R89: 8230 | S89: A Best Choice
A90: HSS6X0.125 | B90: 7.850572788 | C90: 9.28 | D90: A Best Choice | F90: HSS14X4X1/4 | G90: 29.24958964 | H90: 178 | I90: A Best Choice | P90: W14X500 | Q90: 500 | R90: 8210
A91: HSS4.500X0.337 | B91: 14.99753114 | C91: 9.07 | F91: HSS9X7X5/8 | G91: 59.1111414 | H91: 174 | P91: W33X152 | Q91: 152 | R91: 8160 | S91: A Best Choice
A92: HSS5.563X0.134 | B92: 7.776928402 | C92: 7.84 | D92: A Best Choice | F92: HSS10X10X5/16 | G92: 40.29943622 | H92: 172 | I92: A Best Choice | P92: W27X194 | Q92: 194 | R92: 7860
A93: HSS5X0.188 | B93: 9.670900801 | C93: 7.69 | F93: HSS10X6X1/2 | G93: 48.72053876 | H93: 171 | P93: W36X135 | Q93: 135 | R93: 7800 | S93: A Best Choice
A94: HSS4.500X0.237 | B94: 10.80058152 | C94: 6.79 | F94: HSS14X6X3/16 | G94: 24.66489241 | H94: 170 | I94: A Best Choice | P94: W24X229 | Q94: 229 | R94: 7650
A95: HSS4X0.313 | B95: 12.33675488 | C95: 5.87 | F95: HSS10X8X3/8 | G95: 42.71829317 | H95: 169 | P95: W33X141 | Q95: 141 | R95: 7450 | S95: A Best Choice
A96: HSS4.500X0.188 | B96: 8.666027484 | C96: 5.54 | F96: HSS12X4X3/8 | G96: 37.6141265 | H96: 168 | P96: W14X455 | Q96: 455 | R96: 7190
A97: HSS5X0.125 | B97: 6.514305079 | C97: 5.31 | D97: A Best Choice | F97: HSS12X3-1/2X3/8 | G97: 36.33808484 | H97: 156 | P97: W27X178 | Q97: 178 | R97: 7020 | S97: A Best Choice
A98: HSS4X0.250 | B98: 10 | C98: 4.91 | F98: HSS12X6X1/4 | G98: 29.19468241 | H98: 151 | I98: A Best Choice | P98: W18x311 | Q98: 311 | R98: 6970
A99: HSS4X0.237 | B99: 9.533799734 | C99: 4.68 | F99: HSS9X7X1/2 | G99: 48.72053876 | H99: 149 | P99: W24X207 | Q99: 207 | R99: 6820
A100: HSS4X0.226 | B100: 9.117878392 | C100: 4.5 | F100: HSS10X4X5/8 | G100: 50.60419696 | H100: 149 | P100: W33X130 | Q100: 130 | R100: 6710 | S100: A Best Choice
A101: HSS4X0.220 | B101: 8.889921811 | C101: 4.41 | F101: HSS8X8X5/8 | G101: 59.1111414 | H101: 146 | P101: W30X148 | Q101: 148 | R101: 6680
A102: HSS4.500X0.125 | B102: 5.846171225 | C102: 3.84 | D102: A Best Choice | F102: HSS9X9X3/8 | G102: 42.71829317 | H102: 145 | P102: W14X426 | Q102: 426 | R102: 6600
A103: HSS4X0.188 | B103: 7.661154168 | C103: 3.83 | D103: =IF(AND(B103<B104,B103<B102),"A Best Choice"," ") ->  | F103: HSS10X8X5/16 | G103: 36.09929233 | H103: 145 | P103: W27X161 | Q103: 161 | R103: 6310 | S103: A Best Choice
A104: HSS3.500X0.313 | B104: 10.66374771 | C104: 3.81 | F104: HSS12X4X5/16 | G104: 31.83901455 | H104: 144 | I104: A Best Choice | P104: W24X192 | Q104: 192 | R104: 6260
A105: HSS3.500X0.300 | B105: 10.262536 | C105: 3.69 | F105: HSS10X10X1/4 | G105: 32.59746019 | H105: 141 | P105: W18x283 | Q105: 283 | R105: 6170
A106: HSS3.500X0.250 | B106: 8.685740106 | C106: 3.21 | F106: HSS12X8X3/16 | G106: 24.77886641 | H106: 140 | I106: A Best Choice | P106: W14X398 | Q106: 398 | R106: 6000
A107: HSS3.500X0.216 | B107: 7.582987852 | C107: 2.84 | F107: HSS10X6X3/8 | G107: 37.6141265 | H107: 137 | P107: W33X118 | Q107: 118 | R107: 5900 | S107: A Best Choice
A108: HSS3.500X0.203 | B108: 7.154815607 | C108: 2.7 | F108: HSS14X4X3/16 | G108: 22.11825352 | H108: 137 | I108: A Best Choice | P108: W30X132 | Q108: 132 | R108: 5770
A109: HSS4X0.125 | B109: 5.178037371 | C109: 2.67 | D109: A Best Choice | F109: HSS12X3-1/2X5/16 | G109: 30.7739451 | H109: 134 | P109: W24X176 | Q109: 176 | R109: 5680
A110: HSS3.500X0.188 | B110: 6.656280851 | C110: 2.52 | F110: HSS9X5X5/8 | G110: 50.60419696 | H110: 133 | P110: W27X146 | Q110: 146 | R110: 5660 | S110: A Best Choice
A111: HSS3X0.250 | B111: 7.349472397 | C111: 1.95 | F111: HSS10X4X1/2 | G111: 41.9149832 | H111: 129 | I111: A Best Choice | P111: W18x258 | Q111: 258 | R111: 5510
A112: HSS3.500X0.125 | B112: 4.509903516 | C112: 1.77 | D112: A Best Choice | F112: HSS8X8X1/2 | G112: 48.72053876 | H112: 125 | P112: W14X370 | Q112: 370 | R112: 5440
A113: HSS3X0.216 | B113: 6.428452551 | C113: 1.74 | F113: HSS9X9X5/16 | G113: 36.04596399 | H113: 124 | P113: W30X124 | Q113: 124 | R113: 5360 | S113: A Best Choice
A114: HSS2.875X0.250 | B114: 7.01540547 | C114: 1.7 | F114: HSS12X3X5/16 | G114: 29.70887566 | H114: 124 | I114: A Best Choice | P114: W21X201 | Q114: 201 | R114: 5310
A115: HSS3X0.203 | B115: 6.069766228 | C115: 1.66 | F115: HSS10X5X3/8 | G115: 35.06204317 | H115: 120 | P115: W24X162 | Q115: 162 | R115: 5170
A116: HSS3X0.188 | B116: 5.651407534 | C116: 1.55 | D116: A Best Choice | F116: HSS9X7X3/8 | G116: 37.6141265 | H116: 119 | P116: W30X116 | Q116: 116 | R116: 4930 | S116: A Best Choice
A117: HSS2.875X0.203 | B117: 5.798503883 | C117: 1.45 | F117: HSS10X8X1/4 | G117: 29.19468241 | H117: 119 | P117: W14X342 | Q117: 342 | R117: 4900
A118: HSS2.875X0.188 | B118: 5.400189205 | C118: 1.35 | F118: HSS12X4X1/4 | G118: 25.79190464 | H118: 119 | I118: A Best Choice | P118: W18x234 | Q118: 234 | R118: 4900
A119: HSS3X0.152 | B119: 4.627719568 | C119: 1.3 | F119: HSS10X3-1/2X1/2 | G119: 40.21359431 | H119: 118 | P119: W27X129 | Q119: 129 | R119: 4760 | S119: A Best Choice
A120: HSS3X0.134 | B120: 4.105484767 | C120: 1.16 | F120: HSS10X6X5/16 | G120: 31.83901455 | H120: 118 | P120: W21X182 | Q120: 182 | R120: 4730
A121: HSS3X0.125 | B121: 3.841769662 | C121: 1.09 | D121: A Best Choice | F121: HSS12X6X3/16 | G121: 22.21997752 | H121: 116 | I121: A Best Choice | P121: W24X146 | Q121: 146 | R121: 4580
A122: HSS2.500X0.250 | B122: 6.013204689 | C122: 1.08 | F122: HSS9X5X1/2 | G122: 41.9149832 | H122: 115 | P122: W30X108 | Q122: 108 | R122: 4470 | S122: A Best Choice
A123: HSS2.875X0.125 | B123: 3.674736199 | C123: 0.958 | D123: A Best Choice | F123: HSS8X6X5/8 | G123: 50.60419696 | H123: 114 | P123: W14X311 | Q123: 311 | R123: 4330
A124: HSS2.375X0.250 | B124: 5.679137761 | C124: 0.91 | F124: HSS10X10X3/16 | G124: 24.71554752 | H124: 108 | I124: A Best Choice | P124: W18x211 | Q124: 211 | R124: 4330
A125: HSS2.500X0.188 | B125: 4.646534217 | C125: 0.865 | D125: A Best Choice | F125: HSS10X4X3/8 | G125: 32.50995984 | H125: 104 | P125: W21X166 | Q125: 166 | R125: 4280
A126: HSS2.375X0.218 | B126: 5.026782556 | C126: 0.824 | F126: HSS10X5X5/16 | G126: 29.70887566 | H126: 104 | P126: W27X114 | Q126: 114 | R126: 4080 | S126: A Best Choice
A127: HSS2.375X0.188 | B127: 4.395315888 | C127: 0.733 | F127: HSS12X2X5/16 | G127: 27.57873677 | H127: 104 | P127: W12X336 | Q127: 336 | R127: 4060
A128: HSS2.375X0.154 | B128: 3.656391915 | C128: 0.627 | F128: HSS12X3X1/4 | G128: 24.09051575 | H128: 103 | I128: A Best Choice | P128: W24X131 | Q128: 131 | R128: 4020
A129: HSS2.500X0.125 | B129: 3.173635808 | C129: 0.619 | F129: HSS9X7X5/16 | G129: 31.83901455 | H129: 102 | P129: W30X99 | Q129: 99 | R129: 3990 | S129: A Best Choice
A130: HSS2.375X0.125 | B130: 3.006602344 | C130: 0.527 | D130: A Best Choice | F130: HSS9X9X1/4 | G130: 29.19468241 | H130: 102 | I130: A Best Choice | P130: W18x192 | Q130: 192 | R130: 3870
A131: HSS1.900X0.188 | B131: 3.440686237 | C131: 0.355 | F131: HSS8X8X3/8 | G131: 37.6141265 | H131: 100 | P131: W14X283 | Q131: 283 | R131: 3840
A132: HSS1.900X0.145 | B132: 2.720373801 | C132: 0.293 | F132: HSS8X6X1/2 | G132: 41.9149832 | H132: 98.2 | P132: W21X147 | Q132: 147 | R132: 3630
A133: HSS1.900X0.120 | B133: 2.28341426 | C133: 0.251 | F133: HSS10X6X1/4 | G133: 25.79190464 | H133: 96.9 | I133: A Best Choice | P133: W27X102 | Q133: 102 | R133: 3620
A134: HSS1.660X0.140 | B134: 2.274862147 | C134: 0.184 | F134: HSS10X3-1/2X3/8 | G134: 31.23391817 | H134: 96.1 | P134: W30X90 | Q134: 90 | R134: 3610 | S134: A Best Choice
F135: HSS7X7X5/8 | G135: 50.60419696 | H135: 93.4 | I135: =IF(AND(G135<G136,G135<G134),"A Best Choice"," ") ->  | P135: W12X305 | Q135: 305 | R135: 3550
F136: HSS9X5X3/8 | G136: 32.50995984 | H136: 92.5 | P136: W24X117 | Q136: 117 | R136: 3540 | S136: =IF(AND(Q136<Q137,Q136<Q135),"A Best Choice"," ") -> A Best Choice
F137: HSS12X4X3/16 | G137: 19.66108863 | H137: 91.8 | I137: A Best Choice | P137: W18X175 | Q137: 175 | R137: 3450
F138: HSS10X8X3/16 | G138: 22.21997752 | H138: 91.4 | P138: W14X257 | Q138: 257 | R138: 3400
F139: HSS10X4X5/16 | G139: 27.57873677 | H139: 90.1 | P139: W27X94 | Q139: 94 | R139: 3270 | S139: A Best Choice
F140: HSS10X3X3/8 | G140: 29.9578765 | H140: 88 | P140: W21X132 | Q140: 132 | R140: 3220
F141: HSS12X2X1/4 | G141: 22.38912686 | H141: 86.9 | I141: A Best Choice | P141: S24X121 | Q141: 121 | R141: 3160 | S141: A Best Choice
F142: HSS10X5X1/4 | G142: 24.09051575 | H142: 85.8 | P142: W12X279 | Q142: 279 | R142: 3110
F143: HSS8X8X5/16 | G143: 31.79249177 | H143: 85.6 | P143: W24X104 | Q143: 104 | R143: 3100 | S143: A Best Choice
F144: HSS9X7X1/4 | G144: 25.79190464 | H144: 84.1 | I144: A Best Choice | P144: W18X158 | Q144: 158 | R144: 3060
F145: HSS10X3-1/2X5/16 | G145: 26.51366733 | H145: 83.2 | P145: W14X233 | Q145: 233 | R145: 3010
F146: HSS8X4X5/8 | G146: 42.09725251 | H146: 82 | P146: W24X103 | Q146: 103 | R146: 3000 | S146: A Best Choice
F147: HSS9X3X1/2 | G147: 35.10942765 | H147: 80.8 | I147: A Best Choice | P147: W21X122 | Q147: 122 | R147: 2960
F148: HSS7X7X1/2 | G148: 41.9149832 | H148: 80.5 | P148: S24X106 | Q148: 106 | R148: 2940
F149: HSS9X5X5/16 | G149: 27.57873677 | H149: 79.8 | P149: W27X84 | Q149: 84 | R149: 2850 | S149: A Best Choice
F150: HSS12X3X3/16 | G150: 18.38164419 | H150: 79.6 | I150: A Best Choice | P150: W18X143 | Q150: 143 | R150: 2750
F151: HSS8X6X3/8 | G151: 32.50995984 | H151: 79.1 | P151: W12X252 | Q151: 252 | R151: 2720
F152: HSS9X9X3/16 | G152: 22.16346419 | H152: 78.2 | I152: A Best Choice | P152: W24X94 | Q152: 94 | R152: 2700 | S152: A Best Choice
F153: HSS10X3X5/16 | G153: 25.44859788 | H153: 76.3 | P153: W21X111 | Q153: 111 | R153: 2670
F154: HSS10X4X1/4 | G154: 22.38912686 | H154: 74.7 | P154: W14X211 | Q154: 211 | R154: 2660
F155: HSS10X6X3/16 | G155: 19.66108863 | H155: 74.6 | I155: A Best Choice | P155: W18X130 | Q155: 130 | R155: 2460 | S155: A Best Choice
F156: HSS8X4X1/2 | G156: 35.10942765 | H156: 71.8 | P156: W12X230 | Q156: 230 | R156: 2420
F157: HSS10X2X3/8 | G157: 27.40579317 | H157: 71.7 | P157: W21X101 | Q157: 101 | R157: 2420 | S157: A Best Choice
F158: HSS8X8X1/4 | G158: 25.79190464 | H158: 70.7 | P158: W14X193 | Q158: 193 | R158: 2400
F159: HSS10X3-1/2X1/4 | G159: 21.53843241 | H159: 69.1 | I159: A Best Choice | P159: S24X100 | Q159: 100 | R159: 2380
F160: HSS8X6X5/16 | G160: 27.57873677 | H160: 68.3 | P160: W24X84 | Q160: 84 | R160: 2370 | S160: A Best Choice
F161: HSS12X2X3/16 | G161: 17.10219974 | H161: 67.4 | I161: A Best Choice | P161: S24X90 | Q161: 90 | R161: 2250
F162: HSS9X3X3/8 | G162: 27.40579317 | H162: 66.3 | P162: W18X119 | Q162: 119 | R162: 2190
F163: HSS10X5X3/16 | G163: 18.38164419 | H163: 66.2 | I163: A Best Choice | P163: W12X210 | Q163: 210 | R163: 2140
F164: HSS9X5X1/4 | G164: 22.38912686 | H164: 66.1 | P164: W14X176 | Q164: 176 | R164: 2140
F165: HSS7X7X3/8 | G165: 32.50995984 | H165: 65 | P165: S24X80 | Q165: 80 | R165: 2100
F166: HSS9X7X3/16 | G166: 19.66108863 | H166: 64.7 | I166: A Best Choice | P166: W24X76 | Q166: 76 | R166: 2100 | S166: A Best Choice
F167: HSS10X3X1/4 | G167: 20.68773797 | H167: 63.6 | P167: W21X93 | Q167: 93 | R167: 2070
F168: HSS10X2X5/16 | G168: 23.31845899 | H168: 62.6 | P168: W18X106 | Q168: 106 | R168: 1910
F169: HSS7X5X1/2 | G169: 35.10942765 | H169: 60.6 | P169: W14X159 | Q169: 159 | R169: 1900
F170: HSS8X4X3/8 | G170: 27.40579317 | H170: 58.7 | I170: A Best Choice | P170: W12X190 | Q170: 190 | R170: 1890
F171: HSS8X3X1/2 | G171: 31.70664987 | H171: 58.6 | P171: W21X83 | Q171: 83 | R171: 1830
F172: HSS10X4X3/16 | G172: 17.10219974 | H172: 57.8 | I172: A Best Choice | P172: W24X68 | Q172: 68 | R172: 1830 | S172: A Best Choice
F173: HSS9X3X5/16 | G173: 23.31845899 | H173: 57.7 | P173: W18X97 | Q173: 97 | R173: 1750
F174: HSS8X6X1/4 | G174: 22.38912686 | H174: 56.6 | I174: A Best Choice | P174: W14X145 | Q174: 145 | R174: 1710
F175: HSS7X7X5/16 | G175: 27.53901955 | H175: 56.1 | P175: S20X96 | Q175: 96 | R175: 1670 | S175: A Best Choice
F176: HSS6X6X5/8 | G176: 42.09725251 | H176: 55.2 | P176: W12X170 | Q176: 170 | R176: 1650
F177: HSS8X8X3/16 | G177: 19.61138085 | H177: 54.4 | P177: W21X73 | Q177: 73 | R177: 1600 | S177: A Best Choice
F178: HSS10X3-1/2X3/16 | G178: 16.46247752 | H178: 53.6 | P178: S20X86 | Q178: 86 | R178: 1570
F179: HSS9X9X1/8 | G179: 14.95459519 | H179: 53.5 | I179: A Best Choice | P179: W24X62 | Q179: 62 | R179: 1550 | S179: A Best Choice
F180: HSS10X2X1/4 | G180: 18.98634908 | H180: 52.5 | P180: W14X132 | Q180: 132 | R180: 1530
F181: HSS9X5X3/16 | G181: 17.10219974 | H181: 51.1 | I181: A Best Choice | P181: W18X86 | Q181: 86 | R181: 1530 | S181: A Best Choice
F182: HSS8X4X5/16 | G182: 23.31845899 | H182: 51 | P182: W16X100 | Q182: 100 | R182: 1490
F183: HSS7X4X1/2 | G183: 31.70664987 | H183: 50.7 | P183: W21X68 | Q183: 68 | R183: 1480 | S183: A Best Choice
F184: HSS7X5X3/8 | G184: 27.40579317 | H184: 49.5 | P184: W12X152 | Q184: 152 | R184: 1430
F185: HSS10X3X3/16 | G185: 15.8227553 | H185: 49.4 | I185: A Best Choice | P185: W14X120 | Q185: 120 | R185: 1380
F186: HSS8X3X3/8 | G186: 24.85370984 | H186: 48.5 | P186: W24X55 | Q186: 55 | R186: 1350 | S186: A Best Choice
F187: HSS6X6X1/2 | G187: 35.10942765 | H187: 48.3 | P187: W18X76 | Q187: 76 | R187: 1330
F188: HSS9X3X1/4 | G188: 18.98634908 | H188: 48.2 | I188: A Best Choice | P188: W21X62 | Q188: 62 | R188: 1330 | S188: A Best Choice
F189: HSS7X7X1/4 | G189: 22.38912686 | H189: 46.5 | P189: W16X89 | Q189: 89 | R189: 1300
F190: HSS8X6X3/16 | G190: 17.10219974 | H190: 43.7 | I190: A Best Choice | P190: S20X75 | Q190: 75 | R190: 1280 | S190: A Best Choice
F191: HSS7X5X5/16 | G191: 23.31845899 | H191: 43 | P191: W12X136 | Q191: 136 | R191: 1240
F192: HSS8X4X1/4 | G192: 18.98634908 | H192: 42.5 | I192: A Best Choice | P192: W14X109 | Q192: 109 | R192: 1240 | S192: A Best Choice
F193: HSS8X3X5/16 | G193: 21.1883201 | H193: 42.4 | P193: HP14X117 | Q193: 117 | R193: 1220
F194: HSS7X4X3/8 | G194: 24.85370984 | H194: 41.8 | P194: S20X66 | Q194: 66 | R194: 1190 | S194: A Best Choice
F195: HSS6X5X1/2 | G195: 31.70664987 | H195: 41.1 | P195: W18X71 | Q195: 71 | R195: 1170
F196: HSS10X2X3/16 | G196: 14.54331085 | H196: 41 | I196: A Best Choice | P196: W21X57 | Q196: 57 | R196: 1170
F197: HSS7X3X1/2 | G197: 28.30387209 | H197: 40.7 | P197: W21X55 | Q197: 55 | R197: 1140 | S197: A Best Choice
F198: HSS10X4X1/8 | G198: 11.55181742 | H198: 39.8 | I198: A Best Choice | P198: W14X99 | Q198: 99 | R198: 1110
F199: HSS6X6X3/8 | G199: 27.40579317 | H199: 39.5 | I199: =IF(AND(G199<G200,G199<G198),"A Best Choice"," ") ->  | P199: W16X77 | Q199: 77 | R199: 1110 | S199: A Best Choice
F200: HSS8X2X3/8 | G200: 22.3016265 | H200: 38.2 | P200: W12X120 | Q200: 120 | R200: 1070 | S200: =IF(AND(Q200<Q201,Q200<Q199),"A Best Choice"," ") -> 
F201: HSS9X3X3/16 | G201: 14.54331085 | H201: 37.6 | P201: W18X65 | Q201: 65 | R201: 1070 | S201: A Best Choice
F202: HSS8X8X1/8 | G202: 13.25320631 | H202: 37.4 | P202: HP14X102 | Q202: 102 | R202: 1050
F203: HSS10X3-1/2X1/8 | G203: 11.12647019 | H203: 37 | I203: A Best Choice | P203: W14X90 | Q203: 90 | R203: 999
... 165 more rows

Sheet WtTables (hidden)
A1: Tables Sorted by Weight
B6: RndHSS | E6: RectHSS | H6: IShapes | K6: Chan
B7: ---- | E7: ---- | H7: ---- | K7: ----
B8: HSS1.660X0.140 | C8: 2.274862147 | E8: HSS2X1X1/8 | F8: 2.194178528 | H8: M3X2.9 | I8: 2.9 | K8: C3X3.5 | L8: 3.5
B9: HSS1.900X0.120 | C9: 2.28341426 | E9: HSS2-1/2X1X1/8 | F9: 2.61952575 | H9: M4X3.2 | I9: 3.2 | K9: C3X4.1 | L9: 4.1
B10: HSS1.900X0.145 | C10: 2.720373801 | E10: HSS2X2X1/8 | F10: 2.61952575 | H10: M4X3.45 | I10: 3.45 | K10: C4X4.5 | L10: 4.5
B11: HSS2.375X0.125 | C11: 3.006602344 | E11: HSS2X2X1/8 | F11: 2.61952575 | H11: M6X3.7 | I11: 3.7 | K11: C3X5 | L11: 5
B12: HSS2.500X0.125 | C12: 3.173635808 | E12: HSS2X1X3/16 | F12: 3.028310854 | H12: M4X4.08 | I12: 4.09 | K12: C4X5.4 | L12: 5.4
B13: HSS1.900X0.188 | C13: 3.440686237 | E13: HSS2-1/2X1-1/2X1/8 | F13: 3.044872972 | H13: M6X4.4 | I13: 4.4 | K13: C3X6 | L13: 6
B14: HSS2.375X0.154 | C14: 3.656391915 | E14: HSS3X1X1/8 | F14: 3.044872972 | H14: S3X5.7 | I14: 5.7 | K14: MC10X6.5 | L14: 6.5
B15: HSS2.875X0.125 | C15: 3.674736199 | E15: HSS2-1/4X2X1/8 | F15: 3.257546583 | H15: M4X6 | I15: 6 | K15: MC6x6.5 | L15: 6.5
B16: HSS3X0.125 | C16: 3.841769662 | E16: HSS2-1/2X2X1/8 | F16: 3.470220194 | H16: M8X6.2 | I16: 6.2 | K16: C5X6.7 | L16: 6.7
B17: HSS3X0.134 | C17: 4.105484767 | E17: HSS2-1/4X2-1/4X1/8 | F17: 3.470220194 | H17: M8X6.5 | I17: 6.5 | K17: MC6x7 | L17: 7
B18: HSS2.375X0.188 | C18: 4.395315888 | E18: HSS3X1-1/2X1/8 | F18: 3.470220194 | H18: S3X7.5 | I18: 7.5 | K18: MC3x7.1 | L18: 7.1
B19: HSS3.500X0.125 | C19: 4.509903516 | E19: HSS2-1/2X1X3/16 | F19: 3.668033076 | H19: M10X7.5 | I19: 7.5 | K19: C4X7.2 | L19: 7.2
B20: HSS3X0.152 | C20: 4.627719568 | E20: HSS2X1-1/2X3/16 | F20: 3.668033076 | H20: S4X7.7 | I20: 7.7 | K20: C6X8.2 | L20: 8.2
B21: HSS2.500X0.188 | C21: 4.646534217 | E21: HSS2-1/2X2-1/2X1/8 | F21: 3.895567417 | H21: M10X8 | I21: 8 | K21: MC10X8.4 | L21: 8.4
B22: HSS2.375X0.218 | C22: 5.026782556 | E22: HSS3-1/2X1-1/2X1/8 | F22: 3.895567417 | H22: W6X8.5 | I22: 8.5 | K22: MC8X8.5 | L22: 8.5
B23: HSS4X0.125 | C23: 5.178037371 | E23: HSS3X2X1/8 | F23: 3.895567417 | H23: W6X9 | I23: 9 | K23: C5X9 | L23: 9
B24: HSS2.875X0.188 | C24: 5.400189205 | E24: HSS2X2X3/16 | F24: 4.298880854 | H24: M10X9 | I24: 9 | K24: C7X9.8 | L24: 9.8
B25: HSS3X0.188 | C25: 5.651407534 | E25: HSS2-1/2X1-1/2X3/16 | F25: 4.307755299 | H25: S4X9.5 | I25: 9.5 | K25: C6X10.5 | L25: 10.5
B26: HSS2.375X0.250 | C26: 5.679137761 | E26: HSS3X1X3/16 | F26: 4.307755299 | H26: S5X10 | I26: 10 | K26: MC12X10.6 | L26: 10.6
B27: HSS2.875X0.203 | C27: 5.798503883 | E27: HSS3-1/2X2X1/8 | F27: 4.320914639 | H27: W8X10 | I27: 10 | K27: C8X11.5 | L27: 11.5
B28: HSS4.500X0.125 | C28: 5.846171225 | E28: HSS3X2-1/2X1/8 | F28: 4.320914639 | H28: M12X10 | I28: 10 | K28: MC6X12 | L28: 12
B29: HSS2.500X0.250 | C29: 6.013204689 | E29: HSS2-1/4X2X3/16 | F29: 4.62761641 | H29: M12X10.8 | I29: 10.8 | K29: C7X12.2 | L29: 12.2
B30: HSS3X0.203 | C30: 6.069766228 | E30: HSS3X3X1/8 | F30: 4.746261861 | H30: M12.5X11.6 | I30: 11.6 | K30: C6X13 | L30: 13
B31: HSS3X0.216 | C31: 6.428452551 | E31: HSS4X2X1/8 | F31: 4.746261861 | H31: M12X11.8 | I31: 11.8 | K31: C9X13.4 | L31: 13.4
B32: HSS5X0.125 | C32: 6.514305079 | E32: HSS2-1/4X2-1/4X3/16 | F32: 4.936901687 | H32: W10X12 | I32: 12 | K32: C8X13.7 | L32: 13.7
B33: HSS3.500X0.188 | C33: 6.656280851 | E33: HSS2-1/2X2X3/16 | F33: 4.947477521 | H33: W6X12 | I33: 12 | K33: MC4x13.8 | L33: 13.8
B34: HSS2.875X0.250 | C34: 7.01540547 | E34: HSS3X1-1/2X3/16 | F34: 4.947477521 | H34: M12.5X12.4 | I34: 12.4 | K34: C7X14.7 | L34: 14.7
B35: HSS3.500X0.203 | C35: 7.154815607 | E35: HSS4X2-1/2X1/8 | F35: 5.171609083 | H35: S6X12.5 | I35: 12.5 | K35: C9X15 | L35: 15
B36: HSS3X0.250 | C36: 7.349472397 | E36: HSS2-1/2X1-1/2X1/4 | F36: 5.37523797 | H36: W4X13 | I36: 13 | K36: MC6X15.1 | L36: 15.1
B37: HSS3.500X0.216 | C37: 7.582987852 | E37: HSS2X2X1/4 | F37: 5.37523797 | H37: W8X13 | I37: 13 | K37: C10X15.3 | L37: 15.3
B38: HSS4X0.188 | C38: 7.661154168 | E38: HSS2-1/2X2-1/2X3/16 | F38: 5.574922521 | H38: W12X14 | I38: 14 | K38: MC6X15.3 | L38: 15.3
B39: HSS5.563X0.134 | C39: 7.776928402 | E39: HSS3-1/2X1-1/2X3/16 | F39: 5.587199743 | H39: W10X15 | I39: 15 | K39: MC6X16.3 | L39: 16.3
B40: HSS6X0.125 | C40: 7.850572788 | E40: HSS3X2X3/16 | F40: 5.587199743 | H40: W6X15 | I40: 15 | K40: MC6X18 | L40: 18
B41: HSS4.500X0.188 | C41: 8.666027484 | E41: HSS3-1/2X3-1/2X1/8 | F41: 5.596956306 | H41: W8X15 | I41: 15 | K41: MC8X18.7 | L41: 18.7
B42: HSS3.500X0.250 | C42: 8.685740106 | E42: HSS4X3X1/8 | F42: 5.596956306 | H42: W12X16 | I42: 16 | K42: C8X18.7 | L42: 18.7
B43: HSS6.625X0.125 | C43: 8.685740106 | E43: HSS5X2X1/8 | F43: 5.596956306 | H43: W5X16 | I43: 16 | K43: MC7X19.1 | L43: 19.1
B44: HSS4X0.220 | C44: 8.889921811 | E44: HSS5X2-1/2X1/8 | F44: 6.022303528 | H44: W6X16 | I44: 16 | K44: C10X20 | L44: 20
B45: HSS4X0.226 | C45: 9.117878392 | E45: HSS2-1/2X2X1/4 | F45: 6.225932414 | H45: W10X17 | I45: 17 | K45: C9X20 | L45: 20
B46: HSS7X0.125 | C46: 9.186840496 | E46: HSS2-1/4X2-1/4X1/4 | F46: 6.225932414 | H46: S6X17.2 | I46: 17.3 | K46: MC8X20 | L46: 20
B47: HSS4X0.237 | C47: 9.533799734 | E47: HSS3X1-1/2X1/4 | F47: 6.225932414 | H47: W8X18 | I47: 18 | K47: C12X20.7 | L47: 20.7
B48: HSS5X0.188 | C48: 9.670900801 | E48: HSS3-1/2X2X3/16 | F48: 6.226921965 | H48: S8X18.4 | I48: 18.4 | K48: MC8X21.4 | L48: 21.4
B49: HSS4X0.250 | C49: 10 | E49: HSS3X2-1/2X3/16 | F49: 6.226921965 | H49: M5X18.9 | I49: 18.9 | K49: MC10X22 | L49: 22
B50: HSS3.500X0.300 | C50: 10.262536 | E50: HSS4X4X1/8 | F50: 6.44765075 | H50: W10X19 | I50: 19 | K50: MC7X22.7 | L50: 22.7
B51: HSS3.500X0.313 | C51: 10.66374771 | E51: HSS5X3X1/8 | F51: 6.44765075 | H51: W12X19 | I51: 19 | K51: MC8X22.8 | L51: 22.8
B52: HSS4.500X0.237 | C52: 10.80058152 | E52: HSS6X2X1/8 | F52: 6.44765075 | H52: W5X19 | I52: 19 | K52: MC9X23.9 | L52: 23.9
B53: HSS5.563X0.188 | C53: 10.80238816 | E53: HSS3X3X3/16 | F53: 6.850964187 | H53: W6X20 | I53: 20 | K53: C12X25 | L53: 25
B54: HSS6X0.188 | C54: 11.68064743 | E54: HSS4X2X3/16 | F54: 6.866644187 | H54: W8X21 | I54: 21 | K54: MC10X25 | L54: 25
B55: HSS4X0.313 | C55: 12.33675488 | E55: HSS2-1/2X2-1/2X1/4 | F55: 7.076626859 | H55: W10X22 | I55: 22 | K55: C10X25 | L55: 25
B56: HSS5X0.250 | C56: 12.69454323 | E56: HSS3-1/2X1-1/2X1/4 | F56: 7.076626859 | H56: W12X22 | I56: 22 | K56: MC9X25.4 | L56: 25.4
B57: HSS6.625X0.188 | C57: 12.93673908 | E57: HSS3X2X1/4 | F57: 7.076626859 | H57: W14X22 | I57: 22 | K57: MC10X28.5 | L57: 28.5
B58: HSS5X0.258 | C58: 13.07870416 | E58: HSS4-1/2X4-1/2X1/8 | F58: 7.298345194 | H58: S8X23 | I58: 23 | K58: C12X30 | L58: 30
B59: HSS6.875X0.188 | C59: 13.43917574 | E59: HSS5X4X1/8 | F59: 7.298345194 | H59: W8X24 | I59: 24 | K59: C10X30 | L59: 30
B60: HSS7X0.188 | C60: 13.69039407 | E60: HSS6X3X1/8 | F60: 7.298345194 | H60: W6X25 | I60: 25 | K60: MC12X31 | L60: 31
B61: HSS5.500X0.258 | C61: 14.45773244 | E61: HSS7X2X1/4 | F61: 7.298345194 | H61: S10X25.4 | I61: 25.4 | K61: MC13X31.8 | L61: 31.8
B62: HSS5.563X0.258 | C62: 14.63149 | E62: HSS4X2-1/2X3/16 | F62: 7.50636641 | H62: W10X26 | I62: 26 | K62: MC10X33.6 | L62: 33.6
B63: HSS7.500X0.188 | C63: 14.69526739 | E63: HSS3-1/2X2X1/4 | F63: 7.927321303 | H63: W12X26 | I63: 26 | K63: C15X33.9 | L63: 33.9
B64: HSS4.500X0.337 | C64: 14.99753114 | E64: HSS3X2-1/2X1/4 | F64: 7.927321303 | H64: W14X26 | I64: 26 | K64: MC13X35 | L64: 35
B65: HSS6X0.250 | C65: 15.36707865 | E65: HSS3-1/2X3-1/2X3/16 | F65: 8.127005854 | H65: W16X26 | I65: 26 | K65: MC12X35 | L65: 35
B66: HSS5X0.312 | C66: 15.63599985 | E66: HSS4X3X3/16 | F66: 8.146088632 | H66: W8X28 | I66: 28 | K66: C15X40 | L66: 40
B67: HSS4.500X0.375 | C67: 16.53631289 | E67: HSS5X2X3/16 | F67: 8.146088632 | H67: W10X30 | I67: 30 | K67: MC13X40 | L67: 40
B68: HSS8.625X0.188 | C68: 16.95623235 | E68: HSS5X5X1/8 | F68: 8.149039639 | H68: W12X30 | I68: 30 | K68: MC12X40 | L68: 40
B69: HSS6.625X0.250 | C69: 17.03741328 | E69: HSS6X4X1/8 | F69: 8.149039639 | H69: W14X30 | I69: 30 | K69: MC10X41.1 | L69: 41.1
B70: HSS6X0.280 | C70: 17.1213309 | E70: HSS7X3X1/8 | F70: 8.149039639 | H70: W16X31 | I70: 31 | K70: MC18X42.7 | L70: 42.7
B71: HSS6.875X0.250 | C71: 17.70554714 | E71: HSS8X2X1/8 | F71: 8.149039639 | H71: W8X31 | I71: 31 | K71: MC12X45 | L71: 45
B72: HSS7X0.250 | C72: 18.03961407 | E72: HSS2-1/2X2-1/2X5/16 | F72: 8.398394549 | H72: S12X31.8 | I72: 31.8 | K72: MC18X45.8 | L72: 45.8
B73: HSS5X0.375 | C73: 18.54071446 | E73: HSS3X2X5/16 | F73: 8.407486771 | H73: W10X33 | I73: 33 | K73: C15X50 | L73: 50
B74: HSS9.625X0.188 | C74: 18.96597898 | E74: HSS3X3X1/4 | F74: 8.778015748 | H74: W14X34 | I74: 34 | K74: MC13X50 | L74: 50
B75: HSS6X0.312 | C75: 18.97132405 | E75: HSS4X2X1/4 | F75: 8.778015748 | H75: S10X35 | I75: 35 | K75: MC12X50 | L75: 50
B76: HSS6.625X0.280 | C76: 18.99210569 | E76: HSS5X2-1/2X3/16 | F76: 8.785810854 | H76: S12X35 | I76: 35 | K76: MC18X51.9 | L76: 51.9
B77: HSS7.500X0.250 | C77: 19.37588177 | E77: HSS5-1/2X5-1/2X1/8 | F77: 8.999734083 | H77: W12X35 | I77: 35 | K77: MC18X58 | L77: 58
B78: HSS10X0.188 | C78: 19.71963397 | E78: HSS6X5X1/8 | F78: 8.999734083 | H78: W18X35 | I78: 35
B79: HSS5.500X0.375 | C79: 20.54511602 | E79: HSS7X4X1/8 | F79: 8.999734083 | H79: W8X35 | I79: 35
B80: HSS5.563X0.375 | C80: 20.79767062 | E80: HSS8X3X1/8 | F80: 8.999734083 | H80: W16X36 | I80: 36
B81: HSS6.625X0.312 | C81: 21.05590168 | E81: HSS4X4X3/16 | F81: 9.403047521 | H81: W14X38 | I81: 38
B82: HSS6.875X0.312 | C82: 21.88973273 | E82: HSS5X3X3/16 | F82: 9.425533076 | H82: W10X39 | I82: 39
B83: HSS7X0.312 | C83: 22.30664825 | E83: HSS6X2X3/16 | F83: 9.425533076 | H83: W12X40 | I83: 40
B84: HSS8.625X0.250 | C84: 22.38248412 | E84: HSS3X2-1/2X5/16 | F84: 9.472556215 | H84: W16X40 | I84: 40
B85: HSS6X0.375 | C85: 22.54951758 | E85: HSS4X2-1/2X1/4 | F85: 9.628710192 | H85: W18X40 | I85: 40
B86: HSS7.500X0.312 | C86: 23.97431035 | E86: HSS10X2X1/8 | F86: 9.850428528 | H86: W8X40 | I86: 40
B87: HSS5X0.500 | C87: 24.05281875 | E87: HSS6X6X1/8 | F87: 9.850428528 | H87: S12X40.8 | I87: 40.8
B88: HSS6.625X0.375 | C88: 25.05501954 | E88: HSS7X5X1/8 | F88: 9.850428528 | H88: S15X42.9 | I88: 42.9
B89: HSS9.625X0.250 | C89: 25.05501954 | E89: HSS8X4X1/8 | F89: 9.850428528 | H89: W14X43 | I89: 43
B90: HSS7.625X0.328 | C90: 25.58595611 | E90: HSS3-1/2X3-1/2X1/4 | F90: 10.47940464 | H90: W21X44 | I90: 44
B91: HSS10X0.250 | C91: 26.05722032 | E91: HSS4X3X1/4 | F91: 10.47940464 | H91: W10X45 | I91: 45
B92: HSS6.875X0.375 | C92: 26.05722032 | E92: HSS5X2X1/4 | F92: 10.47940464 | H92: W12X45 | I92: 45
B93: HSS7X0.375 | C93: 26.55832071 | E93: HSS3X3X5/16 | F93: 10.52513066 | H93: W16X45 | I93: 45
B94: HSS5.500X0.500 | C94: 26.72535417 | E94: HSS4X2X5/16 | F94: 10.53762566 | H94: W18X46 | I94: 46
B95: HSS5.563X0.500 | C95: 27.06209363 | E95: HSS4-1/2X4-1/2X3/16 | F95: 10.67908919 | H95: W14X48 | I95: 48
B96: HSS10.750X0.250 | C96: 28.06162188 | E96: HSS10X3X1/8 | F96: 10.70112297 | H96: W21X48 | I96: 48
B97: HSS7.500X0.375 | C97: 28.56272227 | E97: HSS5X4X3/16 | F97: 10.70497752 | H97: W8X48 | I97: 48
B98: HSS8.625X0.322 | C98: 28.5807993 | E98: HSS6X3X3/16 | F98: 10.70497752 | H98: W10X49 | I98: 49
B99: HSS6.625X0.432 | C99: 28.60014846 | E99: HSS7X2X3/16 | F99: 10.70497752 | H99: S12X50 | I99: 50
B100: HSS7.625X0.375 | C100: 29.06382266 | E100: HSS10X3-1/2X1/8 | F100: 11.12647019 | H100: S15X50 | I100: 50
B101: HSS6X0.500 | C101: 29.39788959 | E101: HSS5X2-1/2X1/4 | F101: 11.33009908 | H101: W12X50 | I101: 50
B102: HSS9.625X0.312 | C102: 31.06187428 | E102: HSS10X4X1/8 | F102: 11.55181742 | H102: W16X50 | I102: 50
B103: HSS10X0.312 | C103: 32.31262086 | E103: HSS7X7X1/8 | F103: 11.55181742 | H103: W18X50 | I103: 50
B104: HSS6.625X0.500 | C104: 32.73855886 | E104: HSS4X2-1/2X5/16 | F104: 11.6026951 | H104: W21X50 | I104: 50
B105: HSS8.625X0.375 | C105: 33.07262579 | E105: HSS5X5X3/16 | F105: 11.95513085 | H105: W12X53 | I105: 53
B106: HSS12.750X0.250 | C106: 33.40669271 | E106: HSS6X4X3/16 | F106: 11.98442197 | H106: W14X53 | I106: 53
B107: HSS6.875X0.500 | C107: 34.07482657 | E107: HSS7X3X3/16 | F107: 11.98442197 | H107: W10X54 | I107: 54
B108: HSS7X0.500 | C108: 34.74296042 | E108: HSS8X2X3/16 | F108: 11.98442197 | H108: S18X54.7 | I108: 54.7
B109: HSS14X0.250 | C109: 36.74736199 | E109: HSS3X3X3/8 | F109: 12.09329317 | H109: W18X55 | I109: 55
B110: HSS9.625X0.375 | C110: 37.08142891 | E110: HSS4X2X3/8 | F110: 12.09329317 | H110: W21X55 | I110: 55
B111: HSS7.500X0.500 | C111: 37.41549584 | E111: HSS4X4X1/4 | F111: 12.18079353 | H111: W24X55 | I111: 55
B112: HSS10X0.375 | C112: 38.58473008 | E112: HSS5X3X1/4 | F112: 12.18079353 | H112: W16X57 | I112: 57
B113: HSS10.750X0.375 | C113: 41.59133243 | E113: HSS6X2X1/4 | F113: 12.18079353 | H113: W21X57 | I113: 57
B114: HSS16X0.250 | C114: 42.09243282 | E114: HSS3-1/2X3-1/2X5/16 | F114: 12.65186677 | H114: W12X58 | I114: 58
B115: HSS8.625X0.500 | C115: 43.42870053 | E115: HSS4X3X5/16 | F115: 12.66776455 | H115: W8X58 | I115: 58
B116: HSS14X0.312 | C116: 45.65391766 | E116: HSS5X2X5/16 | F116: 12.66776455 | H116: W10X60 | I116: 60
B117: HSS9.625X0.500 | C117: 48.77377136 | E117: HSS5-1/2X5-1/2X3/16 | F117: 13.23117252 | H117: W18X60 | I117: 60
B118: HSS12.750X0.375 | C118: 49.60893868 | E118: HSS8X8X1/8 | F118: 13.25320631 | H118: W14X61 | I118: 61
B119: HSS10X0.500 | C119: 50.77817293 | E119: HSS6X5X3/16 | F119: 13.26386641 | H119: W21X62 | I119: 62
B120: HSS16X0.312 | C120: 52.32456606 | E120: HSS7X4X3/16 | F120: 13.26386641 | H120: W24X62 | I120: 62
B121: HSS8.625X0.625 | C121: 53.45070834 | E121: HSS8X3X3/16 | F121: 13.26386641 | H121: W12X65 | I121: 65
B122: HSS14X0.375 | C122: 54.61994259 | E122: HSS4X2-1/2X3/8 | F122: 13.36933484 | H122: W18X65 | I122: 65
B123: HSS10.750X0.500 | C123: 54.78697605 | E123: HSS4-1/2X4-1/2X1/4 | F123: 13.88218241 | H123: S20X66 | I123: 66
B124: HSS10X0.625 | C124: 62.63754884 | E124: HSS5X4X1/4 | F124: 13.88218241 | H124: W16X67 | I124: 67
B125: HSS16X0.375 | C125: 62.63754884 | E125: HSS6X3X1/4 | F125: 13.88218241 | H125: W8X67 | I125: 67
B126: HSS12.750X0.500 | C126: 65.47711772 | E126: HSS7X2X1/2 | F126: 13.88218241 | H126: W10X68 | I126: 68
B127: HSS18X0.375 | C127: 70.65515509 | E127: HSS6X6X3/16 | F127: 14.50721419 | H127: W14X68 | I127: 68
B128: HSS14X0.500 | C128: 72.15845626 | E128: HSS10X2X3/16 | F128: 14.54331085 | H128: W21X68 | I128: 68
B129: HSS16X0.438 | C129: 72.86567327 | E129: HSS7X5X3/16 | F129: 14.54331085 | H129: W24X68 | I129: 68
B130: HSS20X0.375 | C130: 78.67276134 | E130: HSS8X4X3/16 | F130: 14.54331085 | H130: S18X70 | I130: 70
B131: HSS16X0.500 | C131: 82.84859793 | E131: HSS9X3X3/16 | F131: 14.54331085 | H131: W18X71 | I131: 71
B132: HSS14X0.625 | C132: 89.36290301 | E132: HSS3-1/2X3-1/2X3/8 | F132: 14.6453765 | H132: W12X72 | I132: 72
B133: HSS18X0.500 | C133: 93.5387396 | E133: HSS4X3X3/8 | F133: 14.6453765 | H133: W21X73 | I133: 73
B134: HSS16X0.625 | C134: 103 | E134: HSS5X2X3/8 | F134: 14.6453765 | H134: W14X74 | I134: 74
B135: HSS20X0.500 | C135: 104 | E135: HSS4X4X5/16 | F135: 14.77860288 | H135: S20X75 | I135: 75
E136: HSS5X3X5/16 | F136: 14.79790344 | H136: W18X76 | I136: 76
E137: HSS6X2X5/16 | F137: 14.79790344 | H137: W24X76 | I137: 76
E138: HSS9X9X1/8 | F138: 14.95459519 | H138: W10X77 | I138: 77
E139: HSS5X5X1/4 | F139: 15.5835713 | H139: W16X77 | I139: 77
E140: HSS6X4X1/4 | F140: 15.5835713 | H140: W12X79 | I140: 79
E141: HSS7X3X1/4 | F141: 15.5835713 | H141: S24X80 | I141: 80
E142: HSS8X2X1/4 | F142: 15.5835713 | H142: W14X82 | I142: 82
E143: HSS10X3X3/16 | F143: 15.8227553 | H143: W21X83 | I143: 83
E144: HSS10X3-1/2X3/16 | F144: 16.46247752 | H144: W24X84 | I144: 84
E145: HSS4-1/2X4-1/2X5/16 | F145: 16.90533899 | H145: W27X84 | I145: 84
E146: HSS5X4X5/16 | F146: 16.92804233 | H146: S20X86 | I146: 86
E147: HSS6X3X5/16 | F147: 16.92804233 | H147: W18X86 | I147: 86
E148: HSS7X7X3/16 | F148: 17.05929752 | H148: W12X87 | I148: 87
E149: HSS10X4X3/16 | F149: 17.10219974 | H149: W10X88 | I149: 88
E150: HSS12X2X3/16 | F150: 17.10219974 | H150: W16X89 | I150: 89
E151: HSS8X6X3/16 | F151: 17.10219974 | H151: S24X90 | I151: 90
E152: HSS9X5X3/16 | F152: 17.10219974 | H152: W14X90 | I152: 90
E153: HSS4X4X3/8 | F153: 17.19745984 | H153: W30X90 | I153: 90
E154: HSS5X3X3/8 | F154: 17.19745984 | H154: W21X93 | I154: 93
E155: HSS6X2X3/8 | F155: 17.19745984 | H155: W24X94 | I155: 94
E156: HSS5-1/2X5-1/2X1/4 | F156: 17.28496019 | H156: W27X94 | I156: 94
E157: HSS6X5X1/4 | F157: 17.28496019 | H157: S20X96 | I157: 96
E158: HSS7X4X1/4 | F158: 17.28496019 | H158: W12X96 | I158: 96
E159: HSS8X3X1/4 | F159: 17.28496019 | H159: W18X97 | I159: 97
E160: HSS10X5X3/16 | F160: 18.38164419 | H160: W14X99 | I160: 99
E161: HSS12X3X3/16 | F161: 18.38164419 | H161: W30X99 | I161: 99
E162: HSS10X2X1/4 | F162: 18.98634908 | H162: S24X100 | I162: 100
E163: HSS6X6X1/4 | F163: 18.98634908 | H163: W10X100 | I163: 100
E164: HSS7X5X1/4 | F164: 18.98634908 | H164: W16X100 | I164: 100
E165: HSS8X4X1/4 | F165: 18.98634908 | H165: W21X101 | I165: 101
E166: HSS9X3X1/4 | F166: 18.98634908 | H166: W27X102 | I166: 102
E167: HSS5X5X5/16 | F167: 19.0320751 | H167: W24X103 | I167: 103
E168: HSS6X4X5/16 | F168: 19.05818122 | H168: W24X104 | I168: 104
E169: HSS7X3X5/16 | F169: 19.05818122 | H169: S24X106 | I169: 106
E170: HSS8X2X5/16 | F170: 19.05818122 | H170: W12X106 | I170: 106
E171: HSS8X8X3/16 | F171: 19.61138085 | H171: W18X106 | I171: 106
E172: HSS10X6X3/16 | F172: 19.66108863 | H172: W30X108 | I172: 108
E173: HSS12X4X3/16 | F173: 19.66108863 | H173: W14X109 | I173: 109
E174: HSS9X7X3/16 | F174: 19.66108863 | H174: W21X111 | I174: 111
E175: HSS4-1/2X4-1/2X3/8 | F175: 19.74954317 | H175: W10X112 | I175: 112
E176: HSS5X4X3/8 | F176: 19.74954317 | H176: W27X114 | I176: 114
E177: HSS6X3X3/8 | F177: 19.74954317 | H177: W30X116 | I177: 116
E178: HSS10X3X1/4 | F178: 20.68773797 | H178: W24X117 | I178: 117
E179: HSS5-1/2X5-1/2X5/16 | F179: 21.15881122 | H179: W33X118 | I179: 118
E180: HSS6X5X5/16 | F180: 21.1883201 | H180: W18X119 | I180: 119
E181: HSS7X4X5/16 | F181: 21.1883201 | H181: W12X120 | I181: 120
E182: HSS8X3X5/16 | F182: 21.1883201 | H182: W14X120 | I182: 120
E183: HSS4X4X1/2 | F183: 21.49831654 | H183: S24X121 | I183: 121
E184: HSS5X3X1/2 | F184: 21.49831654 | H184: W21X122 | I184: 122
E185: HSS10X3-1/2X1/4 | F185: 21.53843241 | H185: W30X124 | I185: 124
E186: HSS14X4X3/16 | F186: 22.11825352 | H186: W27X129 | I186: 129
E187: HSS9X9X3/16 | F187: 22.16346419 | H187: W18X130 | I187: 130
E188: HSS10X8X3/16 | F188: 22.21997752 | H188: W33X130 | I188: 130
E189: HSS12X6X3/16 | F189: 22.21997752 | H189: W24X131 | I189: 131
E190: HSS5X5X3/8 | F190: 22.3016265 | H190: W14X132 | I190: 132
E191: HSS6X4X3/8 | F191: 22.3016265 | H191: W21X132 | I191: 132
E192: HSS7X3X3/8 | F192: 22.3016265 | H192: W30X132 | I192: 132
E193: HSS8X2X3/8 | F193: 22.3016265 | H193: W36X135 | I193: 135
E194: HSS10X4X1/4 | F194: 22.38912686 | H194: W12X136 | I194: 136
E195: HSS12X2X1/4 | F195: 22.38912686 | H195: W33X141 | I195: 141
E196: HSS7X7X1/4 | F196: 22.38912686 | H196: W18X143 | I196: 143
E197: HSS8X6X1/4 | F197: 22.38912686 | H197: W14X145 | I197: 145
E198: HSS9X5X1/4 | F198: 22.38912686 | H198: W24X146 | I198: 146
E199: HSS6X6X5/16 | F199: 23.28554733 | H199: W27X146 | I199: 146
E200: HSS10X2X5/16 | F200: 23.31845899 | H200: W21X147 | I200: 147
E201: HSS7X5X5/16 | F201: 23.31845899 | H201: W30X148 | I201: 148
E202: HSS8X4X5/16 | F202: 23.31845899 | H202: W40X149 | I202: 149
E203: HSS9X3X5/16 | F203: 23.31845899 | H203: W36X150 | I203: 150
E204: HSS10X5X1/4 | F204: 24.09051575 | H204: W12X152 | I204: 152
... 165 more rows

Sheet StlSects (hidden)
A1: 1 | B1: 2 | C1: 3 | D1: 4 | E1: 5 | F1: 6 | G1: 7 | H1: 8 | I1: 9 | J1: 10 | K1: 11 | L1: 12 | M1: 13 | N1: 14 | O1: 15 | P1: 16 | Q1: 17 | R1: 18 | S1: 19 | T1: 20 | U1: 21 | V1: 22 | W1: 23 | X1: 24 | Y1: 25 | Z1: 26 | AA1: 27 | AB1: 28 | AC1: 29 | AD1: 30 | AE1: 31 | AF1: 32 | AG1: 33 | AH1: 34 | AI1: 35 | AJ1: 36 | AK1: 37 | AL1: 38 | AM1: 39 | AN1: 40 | AO1: 41 | AP1: 42 | AQ1: 43 | AR1: 44 | AS1: 45 | AT1: 46 | AU1: 47 | AV1: 48 | AW1: 49
A2: AISC_MANUAL_LABEL | B2: TYPE | C2: T_F | D2: W | E2: A | F2: D | G2: HT | H2: OD | I2: BF | J2: B | K2: ID | L2: TW | M2: TF | N2: T | O2: TNOM | P2: TDES | Q2: KDES | R2: KDET | S2: K1 | T2: X | U2: Y | V2: E0 | W2: XP | X2: YP | Y2: BF_2TF | Z2: B_T | AA2: H_TW | AB2: H_T | AC2: D_T | AD2: IX | AE2: ZX | AF2: SX | AG2: RX | AH2: IY | AI2: ZY | AJ2: SY | AK2: RY | AL2: RZ | AM2: J | AN2: CW | AO2: C | AP2: WNO | AQ2: SW | AR2: QF | AS2: QW | AT2: RO | AU2: H | AV2: TAN_ALPHA | AW2: QS
A3: C10X15.3 | B3: C | C3: F | D3: 15.3 | E3: 4.48 | F3: 10 | G3: 0 | H3: 0 | I3: 2.6 | J3: 0 | K3: 0 | L3: 0.24 | M3: 0.436 | N3: 0 | O3: 0 | P3: 0 | Q3: 1 | R3: 1 | S3: 0 | T3: 0.634 | U3: 0 | V3: 0.796 | W3: 0.224 | X3: 0 | Y3: 0 | Z3: 0 | AA3: 0 | AB3: 0 | AC3: 0 | AD3: 67.3 | AE3: 15.9 | AF3: 13.5 | AG3: 3.87 | AH3: 2.27 | AI3: 2.34 | AJ3: 1.15 | AK3: 0.711 | AL3: 0 | AM3: 0.209 | AN3: 45.5 | AO3: 0 | AP3: 0 | AQ3: 0 | AR3: 0 | AS3: 0 | AT3: 4.19 | AU3: 0.884 | AV3: 0 | AW3: 0
A4: C10X20 | B4: C | C4: F | D4: 20 | E4: 5.87 | F4: 10 | G4: 0 | H4: 0 | I4: 2.74 | J4: 0 | K4: 0 | L4: 0.379 | M4: 0.436 | N4: 0 | O4: 0 | P4: 0 | Q4: 1 | R4: 1 | S4: 0 | T4: 0.606 | U4: 0 | V4: 0.636 | W4: 0.294 | X4: 0 | Y4: 0 | Z4: 0 | AA4: 0 | AB4: 0 | AC4: 0 | AD4: 78.9 | AE4: 19.4 | AF4: 15.8 | AG4: 3.66 | AH4: 2.8 | AI4: 2.7 | AJ4: 1.31 | AK4: 0.69 | AL4: 0 | AM4: 0.368 | AN4: 56.9 | AO4: 0 | AP4: 0 | AQ4: 0 | AR4: 0 | AS4: 0 | AT4: 3.93 | AU4: 0.9 | AV4: 0 | AW4: 0
A5: C10X25 | B5: C | C5: F | D5: 25 | E5: 7.34 | F5: 10 | G5: 0 | H5: 0 | I5: 2.89 | J5: 0 | K5: 0 | L5: 0.526 | M5: 0.436 | N5: 0 | O5: 0 | P5: 0 | Q5: 1 | R5: 1 | S5: 0 | T5: 0.617 | U5: 0 | V5: 0.494 | W5: 0.367 | X5: 0 | Y5: 0 | Z5: 0 | AA5: 0 | AB5: 0 | AC5: 0 | AD5: 91.1 | AE5: 23.1 | AF5: 18.2 | AG5: 3.52 | AH5: 3.34 | AI5: 3.18 | AJ5: 1.47 | AK5: 0.675 | AL5: 0 | AM5: 0.687 | AN5: 68.3 | AO5: 0 | AP5: 0 | AQ5: 0 | AR5: 0 | AS5: 0 | AT5: 3.76 | AU5: 0.912 | AV5: 0 | AW5: 0
A6: C10X30 | B6: C | C6: F | D6: 30 | E6: 8.81 | F6: 10 | G6: 0 | H6: 0 | I6: 3.03 | J6: 0 | K6: 0 | L6: 0.673 | M6: 0.436 | N6: 0 | O6: 0 | P6: 0 | Q6: 1 | R6: 1 | S6: 0 | T6: 0.649 | U6: 0 | V6: 0.368 | W6: 0.441 | X6: 0 | Y6: 0 | Z6: 0 | AA6: 0 | AB6: 0 | AC6: 0 | AD6: 103 | AE6: 26.7 | AF6: 20.7 | AG6: 3.42 | AH6: 3.93 | AI6: 3.78 | AJ6: 1.65 | AK6: 0.668 | AL6: 0 | AM6: 1.22 | AN6: 79.5 | AO6: 0 | AP6: 0 | AQ6: 0 | AR6: 0 | AS6: 0 | AT6: 3.63 | AU6: 0.921 | AV6: 0 | AW6: 0
A7: C12X20.7 | B7: C | C7: F | D7: 20.7 | E7: 6.08 | F7: 12 | G7: 0 | H7: 0 | I7: 2.94 | J7: 0 | K7: 0 | L7: 0.282 | M7: 0.501 | N7: 0 | O7: 0 | P7: 0 | Q7: 1.13 | R7: 1.125 | S7: 0 | T7: 0.698 | U7: 0 | V7: 0.87 | W7: 0.253 | X7: 0 | Y7: 0 | Z7: 0 | AA7: 0 | AB7: 0 | AC7: 0 | AD7: 129 | AE7: 25.6 | AF7: 21.5 | AG7: 4.61 | AH7: 3.86 | AI7: 3.47 | AJ7: 1.72 | AK7: 0.797 | AL7: 0 | AM7: 0.369 | AN7: 112 | AO7: 0 | AP7: 0 | AQ7: 0 | AR7: 0 | AS7: 0 | AT7: 4.93 | AU7: 0.899 | AV7: 0 | AW7: 0
A8: C12X25 | B8: C | C8: F | D8: 25 | E8: 7.34 | F8: 12 | G8: 0 | H8: 0 | I8: 3.05 | J8: 0 | K8: 0 | L8: 0.387 | M8: 0.501 | N8: 0 | O8: 0 | P8: 0 | Q8: 1.13 | R8: 1.125 | S8: 0 | T8: 0.674 | U8: 0 | V8: 0.746 | W8: 0.306 | X8: 0 | Y8: 0 | Z8: 0 | AA8: 0 | AB8: 0 | AC8: 0 | AD8: 144 | AE8: 29.4 | AF8: 24 | AG8: 4.43 | AH8: 4.45 | AI8: 3.82 | AJ8: 1.87 | AK8: 0.779 | AL8: 0 | AM8: 0.538 | AN8: 130 | AO8: 0 | AP8: 0 | AQ8: 0 | AR8: 0 | AS8: 0 | AT8: 4.72 | AU8: 0.909 | AV8: 0 | AW8: 0
A9: C12X30 | B9: C | C9: F | D9: 30 | E9: 8.81 | F9: 12 | G9: 0 | H9: 0 | I9: 3.17 | J9: 0 | K9: 0 | L9: 0.51 | M9: 0.501 | N9: 0 | O9: 0 | P9: 0 | Q9: 1.13 | R9: 1.125 | S9: 0 | T9: 0.674 | U9: 0 | V9: 0.618 | W9: 0.367 | X9: 0 | Y9: 0 | Z9: 0 | AA9: 0 | AB9: 0 | AC9: 0 | AD9: 162 | AE9: 33.8 | AF9: 27 | AG9: 4.29 | AH9: 5.12 | AI9: 4.32 | AJ9: 2.05 | AK9: 0.762 | AL9: 0 | AM9: 0.861 | AN9: 151 | AO9: 0 | AP9: 0 | AQ9: 0 | AR9: 0 | AS9: 0 | AT9: 4.54 | AU9: 0.919 | AV9: 0 | AW9: 0
A10: C15X33.9 | B10: C | C10: F | D10: 33.9 | E10: 10 | F10: 15 | G10: 0 | H10: 0 | I10: 3.4 | J10: 0 | K10: 0 | L10: 0.4 | M10: 0.65 | N10: 0 | O10: 0 | P10: 0 | Q10: 1.44 | R10: 1.4375 | S10: 0 | T10: 0.788 | U10: 0 | V10: 0.896 | W10: 0.332 | X10: 0 | Y10: 0 | Z10: 0 | AA10: 0 | AB10: 0 | AC10: 0 | AD10: 315 | AE10: 50.8 | AF10: 42 | AG10: 5.62 | AH10: 8.07 | AI10: 6.19 | AJ10: 3.09 | AK10: 0.901 | AL10: 0 | AM10: 1.01 | AN10: 358 | AO10: 0 | AP10: 0 | AQ10: 0 | AR10: 0 | AS10: 0 | AT10: 5.94 | AU10: 0.92 | AV10: 0 | AW10: 0
A11: C15X40 | B11: C | C11: F | D11: 40 | E11: 11.8 | F11: 15 | G11: 0 | H11: 0 | I11: 3.52 | J11: 0 | K11: 0 | L11: 0.52 | M11: 0.65 | N11: 0 | O11: 0 | P11: 0 | Q11: 1.44 | R11: 1.4375 | S11: 0 | T11: 0.778 | U11: 0 | V11: 0.767 | W11: 0.392 | X11: 0 | Y11: 0 | Z11: 0 | AA11: 0 | AB11: 0 | AC11: 0 | AD11: 348 | AE11: 57.5 | AF11: 46.5 | AG11: 5.45 | AH11: 9.17 | AI11: 6.84 | AJ11: 3.34 | AK11: 0.883 | AL11: 0 | AM11: 1.45 | AN11: 410 | AO11: 0 | AP11: 0 | AQ11: 0 | AR11: 0 | AS11: 0 | AT11: 5.71 | AU11: 0.927 | AV11: 0 | AW11: 0
A12: C15X50 | B12: C | C12: F | D12: 50 | E12: 14.7 | F12: 15 | G12: 0 | H12: 0 | I12: 3.72 | J12: 0 | K12: 0 | L12: 0.716 | M12: 0.65 | N12: 0 | O12: 0 | P12: 0 | Q12: 1.44 | R12: 1.4375 | S12: 0 | T12: 0.799 | U12: 0 | V12: 0.583 | W12: 0.49 | X12: 0 | Y12: 0 | Z12: 0 | AA12: 0 | AB12: 0 | AC12: 0 | AD12: 404 | AE12: 68.5 | AF12: 53.8 | AG12: 5.24 | AH12: 11 | AI12: 8.14 | AJ12: 3.77 | AK12: 0.865 | AL12: 0 | AM12: 2.65 | AN12: 492 | AO12: 0 | AP12: 0 | AQ12: 0 | AR12: 0 | AS12: 0 | AT12: 5.49 | AU12: 0.937 | AV12: 0 | AW12: 0
A13: C3X3.5 | B13: C | C13: F | D13: 3.5 | E13: 1.09 | F13: 3 | G13: 0 | H13: 0 | I13: 1.37 | J13: 0 | K13: 0 | L13: 0.132 | M13: 0.273 | N13: 0 | O13: 0 | P13: 0 | Q13: 0.688 | R13: 0.6875 | S13: 0 | T13: 0.443 | U13: 0 | V13: 0.493 | W13: 0.296 | X13: 0 | Y13: 0 | Z13: 0 | AA13: 0 | AB13: 0 | AC13: 0 | AD13: 1.57 | AE13: 1.24 | AF13: 1.04 | AG13: 1.2 | AH13: 0.169 | AI13: 0.364 | AJ13: 0.182 | AK13: 0.394 | AL13: 0 | AM13: 0.0226 | AN13: 0.276 | AO13: 0 | AP13: 0 | AQ13: 0 | AR13: 0 | AS13: 0 | AT13: 1.57 | AU13: 0.646 | AV13: 0 | AW13: 0
A14: C3X4.1 | B14: C | C14: F | D14: 4.1 | E14: 1.2 | F14: 3 | G14: 0 | H14: 0 | I14: 1.41 | J14: 0 | K14: 0 | L14: 0.17 | M14: 0.273 | N14: 0 | O14: 0 | P14: 0 | Q14: 0.688 | R14: 0.6875 | S14: 0 | T14: 0.437 | U14: 0 | V14: 0.461 | W14: 0.262 | X14: 0 | Y14: 0 | Z14: 0 | AA14: 0 | AB14: 0 | AC14: 0 | AD14: 1.65 | AE14: 1.32 | AF14: 1.1 | AG14: 1.17 | AH14: 0.191 | AI14: 0.399 | AJ14: 0.196 | AK14: 0.398 | AL14: 0 | AM14: 0.0269 | AN14: 0.307 | AO14: 0 | AP14: 0 | AQ14: 0 | AR14: 0 | AS14: 0 | AT14: 1.53 | AU14: 0.655 | AV14: 0 | AW14: 0
A15: C3X5 | B15: C | C15: F | D15: 5 | E15: 1.47 | F15: 3 | G15: 0 | H15: 0 | I15: 1.5 | J15: 0 | K15: 0 | L15: 0.258 | M15: 0.273 | N15: 0 | O15: 0 | P15: 0 | Q15: 0.688 | R15: 0.6875 | S15: 0 | T15: 0.439 | U15: 0 | V15: 0.392 | W15: 0.245 | X15: 0 | Y15: 0 | Z15: 0 | AA15: 0 | AB15: 0 | AC15: 0 | AD15: 1.85 | AE15: 1.52 | AF15: 1.23 | AG15: 1.12 | AH15: 0.241 | AI15: 0.464 | AJ15: 0.228 | AK15: 0.405 | AL15: 0 | AM15: 0.0425 | AN15: 0.379 | AO15: 0 | AP15: 0 | AQ15: 0 | AR15: 0 | AS15: 0 | AT15: 1.45 | AU15: 0.673 | AV15: 0 | AW15: 0
A16: C3X6 | B16: C | C16: F | D16: 6 | E16: 1.76 | F16: 3 | G16: 0 | H16: 0 | I16: 1.6 | J16: 0 | K16: 0 | L16: 0.356 | M16: 0.273 | N16: 0 | O16: 0 | P16: 0 | Q16: 0.688 | R16: 0.6875 | S16: 0 | T16: 0.455 | U16: 0 | V16: 0.322 | W16: 0.294 | X16: 0 | Y16: 0 | Z16: 0 | AA16: 0 | AB16: 0 | AC16: 0 | AD16: 2.07 | AE16: 1.74 | AF16: 1.38 | AG16: 1.08 | AH16: 0.3 | AI16: 0.543 | AJ16: 0.263 | AK16: 0.413 | AL16: 0 | AM16: 0.0725 | AN16: 0.462 | AO16: 0 | AP16: 0 | AQ16: 0 | AR16: 0 | AS16: 0 | AT16: 1.4 | AU16: 0.69 | AV16: 0 | AW16: 0
A17: C4X4.5 | B17: C | C17: F | D17: 4.5 | E17: 1.38 | F17: 4 | G17: 0 | H17: 0 | I17: 1.58 | J17: 0 | K17: 0 | L17: 0.125 | M17: 0.296 | N17: 0 | O17: 0 | P17: 0 | Q17: 0.75 | R17: 0.75 | S17: 0 | T17: 0.493 | U17: 0 | V17: 0.587 | W17: 0.321 | X17: 0 | Y17: 0 | Z17: 0 | AA17: 0 | AB17: 0 | AC17: 0 | AD17: 3.65 | AE17: 2.12 | AF17: 1.83 | AG17: 1.63 | AH17: 0.289 | AI17: 0.531 | AJ17: 0.265 | AK17: 0.457 | AL17: 0 | AM17: 0.0322 | AN17: 0.871 | AO17: 0 | AP17: 0 | AQ17: 0 | AR17: 0 | AS17: 0 | AT17: 2.01 | AU17: 0.71 | AV17: 0 | AW17: 0
A18: C4X5.4 | B18: C | C18: F | D18: 5.4 | E18: 1.58 | F18: 4 | G18: 0 | H18: 0 | I18: 1.58 | J18: 0 | K18: 0 | L18: 0.184 | M18: 0.296 | N18: 0 | O18: 0 | P18: 0 | Q18: 0.75 | R18: 0.75 | S18: 0 | T18: 0.457 | U18: 0 | V18: 0.501 | W18: 0.231 | X18: 0 | Y18: 0 | Z18: 0 | AA18: 0 | AB18: 0 | AC18: 0 | AD18: 3.85 | AE18: 2.29 | AF18: 1.92 | AG18: 1.56 | AH18: 0.312 | AI18: 0.565 | AJ18: 0.277 | AK18: 0.444 | AL18: 0 | AM18: 0.0399 | AN18: 0.921 | AO18: 0 | AP18: 0 | AQ18: 0 | AR18: 0 | AS18: 0 | AT18: 1.88 | AU18: 0.742 | AV18: 0 | AW18: 0
A19: C4X7.2 | B19: C | C19: F | D19: 7.2 | E19: 2.13 | F19: 4 | G19: 0 | H19: 0 | I19: 1.72 | J19: 0 | K19: 0 | L19: 0.321 | M19: 0.296 | N19: 0 | O19: 0 | P19: 0 | Q19: 0.75 | R19: 0.75 | S19: 0 | T19: 0.459 | U19: 0 | V19: 0.386 | W19: 0.266 | X19: 0 | Y19: 0 | Z19: 0 | AA19: 0 | AB19: 0 | AC19: 0 | AD19: 4.58 | AE19: 2.84 | AF19: 2.29 | AG19: 1.47 | AH19: 0.425 | AI19: 0.695 | AJ19: 0.337 | AK19: 0.447 | AL19: 0 | AM19: 0.0817 | AN19: 1.24 | AO19: 0 | AP19: 0 | AQ19: 0 | AR19: 0 | AS19: 0 | AT19: 1.75 | AU19: 0.767 | AV19: 0 | AW19: 0
A20: C5X6.7 | B20: C | C20: F | D20: 6.7 | E20: 1.97 | F20: 5 | G20: 0 | H20: 0 | I20: 1.75 | J20: 0 | K20: 0 | L20: 0.19 | M20: 0.32 | N20: 0 | O20: 0 | P20: 0 | Q20: 0.75 | R20: 0.75 | S20: 0 | T20: 0.484 | U20: 0 | V20: 0.552 | W20: 0.215 | X20: 0 | Y20: 0 | Z20: 0 | AA20: 0 | AB20: 0 | AC20: 0 | AD20: 7.48 | AE20: 3.55 | AF20: 2.99 | AG20: 1.95 | AH20: 0.47 | AI20: 0.757 | AJ20: 0.372 | AK20: 0.489 | AL20: 0 | AM20: 0.0549 | AN20: 2.22 | AO20: 0 | AP20: 0 | AQ20: 0 | AR20: 0 | AS20: 0 | AT20: 2.26 | AU20: 0.79 | AV20: 0 | AW20: 0
A21: C5X9 | B21: C | C21: F | D21: 9 | E21: 2.64 | F21: 5 | G21: 0 | H21: 0 | I21: 1.89 | J21: 0 | K21: 0 | L21: 0.325 | M21: 0.32 | N21: 0 | O21: 0 | P21: 0 | Q21: 0.75 | R21: 0.75 | S21: 0 | T21: 0.478 | U21: 0 | V21: 0.427 | W21: 0.264 | X21: 0 | Y21: 0 | Z21: 0 | AA21: 0 | AB21: 0 | AC21: 0 | AD21: 8.89 | AE21: 4.39 | AF21: 3.56 | AG21: 1.83 | AH21: 0.624 | AI21: 0.913 | AJ21: 0.444 | AK21: 0.486 | AL21: 0 | AM21: 0.109 | AN21: 2.93 | AO21: 0 | AP21: 0 | AQ21: 0 | AR21: 0 | AS21: 0 | AT21: 2.1 | AU21: 0.815 | AV21: 0 | AW21: 0
A22: C6X10.5 | B22: C | C22: F | D22: 10.5 | E22: 3.08 | F22: 6 | G22: 0 | H22: 0 | I22: 2.03 | J22: 0 | K22: 0 | L22: 0.314 | M22: 0.343 | N22: 0 | O22: 0 | P22: 0 | Q22: 0.813 | R22: 0.8125 | S22: 0 | T22: 0.5 | U22: 0 | V22: 0.486 | W22: 0.256 | X22: 0 | Y22: 0 | Z22: 0 | AA22: 0 | AB22: 0 | AC22: 0 | AD22: 15.1 | AE22: 6.18 | AF22: 5.04 | AG22: 2.22 | AH22: 0.86 | AI22: 1.14 | AJ22: 0.561 | AK22: 0.529 | AL22: 0 | AM22: 0.128 | AN22: 5.91 | AO22: 0 | AP22: 0 | AQ22: 0 | AR22: 0 | AS22: 0 | AT22: 2.48 | AU22: 0.842 | AV22: 0 | AW22: 0
A23: C6X13 | B23: C | C23: F | D23: 13 | E23: 3.81 | F23: 6 | G23: 0 | H23: 0 | I23: 2.16 | J23: 0 | K23: 0 | L23: 0.437 | M23: 0.343 | N23: 0 | O23: 0 | P23: 0 | Q23: 0.813 | R23: 0.8125 | S23: 0 | T23: 0.514 | U23: 0 | V23: 0.38 | W23: 0.318 | X23: 0 | Y23: 0 | Z23: 0 | AA23: 0 | AB23: 0 | AC23: 0 | AD23: 17.3 | AE23: 7.29 | AF23: 5.78 | AG23: 2.13 | AH23: 1.05 | AI23: 1.35 | AJ23: 0.638 | AK23: 0.524 | AL23: 0 | AM23: 0.237 | AN23: 7.19 | AO23: 0 | AP23: 0 | AQ23: 0 | AR23: 0 | AS23: 0 | AT23: 2.37 | AU23: 0.858 | AV23: 0 | AW23: 0
A24: C6X8.2 | B24: C | C24: F | D24: 8.2 | E24: 2.39 | F24: 6 | G24: 0 | H24: 0 | I24: 1.92 | J24: 0 | K24: 0 | L24: 0.2 | M24: 0.343 | N24: 0 | O24: 0 | P24: 0 | Q24: 0.813 | R24: 0.8125 | S24: 0 | T24: 0.512 | U24: 0 | V24: 0.599 | W24: 0.199 | X24: 0 | Y24: 0 | Z24: 0 | AA24: 0 | AB24: 0 | AC24: 0 | AD24: 13.1 | AE24: 5.16 | AF24: 4.35 | AG24: 2.34 | AH24: 0.687 | AI24: 0.987 | AJ24: 0.488 | AK24: 0.536 | AL24: 0 | AM24: 0.0736 | AN24: 4.7 | AO24: 0 | AP24: 0 | AQ24: 0 | AR24: 0 | AS24: 0 | AT24: 2.65 | AU24: 0.824 | AV24: 0 | AW24: 0
A25: C7X12.2 | B25: C | C25: F | D25: 12.2 | E25: 3.6 | F25: 7 | G25: 0 | H25: 0 | I25: 2.19 | J25: 0 | K25: 0 | L25: 0.314 | M25: 0.366 | N25: 0 | O25: 0 | P25: 0 | Q25: 0.875 | R25: 0.875 | S25: 0 | T25: 0.525 | U25: 0 | V25: 0.538 | W25: 0.257 | X25: 0 | Y25: 0 | Z25: 0 | AA25: 0 | AB25: 0 | AC25: 0 | AD25: 24.2 | AE25: 8.46 | AF25: 6.92 | AG25: 2.6 | AH25: 1.16 | AI25: 1.42 | AJ25: 0.696 | AK25: 0.568 | AL25: 0 | AM25: 0.161 | AN25: 11.2 | AO25: 0 | AP25: 0 | AQ25: 0 | AR25: 0 | AS25: 0 | AT25: 2.86 | AU25: 0.862 | AV25: 0 | AW25: 0
A26: C7X14.7 | B26: C | C26: F | D26: 14.7 | E26: 4.33 | F26: 7 | G26: 0 | H26: 0 | I26: 2.3 | J26: 0 | K26: 0 | L26: 0.419 | M26: 0.366 | N26: 0 | O26: 0 | P26: 0 | Q26: 0.875 | R26: 0.875 | S26: 0 | T26: 0.532 | U26: 0 | V26: 0.441 | W26: 0.309 | X26: 0 | Y26: 0 | Z26: 0 | AA26: 0 | AB26: 0 | AC26: 0 | AD26: 27.2 | AE26: 9.75 | AF26: 7.78 | AG26: 2.51 | AH26: 1.37 | AI26: 1.63 | AJ26: 0.772 | AK26: 0.561 | AL26: 0 | AM26: 0.267 | AN26: 13.1 | AO26: 0 | AP26: 0 | AQ26: 0 | AR26: 0 | AS26: 0 | AT26: 2.75 | AU26: 0.875 | AV26: 0 | AW26: 0
A27: C7X9.8 | B27: C | C27: F | D27: 9.8 | E27: 2.87 | F27: 7 | G27: 0 | H27: 0 | I27: 2.09 | J27: 0 | K27: 0 | L27: 0.21 | M27: 0.366 | N27: 0 | O27: 0 | P27: 0 | Q27: 0.875 | R27: 0.875 | S27: 0 | T27: 0.541 | U27: 0 | V27: 0.647 | W27: 0.205 | X27: 0 | Y27: 0 | Z27: 0 | AA27: 0 | AB27: 0 | AC27: 0 | AD27: 21.2 | AE27: 7.19 | AF27: 6.07 | AG27: 2.72 | AH27: 0.957 | AI27: 1.26 | AJ27: 0.617 | AK27: 0.578 | AL27: 0 | AM27: 0.0996 | AN27: 9.15 | AO27: 0 | AP27: 0 | AQ27: 0 | AR27: 0 | AS27: 0 | AT27: 3.02 | AU27: 0.845 | AV27: 0 | AW27: 0
A28: C8X11.5 | B28: C | C28: F | D28: 11.5 | E28: 3.37 | F28: 8 | G28: 0 | H28: 0 | I28: 2.26 | J28: 0 | K28: 0 | L28: 0.22 | M28: 0.39 | N28: 0 | O28: 0 | P28: 0 | Q28: 0.938 | R28: 0.9375 | S28: 0 | T28: 0.572 | U28: 0 | V28: 0.697 | W28: 0.211 | X28: 0 | Y28: 0 | Z28: 0 | AA28: 0 | AB28: 0 | AC28: 0 | AD28: 32.5 | AE28: 9.63 | AF28: 8.14 | AG28: 3.11 | AH28: 1.31 | AI28: 1.57 | AJ28: 0.775 | AK28: 0.623 | AL28: 0 | AM28: 0.13 | AN28: 16.5 | AO28: 0 | AP28: 0 | AQ28: 0 | AR28: 0 | AS28: 0 | AT28: 3.41 | AU28: 0.862 | AV28: 0 | AW28: 0
A29: C8X13.7 | B29: C | C29: F | D29: 13.7 | E29: 4.04 | F29: 8 | G29: 0 | H29: 0 | I29: 2.34 | J29: 0 | K29: 0 | L29: 0.303 | M29: 0.39 | N29: 0 | O29: 0 | P29: 0 | Q29: 0.938 | R29: 0.9375 | S29: 0 | T29: 0.554 | U29: 0 | V29: 0.604 | W29: 0.252 | X29: 0 | Y29: 0 | Z29: 0 | AA29: 0 | AB29: 0 | AC29: 0 | AD29: 36.1 | AE29: 11 | AF29: 9.02 | AG29: 2.99 | AH29: 1.52 | AI29: 1.73 | AJ29: 0.848 | AK29: 0.613 | AL29: 0 | AM29: 0.186 | AN29: 19.2 | AO29: 0 | AP29: 0 | AQ29: 0 | AR29: 0 | AS29: 0 | AT29: 3.26 | AU29: 0.874 | AV29: 0 | AW29: 0
A30: C8X18.7 | B30: C | C30: F | D30: 18.7 | E30: 5.51 | F30: 8 | G30: 0 | H30: 0 | I30: 2.53 | J30: 0 | K30: 0 | L30: 0.487 | M30: 0.39 | N30: 0 | O30: 0 | P30: 0 | Q30: 0.938 | R30: 0.9375 | S30: 0 | T30: 0.565 | U30: 0 | V30: 0.431 | W30: 0.344 | X30: 0 | Y30: 0 | Z30: 0 | AA30: 0 | AB30: 0 | AC30: 0 | AD30: 43.9 | AE30: 13.9 | AF30: 11 | AG30: 2.82 | AH30: 1.97 | AI30: 2.17 | AJ30: 1.01 | AK30: 0.598 | AL30: 0 | AM30: 0.434 | AN30: 25.1 | AO30: 0 | AP30: 0 | AQ30: 0 | AR30: 0 | AS30: 0 | AT30: 3.05 | AU30: 0.894 | AV30: 0 | AW30: 0
A31: C9X13.4 | B31: C | C31: F | D31: 13.4 | E31: 3.94 | F31: 9 | G31: 0 | H31: 0 | I31: 2.43 | J31: 0 | K31: 0 | L31: 0.233 | M31: 0.413 | N31: 0 | O31: 0 | P31: 0 | Q31: 1 | R31: 1 | S31: 0 | T31: 0.601 | U31: 0 | V31: 0.742 | W31: 0.219 | X31: 0 | Y31: 0 | Z31: 0 | AA31: 0 | AB31: 0 | AC31: 0 | AD31: 47.8 | AE31: 12.6 | AF31: 10.6 | AG31: 3.49 | AH31: 1.75 | AI31: 1.94 | AJ31: 0.954 | AK31: 0.666 | AL31: 0 | AM31: 0.168 | AN31: 28.2 | AO31: 0 | AP31: 0 | AQ31: 0 | AR31: 0 | AS31: 0 | AT31: 3.79 | AU31: 0.875 | AV31: 0 | AW31: 0
A32: C9X15 | B32: C | C32: F | D32: 15 | E32: 4.41 | F32: 9 | G32: 0 | H32: 0 | I32: 2.49 | J32: 0 | K32: 0 | L32: 0.285 | M32: 0.413 | N32: 0 | O32: 0 | P32: 0 | Q32: 1 | R32: 1 | S32: 0 | T32: 0.586 | U32: 0 | V32: 0.681 | W32: 0.245 | X32: 0 | Y32: 0 | Z32: 0 | AA32: 0 | AB32: 0 | AC32: 0 | AD32: 51 | AE32: 13.6 | AF32: 11.3 | AG32: 3.4 | AH32: 1.91 | AI32: 2.04 | AJ32: 1.01 | AK32: 0.659 | AL32: 0 | AM32: 0.208 | AN32: 31 | AO32: 0 | AP32: 0 | AQ32: 0 | AR32: 0 | AS32: 0 | AT32: 3.69 | AU32: 0.882 | AV32: 0 | AW32: 0
A33: C9X20 | B33: C | C33: F | D33: 20 | E33: 5.87 | F33: 9 | G33: 0 | H33: 0 | I33: 2.65 | J33: 0 | K33: 0 | L33: 0.448 | M33: 0.413 | N33: 0 | O33: 0 | P33: 0 | Q33: 1 | R33: 1 | S33: 0 | T33: 0.583 | U33: 0 | V33: 0.515 | W33: 0.326 | X33: 0 | Y33: 0 | Z33: 0 | AA33: 0 | AB33: 0 | AC33: 0 | AD33: 60.9 | AE33: 16.9 | AF33: 13.5 | AG33: 3.22 | AH33: 2.41 | AI33: 2.46 | AJ33: 1.17 | AK33: 0.64 | AL33: 0 | AM33: 0.427 | AN33: 39.4 | AO33: 0 | AP33: 0 | AQ33: 0 | AR33: 0 | AS33: 0 | AT33: 3.46 | AU33: 0.899 | AV33: 0 | AW33: 0
A34: HP10X42 | B34: HP | C34: F | D34: 42 | E34: 12.4 | F34: 9.7 | G34: 0 | H34: 0 | I34: 10.1 | J34: 0 | K34: 0 | L34: 0.415 | M34: 0.42 | N34: 0 | O34: 0 | P34: 0 | Q34: 1.13 | R34: 1.125 | S34: 0.8125 | T34: 0 | U34: 0 | V34: 0 | W34: 0 | X34: 0 | Y34: 12 | Z34: 0 | AA34: 18.9 | AB34: 0 | AC34: 0 | AD34: 210 | AE34: 48.3 | AF34: 43.4 | AG34: 4.13 | AH34: 71.7 | AI34: 21.8 | AJ34: 14.2 | AK34: 2.41 | AL34: 0 | AM34: 0.813 | AN34: 1540 | AO34: 0 | AP34: 23.4 | AQ34: 24.7 | AR34: 9.41 | AS34: 23.7 | AT34: 0 | AU34: 0 | AV34: 0 | AW34: 0
A35: HP10X57 | B35: HP | C35: F | D35: 57 | E35: 16.8 | F35: 10 | G35: 0 | H35: 0 | I35: 10.2 | J35: 0 | K35: 0 | L35: 0.565 | M35: 0.565 | N35: 0 | O35: 0 | P35: 0 | Q35: 1.25 | R35: 1.25 | S35: 0.9375 | T35: 0 | U35: 0 | V35: 0 | W35: 0 | X35: 0 | Y35: 9.05 | Z35: 0 | AA35: 13.9 | AB35: 0 | AC35: 0 | AD35: 294 | AE35: 66.5 | AF35: 58.8 | AG35: 4.18 | AH35: 101 | AI35: 30.3 | AJ35: 19.7 | AK35: 2.45 | AL35: 0 | AM35: 1.97 | AN35: 2240 | AO35: 0 | AP35: 24.1 | AQ35: 34.8 | AR35: 12.9 | AS35: 32.8 | AT35: 0 | AU35: 0 | AV35: 0 | AW35: 0
A36: HP12X53 | B36: HP | C36: F | D36: 53 | E36: 15.5 | F36: 11.8 | G36: 0 | H36: 0 | I36: 12 | J36: 0 | K36: 0 | L36: 0.435 | M36: 0.435 | N36: 0 | O36: 0 | P36: 0 | Q36: 1.13 | R36: 1.125 | S36: 0.875 | T36: 0 | U36: 0 | V36: 0 | W36: 0 | X36: 0 | Y36: 13.8 | Z36: 0 | AA36: 22.3 | AB36: 0 | AC36: 0 | AD36: 393 | AE36: 74 | AF36: 66.7 | AG36: 5.03 | AH36: 127 | AI36: 32.2 | AJ36: 21.1 | AK36: 2.86 | AL36: 0 | AM36: 1.12 | AN36: 4080 | AO36: 0 | AP36: 34.2 | AQ36: 44.7 | AR36: 14.3 | AS36: 36.2 | AT36: 0 | AU36: 0 | AV36: 0 | AW36: 0
A37: HP12X63 | B37: HP | C37: F | D37: 63 | E37: 18.4 | F37: 11.9 | G37: 0 | H37: 0 | I37: 12.1 | J37: 0 | K37: 0 | L37: 0.515 | M37: 0.515 | N37: 0 | O37: 0 | P37: 0 | Q37: 1.25 | R37: 1.25 | S37: 0.875 | T37: 0 | U37: 0 | V37: 0 | W37: 0 | X37: 0 | Y37: 11.8 | Z37: 0 | AA37: 18.9 | AB37: 0 | AC37: 0 | AD37: 472 | AE37: 88.3 | AF37: 79.1 | AG37: 5.06 | AH37: 153 | AI37: 38.7 | AJ37: 25.3 | AK37: 2.88 | AL37: 0 | AM37: 1.83 | AN37: 5000 | AO37: 0 | AP37: 34.6 | AQ37: 54.1 | AR37: 17.1 | AS37: 43.3 | AT37: 0 | AU37: 0 | AV37: 0 | AW37: 0
A38: HP12X74 | B38: HP | C38: F | D38: 74 | E38: 21.8 | F38: 12.1 | G38: 0 | H38: 0 | I38: 12.2 | J38: 0 | K38: 0 | L38: 0.605 | M38: 0.61 | N38: 0 | O38: 0 | P38: 0 | Q38: 1.31 | R38: 1.3125 | S38: 0.9375 | T38: 0 | U38: 0 | V38: 0 | W38: 0 | X38: 0 | Y38: 10 | Z38: 0 | AA38: 16.1 | AB38: 0 | AC38: 0 | AD38: 569 | AE38: 105 | AF38: 93.8 | AG38: 5.11 | AH38: 186 | AI38: 46.6 | AJ38: 30.4 | AK38: 2.92 | AL38: 0 | AM38: 2.98 | AN38: 6160 | AO38: 0 | AP38: 35.2 | AQ38: 65.5 | AR38: 20.4 | AS38: 51.9 | AT38: 0 | AU38: 0 | AV38: 0 | AW38: 0
A39: HP12X84 | B39: HP | C39: F | D39: 84 | E39: 24.6 | F39: 12.3 | G39: 0 | H39: 0 | I39: 12.3 | J39: 0 | K39: 0 | L39: 0.685 | M39: 0.685 | N39: 0 | O39: 0 | P39: 0 | Q39: 1.38 | R39: 1.375 | S39: 1 | T39: 0 | U39: 0 | V39: 0 | W39: 0 | X39: 0 | Y39: 8.97 | Z39: 0 | AA39: 14.2 | AB39: 0 | AC39: 0 | AD39: 650 | AE39: 120 | AF39: 106 | AG39: 5.14 | AH39: 213 | AI39: 53.2 | AJ39: 34.6 | AK39: 2.94 | AL39: 0 | AM39: 4.24 | AN39: 7140 | AO39: 0 | AP39: 35.6 | AQ39: 75 | AR39: 23.1 | AS39: 59 | AT39: 0 | AU39: 0 | AV39: 0 | AW39: 0
A40: HP14X102 | B40: HP | C40: F | D40: 102 | E40: 30 | F40: 14 | G40: 0 | H40: 0 | I40: 14.8 | J40: 0 | K40: 0 | L40: 0.705 | M40: 0.705 | N40: 0 | O40: 0 | P40: 0 | Q40: 1.38 | R40: 1.375 | S40: 1 | T40: 0 | U40: 0 | V40: 0 | W40: 0 | X40: 0 | Y40: 10.5 | Z40: 0 | AA40: 16.2 | AB40: 0 | AC40: 0 | AD40: 1050 | AE40: 169 | AF40: 150 | AG40: 5.92 | AH40: 380 | AI40: 78.8 | AJ40: 51.4 | AK40: 3.56 | AL40: 0 | AM40: 5.39 | AN40: 16800 | AO40: 0 | AP40: 49.2 | AQ40: 128 | AR40: 33 | AS40: 83.3 | AT40: 0 | AU40: 0 | AV40: 0 | AW40: 0
A41: HP14X117 | B41: HP | C41: F | D41: 117 | E41: 34.4 | F41: 14.2 | G41: 0 | H41: 0 | I41: 14.9 | J41: 0 | K41: 0 | L41: 0.805 | M41: 0.805 | N41: 0 | O41: 0 | P41: 0 | Q41: 1.5 | R41: 1.5 | S41: 1.0625 | T41: 0 | U41: 0 | V41: 0 | W41: 0 | X41: 0 | Y41: 9.25 | Z41: 0 | AA41: 14.2 | AB41: 0 | AC41: 0 | AD41: 1220 | AE41: 194 | AF41: 172 | AG41: 5.96 | AH41: 443 | AI41: 91.4 | AJ41: 59.5 | AK41: 3.59 | AL41: 0 | AM41: 8.02 | AN41: 19900 | AO41: 0 | AP41: 49.9 | AQ41: 149 | AR41: 38 | AS41: 96.3 | AT41: 0 | AU41: 0 | AV41: 0 | AW41: 0
A42: HP14X73 | B42: HP | C42: F | D42: 73 | E42: 21.4 | F42: 13.6 | G42: 0 | H42: 0 | I42: 14.6 | J42: 0 | K42: 0 | L42: 0.505 | M42: 0.505 | N42: 0 | O42: 0 | P42: 0 | Q42: 1.19 | R42: 1.1875 | S42: 0.875 | T42: 0 | U42: 0 | V42: 0 | W42: 0 | X42: 0 | Y42: 14.4 | Z42: 0 | AA42: 22.6 | AB42: 0 | AC42: 0 | AD42: 729 | AE42: 118 | AF42: 107 | AG42: 5.84 | AH42: 261 | AI42: 54.6 | AJ42: 35.8 | AK42: 3.49 | AL42: 0 | AM42: 2.01 | AN42: 11200 | AO42: 0 | AP42: 47.8 | AQ42: 88 | AR42: 23.3 | AS42: 58.3 | AT42: 0 | AU42: 0 | AV42: 0 | AW42: 0
A43: HP14X89 | B43: HP | C43: F | D43: 89 | E43: 26.1 | F43: 13.8 | G43: 0 | H43: 0 | I43: 14.7 | J43: 0 | K43: 0 | L43: 0.615 | M43: 0.615 | N43: 0 | O43: 0 | P43: 0 | Q43: 1.31 | R43: 1.3125 | S43: 0.9375 | T43: 0 | U43: 0 | V43: 0 | W43: 0 | X43: 0 | Y43: 11.9 | Z43: 0 | AA43: 18.5 | AB43: 0 | AC43: 0 | AD43: 904 | AE43: 146 | AF43: 131 | AG43: 5.88 | AH43: 326 | AI43: 67.7 | AJ43: 44.3 | AK43: 3.53 | AL43: 0 | AM43: 3.59 | AN43: 14200 | AO43: 0 | AP43: 48.5 | AQ43: 110 | AR43: 28.6 | AS43: 71.9 | AT43: 0 | AU43: 0 | AV43: 0 | AW43: 0
A44: HP8X36 | B44: HP | C44: F | D44: 36 | E44: 10.6 | F44: 8.02 | G44: 0 | H44: 0 | I44: 8.16 | J44: 0 | K44: 0 | L44: 0.445 | M44: 0.445 | N44: 0 | O44: 0 | P44: 0 | Q44: 1.13 | R44: 1.125 | S44: 0.875 | T44: 0 | U44: 0 | V44: 0 | W44: 0 | X44: 0 | Y44: 9.16 | Z44: 0 | AA44: 14.2 | AB44: 0 | AC44: 0 | AD44: 119 | AE44: 33.6 | AF44: 29.8 | AG44: 3.36 | AH44: 40.3 | AI44: 15.2 | AJ44: 9.88 | AK44: 1.95 | AL44: 0 | AM44: 0.77 | AN44: 578 | AO44: 0 | AP44: 15.4 | AQ44: 14 | AR44: 6.5 | AS44: 16.6 | AT44: 0 | AU44: 0 | AV44: 0 | AW44: 0
A45: HSS1.660X0.140 | B45: HSS | C45: F | D45: 2.274862147 | E45: 0.625 | F45: 0 | G45: 0 | H45: 1.66 | I45: 0 | J45: 0 | K45: 0 | L45: 0 | M45: 0 | N45: 0 | O45: 0.14 | P45: 0.13 | Q45: 0 | R45: 0 | S45: 0 | T45: 0 | U45: 0 | V45: 0 | W45: 0 | X45: 0 | Y45: 0 | Z45: 0 | AA45: 0 | AB45: 0 | AC45: 12.8 | AD45: 0.184 | AE45: 0.305 | AF45: 0.222 | AG45: 0.543 | AH45: 0.184 | AI45: 0.305 | AJ45: 0.222 | AK45: 0.543 | AL45: 0 | AM45: 0.368 | AN45: 0 | AO45: 0.444 | AP45: 0 | AQ45: 0 | AR45: 0 | AS45: 0 | AT45: 0 | AU45: 0 | AV45: 0 | AW45: 0
A46: HSS1.900X0.120 | B46: HSS | C46: F | D46: 2.28341426 | E46: 0.624 | F46: 0 | G46: 0 | H46: 1.9 | I46: 0 | J46: 0 | K46: 0 | L46: 0 | M46: 0 | N46: 0 | O46: 0.12 | P46: 0.111 | Q46: 0 | R46: 0 | S46: 0 | T46: 0 | U46: 0 | V46: 0 | W46: 0 | X46: 0 | Y46: 0 | Z46: 0 | AA46: 0 | AB46: 0 | AC46: 17.1 | AD46: 0.251 | AE46: 0.356 | AF46: 0.264 | AG46: 0.634 | AH46: 0.251 | AI46: 0.356 | AJ46: 0.264 | AK46: 0.634 | AL46: 0 | AM46: 0.501 | AN46: 0 | AO46: 0.527 | AP46: 0 | AQ46: 0 | AR46: 0 | AS46: 0 | AT46: 0 | AU46: 0 | AV46: 0 | AW46: 0
A47: HSS1.900X0.145 | B47: HSS | C47: F | D47: 2.720373801 | E47: 0.749 | F47: 0 | G47: 0 | H47: 1.9 | I47: 0 | J47: 0 | K47: 0 | L47: 0 | M47: 0 | N47: 0 | O47: 0.145 | P47: 0.135 | Q47: 0 | R47: 0 | S47: 0 | T47: 0 | U47: 0 | V47: 0 | W47: 0 | X47: 0 | Y47: 0 | Z47: 0 | AA47: 0 | AB47: 0 | AC47: 14.1 | AD47: 0.293 | AE47: 0.421 | AF47: 0.309 | AG47: 0.626 | AH47: 0.293 | AI47: 0.421 | AJ47: 0.309 | AK47: 0.626 | AL47: 0 | AM47: 0.586 | AN47: 0 | AO47: 0.617 | AP47: 0 | AQ47: 0 | AR47: 0 | AS47: 0 | AT47: 0 | AU47: 0 | AV47: 0 | AW47: 0
A48: HSS1.900X0.188 | B48: HSS | C48: F | D48: 3.440686237 | E48: 0.943 | F48: 0 | G48: 0 | H48: 1.9 | I48: 0 | J48: 0 | K48: 0 | L48: 0 | M48: 0 | N48: 0 | O48: 0.1875 | P48: 0.174 | Q48: 0 | R48: 0 | S48: 0 | T48: 0 | U48: 0 | V48: 0 | W48: 0 | X48: 0 | Y48: 0 | Z48: 0 | AA48: 0 | AB48: 0 | AC48: 10.9 | AD48: 0.355 | AE48: 0.52 | AF48: 0.374 | AG48: 0.613 | AH48: 0.355 | AI48: 0.52 | AJ48: 0.374 | AK48: 0.613 | AL48: 0 | AM48: 0.71 | AN48: 0 | AO48: 0.747 | AP48: 0 | AQ48: 0 | AR48: 0 | AS48: 0 | AT48: 0 | AU48: 0 | AV48: 0 | AW48: 0
A49: HSS10.750X0.250 | B49: HSS | C49: F | D49: 28.06162188 | E49: 7.7 | F49: 0 | G49: 0 | H49: 10.75 | I49: 0 | J49: 0 | K49: 0 | L49: 0 | M49: 0 | N49: 0 | O49: 0.25 | P49: 0.233 | Q49: 0 | R49: 0 | S49: 0 | T49: 0 | U49: 0 | V49: 0 | W49: 0 | X49: 0 | Y49: 0 | Z49: 0 | AA49: 0 | AB49: 0 | AC49: 46.1 | AD49: 106 | AE49: 25.8 | AF49: 19.8 | AG49: 3.72 | AH49: 106 | AI49: 25.8 | AJ49: 19.8 | AK49: 3.72 | AL49: 0 | AM49: 213 | AN49: 0 | AO49: 39.6 | AP49: 0 | AQ49: 0 | AR49: 0 | AS49: 0 | AT49: 0 | AU49: 0 | AV49: 0 | AW49: 0
A50: HSS10.750X0.375 | B50: HSS | C50: F | D50: 41.59133243 | E50: 11.4 | F50: 0 | G50: 0 | H50: 10.75 | I50: 0 | J50: 0 | K50: 0 | L50: 0 | M50: 0 | N50: 0 | O50: 0.375 | P50: 0.349 | Q50: 0 | R50: 0 | S50: 0 | T50: 0 | U50: 0 | V50: 0 | W50: 0 | X50: 0 | Y50: 0 | Z50: 0 | AA50: 0 | AB50: 0 | AC50: 30.8 | AD50: 154 | AE50: 37.8 | AF50: 28.7 | AG50: 3.68 | AH50: 154 | AI50: 37.8 | AJ50: 28.7 | AK50: 3.68 | AL50: 0 | AM50: 309 | AN50: 0 | AO50: 57.4 | AP50: 0 | AQ50: 0 | AR50: 0 | AS50: 0 | AT50: 0 | AU50: 0 | AV50: 0 | AW50: 0
A51: HSS10.750X0.500 | B51: HSS | C51: F | D51: 54.78697605 | E51: 15 | F51: 0 | G51: 0 | H51: 10.75 | I51: 0 | J51: 0 | K51: 0 | L51: 0 | M51: 0 | N51: 0 | O51: 0.5 | P51: 0.465 | Q51: 0 | R51: 0 | S51: 0 | T51: 0 | U51: 0 | V51: 0 | W51: 0 | X51: 0 | Y51: 0 | Z51: 0 | AA51: 0 | AB51: 0 | AC51: 23.1 | AD51: 199 | AE51: 49.2 | AF51: 37 | AG51: 3.64 | AH51: 199 | AI51: 49.2 | AJ51: 37 | AK51: 3.64 | AL51: 0 | AM51: 398 | AN51: 0 | AO51: 74.1 | AP51: 0 | AQ51: 0 | AR51: 0 | AS51: 0 | AT51: 0 | AU51: 0 | AV51: 0 | AW51: 0
A52: HSS10X0.188 | B52: HSS | C52: F | D52: 19.71963397 | E52: 5.37 | F52: 0 | G52: 0 | H52: 10 | I52: 0 | J52: 0 | K52: 0 | L52: 0 | M52: 0 | N52: 0 | O52: 0.1875 | P52: 0.174 | Q52: 0 | R52: 0 | S52: 0 | T52: 0 | U52: 0 | V52: 0 | W52: 0 | X52: 0 | Y52: 0 | Z52: 0 | AA52: 0 | AB52: 0 | AC52: 57.5 | AD52: 64.8 | AE52: 16.8 | AF52: 13 | AG52: 3.47 | AH52: 64.8 | AI52: 16.8 | AJ52: 13 | AK52: 3.47 | AL52: 0 | AM52: 130 | AN52: 0 | AO52: 25.9 | AP52: 0 | AQ52: 0 | AR52: 0 | AS52: 0 | AT52: 0 | AU52: 0 | AV52: 0 | AW52: 0
A53: HSS10X0.250 | B53: HSS | C53: F | D53: 26.05722032 | E53: 7.15 | F53: 0 | G53: 0 | H53: 10 | I53: 0 | J53: 0 | K53: 0 | L53: 0 | M53: 0 | N53: 0 | O53: 0.25 | P53: 0.233 | Q53: 0 | R53: 0 | S53: 0 | T53: 0 | U53: 0 | V53: 0 | W53: 0 | X53: 0 | Y53: 0 | Z53: 0 | AA53: 0 | AB53: 0 | AC53: 42.9 | AD53: 85.3 | AE53: 22.2 | AF53: 17.1 | AG53: 3.45 | AH53: 85.3 | AI53: 22.2 | AJ53: 17.1 | AK53: 3.45 | AL53: 0 | AM53: 171 | AN53: 0 | AO53: 34.1 | AP53: 0 | AQ53: 0 | AR53: 0 | AS53: 0 | AT53: 0 | AU53: 0 | AV53: 0 | AW53: 0
A54: HSS10X0.312 | B54: HSS | C54: F | D54: 32.31262086 | E54: 8.88 | F54: 0 | G54: 0 | H54: 10 | I54: 0 | J54: 0 | K54: 0 | L54: 0 | M54: 0 | N54: 0 | O54: 0.3125 | P54: 0.291 | Q54: 0 | R54: 0 | S54: 0 | T54: 0 | U54: 0 | V54: 0 | W54: 0 | X54: 0 | Y54: 0 | Z54: 0 | AA54: 0 | AB54: 0 | AC54: 34.4 | AD54: 105 | AE54: 27.4 | AF54: 20.9 | AG54: 3.43 | AH54: 105 | AI54: 27.4 | AJ54: 20.9 | AK54: 3.43 | AL54: 0 | AM54: 209 | AN54: 0 | AO54: 41.9 | AP54: 0 | AQ54: 0 | AR54: 0 | AS54: 0 | AT54: 0 | AU54: 0 | AV54: 0 | AW54: 0
A55: HSS10X0.375 | B55: HSS | C55: F | D55: 38.58473008 | E55: 10.6 | F55: 0 | G55: 0 | H55: 10 | I55: 0 | J55: 0 | K55: 0 | L55: 0 | M55: 0 | N55: 0 | O55: 0.375 | P55: 0.349 | Q55: 0 | R55: 0 | S55: 0 | T55: 0 | U55: 0 | V55: 0 | W55: 0 | X55: 0 | Y55: 0 | Z55: 0 | AA55: 0 | AB55: 0 | AC55: 28.7 | AD55: 123 | AE55: 32.5 | AF55: 24.7 | AG55: 3.41 | AH55: 123 | AI55: 32.5 | AJ55: 24.7 | AK55: 3.41 | AL55: 0 | AM55: 247 | AN55: 0 | AO55: 49.3 | AP55: 0 | AQ55: 0 | AR55: 0 | AS55: 0 | AT55: 0 | AU55: 0 | AV55: 0 | AW55: 0
A56: HSS10X0.500 | B56: HSS | C56: F | D56: 50.77817293 | E56: 13.9 | F56: 0 | G56: 0 | H56: 10 | I56: 0 | J56: 0 | K56: 0 | L56: 0 | M56: 0 | N56: 0 | O56: 0.5 | P56: 0.465 | Q56: 0 | R56: 0 | S56: 0 | T56: 0 | U56: 0 | V56: 0 | W56: 0 | X56: 0 | Y56: 0 | Z56: 0 | AA56: 0 | AB56: 0 | AC56: 21.5 | AD56: 159 | AE56: 42.3 | AF56: 31.7 | AG56: 3.38 | AH56: 159 | AI56: 42.3 | AJ56: 31.7 | AK56: 3.38 | AL56: 0 | AM56: 317 | AN56: 0 | AO56: 63.5 | AP56: 0 | AQ56: 0 | AR56: 0 | AS56: 0 | AT56: 0 | AU56: 0 | AV56: 0 | AW56: 0
A57: HSS10X0.625 | B57: HSS | C57: F | D57: 62.63754884 | E57: 17.2 | F57: 0 | G57: 0 | H57: 10 | I57: 0 | J57: 0 | K57: 0 | L57: 0 | M57: 0 | N57: 0 | O57: 0.625 | P57: 0.581 | Q57: 0 | R57: 0 | S57: 0 | T57: 0 | U57: 0 | V57: 0 | W57: 0 | X57: 0 | Y57: 0 | Z57: 0 | AA57: 0 | AB57: 0 | AC57: 17.2 | AD57: 191 | AE57: 51.6 | AF57: 38.3 | AG57: 3.34 | AH57: 191 | AI57: 51.6 | AJ57: 38.3 | AK57: 3.34 | AL57: 0 | AM57: 383 | AN57: 0 | AO57: 76.6 | AP57: 0 | AQ57: 0 | AR57: 0 | AS57: 0 | AT57: 0 | AU57: 0 | AV57: 0 | AW57: 0
A58: HSS10X10X1/2 | B58: HSS | C58: F | D58: 62.33164987 | E58: 17.2 | F58: 0 | G58: 10 | H58: 0 | I58: 0 | J58: 10 | K58: 0 | L58: 0 | M58: 0 | N58: 0 | O58: 0.5 | P58: 0.465 | Q58: 0 | R58: 0 | S58: 0 | T58: 0 | U58: 0 | V58: 0 | W58: 0 | X58: 0 | Y58: 0 | Z58: 18.5 | AA58: 0 | AB58: 18.5 | AC58: 0 | AD58: 256 | AE58: 60.7 | AF58: 51.2 | AG58: 3.86 | AH58: 0 | AI58: 0 | AJ58: 0 | AK58: 0 | AL58: 0 | AM58: 412 | AN58: 0 | AO58: 84.2 | AP58: 0 | AQ58: 0 | AR58: 0 | AS58: 0 | AT58: 0 | AU58: 0 | AV58: 0 | AW58: 0
A59: HSS10X10X1/4 | B59: HSS | C59: F | D59: 32.59746019 | E59: 8.96 | F59: 0 | G59: 10 | H59: 0 | I59: 0 | J59: 10 | K59: 0 | L59: 0 | M59: 0 | N59: 0 | O59: 0.25 | P59: 0.233 | Q59: 0 | R59: 0 | S59: 0 | T59: 0 | U59: 0 | V59: 0 | W59: 0 | X59: 0 | Y59: 0 | Z59: 39.9 | AA59: 0 | AB59: 39.9 | AC59: 0 | AD59: 141 | AE59: 32.7 | AF59: 28.3 | AG59: 3.97 | AH59: 0 | AI59: 0 | AJ59: 0 | AK59: 0 | AL59: 0 | AM59: 220 | AN59: 0 | AO59: 44.4 | AP59: 0 | AQ59: 0 | AR59: 0 | AS59: 0 | AT59: 0 | AU59: 0 | AV59: 0 | AW59: 0
A60: HSS10X10X3/16 | B60: HSS | C60: F | D60: 24.71554752 | E60: 6.76 | F60: 0 | G60: 10 | H60: 0 | I60: 0 | J60: 10 | K60: 0 | L60: 0 | M60: 0 | N60: 0 | O60: 0.1875 | P60: 0.174 | Q60: 0 | R60: 0 | S60: 0 | T60: 0 | U60: 0 | V60: 0 | W60: 0 | X60: 0 | Y60: 0 | Z60: 54.5 | AA60: 0 | AB60: 54.5 | AC60: 0 | AD60: 108 | AE60: 24.8 | AF60: 21.6 | AG60: 4 | AH60: 0 | AI60: 0 | AJ60: 0 | AK60: 0 | AL60: 0 | AM60: 167 | AN60: 0 | AO60: 33.6 | AP60: 0 | AQ60: 0 | AR60: 0 | AS60: 0 | AT60: 0 | AU60: 0 | AV60: 0 | AW60: 0
A61: HSS10X10X3/8 | B61: HSS | C61: F | D61: 47.82245984 | E61: 13.2 | F61: 0 | G61: 10 | H61: 0 | I61: 0 | J61: 10 | K61: 0 | L61: 0 | M61: 0 | N61: 0 | O61: 0.375 | P61: 0.349 | Q61: 0 | R61: 0 | S61: 0 | T61: 0 | U61: 0 | V61: 0 | W61: 0 | X61: 0 | Y61: 0 | Z61: 25.7 | AA61: 0 | AB61: 25.7 | AC61: 0 | AD61: 202 | AE61: 47.2 | AF61: 40.4 | AG61: 3.92 | AH61: 0 | AI61: 0 | AJ61: 0 | AK61: 0 | AL61: 0 | AM61: 320 | AN61: 0 | AO61: 64.8 | AP61: 0 | AQ61: 0 | AR61: 0 | AS61: 0 | AT61: 0 | AU61: 0 | AV61: 0 | AW61: 0
A62: HSS10X10X5/16 | B62: HSS | C62: F | D62: 40.29943622 | E62: 11.1 | F62: 0 | G62: 10 | H62: 0 | I62: 0 | J62: 10 | K62: 0 | L62: 0 | M62: 0 | N62: 0 | O62: 0.3125 | P62: 0.291 | Q62: 0 | R62: 0 | S62: 0 | T62: 0 | U62: 0 | V62: 0 | W62: 0 | X62: 0 | Y62: 0 | Z62: 31.4 | AA62: 0 | AB62: 31.4 | AC62: 0 | AD62: 172 | AE62: 40.1 | AF62: 34.5 | AG62: 3.94 | AH62: 0 | AI62: 0 | AJ62: 0 | AK62: 0 | AL62: 0 | AM62: 271 | AN62: 0 | AO62: 54.8 | AP62: 0 | AQ62: 0 | AR62: 0 | AS62: 0 | AT62: 0 | AU62: 0 | AV62: 0 | AW62: 0
A63: HSS10X10X5/8 | B63: HSS | C63: F | D63: 76.12503029 | E63: 21 | F63: 0 | G63: 10 | H63: 0 | I63: 0 | J63: 10 | K63: 0 | L63: 0 | M63: 0 | N63: 0 | O63: 0.625 | P63: 0.581 | Q63: 0 | R63: 0 | S63: 0 | T63: 0 | U63: 0 | V63: 0 | W63: 0 | X63: 0 | Y63: 0 | Z63: 14.2 | AA63: 0 | AB63: 14.2 | AC63: 0 | AD63: 304 | AE63: 73.2 | AF63: 60.8 | AG63: 3.8 | AH63: 0 | AI63: 0 | AJ63: 0 | AK63: 0 | AL63: 0 | AM63: 498 | AN63: 0 | AO63: 102 | AP63: 0 | AQ63: 0 | AR63: 0 | AS63: 0 | AT63: 0 | AU63: 0 | AV63: 0 | AW63: 0
A64: HSS10X2X1/4 | B64: HSS | C64: F | D64: 18.98634908 | E64: 5.24 | F64: 0 | G64: 10 | H64: 0 | I64: 0 | J64: 2 | K64: 0 | L64: 0 | M64: 0 | N64: 0 | O64: 0.25 | P64: 0.233 | Q64: 0 | R64: 0 | S64: 0 | T64: 0 | U64: 0 | V64: 0 | W64: 0 | X64: 0 | Y64: 0 | Z64: 5.58 | AA64: 0 | AB64: 39.9 | AC64: 0 | AD64: 52.5 | AE64: 14.4 | AF64: 10.5 | AG64: 3.17 | AH64: 3.67 | AI64: 4.26 | AJ64: 3.67 | AK64: 0.838 | AL64: 0 | AM64: 12.2 | AN64: 0.25 | AO64: 7.99 | AP64: 0 | AQ64: 0 | AR64: 0 | AS64: 0 | AT64: 0 | AU64: 0 | AV64: 0 | AW64: 0
A65: HSS10X2X1/8 | B65: HSS | C65: F | D65: 9.850428528 | E65: 2.7 | F65: 0 | G65: 10 | H65: 0 | I65: 0 | J65: 2 | K65: 0 | L65: 0 | M65: 0 | N65: 0 | O65: 0.125 | P65: 0.116 | Q65: 0 | R65: 0 | S65: 0 | T65: 0 | U65: 0 | V65: 0 | W65: 0 | X65: 0 | Y65: 0 | Z65: 14.2 | AA65: 0 | AB65: 83.2 | AC65: 0 | AD65: 28.5 | AE65: 7.65 | AF65: 5.7 | AG65: 3.25 | AH65: 2.14 | AI65: 2.33 | AJ65: 2.14 | AK65: 0.89 | AL65: 0 | AM65: 6.9 | AN65: 0.125 | AO65: 4.31 | AP65: 0 | AQ65: 0 | AR65: 0 | AS65: 0 | AT65: 0 | AU65: 0 | AV65: 0 | AW65: 0
A66: HSS10X2X3/16 | B66: HSS | C66: F | D66: 14.54331085 | E66: 3.98 | F66: 0 | G66: 10 | H66: 0 | I66: 0 | J66: 2 | K66: 0 | L66: 0 | M66: 0 | N66: 0 | O66: 0.1875 | P66: 0.174 | Q66: 0 | R66: 0 | S66: 0 | T66: 0 | U66: 0 | V66: 0 | W66: 0 | X66: 0 | Y66: 0 | Z66: 8.49 | AA66: 0 | AB66: 54.5 | AC66: 0 | AD66: 41 | AE66: 11.1 | AF66: 8.19 | AG66: 3.21 | AH66: 2.97 | AI66: 3.34 | AJ66: 2.97 | AK66: 0.864 | AL66: 0 | AM66: 9.74 | AN66: 0.1875 | AO66: 6.22 | AP66: 0 | AQ66: 0 | AR66: 0 | AS66: 0 | AT66: 0 | AU66: 0 | AV66: 0 | AW66: 0
A67: HSS10X2X3/8 | B67: HSS | C67: F | D67: 27.40579317 | E67: 7.58 | F67: 0 | G67: 10 | H67: 0 | I67: 0 | J67: 2 | K67: 0 | L67: 0 | M67: 0 | N67: 0 | O67: 0.375 | P67: 0.349 | Q67: 0 | R67: 0 | S67: 0 | T67: 0 | U67: 0 | V67: 0 | W67: 0 | X67: 0 | Y67: 0 | Z67: 2.73 | AA67: 0 | AB67: 25.7 | AC67: 0 | AD67: 71.7 | AE67: 20.3 | AF67: 14.3 | AG67: 3.08 | AH67: 4.7 | AI67: 5.76 | AJ67: 4.7 | AK67: 0.787 | AL67: 0 | AM67: 15.9 | AN67: 0.375 | AO67: 11 | AP67: 0 | AQ67: 0 | AR67: 0 | AS67: 0 | AT67: 0 | AU67: 0 | AV67: 0 | AW67: 0
A68: HSS10X2X5/16 | B68: HSS | C68: F | D68: 23.31845899 | E68: 6.43 | F68: 0 | G68: 10 | H68: 0 | I68: 0 | J68: 2 | K68: 0 | L68: 0 | M68: 0 | N68: 0 | O68: 0.3125 | P68: 0.291 | Q68: 0 | R68: 0 | S68: 0 | T68: 0 | U68: 0 | V68: 0 | W68: 0 | X68: 0 | Y68: 0 | Z68: 3.87 | AA68: 0 | AB68: 31.4 | AC68: 0 | AD68: 62.6 | AE68: 17.5 | AF68: 12.5 | AG68: 3.12 | AH68: 4.24 | AI68: 5.06 | AJ68: 4.24 | AK68: 0.812 | AL68: 0 | AM68: 14.2 | AN68: 0.3125 | AO68: 9.56 | AP68: 0 | AQ68: 0 | AR68: 0 | AS68: 0 | AT68: 0 | AU68: 0 | AV68: 0 | AW68: 0
A69: HSS10X3-1/2X1/2 | B69: HSS | C69: F | D69: 40.21359431 | E69: 11.1 | F69: 0 | G69: 10 | H69: 0 | I69: 0 | J69: 3.5 | K69: 0 | L69: 0 | M69: 0 | N69: 0 | O69: 0.5 | P69: 0.465 | Q69: 0 | R69: 0 | S69: 0 | T69: 0 | U69: 0 | V69: 0 | W69: 0 | X69: 0 | Y69: 0 | Z69: 4.53 | AA69: 0 | AB69: 18.5 | AC69: 0 | AD69: 118 | AE69: 31.9 | AF69: 23.7 | AG69: 3.26 | AH69: 21.4 | AI69: 14.7 | AJ69: 12.2 | AK69: 1.39 | AL69: 0 | AM69: 63.2 | AN69: 0.5 | AO69: 26.5 | AP69: 0 | AQ69: 0 | AR69: 0 | AS69: 0 | AT69: 0 | AU69: 0 | AV69: 0 | AW69: 0
A70: HSS10X3-1/2X1/4 | B70: HSS | C70: F | D70: 21.53843241 | E70: 5.93 | F70: 0 | G70: 10 | H70: 0 | I70: 0 | J70: 3.5 | K70: 0 | L70: 0 | M70: 0 | N70: 0 | O70: 0.25 | P70: 0.233 | Q70: 0 | R70: 0 | S70: 0 | T70: 0 | U70: 0 | V70: 0 | W70: 0 | X70: 0 | Y70: 0 | Z70: 12 | AA70: 0 | AB70: 39.9 | AC70: 0 | AD70: 69.1 | AE70: 17.9 | AF70: 13.8 | AG70: 3.41 | AH70: 13.1 | AI70: 8.45 | AJ70: 7.51 | AK70: 1.49 | AL70: 0 | AM70: 37 | AN70: 0.25 | AO70: 14.8 | AP70: 0 | AQ70: 0 | AR70: 0 | AS70: 0 | AT70: 0 | AU70: 0 | AV70: 0 | AW70: 0
A71: HSS10X3-1/2X1/8 | B71: HSS | C71: F | D71: 11.12647019 | E71: 3.04 | F71: 0 | G71: 10 | H71: 0 | I71: 0 | J71: 3.5 | K71: 0 | L71: 0 | M71: 0 | N71: 0 | O71: 0.125 | P71: 0.116 | Q71: 0 | R71: 0 | S71: 0 | T71: 0 | U71: 0 | V71: 0 | W71: 0 | X71: 0 | Y71: 0 | Z71: 27.2 | AA71: 0 | AB71: 83.2 | AC71: 0 | AD71: 37 | AE71: 9.37 | AF71: 7.4 | AG71: 3.49 | AH71: 7.22 | AI71: 4.48 | AJ71: 4.12 | AK71: 1.54 | AL71: 0 | AM71: 19.8 | AN71: 0.125 | AO71: 7.75 | AP71: 0 | AQ71: 0 | AR71: 0 | AS71: 0 | AT71: 0 | AU71: 0 | AV71: 0 | AW71: 0
A72: HSS10X3-1/2X3/16 | B72: HSS | C72: F | D72: 16.46247752 | E72: 4.5 | F72: 0 | G72: 10 | H72: 0 | I72: 0 | J72: 3.5 | K72: 0 | L72: 0 | M72: 0 | N72: 0 | O72: 0.1875 | P72: 0.174 | Q72: 0 | R72: 0 | S72: 0 | T72: 0 | U72: 0 | V72: 0 | W72: 0 | X72: 0 | Y72: 0 | Z72: 17.1 | AA72: 0 | AB72: 54.5 | AC72: 0 | AD72: 53.6 | AE72: 13.7 | AF72: 10.7 | AG72: 3.45 | AH72: 10.3 | AI72: 6.52 | AJ72: 5.89 | AK72: 1.51 | AL72: 0 | AM72: 28.6 | AN72: 0.1875 | AO72: 11.4 | AP72: 0 | AQ72: 0 | AR72: 0 | AS72: 0 | AT72: 0 | AU72: 0 | AV72: 0 | AW72: 0
A73: HSS10X3-1/2X3/8 | B73: HSS | C73: F | D73: 31.23391817 | E73: 8.62 | F73: 0 | G73: 10 | H73: 0 | I73: 0 | J73: 3.5 | K73: 0 | L73: 0 | M73: 0 | N73: 0 | O73: 0.375 | P73: 0.349 | Q73: 0 | R73: 0 | S73: 0 | T73: 0 | U73: 0 | V73: 0 | W73: 0 | X73: 0 | Y73: 0 | Z73: 7.03 | AA73: 0 | AB73: 25.7 | AC73: 0 | AD73: 96.1 | AE73: 25.3 | AF73: 19.2 | AG73: 3.34 | AH73: 17.8 | AI73: 11.8 | AJ73: 10.2 | AK73: 1.44 | AL73: 0 | AM73: 51.5 | AN73: 0.375 | AO73: 21.1 | AP73: 0 | AQ73: 0 | AR73: 0 | AS73: 0 | AT73: 0 | AU73: 0 | AV73: 0 | AW73: 0
A74: HSS10X3-1/2X5/16 | B74: HSS | C74: F | D74: 26.51366733 | E74: 7.3 | F74: 0 | G74: 10 | H74: 0 | I74: 0 | J74: 3.5 | K74: 0 | L74: 0 | M74: 0 | N74: 0 | O74: 0.3125 | P74: 0.291 | Q74: 0 | R74: 0 | S74: 0 | T74: 0 | U74: 0 | V74: 0 | W74: 0 | X74: 0 | Y74: 0 | Z74: 9.03 | AA74: 0 | AB74: 31.4 | AC74: 0 | AD74: 83.2 | AE74: 21.7 | AF74: 16.6 | AG74: 3.38 | AH74: 15.6 | AI74: 10.2 | AJ74: 8.92 | AK74: 1.46 | AL74: 0 | AM74: 44.6 | AN74: 0.3125 | AO74: 18 | AP74: 0 | AQ74: 0 | AR74: 0 | AS74: 0 | AT74: 0 | AU74: 0 | AV74: 0 | AW74: 0
A75: HSS10X3X1/4 | B75: HSS | C75: F | D75: 20.68773797 | E75: 5.7 | F75: 0 | G75: 10 | H75: 0 | I75: 0 | J75: 3 | K75: 0 | L75: 0 | M75: 0 | N75: 0 | O75: 0.25 | P75: 0.233 | Q75: 0 | R75: 0 | S75: 0 | T75: 0 | U75: 0 | V75: 0 | W75: 0 | X75: 0 | Y75: 0 | Z75: 9.88 | AA75: 0 | AB75: 39.9 | AC75: 0 | AD75: 63.6 | AE75: 16.7 | AF75: 12.7 | AG75: 3.34 | AH75: 9.28 | AI75: 6.99 | AJ75: 6.19 | AK75: 1.28 | AL75: 0 | AM75: 27.6 | AN75: 0.25 | AO75: 12.5 | AP75: 0 | AQ75: 0 | AR75: 0 | AS75: 0 | AT75: 0 | AU75: 0 | AV75: 0 | AW75: 0
A76: HSS10X3X1/8 | B76: HSS | C76: F | D76: 10.70112297 | E76: 2.93 | F76: 0 | G76: 10 | H76: 0 | I76: 0 | J76: 3 | K76: 0 | L76: 0 | M76: 0 | N76: 0 | O76: 0.125 | P76: 0.116 | Q76: 0 | R76: 0 | S76: 0 | T76: 0 | U76: 0 | V76: 0 | W76: 0 | X76: 0 | Y76: 0 | Z76: 22.9 | AA76: 0 | AB76: 83.2 | AC76: 0 | AD76: 34.2 | AE76: 8.8 | AF76: 6.83 | AG76: 3.42 | AH76: 5.16 | AI76: 3.74 | AJ76: 3.44 | AK76: 1.33 | AL76: 0 | AM76: 14.9 | AN76: 0.125 | AO76: 6.61 | AP76: 0 | AQ76: 0 | AR76: 0 | AS76: 0 | AT76: 0 | AU76: 0 | AV76: 0 | AW76: 0
A77: HSS10X3X3/16 | B77: HSS | C77: F | D77: 15.8227553 | E77: 4.32 | F77: 0 | G77: 10 | H77: 0 | I77: 0 | J77: 3 | K77: 0 | L77: 0 | M77: 0 | N77: 0 | O77: 0.1875 | P77: 0.174 | Q77: 0 | R77: 0 | S77: 0 | T77: 0 | U77: 0 | V77: 0 | W77: 0 | X77: 0 | Y77: 0 | Z77: 14.2 | AA77: 0 | AB77: 54.5 | AC77: 0 | AD77: 49.4 | AE77: 12.8 | AF77: 9.87 | AG77: 3.38 | AH77: 7.33 | AI77: 5.41 | AJ77: 4.89 | AK77: 1.3 | AL77: 0 | AM77: 21.5 | AN77: 0.1875 | AO77: 9.64 | AP77: 0 | AQ77: 0 | AR77: 0 | AS77: 0 | AT77: 0 | AU77: 0 | AV77: 0 | AW77: 0
A78: HSS10X3X3/8 | B78: HSS | C78: F | D78: 29.9578765 | E78: 8.27 | F78: 0 | G78: 10 | H78: 0 | I78: 0 | J78: 3 | K78: 0 | L78: 0 | M78: 0 | N78: 0 | O78: 0.375 | P78: 0.349 | Q78: 0 | R78: 0 | S78: 0 | T78: 0 | U78: 0 | V78: 0 | W78: 0 | X78: 0 | Y78: 0 | Z78: 5.6 | AA78: 0 | AB78: 25.7 | AC78: 0 | AD78: 88 | AE78: 23.7 | AF78: 17.6 | AG78: 3.26 | AH78: 12.4 | AI78: 9.73 | AJ78: 8.28 | AK78: 1.22 | AL78: 0 | AM78: 37.8 | AN78: 0.375 | AO78: 17.7 | AP78: 0 | AQ78: 0 | AR78: 0 | AS78: 0 | AT78: 0 | AU78: 0 | AV78: 0 | AW78: 0
A79: HSS10X3X5/16 | B79: HSS | C79: F | D79: 25.44859788 | E79: 7.01 | F79: 0 | G79: 10 | H79: 0 | I79: 0 | J79: 3 | K79: 0 | L79: 0 | M79: 0 | N79: 0 | O79: 0.3125 | P79: 0.291 | Q79: 0 | R79: 0 | S79: 0 | T79: 0 | U79: 0 | V79: 0 | W79: 0 | X79: 0 | Y79: 0 | Z79: 7.31 | AA79: 0 | AB79: 31.4 | AC79: 0 | AD79: 76.3 | AE79: 20.3 | AF79: 15.3 | AG79: 3.3 | AH79: 11 | AI79: 8.42 | AJ79: 7.3 | AK79: 1.25 | AL79: 0 | AM79: 33 | AN79: 0.3125 | AO79: 15.2 | AP79: 0 | AQ79: 0 | AR79: 0 | AS79: 0 | AT79: 0 | AU79: 0 | AV79: 0 | AW79: 0
A80: HSS10X4X1/2 | B80: HSS | C80: F | D80: 41.9149832 | E80: 11.6 | F80: 0 | G80: 10 | H80: 0 | I80: 0 | J80: 4 | K80: 0 | L80: 0 | M80: 0 | N80: 0 | O80: 0.5 | P80: 0.465 | Q80: 0 | R80: 0 | S80: 0 | T80: 0 | U80: 0 | V80: 0 | W80: 0 | X80: 0 | Y80: 0 | Z80: 5.6 | AA80: 0 | AB80: 18.5 | AC80: 0 | AD80: 129 | AE80: 34.1 | AF80: 25.8 | AG80: 3.34 | AH80: 29.5 | AI80: 17.6 | AJ80: 14.7 | AK80: 1.59 | AL80: 0 | AM80: 82.6 | AN80: 0.5 | AO80: 31 | AP80: 0 | AQ80: 0 | AR80: 0 | AS80: 0 | AT80: 0 | AU80: 0 | AV80: 0 | AW80: 0
A81: HSS10X4X1/4 | B81: HSS | C81: F | D81: 22.38912686 | E81: 6.17 | F81: 0 | G81: 10 | H81: 0 | I81: 0 | J81: 4 | K81: 0 | L81: 0 | M81: 0 | N81: 0 | O81: 0.25 | P81: 0.233 | Q81: 0 | R81: 0 | S81: 0 | T81: 0 | U81: 0 | V81: 0 | W81: 0 | X81: 0 | Y81: 0 | Z81: 14.2 | AA81: 0 | AB81: 39.9 | AC81: 0 | AD81: 74.7 | AE81: 19 | AF81: 14.9 | AG81: 3.48 | AH81: 17.7 | AI81: 10 | AJ81: 8.87 | AK81: 1.7 | AL81: 0 | AM81: 47.4 | AN81: 0.25 | AO81: 17.1 | AP81: 0 | AQ81: 0 | AR81: 0 | AS81: 0 | AT81: 0 | AU81: 0 | AV81: 0 | AW81: 0
A82: HSS10X4X1/8 | B82: HSS | C82: F | D82: 11.55181742 | E82: 3.16 | F82: 0 | G82: 10 | H82: 0 | I82: 0 | J82: 4 | K82: 0 | L82: 0 | M82: 0 | N82: 0 | O82: 0.125 | P82: 0.116 | Q82: 0 | R82: 0 | S82: 0 | T82: 0 | U82: 0 | V82: 0 | W82: 0 | X82: 0 | Y82: 0 | Z82: 31.5 | AA82: 0 | AB82: 83.2 | AC82: 0 | AD82: 39.8 | AE82: 10 | AF82: 7.97 | AG82: 3.55 | AH82: 9.65 | AI82: 5.26 | AJ82: 4.83 | AK82: 1.75 | AL82: 0 | AM82: 25.1 | AN82: 0.125 | AO82: 8.9 | AP82: 0 | AQ82: 0 | AR82: 0 | AS82: 0 | AT82: 0 | AU82: 0 | AV82: 0 | AW82: 0
A83: HSS10X4X3/16 | B83: HSS | C83: F | D83: 17.10219974 | E83: 4.67 | F83: 0 | G83: 10 | H83: 0 | I83: 0 | J83: 4 | K83: 0 | L83: 0 | M83: 0 | N83: 0 | O83: 0.1875 | P83: 0.174 | Q83: 0 | R83: 0 | S83: 0 | T83: 0 | U83: 0 | V83: 0 | W83: 0 | X83: 0 | Y83: 0 | Z83: 20 | AA83: 0 | AB83: 54.5 | AC83: 0 | AD83: 57.8 | AE83: 14.6 | AF83: 11.6 | AG83: 3.52 | AH83: 13.9 | AI83: 7.66 | AJ83: 6.93 | AK83: 1.72 | AL83: 0 | AM83: 36.5 | AN83: 0.1875 | AO83: 13.1 | AP83: 0 | AQ83: 0 | AR83: 0 | AS83: 0 | AT83: 0 | AU83: 0 | AV83: 0 | AW83: 0
A84: HSS10X4X3/8 | B84: HSS | C84: F | D84: 32.50995984 | E84: 8.97 | F84: 0 | G84: 10 | H84: 0 | I84: 0 | J84: 4 | K84: 0 | L84: 0 | M84: 0 | N84: 0 | O84: 0.375 | P84: 0.349 | Q84: 0 | R84: 0 | S84: 0 | T84: 0 | U84: 0 | V84: 0 | W84: 0 | X84: 0 | Y84: 0 | Z84: 8.46 | AA84: 0 | AB84: 25.7 | AC84: 0 | AD84: 104 | AE84: 27 | AF84: 20.8 | AG84: 3.41 | AH84: 24.3 | AI84: 14 | AJ84: 12.1 | AK84: 1.64 | AL84: 0 | AM84: 66.5 | AN84: 0.375 | AO84: 24.4 | AP84: 0 | AQ84: 0 | AR84: 0 | AS84: 0 | AT84: 0 | AU84: 0 | AV84: 0 | AW84: 0
A85: HSS10X4X5/16 | B85: HSS | C85: F | D85: 27.57873677 | E85: 7.59 | F85: 0 | G85: 10 | H85: 0 | I85: 0 | J85: 4 | K85: 0 | L85: 0 | M85: 0 | N85: 0 | O85: 0.3125 | P85: 0.291 | Q85: 0 | R85: 0 | S85: 0 | T85: 0 | U85: 0 | V85: 0 | W85: 0 | X85: 0 | Y85: 0 | Z85: 10.7 | AA85: 0 | AB85: 31.4 | AC85: 0 | AD85: 90.1 | AE85: 23.1 | AF85: 18 | AG85: 3.44 | AH85: 21.2 | AI85: 12.1 | AJ85: 10.6 | AK85: 1.67 | AL85: 0 | AM85: 57.3 | AN85: 0.3125 | AO85: 20.9 | AP85: 0 | AQ85: 0 | AR85: 0 | AS85: 0 | AT85: 0 | AU85: 0 | AV85: 0 | AW85: 0
A86: HSS10X4X5/8 | B86: HSS | C86: F | D86: 50.60419696 | E86: 14 | F86: 0 | G86: 10 | H86: 0 | I86: 0 | J86: 4 | K86: 0 | L86: 0 | M86: 0 | N86: 0 | O86: 0.625 | P86: 0.581 | Q86: 0 | R86: 0 | S86: 0 | T86: 0 | U86: 0 | V86: 0 | W86: 0 | X86: 0 | Y86: 0 | Z86: 3.88 | AA86: 0 | AB86: 14.2 | AC86: 0 | AD86: 149 | AE86: 40.3 | AF86: 29.9 | AG86: 3.26 | AH86: 33.5 | AI86: 20.6 | AJ86: 16.8 | AK86: 1.54 | AL86: 0 | AM86: 95.7 | AN86: 0.625 | AO86: 36.7 | AP86: 0 | AQ86: 0 | AR86: 0 | AS86: 0 | AT86: 0 | AU86: 0 | AV86: 0 | AW86: 0
A87: HSS10X5X1/4 | B87: HSS | C87: F | D87: 24.09051575 | E87: 6.63 | F87: 0 | G87: 10 | H87: 0 | I87: 0 | J87: 5 | K87: 0 | L87: 0 | M87: 0 | N87: 0 | O87: 0.25 | P87: 0.233 | Q87: 0 | R87: 0 | S87: 0 | T87: 0 | U87: 0 | V87: 0 | W87: 0 | X87: 0 | Y87: 0 | Z87: 18.5 | AA87: 0 | AB87: 39.9 | AC87: 0 | AD87: 85.8 | AE87: 21.3 | AF87: 17.2 | AG87: 3.6 | AH87: 29.3 | AI87: 13.2 | AJ87: 11.7 | AK87: 2.1 | AL87: 0 | AM87: 70.7 | AN87: 0.25 | AO87: 21.6 | AP87: 0 | AQ87: 0 | AR87: 0 | AS87: 0 | AT87: 0 | AU87: 0 | AV87: 0 | AW87: 0
A88: HSS10X5X3/16 | B88: HSS | C88: F | D88: 18.38164419 | E88: 5.02 | F88: 0 | G88: 10 | H88: 0 | I88: 0 | J88: 5 | K88: 0 | L88: 0 | M88: 0 | N88: 0 | O88: 0.1875 | P88: 0.174 | Q88: 0 | R88: 0 | S88: 0 | T88: 0 | U88: 0 | V88: 0 | W88: 0 | X88: 0 | Y88: 0 | Z88: 25.7 | AA88: 0 | AB88: 54.5 | AC88: 0 | AD88: 66.2 | AE88: 16.3 | AF88: 13.2 | AG88: 3.63 | AH88: 22.7 | AI88: 10.1 | AJ88: 9.09 | AK88: 2.13 | AL88: 0 | AM88: 54.1 | AN88: 0.1875 | AO88: 16.5 | AP88: 0 | AQ88: 0 | AR88: 0 | AS88: 0 | AT88: 0 | AU88: 0 | AV88: 0 | AW88: 0
A89: HSS10X5X3/8 | B89: HSS | C89: F | D89: 35.06204317 | E89: 9.67 | F89: 0 | G89: 10 | H89: 0 | I89: 0 | J89: 5 | K89: 0 | L89: 0 | M89: 0 | N89: 0 | O89: 0.375 | P89: 0.349 | Q89: 0 | R89: 0 | S89: 0 | T89: 0 | U89: 0 | V89: 0 | W89: 0 | X89: 0 | Y89: 0 | Z89: 11.3 | AA89: 0 | AB89: 25.7 | AC89: 0 | AD89: 120 | AE89: 30.4 | AF89: 24.1 | AG89: 3.53 | AH89: 40.6 | AI89: 18.7 | AJ89: 16.2 | AK89: 2.05 | AL89: 0 | AM89: 100 | AN89: 0.375 | AO89: 31.2 | AP89: 0 | AQ89: 0 | AR89: 0 | AS89: 0 | AT89: 0 | AU89: 0 | AV89: 0 | AW89: 0
A90: HSS10X5X5/16 | B90: HSS | C90: F | D90: 29.70887566 | E90: 8.17 | F90: 0 | G90: 10 | H90: 0 | I90: 0 | J90: 5 | K90: 0 | L90: 0 | M90: 0 | N90: 0 | O90: 0.3125 | P90: 0.291 | Q90: 0 | R90: 0 | S90: 0 | T90: 0 | U90: 0 | V90: 0 | W90: 0 | X90: 0 | Y90: 0 | Z90: 14.2 | AA90: 0 | AB90: 31.4 | AC90: 0 | AD90: 104 | AE90: 26 | AF90: 20.8 | AG90: 3.56 | AH90: 35.2 | AI90: 16 | AJ90: 14.1 | AK90: 2.07 | AL90: 0 | AM90: 86 | AN90: 0.3125 | AO90: 26.5 | AP90: 0 | AQ90: 0 | AR90: 0 | AS90: 0 | AT90: 0 | AU90: 0 | AV90: 0 | AW90: 0
A91: HSS10X6X1/2 | B91: HSS | C91: F | D91: 48.72053876 | E91: 13.5 | F91: 0 | G91: 10 | H91: 0 | I91: 0 | J91: 6 | K91: 0 | L91: 0 | M91: 0 | N91: 0 | O91: 0.5 | P91: 0.465 | Q91: 0 | R91: 0 | S91: 0 | T91: 0 | U91: 0 | V91: 0 | W91: 0 | X91: 0 | Y91: 0 | Z91: 9.9 | AA91: 0 | AB91: 18.5 | AC91: 0 | AD91: 171 | AE91: 43 | AF91: 34.3 | AG91: 3.57 | AH91: 76.8 | AI91: 30.1 | AJ91: 25.6 | AK91: 2.39 | AL91: 0 | AM91: 176 | AN91: 0.5 | AO91: 48.7 | AP91: 0 | AQ91: 0 | AR91: 0 | AS91: 0 | AT91: 0 | AU91: 0 | AV91: 0 | AW91: 0
A92: HSS10X6X1/4 | B92: HSS | C92: F | D92: 25.79190464 | E92: 7.1 | F92: 0 | G92: 10 | H92: 0 | I92: 0 | J92: 6 | K92: 0 | L92: 0 | M92: 0 | N92: 0 | O92: 0.25 | P92: 0.233 | Q92: 0 | R92: 0 | S92: 0 | T92: 0 | U92: 0 | V92: 0 | W92: 0 | X92: 0 | Y92: 0 | Z92: 22.8 | AA92: 0 | AB92: 39.9 | AC92: 0 | AD92: 96.9 | AE92: 23.6 | AF92: 19.4 | AG92: 3.69 | AH92: 44.1 | AI92: 16.6 | AJ92: 14.7 | AK92: 2.49 | AL92: 0 | AM92: 96.7 | AN92: 0.25 | AO92: 26.2 | AP92: 0 | AQ92: 0 | AR92: 0 | AS92: 0 | AT92: 0 | AU92: 0 | AV92: 0 | AW92: 0
A93: HSS10X6X3/16 | B93: HSS | C93: F | D93: 19.66108863 | E93: 5.37 | F93: 0 | G93: 10 | H93: 0 | I93: 0 | J93: 6 | K93: 0 | L93: 0 | M93: 0 | N93: 0 | O93: 0.1875 | P93: 0.174 | Q93: 0 | R93: 0 | S93: 0 | T93: 0 | U93: 0 | V93: 0 | W93: 0 | X93: 0 | Y93: 0 | Z93: 31.5 | AA93: 0 | AB93: 54.5 | AC93: 0 | AD93: 74.6 | AE93: 18 | AF93: 14.9 | AG93: 3.73 | AH93: 34.1 | AI93: 12.7 | AJ93: 11.4 | AK93: 2.52 | AL93: 0 | AM93: 73.8 | AN93: 0.1875 | AO93: 19.9 | AP93: 0 | AQ93: 0 | AR93: 0 | AS93: 0 | AT93: 0 | AU93: 0 | AV93: 0 | AW93: 0
A94: HSS10X6X3/8 | B94: HSS | C94: F | D94: 37.6141265 | E94: 10.4 | F94: 0 | G94: 10 | H94: 0 | I94: 0 | J94: 6 | K94: 0 | L94: 0 | M94: 0 | N94: 0 | O94: 0.375 | P94: 0.349 | Q94: 0 | R94: 0 | S94: 0 | T94: 0 | U94: 0 | V94: 0 | W94: 0 | X94: 0 | Y94: 0 | Z94: 14.2 | AA94: 0 | AB94: 25.7 | AC94: 0 | AD94: 137 | AE94: 33.8 | AF94: 27.4 | AG94: 3.63 | AH94: 61.8 | AI94: 23.7 | AJ94: 20.6 | AK94: 2.44 | AL94: 0 | AM94: 139 | AN94: 0.375 | AO94: 37.9 | AP94: 0 | AQ94: 0 | AR94: 0 | AS94: 0 | AT94: 0 | AU94: 0 | AV94: 0 | AW94: 0
A95: HSS10X6X5/16 | B95: HSS | C95: F | D95: 31.83901455 | E95: 8.76 | F95: 0 | G95: 10 | H95: 0 | I95: 0 | J95: 6 | K95: 0 | L95: 0 | M95: 0 | N95: 0 | O95: 0.3125 | P95: 0.291 | Q95: 0 | R95: 0 | S95: 0 | T95: 0 | U95: 0 | V95: 0 | W95: 0 | X95: 0 | Y95: 0 | Z95: 17.6 | AA95: 0 | AB95: 31.4 | AC95: 0 | AD95: 118 | AE95: 28.8 | AF95: 23.5 | AG95: 3.66 | AH95: 53.3 | AI95: 20.2 | AJ95: 17.8 | AK95: 2.47 | AL95: 0 | AM95: 118 | AN95: 0.3125 | AO95: 32.2 | AP95: 0 | AQ95: 0 | AR95: 0 | AS95: 0 | AT95: 0 | AU95: 0 | AV95: 0 | AW95: 0
A96: HSS10X6X5/8 | B96: HSS | C96: F | D96: 59.1111414 | E96: 16.4 | F96: 0 | G96: 10 | H96: 0 | I96: 0 | J96: 6 | K96: 0 | L96: 0 | M96: 0 | N96: 0 | O96: 0.625 | P96: 0.581 | Q96: 0 | R96: 0 | S96: 0 | T96: 0 | U96: 0 | V96: 0 | W96: 0 | X96: 0 | Y96: 0 | Z96: 7.33 | AA96: 0 | AB96: 14.2 | AC96: 0 | AD96: 201 | AE96: 51.3 | AF96: 40.2 | AG96: 3.5 | AH96: 89.4 | AI96: 35.8 | AJ96: 29.8 | AK96: 2.34 | AL96: 0 | AM96: 209 | AN96: 0.625 | AO96: 58.6 | AP96: 0 | AQ96: 0 | AR96: 0 | AS96: 0 | AT96: 0 | AU96: 0 | AV96: 0 | AW96: 0
A97: HSS10X8X1/2 | B97: HSS | C97: F | D97: 55.52609431 | E97: 15.3 | F97: 0 | G97: 10 | H97: 0 | I97: 0 | J97: 8 | K97: 0 | L97: 0 | M97: 0 | N97: 0 | O97: 0.5 | P97: 0.465 | Q97: 0 | R97: 0 | S97: 0 | T97: 0 | U97: 0 | V97: 0 | W97: 0 | X97: 0 | Y97: 0 | Z97: 14.2 | AA97: 0 | AB97: 18.5 | AC97: 0 | AD97: 214 | AE97: 51.9 | AF97: 42.7 | AG97: 3.73 | AH97: 151 | AI97: 44.5 | AJ97: 37.8 | AK97: 3.14 | AL97: 0 | AM97: 288 | AN97: 0.5 | AO97: 66.4 | AP97: 0 | AQ97: 0 | AR97: 0 | AS97: 0 | AT97: 0 | AU97: 0 | AV97: 0 | AW97: 0
A98: HSS10X8X1/4 | B98: HSS | C98: F | D98: 29.19468241 | E98: 8.03 | F98: 0 | G98: 10 | H98: 0 | I98: 0 | J98: 8 | K98: 0 | L98: 0 | M98: 0 | N98: 0 | O98: 0.25 | P98: 0.233 | Q98: 0 | R98: 0 | S98: 0 | T98: 0 | U98: 0 | V98: 0 | W98: 0 | X98: 0 | Y98: 0 | Z98: 31.3 | AA98: 0 | AB98: 39.9 | AC98: 0 | AD98: 119 | AE98: 28.1 | AF98: 23.8 | AG98: 3.85 | AH98: 84.7 | AI98: 24.2 | AJ98: 21.2 | AK98: 3.25 | AL98: 0 | AM98: 155 | AN98: 0.25 | AO98: 35.3 | AP98: 0 | AQ98: 0 | AR98: 0 | AS98: 0 | AT98: 0 | AU98: 0 | AV98: 0 | AW98: 0
A99: HSS10X8X3/16 | B99: HSS | C99: F | D99: 22.21997752 | E99: 6.06 | F99: 0 | G99: 10 | H99: 0 | I99: 0 | J99: 8 | K99: 0 | L99: 0 | M99: 0 | N99: 0 | O99: 0.1875 | P99: 0.174 | Q99: 0 | R99: 0 | S99: 0 | T99: 0 | U99: 0 | V99: 0 | W99: 0 | X99: 0 | Y99: 0 | Z99: 43 | AA99: 0 | AB99: 54.5 | AC99: 0 | AD99: 91.4 | AE99: 21.4 | AF99: 18.3 | AG99: 3.88 | AH99: 65.1 | AI99: 18.4 | AJ99: 16.3 | AK99: 3.28 | AL99: 0 | AM99: 118 | AN99: 0.1875 | AO99: 26.7 | AP99: 0 | AQ99: 0 | AR99: 0 | AS99: 0 | AT99: 0 | AU99: 0 | AV99: 0 | AW99: 0
